Workbook

Sheet Startseite

Sheet Gemeindesalden
C2: =VLOOKUP(C3,Stammdaten!D3:F158,3,0) -> 13075001 | D2: 1 | E2: 2 | F2: 3 | G2: 4 | H2: 5 | I2: 6 | J2: 7 | K2: 8 | L2: 9 | M2: 10 | N2: 11
B3: Gemeinde | C3: Ahlbeck | D3: 2013 | E3: 2014 | F3: 2015 | G3: 2016 | H3: 2017 | I3: 2018 | J3: 2019 | K3: 2020 | L3: 2021 | M3: 2022 | N3: 2023 | Q3: Legende
C4: Einwohner | D4: =VLOOKUP($C$2,FAG!$B$4:$R$159,(4+Gemeindesalden!D2),0) -> 667 | E4: =VLOOKUP($C$2,FAG!$B$4:$R$159,(4+Gemeindesalden!E2),0) -> 651 | F4: =VLOOKUP($C$2,FAG!$B$4:$R$159,(4+Gemeindesalden!F2),0) -> 639 | G4: =VLOOKUP($C$2,FAG!$B$4:$R$159,(4+Gemeindesalden!G2),0) -> 627 | H4: =VLOOKUP($C$2,FAG!$B$4:$R$159,(4+Gemeindesalden!H2),0) -> 618 | I4: =VLOOKUP($C$2,FAG!$B$4:$R$159,(4+Gemeindesalden!I2),0) -> 620 | J4: =VLOOKUP($C$2,FAG!$B$4:$R$159,(4+Gemeindesalden!J2),0) -> 597 | K4: =VLOOKUP($C$2,FAG!$B$4:$R$159,(4+Gemeindesalden!K2),0) -> 582 | L4: =VLOOKUP($C$2,FAG!$B$4:$R$159,(4+Gemeindesalden!L2),0) -> 586 | M4: =AVERAGE(J4:L4) -> 588.3333333 | N4: =AVERAGE(K4:M4) -> 585.4444444 | Q4: Auswahlfeld
B5: tatsächliche Steuer | D5: =SUM(D6:D10) -> 183880 | E5: =SUM(E6:E10) -> 190703 | F5: 201850 | G5: 195181 | H5: 206407 | I5: 242222 | J5: 289628 | K5: 221013 | L5: 284986 | M5: 353678 | N5: 363787.99 | Q5: Prognosedaten
C6: Grundsteuer A | D6: =SUMIFS(Kassenstatistik!$AA:$AA,Kassenstatistik!$D:$D,Gemeindesalden!$C$2,Kassenstatistik!$B:$B,Gemeindesalden!D$3) -> 3752 | E6: =SUMIFS(Kassenstatistik!$AA:$AA,Kassenstatistik!$D:$D,Gemeindesalden!$C$2,Kassenstatistik!$B:$B,Gemeindesalden!E$3) -> 3692 | F6: =SUMIFS(Kassenstatistik!$AA:$AA,Kassenstatistik!$D:$D,Gemeindesalden!$C$2,Kassenstatistik!$B:$B,Gemeindesalden!F$3) -> 4524 | G6: =SUMIFS(Kassenstatistik!$AA:$AA,Kassenstatistik!$D:$D,Gemeindesalden!$C$2,Kassenstatistik!$B:$B,Gemeindesalden!G$3) -> 4792 | H6: =SUMIFS(Kassenstatistik!$AA:$AA,Kassenstatistik!$D:$D,Gemeindesalden!$C$2,Kassenstatistik!$B:$B,Gemeindesalden!H$3) -> 4720 | I6: =SUMIFS(Kassenstatistik!$AA:$AA,Kassenstatistik!$D:$D,Gemeindesalden!$C$2,Kassenstatistik!$B:$B,Gemeindesalden!I$3) -> 3607 | J6: =SUMIFS(Kassenstatistik!$AA:$AA,Kassenstatistik!$D:$D,Gemeindesalden!$C$2,Kassenstatistik!$B:$B,Gemeindesalden!J$3) -> 3605 | K6: =SUMIFS(Kassenstatistik!$AA:$AA,Kassenstatistik!$D:$D,Gemeindesalden!$C$2,Kassenstatistik!$B:$B,Gemeindesalden!K$3) -> 5703 | L6: =SUMIFS(Kassenstatistik!$AA:$AA,Kassenstatistik!$D:$D,Gemeindesalden!$C$2,Kassenstatistik!$B:$B,Gemeindesalden!L$3) -> 4643 | M6: =SUMIFS(Kassenstatistik!$AA:$AA,Kassenstatistik!$D:$D,Gemeindesalden!$C$2,Kassenstatistik!$B:$B,Gemeindesalden!M$3) -> 4585 | N6: =M6 -> 4585 | Q6: Plandaten
C7: Grundsteuer B | D7: =SUMIFS(Kassenstatistik!$AB:$AB,Kassenstatistik!$D:$D,Gemeindesalden!$C$2,Kassenstatistik!$B:$B,Gemeindesalden!D$3) -> 52646 | E7: =SUMIFS(Kassenstatistik!$AB:$AB,Kassenstatistik!$D:$D,Gemeindesalden!$C$2,Kassenstatistik!$B:$B,Gemeindesalden!E$3) -> 49407 | F7: =SUMIFS(Kassenstatistik!$AB:$AB,Kassenstatistik!$D:$D,Gemeindesalden!$C$2,Kassenstatistik!$B:$B,Gemeindesalden!F$3) -> 51983 | G7: =SUMIFS(Kassenstatistik!$AB:$AB,Kassenstatistik!$D:$D,Gemeindesalden!$C$2,Kassenstatistik!$B:$B,Gemeindesalden!G$3) -> 53084 | H7: =SUMIFS(Kassenstatistik!$AB:$AB,Kassenstatistik!$D:$D,Gemeindesalden!$C$2,Kassenstatistik!$B:$B,Gemeindesalden!H$3) -> 53682 | I7: =SUMIFS(Kassenstatistik!$AB:$AB,Kassenstatistik!$D:$D,Gemeindesalden!$C$2,Kassenstatistik!$B:$B,Gemeindesalden!I$3) -> 57254 | J7: =SUMIFS(Kassenstatistik!$AB:$AB,Kassenstatistik!$D:$D,Gemeindesalden!$C$2,Kassenstatistik!$B:$B,Gemeindesalden!J$3) -> 57760 | K7: =SUMIFS(Kassenstatistik!$AB:$AB,Kassenstatistik!$D:$D,Gemeindesalden!$C$2,Kassenstatistik!$B:$B,Gemeindesalden!K$3) -> 57781 | L7: =SUMIFS(Kassenstatistik!$AB:$AB,Kassenstatistik!$D:$D,Gemeindesalden!$C$2,Kassenstatistik!$B:$B,Gemeindesalden!L$3) -> 59645 | M7: =SUMIFS(Kassenstatistik!$AB:$AB,Kassenstatistik!$D:$D,Gemeindesalden!$C$2,Kassenstatistik!$B:$B,Gemeindesalden!M$3) -> 65133 | N7: =M7 -> 65133 | Q7: noch keine Daten
C8: Gewerbesteuer | D8: =SUMIFS(Kassenstatistik!$AC:$AC,Kassenstatistik!$D:$D,Gemeindesalden!$C$2,Kassenstatistik!$B:$B,Gemeindesalden!D$3) -> 11806 | E8: =SUMIFS(Kassenstatistik!$AC:$AC,Kassenstatistik!$D:$D,Gemeindesalden!$C$2,Kassenstatistik!$B:$B,Gemeindesalden!E$3) -> 12817 | F8: =SUMIFS(Kassenstatistik!$AC:$AC,Kassenstatistik!$D:$D,Gemeindesalden!$C$2,Kassenstatistik!$B:$B,Gemeindesalden!F$3) -> 19242 | G8: =SUMIFS(Kassenstatistik!$AC:$AC,Kassenstatistik!$D:$D,Gemeindesalden!$C$2,Kassenstatistik!$B:$B,Gemeindesalden!G$3) -> 9595 | H8: =SUMIFS(Kassenstatistik!$AC:$AC,Kassenstatistik!$D:$D,Gemeindesalden!$C$2,Kassenstatistik!$B:$B,Gemeindesalden!H$3) -> 11935 | I8: =SUMIFS(Kassenstatistik!$AC:$AC,Kassenstatistik!$D:$D,Gemeindesalden!$C$2,Kassenstatistik!$B:$B,Gemeindesalden!I$3) -> 39191 | J8: =SUMIFS(Kassenstatistik!$AC:$AC,Kassenstatistik!$D:$D,Gemeindesalden!$C$2,Kassenstatistik!$B:$B,Gemeindesalden!J$3) -> 74371 | K8: =SUMIFS(Kassenstatistik!$AC:$AC,Kassenstatistik!$D:$D,Gemeindesalden!$C$2,Kassenstatistik!$B:$B,Gemeindesalden!K$3) -> 3412 | L8: =SUMIFS(Kassenstatistik!$AC:$AC,Kassenstatistik!$D:$D,Gemeindesalden!$C$2,Kassenstatistik!$B:$B,Gemeindesalden!L$3) -> 47719 | M8: =SUMIFS(Kassenstatistik!$AC:$AC,Kassenstatistik!$D:$D,Gemeindesalden!$C$2,Kassenstatistik!$B:$B,Gemeindesalden!M$3) -> 94724 | N8: 94724
C9: Gemeindeanteil an der Einkommensteuer | D9: =SUMIFS(Kassenstatistik!$AD:$AD,Kassenstatistik!$D:$D,Gemeindesalden!$C$2,Kassenstatistik!$B:$B,Gemeindesalden!D$3) -> 106598 | E9: =SUMIFS(Kassenstatistik!$AD:$AD,Kassenstatistik!$D:$D,Gemeindesalden!$C$2,Kassenstatistik!$B:$B,Gemeindesalden!E$3) -> 115463 | F9: =SUMIFS(Kassenstatistik!$AD:$AD,Kassenstatistik!$D:$D,Gemeindesalden!$C$2,Kassenstatistik!$B:$B,Gemeindesalden!F$3) -> 117216 | G9: =SUMIFS(Kassenstatistik!$AD:$AD,Kassenstatistik!$D:$D,Gemeindesalden!$C$2,Kassenstatistik!$B:$B,Gemeindesalden!G$3) -> 118661 | H9: =SUMIFS(Kassenstatistik!$AD:$AD,Kassenstatistik!$D:$D,Gemeindesalden!$C$2,Kassenstatistik!$B:$B,Gemeindesalden!H$3) -> 124623 | I9: =SUMIFS(Kassenstatistik!$AD:$AD,Kassenstatistik!$D:$D,Gemeindesalden!$C$2,Kassenstatistik!$B:$B,Gemeindesalden!I$3) -> 133002 | J9: =SUMIFS(Kassenstatistik!$AD:$AD,Kassenstatistik!$D:$D,Gemeindesalden!$C$2,Kassenstatistik!$B:$B,Gemeindesalden!J$3) -> 143747 | K9: =SUMIFS(Kassenstatistik!$AD:$AD,Kassenstatistik!$D:$D,Gemeindesalden!$C$2,Kassenstatistik!$B:$B,Gemeindesalden!K$3) -> 143032 | L9: =SUMIFS(Kassenstatistik!$AD:$AD,Kassenstatistik!$D:$D,Gemeindesalden!$C$2,Kassenstatistik!$B:$B,Gemeindesalden!L$3) -> 164595 | M9: =SUMIFS(Kassenstatistik!$AD:$AD,Kassenstatistik!$D:$D,Gemeindesalden!$C$2,Kassenstatistik!$B:$B,Gemeindesalden!M$3) -> 181616 | N9: =VLOOKUP($C$2,'FAG Orientierung'!$B$5:$AK$161,34,0) -> 192097.6
C10: Gemeindeanteil an der Umsatzsteuer | D10: =SUMIFS(Kassenstatistik!$AE:$AE,Kassenstatistik!$D:$D,Gemeindesalden!$C$2,Kassenstatistik!$B:$B,Gemeindesalden!D$3) -> 9078 | E10: =SUMIFS(Kassenstatistik!$AE:$AE,Kassenstatistik!$D:$D,Gemeindesalden!$C$2,Kassenstatistik!$B:$B,Gemeindesalden!E$3) -> 9324 | F10: =SUMIFS(Kassenstatistik!$AE:$AE,Kassenstatistik!$D:$D,Gemeindesalden!$C$2,Kassenstatistik!$B:$B,Gemeindesalden!F$3) -> 8885 | G10: =SUMIFS(Kassenstatistik!$AE:$AE,Kassenstatistik!$D:$D,Gemeindesalden!$C$2,Kassenstatistik!$B:$B,Gemeindesalden!G$3) -> 9049 | H10: =SUMIFS(Kassenstatistik!$AE:$AE,Kassenstatistik!$D:$D,Gemeindesalden!$C$2,Kassenstatistik!$B:$B,Gemeindesalden!H$3) -> 11447 | I10: =SUMIFS(Kassenstatistik!$AE:$AE,Kassenstatistik!$D:$D,Gemeindesalden!$C$2,Kassenstatistik!$B:$B,Gemeindesalden!I$3) -> 9168 | J10: =SUMIFS(Kassenstatistik!$AE:$AE,Kassenstatistik!$D:$D,Gemeindesalden!$C$2,Kassenstatistik!$B:$B,Gemeindesalden!J$3) -> 10145 | K10: =SUMIFS(Kassenstatistik!$AE:$AE,Kassenstatistik!$D:$D,Gemeindesalden!$C$2,Kassenstatistik!$B:$B,Gemeindesalden!K$3) -> 11085 | L10: =SUMIFS(Kassenstatistik!$AE:$AE,Kassenstatistik!$D:$D,Gemeindesalden!$C$2,Kassenstatistik!$B:$B,Gemeindesalden!L$3) -> 8384 | M10: =SUMIFS(Kassenstatistik!$AE:$AE,Kassenstatistik!$D:$D,Gemeindesalden!$C$2,Kassenstatistik!$B:$B,Gemeindesalden!M$3) -> 7620 | N10: =VLOOKUP($C$2,'FAG Orientierung'!$B$5:$AK$161,35,0) -> 7248.39
C11: Steuerkraftmesszahl | D11: =VLOOKUP($C$2,FAG!$B$4:$AE$159,(17+D2),0) -> 201372.21 | E11: =VLOOKUP($C$2,FAG!$B$4:$AE$159,(17+E2),0) -> 209304.28 | F11: =VLOOKUP($C$2,FAG!$B$4:$AE$159,(17+F2),0) -> 215436.9 | G11: =VLOOKUP($C$2,FAG!$B$4:$AE$159,(17+G2),0) -> 216281.68 | H11: =VLOOKUP($C$2,FAG!$B$4:$AE$159,(17+H2),0) -> 230399.35 | I11: =VLOOKUP($C$2,FAG!$B$4:$AE$159,(17+I2),0) -> 243502.75 | J11: =VLOOKUP($C$2,FAG!$B$4:$AE$159,(17+J2),0) -> 286961.39 | K11: =VLOOKUP($C$2,FAG!$B$4:$AE$159,(17+K2),0) -> 239515.72 | L11: =VLOOKUP($C$2,FAG!$B$4:$AE$159,(17+L2),0) -> 321903.69 | M11: =VLOOKUP($C$2,FAG!$B$4:$AE$159,(17+M2),0) -> 0 | N11: =VLOOKUP($C$2,FAG!$B$4:$AE$159,(17+N2),0) -> 0
B12: Zuweisungen nach FAG | D12: =SUM(D16:D24)+D13 -> 264484.56 | E12: =SUM(E16:E24)+E13 -> 274142.94 | F12: 267589.32 | G12: 272034.78 | H12: 273647.25 | I12: 295778.36 | J12: 309945.42 | K12: 422279.24 | L12: 371415.6 | M12: 424595.32 | N12: 373340.6
C13: § 16 Schlüsselzuweisungen für Gemeindeaufgaben | K13: =VLOOKUP($C$2,FAG!$B$4:$BHH$159,64,0) -> 376612.38 | L13: =VLOOKUP($C$2,FAG!$B$4:$BHH$159,65,0) -> 327717.62 | M13: =VLOOKUP($C$2,FAG!$B$4:$BHH$159,66,0) -> 382059.18 | N13: =VLOOKUP($C$2,FAG!$B$4:$BHH$159,67,0) -> 330629.13
C14: § 17 Bedarfsansatz für Gemeindeaufgaben | K14: =VLOOKUP($C$2,FAG!$B$4:$BHH$159,77,0) -> 755 | L14: =VLOOKUP($C$2,FAG!$B$4:$BHH$159,78,0) -> 738 | M14: =VLOOKUP($C$2,FAG!$B$4:$BHH$159,79,0) -> 706 | N14: =VLOOKUP($C$2,FAG!$B$4:$BHH$159,80,0) -> 720
C15: § 22 | K15: =K16+K17 -> 0 | L15: =L16+L17 -> 0 | M15: =M16+M17 -> 0 | N15: 0
C16: § 22 Absatz 2 Satz 1 Nr. 1 Ämter und amtsfreie Gemeinden | K16: =VLOOKUP(C2,FAG!$B$4:$BHH$159,103,0) -> 0 | L16: =VLOOKUP($C$2,FAG!$B$4:$BHH$159,104,0) -> 0 | M16: =VLOOKUP($C$2,FAG!$B$4:$BHH$159,105,0) -> 0 | N16: =VLOOKUP($C$2,FAG!$B$4:$BHH$159,106,0) -> 0
C17: § 22 Absatz 2 Satz 1 Nr. 2 Große kreisangehörige Städte | K17: =VLOOKUP(C2,FAG!$B$4:$BHH$159,116,0) -> 0 | L17: =VLOOKUP($C$2,FAG!$B$4:$BHH$159,117,0) -> 0 | M17: =VLOOKUP($C$2,FAG!$B$4:$BHH$159,118,0) -> 0 | N17: =VLOOKUP($C$2,FAG!$B$4:$BHH$159,119,0) -> 0
C18: § 23 Abs. 3 Infrastrukturpauschale Gemeinden | K18: =VLOOKUP(C2,FAG!$B$4:$BHH$159,90,0) -> 45666.86 | L18: =VLOOKUP($C$2,FAG!$B$4:$BHH$159,91,0) -> 43697.98 | M18: =VLOOKUP($C$2,FAG!$B$4:$BHH$159,92,0) -> 42536.14 | N18: =VLOOKUP($C$2,FAG!$B$4:$BHH$159,93,0) -> 42711.47
C19: § 24 Übergangszuweisung an kreisangehörige zentrale Orte | K19: =VLOOKUP(C2,FAG!$B$4:$BHH$159,129,0) -> 0 | L19: =VLOOKUP($C$2,FAG!$B$4:$BHH$159,130,0) -> 0 | M19: =VLOOKUP($C$2,FAG!$B$4:$BHH$159,131,0) -> 0 | N19: =VLOOKUP($C$2,FAG!$B$4:$BHH$159,132,0) -> 0
C20: § 29 Finanzausgleichsumlage | K20: =VLOOKUP(C2,FAG!$B$4:$BHH$159,142,0)*-1 -> 0 | L20: =VLOOKUP($C$2,FAG!$B$4:$BHH$159,143,0)*-1 -> 0 | M20: =VLOOKUP($C$2,FAG!$B$4:$BHH$159,144,0)*-1 -> 0 | N20: =VLOOKUP($C$2,FAG!$B$4:$BHH$159,145,0)*-1 -> 0
C21: ALT Schlüsselzuweisungen (§12 FAG) | D21: =VLOOKUP($C$2,FAG!$B$4:$BHH$159,(148+D2),0) -> 243764.56 | E21: =VLOOKUP($C$2,FAG!$B$4:$BHH$159,(148+E2),0) -> 252224.94 | F21: =VLOOKUP($C$2,FAG!$B$4:$BHH$159,(148+F2),0) -> 247595.32 | G21: =VLOOKUP($C$2,FAG!$B$4:$BHH$159,(148+G2),0) -> 251892.78 | H21: =VLOOKUP($C$2,FAG!$B$4:$BHH$159,(148+H2),0) -> 252476.25 | I21: =VLOOKUP($C$2,FAG!$B$4:$BHH$159,(148+I2),0) -> 268752.36 | J21: =VLOOKUP($C$2,FAG!$B$4:$BHH$159,(148+J2),0) -> 283384.42
C22: Zuweisungen nach § 15 FAG M-V für amtsfreie Gemeinden | D22: =VLOOKUP($C$2,FAG!$B$4:$BHH$159,(156+D2),0) -> 0 | E22: =VLOOKUP($C$2,FAG!$B$4:$BHH$159,(156+E2),0) -> 0 | F22: =VLOOKUP($C$2,FAG!$B$4:$BHH$159,(156+F2),0) -> 0 | G22: =VLOOKUP($C$2,FAG!$B$4:$BHH$159,(156+G2),0) -> 0 | H22: =VLOOKUP($C$2,FAG!$B$4:$BHH$159,(156+H2),0) -> 0 | I22: =VLOOKUP($C$2,FAG!$B$4:$BHH$159,(156+I2),0) -> 0 | J22: =VLOOKUP($C$2,FAG!$B$4:$BHH$159,(156+J2),0) -> 0
C23: Zuweisungen nach § 16 FAG M-V (ohne Theater) | D23: =VLOOKUP($C$2,FAG!$B$4:$BHH$159,(164+D2),0) -> 0 | E23: =VLOOKUP($C$2,FAG!$B$4:$BHH$159,(164+E2),0) -> 0 | F23: =VLOOKUP($C$2,FAG!$B$4:$BHH$159,(164+F2),0) -> 0 | G23: =VLOOKUP($C$2,FAG!$B$4:$BHH$159,(164+G2),0) -> 0 | H23: =VLOOKUP($C$2,FAG!$B$4:$BHH$159,(164+H2),0) -> 0 | I23: =VLOOKUP($C$2,FAG!$B$4:$BHH$159,(164+I2),0) -> 0 | J23: =VLOOKUP($C$2,FAG!$B$4:$BHH$159,(164+J2),0) -> 0
C24: Familienleistungsausgleich (ab 2020 in der Schlüsselzuweisung enthalten) | D24: =SUMIFS(Kassenstatistik!$AG:$AG,Kassenstatistik!$D:$D,Gemeindesalden!$C$2,Kassenstatistik!$B:$B,Gemeindesalden!D$3) -> 20720 | E24: =SUMIFS(Kassenstatistik!$AG:$AG,Kassenstatistik!$D:$D,Gemeindesalden!$C$2,Kassenstatistik!$B:$B,Gemeindesalden!E$3) -> 21918 | F24: =SUMIFS(Kassenstatistik!$AG:$AG,Kassenstatistik!$D:$D,Gemeindesalden!$C$2,Kassenstatistik!$B:$B,Gemeindesalden!F$3) -> 19994 | G24: =SUMIFS(Kassenstatistik!$AG:$AG,Kassenstatistik!$D:$D,Gemeindesalden!$C$2,Kassenstatistik!$B:$B,Gemeindesalden!G$3) -> 20142 | H24: =SUMIFS(Kassenstatistik!$AG:$AG,Kassenstatistik!$D:$D,Gemeindesalden!$C$2,Kassenstatistik!$B:$B,Gemeindesalden!H$3) -> 21171 | I24: =SUMIFS(Kassenstatistik!$AG:$AG,Kassenstatistik!$D:$D,Gemeindesalden!$C$2,Kassenstatistik!$B:$B,Gemeindesalden!I$3) -> 27026 | J24: =SUMIFS(Kassenstatistik!$AG:$AG,Kassenstatistik!$D:$D,Gemeindesalden!$C$2,Kassenstatistik!$B:$B,Gemeindesalden!J$3) -> 26561
B25: Umlagen an den Kreis | D25: =D28+D29 -> 181941.324 | E25: =E28+E29 -> 206145.9151 | F25: 223306.4605 | G25: 224858.612 | H25: 229760.7496 | I25: 231204.7763 | J25: 243887.4153 | K25: 257606.919 | L25: 253156.4997 | M25: 270483.4453 | N25: 303427.7613
C26: Grundlage Kreisumlage (§30) | D26: =VLOOKUP($C$2,FAG!$B$4:$BHH$159,(30+D2),0) -> 387109.2 | E26: =VLOOKUP($C$2,FAG!$B$4:$BHH$159,(30+E2),0) -> 438608.33 | F26: =VLOOKUP($C$2,FAG!$B$4:$BHH$159,(30+F2),0) -> 453597.15 | G26: =VLOOKUP($C$2,FAG!$B$4:$BHH$159,(30+G2),0) -> 456899.6 | H26: =VLOOKUP($C$2,FAG!$B$4:$BHH$159,(30+H2),0) -> 467329.68 | I26: =VLOOKUP($C$2,FAG!$B$4:$BHH$159,(30+I2),0) -> 476895.98 | J26: =VLOOKUP($C$2,FAG!$B$4:$BHH$159,(30+J2),0) -> 513783.77 | K26: =VLOOKUP($C$2,FAG!$B$4:$BHH$159,(30+K2),0) -> 553052.78 | L26: =VLOOKUP($C$2,FAG!$B$4:$BHH$159,(30+L2),0) -> 571860.47 | M26: =VLOOKUP($C$2,FAG!$B$4:$BHH$159,(30+M2),0) -> 599925.45 | N26: =VLOOKUP($C$2,FAG!$B$4:$BHH$159,(30+N2),0) -> 652532.82
C27: Kreisumlagesatz (%) | D27: 0.47 | E27: 0.47 | F27: 0.47 | G27: 0.47 | H27: 0.47 | I27: 0.4636 | J27: 0.455 | K27: 0.4475 | L27: 0.425 | M27: 0.434 | N27: 0.465
C28: Kreisumlage | D28: =D26*D27 -> 181941.324 | E28: =E26*E27 -> 206145.9151 | F28: 213190.6605 | G28: 214742.812 | H28: =H26*H27 -> 219644.9496 | I28: 221088.9763 | J28: 233771.6154 | K28: 247491.1191 | L28: 243040.6997 | M28: 260367.6453 | N28: 303427.7613
C29: Altfehlbetragsumlage | D29: =VLOOKUP($C$2,Altfehlbetrag!$A$3:$L$158,4+Gemeindesalden!D2,0) -> 0 | E29: =VLOOKUP($C$2,Altfehlbetrag!$A$3:$L$158,4+Gemeindesalden!E2,0) -> 0 | F29: =VLOOKUP($C$2,Altfehlbetrag!$A$3:$L$158,4+Gemeindesalden!F2,0) -> 10115.8 | G29: =VLOOKUP($C$2,Altfehlbetrag!$A$3:$L$158,4+Gemeindesalden!G2,0) -> 10115.8 | H29: =VLOOKUP($C$2,Altfehlbetrag!$A$3:$L$158,4+Gemeindesalden!H2,0) -> 10115.8 | I29: =VLOOKUP($C$2,Altfehlbetrag!$A$3:$L$158,4+Gemeindesalden!I2,0) -> 10115.8 | J29: =VLOOKUP($C$2,Altfehlbetrag!$A$3:$L$158,4+Gemeindesalden!J2,0) -> 10115.8 | K29: =VLOOKUP($C$2,Altfehlbetrag!$A$3:$Z$158,4+Gemeindesalden!K2,0) -> 10115.8 | L29: =VLOOKUP($C$2,Altfehlbetrag!$A$3:$Z$158,4+Gemeindesalden!L2,0) -> 10115.8 | M29: =VLOOKUP($C$2,Altfehlbetrag!$A$3:$Z$158,4+Gemeindesalden!M2,0) -> 10115.8 | N29: =VLOOKUP($C$2,Altfehlbetrag!$A$3:$Z$158,4+Gemeindesalden!N2,0) -> 0
C30: hebesatzbedingte Veränderung der KU | I30: =(I26*H27)-I28 -> 3052.134272 | J30: =(J26*I27)-J28 -> 4418.540422 | K30: =(K26*J27)-K28 -> 4147.89585 | L30: 12866.86058 | M30: -5399.32905 | N30: -20228.51742
B31: Amtsumlage
C32: Grundlage Amtsumlage | D32: =VLOOKUP($C$2,FAG!$B$4:$BHH$159,(43+D2),0) -> 387109.2 | E32: =VLOOKUP($C$2,FAG!$B$4:$BHH$159,(43+E2),0) -> 438608.33 | F32: =VLOOKUP($C$2,FAG!$B$4:$BHH$159,(43+F2),0) -> 453597.15 | G32: =VLOOKUP($C$2,FAG!$B$4:$BHH$159,(43+G2),0) -> 456899.6 | H32: =VLOOKUP($C$2,FAG!$B$4:$BHH$159,(43+H2),0) -> 467329.68 | I32: =VLOOKUP($C$2,FAG!$B$4:$BHH$159,(43+I2),0) -> 476895.98 | J32: =VLOOKUP($C$2,FAG!$B$4:$BHH$159,(43+J2),0) -> 513783.77 | K32: =VLOOKUP($C$2,FAG!$B$4:$BHH$159,(43+K2),0) -> 620115.13 | L32: =VLOOKUP($C$2,FAG!$B$4:$BHH$159,(43+L2),0) -> 614679.01 | M32: =VLOOKUP($C$2,FAG!$B$4:$BHH$159,(43+M2),0) -> 621574.9 | N32: =VLOOKUP($C$2,FAG!$B$4:$BHH$159,(43+N2),0) -> 652532.82
C33: Amtsumlagesatz (%) | D33: =VLOOKUP($C$2,Amtsumlage!$B$3:$O$159,4+Gemeindesalden!D2,0) -> 0.21809 | E33: =VLOOKUP($C$2,Amtsumlage!$B$3:$O$159,4+Gemeindesalden!E2,0) -> 0.23 | F33: =VLOOKUP($C$2,Amtsumlage!$B$3:$O$159,4+Gemeindesalden!F2,0) -> 0.2357 | G33: =VLOOKUP($C$2,Amtsumlage!$B$3:$O$159,4+Gemeindesalden!G2,0) -> 0.24976 | H33: =VLOOKUP($C$2,Amtsumlage!$B$3:$O$159,4+Gemeindesalden!H2,0) -> 0.2713 | I33: =VLOOKUP($C$2,Amtsumlage!$B$3:$O$159,4+Gemeindesalden!I2,0) -> 0.26755 | J33: =VLOOKUP($C$2,Amtsumlage!$B$3:$O$159,4+Gemeindesalden!J2,0) -> 0.28472 | K33: =VLOOKUP($C$2,Amtsumlage!$B$3:$O$159,4+Gemeindesalden!K2,0) -> 0.2134 | L33: =VLOOKUP($C$2,Amtsumlage!$B$3:$O$159,4+Gemeindesalden!L2,0) -> 0.2245 | M33: =VLOOKUP($C$2,Amtsumlage!$B$3:$O$159,4+Gemeindesalden!M2,0) -> 0.2245 | N33: =M33 -> 0.2245
C34: Amtsumlage | D34: =D33*D32 -> 84424.64543 | E34: =E33*E32 -> 100879.9159 | F34: 106912.8483 | G34: 114115.2441 | H34: =H33*H32 -> 126786.5422 | I34: =I33*I32 -> 127593.5194 | J34: =J33*J32 -> 146284.515 | K34: =K33*K32 -> 132332.5687 | L34: =L33*L32 -> 137995.4377 | M34: 139543.5651 | N34: 146493.6181
B35: Saldo I | C35: Schlüsselzuweisungen-Kreisumlage -Altfehlbetrag | D35: =D12-D25 -> 82543.236 | E35: =E12-E25 -> 67997.0249 | F35: 44282.8595 | G35: 47176.168 | H35: =H12-H25 -> 43886.5004 | I35: 64573.58367 | J35: =J12-J25 -> 66058.00465 | K35: 164672.3209 | L35: 118259.1003 | M35: 154111.8747 | N35: =N12-N25 -> 69912.8387
C36: Saldo I je Einwohner | D36: =IFERROR(D35/D4,0) -> 123.7529775 | E36: 104.4501151 | F36: 69.30024961 | G36: 75.24109729 | H36: 71.01375469 | I36: 104.1509414 | J36: =IFERROR(J35/J4,0) -> 110.649924 | K36: 282.9421322 | L36: 201.8073383 | M36: 261.9465292 | N36: 119.4183998
B37: Saldo II | C37: Steuern+Schlüsselzuweisungen-Kreisumlage-Altfehlbtrag | D37: =D5+D12-D25 -> 266423.236 | E37: =E5+E12-E25 -> 258700.0249 | F37: 246132.8595 | G37: 242357.168 | H37: 250293.5004 | I37: 306795.5837 | J37: =J5+J12-J25 -> 355686.0046 | K37: 385685.3209 | L37: 403245.1003 | M37: 507789.8747 | N37: 433700.8287
C38: Saldo II je Einwohner | D38: =IFERROR(D37/D4,0) -> 399.4351364 | E38: =IFERROR(E37/E4,0) -> 397.3886711 | F38: 385.1844437 | G38: 386.5345582 | H38: 405.0056641 | I38: 494.8315866 | J38: =IFERROR(J37/J4,0) -> 595.7889525 | K38: 662.6895549 | L38: 688.1315704 | M38: 863.0989372 | N38: 740.8061223
B39: Saldo III | C39: Steuern+Schlüsselzuweisungen-Kreis/Amtsumlage-Altfehlbtrag | D39: =(D5+D12)-(D25+D34) -> 181998.5906 | E39: =(E5+E12)-(E25+E34) -> 157820.109 | F39: 139220.0112 | G39: 128241.9239 | H39: 123506.9582 | I39: 179202.0642 | J39: =(J5+J12)-(J25+J34) -> 209401.4897 | K39: 253352.7522 | L39: 265249.6625 | M39: 368246.3097 | N39: 287207.2106
C40: Saldo III je Einwohner | D40: =IFERROR(D39/D4,0) -> 272.8614551 | E40: =IFERROR(E39/E4,0) -> 242.4272028 | F40: 217.8716921 | G40: 204.532574 | H40: 199.849447 | I40: 289.0355875 | J40: =IFERROR(J39/J4,0) -> 350.7562641 | K40: 435.3140072 | L40: 452.6444753 | M40: 625.9144073 | N40: 490.5797866

Sheet Zuweisungen an den LK
E1: 1 | F1: 2 | G1: 3 | H1: 4 | I1: 5 | J1: 6 | K1: 7 | L1: 8 | M1: 9
B2: Berechnung der Kreisumlagegrundlage
C4: Beispiel
M5: Legende
M6: Auswahlfeld
M7: noch keine Daten
B17: Grundlage der Kreisumlage
D19: =VLOOKUP(D20,Stammdaten!D3:F158,3,0) -> 13075002 | E19: 2015 | F19: 2016 | G19: 2017 | H19: 2018 | I19: 2019 | J19: 2020 | K19: 2021 | L19: 2022 | M19: 2023
C20: Steuerkraftmesszahl nach §16 (vormals §23) | D20: Alt Tellin | E20: =VLOOKUP($D$19,FAG!$B$4:$BE$159,(17+'Zuweisungen an den LK'!E1),0) -> 179247.49 | F20: =VLOOKUP($D$19,FAG!$B$4:$BE$159,(17+'Zuweisungen an den LK'!F1),0) -> 260228.32 | G20: =VLOOKUP($D$19,FAG!$B$4:$BE$159,(17+'Zuweisungen an den LK'!G1),0) -> 314112.22 | H20: =VLOOKUP($D$19,FAG!$B$4:$BE$159,(17+'Zuweisungen an den LK'!H1),0) -> 204110.54 | I20: =VLOOKUP($D$19,FAG!$B$4:$BE$159,(17+'Zuweisungen an den LK'!I1),0) -> 217816.29 | J20: =VLOOKUP($D$19,FAG!$B$4:$BE$159,(17+'Zuweisungen an den LK'!J1),0) -> 442761.78 | K20: =VLOOKUP($D$19,FAG!$B$4:$BE$159,(17+'Zuweisungen an den LK'!K1),0) -> 244425 | L20: =VLOOKUP($D$19,FAG!$B$4:$BE$159,(17+'Zuweisungen an den LK'!L1),0) -> 272826.08 | M20: =VLOOKUP($D$19,FAG!$B$4:$BE$159,(17+'Zuweisungen an den LK'!M1),0) -> 251516.54
C21: Schlüsselzuweisung nach §16 (bis 2019 §12) | E21: =VLOOKUP($D$19,FAG!$B$4:$GY$159,(150+'Zuweisungen an den LK'!E1),0) -> 110078.11 | F21: =VLOOKUP($D$19,FAG!$B$4:$GY$159,(150+'Zuweisungen an den LK'!F1),0) -> 67101.12 | G21: =VLOOKUP($D$19,FAG!$B$4:$GY$159,(150+'Zuweisungen an den LK'!G1),0) -> 54674.33 | H21: =VLOOKUP($D$19,FAG!$B$4:$GY$159,(150+'Zuweisungen an den LK'!H1),0) -> 115410.24 | I21: =VLOOKUP($D$19,FAG!$B$4:$GY$159,(150+'Zuweisungen an den LK'!I1),0) -> 120227.05 | J21: =VLOOKUP($D$19,FAG!$B$4:$GY$159,(58+'Zuweisungen an den LK'!J1),0) -> 0 | K21: =VLOOKUP($D$19,FAG!$B$4:$GY$159,(58+'Zuweisungen an den LK'!K1),0) -> 164494.63 | L21: =VLOOKUP($D$19,FAG!$B$4:$GY$159,(58+'Zuweisungen an den LK'!L1),0) -> 166428.68 | M21: =VLOOKUP($D$19,FAG!$B$4:$GY$159,(58+'Zuweisungen an den LK'!M1),0) -> 196038.15
C22: Grundlage Kreisumlage nach §30 | E22: =VLOOKUP($D$19,FAG!$B$4:$BE$159,(32+'Zuweisungen an den LK'!E1),0) -> 311851.59 | F22: =VLOOKUP($D$19,FAG!$B$4:$BE$159,(32+'Zuweisungen an den LK'!F1),0) -> 370306.43 | G22: =VLOOKUP($D$19,FAG!$B$4:$BE$159,(32+'Zuweisungen an den LK'!G1),0) -> 381213.34 | H22: =VLOOKUP($D$19,FAG!$B$4:$BE$159,(32+'Zuweisungen an den LK'!H1),0) -> 289152.82 | I22: =VLOOKUP($D$19,FAG!$B$4:$BE$159,(32+'Zuweisungen an den LK'!I1),0) -> 338043.34 | J22: =VLOOKUP($D$19,FAG!$B$4:$BE$159,(32+'Zuweisungen an den LK'!J1),0) -> 394879.31 | K22: =VLOOKUP($D$19,FAG!$B$4:$BE$159,(32+'Zuweisungen an den LK'!K1),0) -> 380434.29 | L22: =VLOOKUP($D$19,FAG!$B$4:$BE$159,(32+'Zuweisungen an den LK'!L1),0) -> 423955.52 | M22: =VLOOKUP($D$19,FAG!$B$4:$BE$159,(32+'Zuweisungen an den LK'!M1),0) -> 447554.69
B39: Zuweisungen an den Landkreis
E42: 2015 | F42: 2016 | G42: 2017 | H42: 2018 | I42: 2019 | J42: 2020 | K42: 2021 | L42: 2022 | M42: 2023
C43: Schlüsselzuweisung nach §13 (ALT) | E43: 44438997.79 | F43: 45801528.76 | G43: 43626059.84 | H43: 47254625.83 | I43: 47030292.15
C44: Schlüsselzuweisung nach §19 | J44: =Landkreise!AE8 -> 59134812.6 | K44: =Landkreise!AF8 -> 60279679.28 | L44: =Landkreise!AG8 -> 59200101.38 | M44: =Landkreise!AH8 -> 61431908.29
C45: § 17 FAG - Schülerbeförderung (ALT) | E45: =E110 -> 2006769.45 | F45: =F110 -> 2009222.01 | G45: 2108838.55 | H45: 2025657.85 | I45: 2079268.76
C46: § 18 FAG - ÖPNV (ALT) | E46: =E129 -> 2117807.88 | F46: =F129 -> 2111525.53 | G46: 2131308.53 | H46: 2156645.88 | I46: 2135196.03
C47: § 20 Bedarfsansatz Kreisaufgaben | J47: =Landkreise!AP8 -> 313915 | K47: =Landkreise!AQ8 -> 306150 | L47: =Landkreise!AR8 -> 302771 | M47: =Landkreise!AS8 -> 299069
C48: § 23 Abs. 4 Infrastrukturpauschale Landkreise | J48: =Landkreise!BW8 -> 9436277.58 | K48: =Landkreise!BX8 -> 9420779.09 | L48: =Landkreise!BY8 -> 9413491.37 | M48: =Landkreise!BZ8 -> 9403903.91
C49: § 15 Absatz 2 Landkreise (ALT) | E49: 18979472.39 | F49: 18937469.73 | G49: 18907151 | H49: 17827883.06 | I49: 17817559.93
C50: § 22 Absatz 2 Satz 1 Nr. 4 Landkreise | J50: =Landkreise!BA8 -> 18990438.34 | K50: =Landkreise!BB8 -> 18221252.85 | L50: =Landkreise!BC8 -> 23120852.4 | M50: =Landkreise!BD8 -> 23087626.82
C51: § 15 Absatz 4 Katasterämter (ALT) | E51: 4238565.99 | F51: 4235138.31 | G51: 4226341.13 | H51: 3844273.93 | I51: 3844429.34
C52: § 22 Absatz 2 Satz 1 Nr. 5 Katasterämter | J52: =Landkreise!BL8 -> 4133807.05 | K52: =Landkreise!BM8 -> 3980596.95 | L52: =Landkreise!BN8 -> 4795856.22 | M52: =Landkreise!BO8 -> 4791079.98
C53: Summe der Zuweisungen | E53: =SUM(E43:E52) -> 71781613.5 | F53: =SUM(F43:F52) -> 73094884.34 | G53: 70999699.05 | H53: 73109086.55 | I53: 72906746.21 | J53: 92009250.57 | K53: 92208458.17 | L53: 96833072.37 | M53: 99013588
E72: 2015 | F72: 2016 | G72: 2017 | H72: 2018 | I72: 2019 | J72: 2020 | K72: 2021 | L72: 2022 | M72: 2023
C73: Schlüsselzuweisung nach §19 (vormals §13) | E73: =E43 -> 44438997.79 | F73: =F43 -> 45801528.76 | G73: 43626059.84 | H73: 47254625.83 | I73: 47030292.15 | J73: =J44 -> 59134812.6 | K73: =K44 -> 60279679.28 | L73: 59200101.38 | M73: 61431908.29
E89: 2015 | F89: 2016 | G89: 2017 | H89: 2018 | I89: 2019 | J89: 2020 | K89: 2021 | L89: 2022 | M89: 2023
C90: Grundbetrag (nach Absatz 2) | D90: Vorpommern-Greifswald | E90: =E49 -> 18979472.39 | F90: =F49 -> 18937469.73 | G90: 18907151 | H90: 17827883.06 | I90: 17817559.93 | J90: =J50 -> 18990438.34 | K90: =K50 -> 18221252.85 | L90: =L50 -> 23120852.4 | M90: 23087626.82
C91: Kataster (Nach Absatz 4) | E91: =E51 -> 4238565.99 | F91: =F51 -> 4235138.31 | G91: 4226341.13 | H91: 3844273.93 | I91: 3844429.34 | J91: =J52 -> 4133807.05 | K91: =K52 -> 3980596.95 | L91: =L52 -> 4795856.22 | M91: 4791079.98
B109: § 17 FAG M-V | E109: 2015 | F109: 2016 | G109: 2017 | H109: 2018 | I109: 2019 | J109: 2020 | K109: 2021 | L109: 2022 | M109: 2023
C110: Schülerbeförderung | D110: Vorpommern-Greifswald | E110: 2006769.45 | F110: 2009222.01 | G110: 2108838.55 | H110: 2025657.85 | I110: 2079268.76 | J110: entfällt | K110: entfällt | L110: entfällt | M110: entfällt
B128: § 18 FAG M-V | E128: =E109 -> 2015 | F128: =F109 -> 2016 | G128: 2017 | H128: 2018 | I128: 2019 | J128: 2020 | K128: 2021 | L128: =L109 -> 2022 | M128: 2023
C129: ÖPNV | D129: Vorpommern-Greifswald | E129: 2117807.88 | F129: 2111525.53 | G129: 2131308.53 | H129: 2156645.88 | I129: 2135196.03 | J129: entfällt | K129: entfällt | L129: entfällt | M129: entfällt

Sheet Schlüsselzuweisung
D1: 1 | E1: 2 | F1: 3 | G1: 4 | H1: 5 | I1: 6 | J1: 7 | K1: 8 | L1: 9 | M1: 10 | N1: 11 | O1: 12 | P1: 13
C2: Schlüsselzuweisungen der Gemeinden
D3: nach §12 | E3: nach §12 | F3: nach §12 | G3: nach §12 | H3: nach §12 | I3: nach §16 | J3: nach §16 | K3: nach §16 | L3: nach §16
C4: Gemeinde | D4: Schlüsselzuweisung | O4: Legende
D5: 2015 | E5: 2016 | F5: 2017 | G5: 2018 | H5: 2019 | I5: 2020 | J5: 2021 | K5: 2022 | L5: 2023 | M5: Veränderung | O5: Auswahlfeld
B6: =VLOOKUP(C6,Stammdaten!D3:F157,3,0) -> 13075001 | C6: Ahlbeck | D6: =VLOOKUP($C$6,$C$8:$M$162,2,0) -> 247595.32 | E6: =VLOOKUP($C$6,$C$8:$M$162,3,0) -> 251892.78 | F6: =VLOOKUP($C$6,$C$8:$M$162,4,0) -> 252476.25 | G6: =VLOOKUP($C$6,$C$8:$M$162,5,0) -> 268752.36 | H6: =VLOOKUP($C$6,$C$8:$M$162,6,0) -> 283384.42 | I6: =VLOOKUP($C$6,$C$8:$M$162,7,0) -> 376612.38 | J6: =VLOOKUP($C$6,$C$8:$M$162,8,0) -> 327717.62 | K6: =VLOOKUP($C$6,$C$8:$M$162,9,0) -> 382059.18 | L6: =VLOOKUP($C$6,$C$8:$M$162,10,0) -> 330629.13 | M6: =L6-K6 -> -51430.05 | O6: noch keine Daten
B8: =Stammdaten!B3 -> 6666 | C8: =Stammdaten!D3 -> Vorpommern-Greifswald (gesamt) | D8: =VLOOKUP($B8,FAG!$B$4:$EZ$159,(150+D$1),0) -> 63424849.6 | E8: =VLOOKUP($B8,FAG!$B$4:$EZ$159,(150+E$1),0) -> 66305676.83 | F8: =VLOOKUP($B8,FAG!$B$4:$EZ$159,(150+F$1),0) -> 63721964.78 | G8: =VLOOKUP($B8,FAG!$B$4:$EZ$159,(150+G$1),0) -> 69135392.75 | H8: =VLOOKUP($B8,FAG!$B$4:$EZ$159,(150+H$1),0) -> 72974979.21 | I8: =FAG!BM4 -> 103012901.4 | J8: =FAG!BN4 -> 100462857.3 | K8: =FAG!BO4 -> 100985177 | L8: =FAG!BP4 -> 108702017.2 | M8: =L8-K8 -> 7716840.2
B9: =Stammdaten!B4 -> 13075001 | C9: =Stammdaten!D4 -> Ahlbeck | D9: =VLOOKUP($B9,FAG!$B$4:$EZ$159,(150+D$1),0) -> 247595.32 | E9: =VLOOKUP($B9,FAG!$B$4:$EZ$159,(150+E$1),0) -> 251892.78 | F9: =VLOOKUP($B9,FAG!$B$4:$EZ$159,(150+F$1),0) -> 252476.25 | G9: =VLOOKUP($B9,FAG!$B$4:$EZ$159,(150+G$1),0) -> 268752.36 | H9: =VLOOKUP($B9,FAG!$B$4:$EZ$159,(150+H$1),0) -> 283384.42 | I9: =FAG!BM5 -> 376612.38 | J9: =FAG!BN5 -> 327717.62 | K9: =FAG!BO5 -> 382059.18 | L9: =FAG!BP5 -> 330629.13 | M9: =L9-K9 -> -51430.05
B10: =Stammdaten!B5 -> 13075002 | C10: =Stammdaten!D5 -> Alt Tellin | D10: =VLOOKUP($B10,FAG!$B$4:$EZ$159,(150+D$1),0) -> 110078.11 | E10: =VLOOKUP($B10,FAG!$B$4:$EZ$159,(150+E$1),0) -> 67101.12 | F10: =VLOOKUP($B10,FAG!$B$4:$EZ$159,(150+F$1),0) -> 54674.33 | G10: =VLOOKUP($B10,FAG!$B$4:$EZ$159,(150+G$1),0) -> 115410.24 | H10: =VLOOKUP($B10,FAG!$B$4:$EZ$159,(150+H$1),0) -> 120227.05 | I10: =FAG!BM6 -> 0 | J10: =FAG!BN6 -> 164494.63 | K10: =FAG!BO6 -> 166428.68 | L10: =FAG!BP6 -> 196038.15 | M10: =L10-K10 -> 29609.47
B11: =Stammdaten!B6 -> 13075003 | C11: =Stammdaten!D6 -> Altwarp | D11: =VLOOKUP($B11,FAG!$B$4:$EZ$159,(150+D$1),0) -> 200305.52 | E11: =VLOOKUP($B11,FAG!$B$4:$EZ$159,(150+E$1),0) -> 205056.49 | F11: =VLOOKUP($B11,FAG!$B$4:$EZ$159,(150+F$1),0) -> 194782.86 | G11: =VLOOKUP($B11,FAG!$B$4:$EZ$159,(150+G$1),0) -> 205358.01 | H11: =VLOOKUP($B11,FAG!$B$4:$EZ$159,(150+H$1),0) -> 221333.08 | I11: =FAG!BM7 -> 302531.44 | J11: =FAG!BN7 -> 292437.29 | K11: =FAG!BO7 -> 318757.3 | L11: =FAG!BP7 -> 323643.89 | M11: =L11-K11 -> 4886.59
B12: =Stammdaten!B7 -> 13075004 | C12: =Stammdaten!D7 -> Altwigshagen | D12: =VLOOKUP($B12,FAG!$B$4:$EZ$159,(150+D$1),0) -> 166178.54 | E12: =VLOOKUP($B12,FAG!$B$4:$EZ$159,(150+E$1),0) -> 162963.44 | F12: =VLOOKUP($B12,FAG!$B$4:$EZ$159,(150+F$1),0) -> 152728.04 | G12: =VLOOKUP($B12,FAG!$B$4:$EZ$159,(150+G$1),0) -> 161340.26 | H12: =VLOOKUP($B12,FAG!$B$4:$EZ$159,(150+H$1),0) -> 167326.9 | I12: =FAG!BM8 -> 209380.15 | J12: =FAG!BN8 -> 212699.39 | K12: =FAG!BO8 -> 236006.3 | L12: =FAG!BP8 -> 253515.94 | M12: 17509.64
B13: =Stammdaten!B8 -> 13075005 | C13: =Stammdaten!D8 -> Anklam, Stadt | D13: =VLOOKUP($B13,FAG!$B$4:$EZ$159,(150+D$1),0) -> 1540796.81 | E13: =VLOOKUP($B13,FAG!$B$4:$EZ$159,(150+E$1),0) -> 2424863.26 | F13: =VLOOKUP($B13,FAG!$B$4:$EZ$159,(150+F$1),0) -> 3917943.48 | G13: =VLOOKUP($B13,FAG!$B$4:$EZ$159,(150+G$1),0) -> 3988573.99 | H13: =VLOOKUP($B13,FAG!$B$4:$EZ$159,(150+H$1),0) -> 3557197.76 | I13: =FAG!BM9 -> 4614984.03 | J13: =FAG!BN9 -> 5290585.78 | K13: =FAG!BO9 -> 5890835.61 | L13: =FAG!BP9 -> 4900838.25 | M13: -989997.36
B14: =Stammdaten!B9 -> 13075006 | C14: =Stammdaten!D9 -> Bandelin | D14: =VLOOKUP($B14,FAG!$B$4:$EZ$159,(150+D$1),0) -> 0 | E14: =VLOOKUP($B14,FAG!$B$4:$EZ$159,(150+E$1),0) -> 0 | F14: =VLOOKUP($B14,FAG!$B$4:$EZ$159,(150+F$1),0) -> 0 | G14: =VLOOKUP($B14,FAG!$B$4:$EZ$159,(150+G$1),0) -> 0 | H14: =VLOOKUP($B14,FAG!$B$4:$EZ$159,(150+H$1),0) -> 238638.24 | I14: =FAG!BM10 -> 99968.04 | J14: =FAG!BN10 -> 0 | K14: =FAG!BO10 -> 134444 | L14: =FAG!BP10 -> 67324.86 | M14: -67119.14
B15: =Stammdaten!B10 -> 13075007 | C15: =Stammdaten!D10 -> Bargischow | D15: =VLOOKUP($B15,FAG!$B$4:$EZ$159,(150+D$1),0) -> 31407.11 | E15: =VLOOKUP($B15,FAG!$B$4:$EZ$159,(150+E$1),0) -> 35460.75 | F15: =VLOOKUP($B15,FAG!$B$4:$EZ$159,(150+F$1),0) -> 20256.48 | G15: =VLOOKUP($B15,FAG!$B$4:$EZ$159,(150+G$1),0) -> 0 | H15: =VLOOKUP($B15,FAG!$B$4:$EZ$159,(150+H$1),0) -> 51288.96 | I15: =FAG!BM11 -> 122510.82 | J15: =FAG!BN11 -> 0 | K15: =FAG!BO11 -> 0 | L15: =FAG!BP11 -> 79232.63 | M15: 79232.63
B16: =Stammdaten!B11 -> 13075008 | C16: =Stammdaten!D11 -> Behrenhoff | D16: =VLOOKUP($B16,FAG!$B$4:$EZ$159,(150+D$1),0) -> 215620.21 | E16: =VLOOKUP($B16,FAG!$B$4:$EZ$159,(150+E$1),0) -> 246022.14 | F16: =VLOOKUP($B16,FAG!$B$4:$EZ$159,(150+F$1),0) -> 231762.52 | G16: =VLOOKUP($B16,FAG!$B$4:$EZ$159,(150+G$1),0) -> 246238.25 | H16: =VLOOKUP($B16,FAG!$B$4:$EZ$159,(150+H$1),0) -> 293671.17 | I16: =FAG!BM12 -> 408132.26 | J16: =FAG!BN12 -> 359112.47 | K16: =FAG!BO12 -> 379551.56 | L16: =FAG!BP12 -> 406846.59 | M16: 27295.03
B17: =Stammdaten!B12 -> 13075009 | C17: =Stammdaten!D12 -> Bentzin | D17: =VLOOKUP($B17,FAG!$B$4:$EZ$159,(150+D$1),0) -> 255927.64 | E17: =VLOOKUP($B17,FAG!$B$4:$EZ$159,(150+E$1),0) -> 308872.17 | F17: =VLOOKUP($B17,FAG!$B$4:$EZ$159,(150+F$1),0) -> 285173.15 | G17: =VLOOKUP($B17,FAG!$B$4:$EZ$159,(150+G$1),0) -> 215648.45 | H17: =VLOOKUP($B17,FAG!$B$4:$EZ$159,(150+H$1),0) -> 261132.37 | I17: =FAG!BM13 -> 304593.55 | J17: =FAG!BN13 -> 459278.57 | K17: =FAG!BO13 -> 424364.09 | L17: =FAG!BP13 -> 456134.86 | M17: 31770.77
B18: =Stammdaten!B13 -> 13075010 | C18: =Stammdaten!D13 -> Benz | D18: =VLOOKUP($B18,FAG!$B$4:$EZ$159,(150+D$1),0) -> 290413.27 | E18: =VLOOKUP($B18,FAG!$B$4:$EZ$159,(150+E$1),0) -> 259136.14 | F18: =VLOOKUP($B18,FAG!$B$4:$EZ$159,(150+F$1),0) -> 134974.13 | G18: =VLOOKUP($B18,FAG!$B$4:$EZ$159,(150+G$1),0) -> 292320.44 | H18: =VLOOKUP($B18,FAG!$B$4:$EZ$159,(150+H$1),0) -> 303650.27 | I18: =FAG!BM14 -> 427649.56 | J18: =FAG!BN14 -> 303754.25 | K18: =FAG!BO14 -> 483956.3 | L18: =FAG!BP14 -> 523433.39 | M18: 39477.09
B19: =Stammdaten!B14 -> 13075011 | C19: =Stammdaten!D14 -> Bergholz | D19: =VLOOKUP($B19,FAG!$B$4:$EZ$159,(150+D$1),0) -> 142453.52 | E19: =VLOOKUP($B19,FAG!$B$4:$EZ$159,(150+E$1),0) -> 151739.78 | F19: =VLOOKUP($B19,FAG!$B$4:$EZ$159,(150+F$1),0) -> 136241.27 | G19: =VLOOKUP($B19,FAG!$B$4:$EZ$159,(150+G$1),0) -> 146139.27 | H19: =VLOOKUP($B19,FAG!$B$4:$EZ$159,(150+H$1),0) -> 129863.56 | I19: =FAG!BM15 -> 191479.81 | J19: =FAG!BN15 -> 30966.38 | K19: =FAG!BO15 -> 113452.97 | L19: =FAG!BP15 -> 180606.56 | M19: 67153.59
B20: =Stammdaten!B15 -> 13075012 | C20: =Stammdaten!D15 -> Blankensee | D20: =VLOOKUP($B20,FAG!$B$4:$EZ$159,(150+D$1),0) -> 251624.71 | E20: =VLOOKUP($B20,FAG!$B$4:$EZ$159,(150+E$1),0) -> 250426.82 | F20: =VLOOKUP($B20,FAG!$B$4:$EZ$159,(150+F$1),0) -> 266107.02 | G20: =VLOOKUP($B20,FAG!$B$4:$EZ$159,(150+G$1),0) -> 294245.48 | H20: =VLOOKUP($B20,FAG!$B$4:$EZ$159,(150+H$1),0) -> 297596 | I20: =FAG!BM16 -> 389161.64 | J20: =FAG!BN16 -> 400234.99 | K20: =FAG!BO16 -> 429815.25 | L20: =FAG!BP16 -> 451287.49 | M20: 21472.24
B21: =Stammdaten!B16 -> 13075013 | C21: =Stammdaten!D16 -> Blesewitz | D21: =VLOOKUP($B21,FAG!$B$4:$EZ$159,(150+D$1),0) -> 86170.59 | E21: =VLOOKUP($B21,FAG!$B$4:$EZ$159,(150+E$1),0) -> 90188.84 | F21: =VLOOKUP($B21,FAG!$B$4:$EZ$159,(150+F$1),0) -> 84622.96 | G21: =VLOOKUP($B21,FAG!$B$4:$EZ$159,(150+G$1),0) -> 92787.32 | H21: =VLOOKUP($B21,FAG!$B$4:$EZ$159,(150+H$1),0) -> 96726.07 | I21: =FAG!BM17 -> 148339.31 | J21: =FAG!BN17 -> 151756.88 | K21: =FAG!BO17 -> 161414.96 | L21: =FAG!BP17 -> 186538.01 | M21: 25123.05
B22: =Stammdaten!B17 -> 13075015 | C22: =Stammdaten!D17 -> Boldekow | D22: =VLOOKUP($B22,FAG!$B$4:$EZ$159,(150+D$1),0) -> 250102.9 | E22: =VLOOKUP($B22,FAG!$B$4:$EZ$159,(150+E$1),0) -> 253318.72 | F22: =VLOOKUP($B22,FAG!$B$4:$EZ$159,(150+F$1),0) -> 163624.36 | G22: =VLOOKUP($B22,FAG!$B$4:$EZ$159,(150+G$1),0) -> 218051.94 | H22: =VLOOKUP($B22,FAG!$B$4:$EZ$159,(150+H$1),0) -> 197986.85 | I22: =FAG!BM18 -> 342816.29 | J22: =FAG!BN18 -> 337847.31 | K22: =FAG!BO18 -> 340714.01 | L22: =FAG!BP18 -> 410663.4 | M22: 69949.39
B23: =Stammdaten!B18 -> 13075016 | C23: =Stammdaten!D18 -> Boock | D23: =VLOOKUP($B23,FAG!$B$4:$EZ$159,(150+D$1),0) -> 235541.65 | E23: =VLOOKUP($B23,FAG!$B$4:$EZ$159,(150+E$1),0) -> 248213.82 | F23: =VLOOKUP($B23,FAG!$B$4:$EZ$159,(150+F$1),0) -> 257275.12 | G23: =VLOOKUP($B23,FAG!$B$4:$EZ$159,(150+G$1),0) -> 256617.21 | H23: =VLOOKUP($B23,FAG!$B$4:$EZ$159,(150+H$1),0) -> 288433.29 | I23: =FAG!BM19 -> 381808.63 | J23: =FAG!BN19 -> 371643.83 | K23: =FAG!BO19 -> 406846.55 | L23: =FAG!BP19 -> 389647.22 | M23: -17199.33
B24: =Stammdaten!B19 -> 13075017 | C24: =Stammdaten!D19 -> Brietzig | D24: =VLOOKUP($B24,FAG!$B$4:$EZ$159,(150+D$1),0) -> 0 | E24: =VLOOKUP($B24,FAG!$B$4:$EZ$159,(150+E$1),0) -> 309713.73 | F24: =VLOOKUP($B24,FAG!$B$4:$EZ$159,(150+F$1),0) -> 0 | G24: =VLOOKUP($B24,FAG!$B$4:$EZ$159,(150+G$1),0) -> 81021.79 | H24: =VLOOKUP($B24,FAG!$B$4:$EZ$159,(150+H$1),0) -> 79537.82 | I24: =FAG!BM20 -> 54962.78 | J24: =FAG!BN20 -> 112499.59 | K24: =FAG!BO20 -> 97196.13 | L24: =FAG!BP20 -> 87734.43 | M24: -9461.7
B25: =Stammdaten!B20 -> 13075018 | C25: =Stammdaten!D20 -> Brünzow | D25: =VLOOKUP($B25,FAG!$B$4:$EZ$159,(150+D$1),0) -> 96394.84 | E25: =VLOOKUP($B25,FAG!$B$4:$EZ$159,(150+E$1),0) -> 100141.24 | F25: =VLOOKUP($B25,FAG!$B$4:$EZ$159,(150+F$1),0) -> 0 | G25: =VLOOKUP($B25,FAG!$B$4:$EZ$159,(150+G$1),0) -> 168998.26 | H25: =VLOOKUP($B25,FAG!$B$4:$EZ$159,(150+H$1),0) -> 0 | I25: =FAG!BM21 -> 109415.88 | J25: =FAG!BN21 -> 75925.74 | K25: =FAG!BO21 -> 50495.59 | L25: =FAG!BP21 -> 61544.24 | M25: 11048.65
B26: =Stammdaten!B21 -> 13075020 | C26: =Stammdaten!D21 -> Bugewitz | D26: =VLOOKUP($B26,FAG!$B$4:$EZ$159,(150+D$1),0) -> 112438.45 | E26: =VLOOKUP($B26,FAG!$B$4:$EZ$159,(150+E$1),0) -> 117846.15 | F26: =VLOOKUP($B26,FAG!$B$4:$EZ$159,(150+F$1),0) -> 112302.57 | G26: =VLOOKUP($B26,FAG!$B$4:$EZ$159,(150+G$1),0) -> 110481.46 | H26: =VLOOKUP($B26,FAG!$B$4:$EZ$159,(150+H$1),0) -> 116072.43 | I26: =FAG!BM22 -> 140228.71 | J26: =FAG!BN22 -> 138024.69 | K26: =FAG!BO22 -> 135962.03 | L26: =FAG!BP22 -> 157685.03 | M26: 21723
B27: =Stammdaten!B22 -> 13075021 | C27: =Stammdaten!D22 -> Buggenhagen | D27: =VLOOKUP($B27,FAG!$B$4:$EZ$159,(150+D$1),0) -> 32490 | E27: =VLOOKUP($B27,FAG!$B$4:$EZ$159,(150+E$1),0) -> 59780.9 | F27: =VLOOKUP($B27,FAG!$B$4:$EZ$159,(150+F$1),0) -> 52938.31 | G27: =VLOOKUP($B27,FAG!$B$4:$EZ$159,(150+G$1),0) -> 101875.61 | H27: =VLOOKUP($B27,FAG!$B$4:$EZ$159,(150+H$1),0) -> 102369.52 | I27: =FAG!BM23 -> 125887.09 | J27: =FAG!BN23 -> 106583.79 | K27: =FAG!BO23 -> 136579.02 | L27: =FAG!BP23 -> 134638.25 | M27: -1940.77
B28: =Stammdaten!B23 -> 13075022 | C28: =Stammdaten!D23 -> Butzow | D28: =VLOOKUP($B28,FAG!$B$4:$EZ$159,(150+D$1),0) -> 127860.91 | E28: =VLOOKUP($B28,FAG!$B$4:$EZ$159,(150+E$1),0) -> 147948.74 | F28: =VLOOKUP($B28,FAG!$B$4:$EZ$159,(150+F$1),0) -> 151519 | G28: =VLOOKUP($B28,FAG!$B$4:$EZ$159,(150+G$1),0) -> 151019 | H28: =VLOOKUP($B28,FAG!$B$4:$EZ$159,(150+H$1),0) -> 190801.81 | I28: =FAG!BM24 -> 227453.58 | J28: =FAG!BN24 -> 216918.86 | K28: =FAG!BO24 -> 243183.67 | L28: =FAG!BP24 -> 245877.31 | M28: 2693.64
B29: =Stammdaten!B24 -> 13075023 | C29: =Stammdaten!D24 -> Daberkow | D29: =VLOOKUP($B29,FAG!$B$4:$EZ$159,(150+D$1),0) -> 125569.89 | E29: =VLOOKUP($B29,FAG!$B$4:$EZ$159,(150+E$1),0) -> 134439.38 | F29: =VLOOKUP($B29,FAG!$B$4:$EZ$159,(150+F$1),0) -> 136957.31 | G29: =VLOOKUP($B29,FAG!$B$4:$EZ$159,(150+G$1),0) -> 132489.59 | H29: =VLOOKUP($B29,FAG!$B$4:$EZ$159,(150+H$1),0) -> 151447.66 | I29: =FAG!BM25 -> 206053.31 | J29: =FAG!BN25 -> 213862.79 | K29: =FAG!BO25 -> 226258.75 | L29: =FAG!BP25 -> 232158.53 | M29: 5899.78
B30: =Stammdaten!B25 -> 13075025 | C30: =Stammdaten!D25 -> Dargelin | D30: =VLOOKUP($B30,FAG!$B$4:$EZ$159,(150+D$1),0) -> 121623.97 | E30: =VLOOKUP($B30,FAG!$B$4:$EZ$159,(150+E$1),0) -> 116223.7 | F30: =VLOOKUP($B30,FAG!$B$4:$EZ$159,(150+F$1),0) -> 98011.38 | G30: =VLOOKUP($B30,FAG!$B$4:$EZ$159,(150+G$1),0) -> 106981.24 | H30: =VLOOKUP($B30,FAG!$B$4:$EZ$159,(150+H$1),0) -> 149286.36 | I30: =FAG!BM26 -> 171740.36 | J30: =FAG!BN26 -> 141060.8 | K30: =FAG!BO26 -> 240519.58 | L30: =FAG!BP26 -> 118191.52 | M30: -122328.06
B31: =Stammdaten!B26 -> 13075026 | C31: =Stammdaten!D26 -> Dargen | D31: =VLOOKUP($B31,FAG!$B$4:$EZ$159,(150+D$1),0) -> 185718.13 | E31: =VLOOKUP($B31,FAG!$B$4:$EZ$159,(150+E$1),0) -> 206149.97 | F31: =VLOOKUP($B31,FAG!$B$4:$EZ$159,(150+F$1),0) -> 216336.54 | G31: =VLOOKUP($B31,FAG!$B$4:$EZ$159,(150+G$1),0) -> 211334.8 | H31: =VLOOKUP($B31,FAG!$B$4:$EZ$159,(150+H$1),0) -> 218307.11 | I31: =FAG!BM27 -> 311342.07 | J31: =FAG!BN27 -> 342451.05 | K31: =FAG!BO27 -> 258216.83 | L31: =FAG!BP27 -> 354592.45 | M31: 96375.62
B32: =Stammdaten!B27 -> 13075027 | C32: =Stammdaten!D27 -> Dersekow | D32: =VLOOKUP($B32,FAG!$B$4:$EZ$159,(150+D$1),0) -> 270149.07 | E32: =VLOOKUP($B32,FAG!$B$4:$EZ$159,(150+E$1),0) -> 161393.62 | F32: =VLOOKUP($B32,FAG!$B$4:$EZ$159,(150+F$1),0) -> 161383.13 | G32: =VLOOKUP($B32,FAG!$B$4:$EZ$159,(150+G$1),0) -> 228051.26 | H32: =VLOOKUP($B32,FAG!$B$4:$EZ$159,(150+H$1),0) -> 126383.69 | I32: =FAG!BM28 -> 170833.64 | J32: =FAG!BN28 -> 178669.93 | K32: =FAG!BO28 -> 231244.69 | L32: =FAG!BP28 -> 344673.03 | M32: 113428.34
B33: =Stammdaten!B28 -> 13075028 | C33: =Stammdaten!D28 -> Diedrichshagen | D33: =VLOOKUP($B33,FAG!$B$4:$EZ$159,(150+D$1),0) -> 148747.93 | E33: =VLOOKUP($B33,FAG!$B$4:$EZ$159,(150+E$1),0) -> 171320.32 | F33: =VLOOKUP($B33,FAG!$B$4:$EZ$159,(150+F$1),0) -> 165142.44 | G33: =VLOOKUP($B33,FAG!$B$4:$EZ$159,(150+G$1),0) -> 157737.19 | H33: =VLOOKUP($B33,FAG!$B$4:$EZ$159,(150+H$1),0) -> 182617.15 | I33: =FAG!BM29 -> 0 | J33: =FAG!BN29 -> 0 | K33: =FAG!BO29 -> 0 | L33: =FAG!BP29 -> 0 | M33: 0
B34: =Stammdaten!B29 -> 13075029 | C34: =Stammdaten!D29 -> Ducherow | D34: =VLOOKUP($B34,FAG!$B$4:$EZ$159,(150+D$1),0) -> 965131.59 | E34: =VLOOKUP($B34,FAG!$B$4:$EZ$159,(150+E$1),0) -> 960591.62 | F34: =VLOOKUP($B34,FAG!$B$4:$EZ$159,(150+F$1),0) -> 978686.32 | G34: =VLOOKUP($B34,FAG!$B$4:$EZ$159,(150+G$1),0) -> 1100694.14 | H34: =VLOOKUP($B34,FAG!$B$4:$EZ$159,(150+H$1),0) -> 1126758.47 | I34: =FAG!BM30 -> 1488370.96 | J34: =FAG!BN30 -> 1442366.19 | K34: =FAG!BO30 -> 1543403.09 | L34: =FAG!BP30 -> 1469754.51 | M34: -73648.58
B35: =Stammdaten!B30 -> 13075031 | C35: =Stammdaten!D30 -> Eggesin, Stadt | D35: =VLOOKUP($B35,FAG!$B$4:$EZ$159,(150+D$1),0) -> 1543552.75 | E35: =VLOOKUP($B35,FAG!$B$4:$EZ$159,(150+E$1),0) -> 1398137.56 | F35: =VLOOKUP($B35,FAG!$B$4:$EZ$159,(150+F$1),0) -> 1489009.31 | G35: =VLOOKUP($B35,FAG!$B$4:$EZ$159,(150+G$1),0) -> 1689411.39 | H35: =VLOOKUP($B35,FAG!$B$4:$EZ$159,(150+H$1),0) -> 1586908.88 | I35: =FAG!BM31 -> 2203259.29 | J35: =FAG!BN31 -> 2267016.7 | K35: =FAG!BO31 -> 2314442.54 | L35: =FAG!BP31 -> 2464780.17 | M35: 150337.63
B36: =Stammdaten!B31 -> 13075032 | C36: =Stammdaten!D31 -> Fahrenwalde | D36: =VLOOKUP($B36,FAG!$B$4:$EZ$159,(150+D$1),0) -> 120197.12 | E36: =VLOOKUP($B36,FAG!$B$4:$EZ$159,(150+E$1),0) -> 4982.63 | F36: =VLOOKUP($B36,FAG!$B$4:$EZ$159,(150+F$1),0) -> 137920.66 | G36: =VLOOKUP($B36,FAG!$B$4:$EZ$159,(150+G$1),0) -> 0 | H36: =VLOOKUP($B36,FAG!$B$4:$EZ$159,(150+H$1),0) -> 80847.52 | I36: =FAG!BM32 -> 35433.26 | J36: =FAG!BN32 -> 0 | K36: =FAG!BO32 -> 2273.66 | L36: =FAG!BP32 -> 25902.46 | M36: 23628.8
B37: =Stammdaten!B32 -> 13075033 | C37: =Stammdaten!D32 -> Ferdinandshof | D37: =VLOOKUP($B37,FAG!$B$4:$EZ$159,(150+D$1),0) -> 967939.97 | E37: =VLOOKUP($B37,FAG!$B$4:$EZ$159,(150+E$1),0) -> 1035149.14 | F37: =VLOOKUP($B37,FAG!$B$4:$EZ$159,(150+F$1),0) -> 1067483.56 | G37: =VLOOKUP($B37,FAG!$B$4:$EZ$159,(150+G$1),0) -> 1078627.53 | H37: =VLOOKUP($B37,FAG!$B$4:$EZ$159,(150+H$1),0) -> 1128125.78 | I37: =FAG!BM33 -> 1678749.35 | J37: =FAG!BN33 -> 1636187.24 | K37: =FAG!BO33 -> 1681864.46 | L37: =FAG!BP33 -> 1861218.17 | M37: 179353.71
B38: =Stammdaten!B33 -> 13075034 | C38: =Stammdaten!D33 -> Garz | D38: =VLOOKUP($B38,FAG!$B$4:$EZ$159,(150+D$1),0) -> 98361.56 | E38: =VLOOKUP($B38,FAG!$B$4:$EZ$159,(150+E$1),0) -> 109601.21 | F38: =VLOOKUP($B38,FAG!$B$4:$EZ$159,(150+F$1),0) -> 107362.2 | G38: =VLOOKUP($B38,FAG!$B$4:$EZ$159,(150+G$1),0) -> 118691.04 | H38: =VLOOKUP($B38,FAG!$B$4:$EZ$159,(150+H$1),0) -> 139186.11 | I38: =FAG!BM34 -> 185193.85 | J38: =FAG!BN34 -> 135390.79 | K38: =FAG!BO34 -> 139431.39 | L38: =FAG!BP34 -> 192318.31 | M38: 52886.92
B39: =Stammdaten!B34 -> 13075035 | C39: =Stammdaten!D34 -> Glasow | D39: =VLOOKUP($B39,FAG!$B$4:$EZ$159,(150+D$1),0) -> 22839.05 | E39: =VLOOKUP($B39,FAG!$B$4:$EZ$159,(150+E$1),0) -> 49506.1 | F39: =VLOOKUP($B39,FAG!$B$4:$EZ$159,(150+F$1),0) -> 37995.01 | G39: =VLOOKUP($B39,FAG!$B$4:$EZ$159,(150+G$1),0) -> 0 | H39: =VLOOKUP($B39,FAG!$B$4:$EZ$159,(150+H$1),0) -> 57554.92 | I39: =FAG!BM35 -> 59855.67 | J39: =FAG!BN35 -> 80535.11 | K39: =FAG!BO35 -> 71984.54 | L39: =FAG!BP35 -> 65249.36 | M39: -6735.18
B40: =Stammdaten!B35 -> 13075036 | C40: =Stammdaten!D35 -> Görmin | D40: =VLOOKUP($B40,FAG!$B$4:$EZ$159,(150+D$1),0) -> 142400.1 | E40: =VLOOKUP($B40,FAG!$B$4:$EZ$159,(150+E$1),0) -> 237396.33 | F40: =VLOOKUP($B40,FAG!$B$4:$EZ$159,(150+F$1),0) -> 178021.77 | G40: =VLOOKUP($B40,FAG!$B$4:$EZ$159,(150+G$1),0) -> 351198.66 | H40: =VLOOKUP($B40,FAG!$B$4:$EZ$159,(150+H$1),0) -> 154678.37 | I40: =FAG!BM36 -> 308728.83 | J40: =FAG!BN36 -> 319849.18 | K40: =FAG!BO36 -> 382799.78 | L40: =FAG!BP36 -> 105360.02 | M40: -277439.76
B41: =Stammdaten!B36 -> 13075037 | C41: =Stammdaten!D36 -> Grambin | D41: =VLOOKUP($B41,FAG!$B$4:$EZ$159,(150+D$1),0) -> 123381.43 | E41: =VLOOKUP($B41,FAG!$B$4:$EZ$159,(150+E$1),0) -> 134813.15 | F41: =VLOOKUP($B41,FAG!$B$4:$EZ$159,(150+F$1),0) -> 130730.33 | G41: =VLOOKUP($B41,FAG!$B$4:$EZ$159,(150+G$1),0) -> 158530.52 | H41: =VLOOKUP($B41,FAG!$B$4:$EZ$159,(150+H$1),0) -> 155171.89 | I41: =FAG!BM37 -> 240065.95 | J41: =FAG!BN37 -> 247425.22 | K41: =FAG!BO37 -> 243673.99 | L41: =FAG!BP37 -> 251972.03 | M41: 8298.04
B42: =Stammdaten!B37 -> 13075038 | C42: =Stammdaten!D37 -> Grambow | D42: =VLOOKUP($B42,FAG!$B$4:$EZ$159,(150+D$1),0) -> 373243.14 | E42: =VLOOKUP($B42,FAG!$B$4:$EZ$159,(150+E$1),0) -> 382483.07 | F42: =VLOOKUP($B42,FAG!$B$4:$EZ$159,(150+F$1),0) -> 351069.97 | G42: =VLOOKUP($B42,FAG!$B$4:$EZ$159,(150+G$1),0) -> 356914.64 | H42: =VLOOKUP($B42,FAG!$B$4:$EZ$159,(150+H$1),0) -> 420173.38 | I42: =FAG!BM38 -> 577580.24 | J42: =FAG!BN38 -> 570226.09 | K42: =FAG!BO38 -> 557603.65 | L42: =FAG!BP38 -> 634539.32 | M42: 76935.67
B43: =Stammdaten!B38 -> 13075039 | C43: =Stammdaten!D38 -> Greifswald, Hansestadt | D43: =VLOOKUP($B43,FAG!$B$4:$EZ$159,(150+D$1),0) -> 14585210.19 | E43: =VLOOKUP($B43,FAG!$B$4:$EZ$159,(150+E$1),0) -> 16466826 | F43: =VLOOKUP($B43,FAG!$B$4:$EZ$159,(150+F$1),0) -> 14545955.56 | G43: =VLOOKUP($B43,FAG!$B$4:$EZ$159,(150+G$1),0) -> 16983521.62 | H43: =VLOOKUP($B43,FAG!$B$4:$EZ$159,(150+H$1),0) -> 18950180.46 | I43: =FAG!BM39 -> 29057660.79 | J43: =FAG!BN39 -> 25309576.79 | K43: =FAG!BO39 -> 24275656.73 | L43: =FAG!BP39 -> 29755082.78 | M43: 5479426.05
B44: =Stammdaten!B39 -> 13075040 | C44: =Stammdaten!D39 -> Gribow | D44: =VLOOKUP($B44,FAG!$B$4:$EZ$159,(150+D$1),0) -> 69664.99 | E44: =VLOOKUP($B44,FAG!$B$4:$EZ$159,(150+E$1),0) -> 72856.41 | F44: =VLOOKUP($B44,FAG!$B$4:$EZ$159,(150+F$1),0) -> 55835.33 | G44: =VLOOKUP($B44,FAG!$B$4:$EZ$159,(150+G$1),0) -> 40667.38 | H44: =VLOOKUP($B44,FAG!$B$4:$EZ$159,(150+H$1),0) -> 46762.72 | I44: =FAG!BM40 -> 24422.21 | J44: =FAG!BN40 -> 27042.71 | K44: =FAG!BO40 -> 44769.45 | L44: =FAG!BP40 -> 43320.19 | M44: -1449.26
B45: =Stammdaten!B40 -> 13075041 | C45: =Stammdaten!D40 -> Groß Kiesow | D45: =VLOOKUP($B45,FAG!$B$4:$EZ$159,(150+D$1),0) -> 446097.64 | E45: =VLOOKUP($B45,FAG!$B$4:$EZ$159,(150+E$1),0) -> 448697.51 | F45: =VLOOKUP($B45,FAG!$B$4:$EZ$159,(150+F$1),0) -> 443663.58 | G45: =VLOOKUP($B45,FAG!$B$4:$EZ$159,(150+G$1),0) -> 491088.19 | H45: =VLOOKUP($B45,FAG!$B$4:$EZ$159,(150+H$1),0) -> 520231.96 | I45: =FAG!BM41 -> 691628.11 | J45: =FAG!BN41 -> 699598.97 | K45: =FAG!BO41 -> 731169.57 | L45: =FAG!BP41 -> 795633.58 | M45: 64464.01
B46: =Stammdaten!B41 -> 13075042 | C46: =Stammdaten!D41 -> Groß Luckow | D46: =VLOOKUP($B46,FAG!$B$4:$EZ$159,(150+D$1),0) -> 73783.96 | E46: =VLOOKUP($B46,FAG!$B$4:$EZ$159,(150+E$1),0) -> 58746.03 | F46: =VLOOKUP($B46,FAG!$B$4:$EZ$159,(150+F$1),0) -> 72164.34 | G46: =VLOOKUP($B46,FAG!$B$4:$EZ$159,(150+G$1),0) -> 42370.58 | H46: =VLOOKUP($B46,FAG!$B$4:$EZ$159,(150+H$1),0) -> 81174.74 | I46: =FAG!BM42 -> 103227.03 | J46: =FAG!BN42 -> 96217.64 | K46: =FAG!BO42 -> 70561.99 | L46: =FAG!BP42 -> 135518.26 | M46: 64956.27
B47: =Stammdaten!B42 -> 13075043 | C47: =Stammdaten!D42 -> Groß Polzin | D47: =VLOOKUP($B47,FAG!$B$4:$EZ$159,(150+D$1),0) -> 147722.38 | E47: =VLOOKUP($B47,FAG!$B$4:$EZ$159,(150+E$1),0) -> 150370.81 | F47: =VLOOKUP($B47,FAG!$B$4:$EZ$159,(150+F$1),0) -> 151424.09 | G47: =VLOOKUP($B47,FAG!$B$4:$EZ$159,(150+G$1),0) -> 171512.72 | H47: =VLOOKUP($B47,FAG!$B$4:$EZ$159,(150+H$1),0) -> 175295.43 | I47: =FAG!BM43 -> 214372.36 | J47: =FAG!BN43 -> 226564.51 | K47: =FAG!BO43 -> 231613.22 | L47: =FAG!BP43 -> 257831.58 | M47: 26218.36
B48: =Stammdaten!B43 -> 13075044 | C48: =Stammdaten!D43 -> Gützkow, Stadt | D48: =VLOOKUP($B48,FAG!$B$4:$EZ$159,(150+D$1),0) -> 998849.27 | E48: =VLOOKUP($B48,FAG!$B$4:$EZ$159,(150+E$1),0) -> 1069097.14 | F48: =VLOOKUP($B48,FAG!$B$4:$EZ$159,(150+F$1),0) -> 903945.67 | G48: =VLOOKUP($B48,FAG!$B$4:$EZ$159,(150+G$1),0) -> 941877.88 | H48: =VLOOKUP($B48,FAG!$B$4:$EZ$159,(150+H$1),0) -> 1169493.01 | I48: =FAG!BM44 -> 1526580.41 | J48: =FAG!BN44 -> 2048595.61 | K48: =FAG!BO44 -> 1687627.46 | L48: =FAG!BP44 -> 1908245.21 | M48: 220617.75
B49: =Stammdaten!B44 -> 13075045 | C49: =Stammdaten!D44 -> Hammer a. d. Uecker | D49: =VLOOKUP($B49,FAG!$B$4:$EZ$159,(150+D$1),0) -> 214420.23 | E49: =VLOOKUP($B49,FAG!$B$4:$EZ$159,(150+E$1),0) -> 198727.56 | F49: =VLOOKUP($B49,FAG!$B$4:$EZ$159,(150+F$1),0) -> 221716.91 | G49: =VLOOKUP($B49,FAG!$B$4:$EZ$159,(150+G$1),0) -> 218710.64 | H49: =VLOOKUP($B49,FAG!$B$4:$EZ$159,(150+H$1),0) -> 231315.36 | I49: =FAG!BM45 -> 329861.76 | J49: =FAG!BN45 -> 329172.54 | K49: =FAG!BO45 -> 348569.28 | L49: =FAG!BP45 -> 334316.51 | M49: -14252.77
B50: =Stammdaten!B45 -> 13075046 | C50: =Stammdaten!D45 -> Hanshagen | D50: =VLOOKUP($B50,FAG!$B$4:$EZ$159,(150+D$1),0) -> 256708.37 | E50: =VLOOKUP($B50,FAG!$B$4:$EZ$159,(150+E$1),0) -> 270349.84 | F50: =VLOOKUP($B50,FAG!$B$4:$EZ$159,(150+F$1),0) -> 277935.92 | G50: =VLOOKUP($B50,FAG!$B$4:$EZ$159,(150+G$1),0) -> 275481.51 | H50: =VLOOKUP($B50,FAG!$B$4:$EZ$159,(150+H$1),0) -> 287226.93 | I50: =FAG!BM46 -> 475405.63 | J50: =FAG!BN46 -> 409508.66 | K50: =FAG!BO46 -> 462404.16 | L50: =FAG!BP46 -> 515397.38 | M50: 52993.22
B51: =Stammdaten!B46 -> 13075048 | C51: =Stammdaten!D46 -> Heinrichswalde | D51: =VLOOKUP($B51,FAG!$B$4:$EZ$159,(150+D$1),0) -> 155903.12 | E51: =VLOOKUP($B51,FAG!$B$4:$EZ$159,(150+E$1),0) -> 171717.46 | F51: =VLOOKUP($B51,FAG!$B$4:$EZ$159,(150+F$1),0) -> 170687.84 | G51: =VLOOKUP($B51,FAG!$B$4:$EZ$159,(150+G$1),0) -> 159170.84 | H51: =VLOOKUP($B51,FAG!$B$4:$EZ$159,(150+H$1),0) -> 172343.37 | I51: =FAG!BM47 -> 210532.48 | J51: =FAG!BN47 -> 197729.93 | K51: =FAG!BO47 -> 213781.47 | L51: =FAG!BP47 -> 195128.16 | M51: -18653.31
B52: =Stammdaten!B47 -> 13075049 | C52: =Stammdaten!D47 -> Heringsdorf | D52: =VLOOKUP($B52,FAG!$B$4:$EZ$159,(150+D$1),0) -> 1254246.94 | E52: =VLOOKUP($B52,FAG!$B$4:$EZ$159,(150+E$1),0) -> 1198473.48 | F52: =VLOOKUP($B52,FAG!$B$4:$EZ$159,(150+F$1),0) -> 777786.43 | G52: =VLOOKUP($B52,FAG!$B$4:$EZ$159,(150+G$1),0) -> 396632.49 | H52: =VLOOKUP($B52,FAG!$B$4:$EZ$159,(150+H$1),0) -> 37088.46 | I52: =FAG!BM48 -> 0 | J52: =FAG!BN48 -> 0 | K52: =FAG!BO48 -> 0 | L52: =FAG!BP48 -> 0 | M52: 0
B53: =Stammdaten!B48 -> 13075050 | C53: =Stammdaten!D48 -> Hinrichshagen | D53: =VLOOKUP($B53,FAG!$B$4:$EZ$159,(150+D$1),0) -> 239991.11 | E53: =VLOOKUP($B53,FAG!$B$4:$EZ$159,(150+E$1),0) -> 209430.45 | F53: =VLOOKUP($B53,FAG!$B$4:$EZ$159,(150+F$1),0) -> 202904.55 | G53: =VLOOKUP($B53,FAG!$B$4:$EZ$159,(150+G$1),0) -> 237624.57 | H53: =VLOOKUP($B53,FAG!$B$4:$EZ$159,(150+H$1),0) -> 284800.29 | I53: =FAG!BM49 -> 415067.52 | J53: =FAG!BN49 -> 232445.97 | K53: =FAG!BO49 -> 405678.37 | L53: =FAG!BP49 -> 390101.96 | M53: -15576.41
B54: =Stammdaten!B49 -> 13075051 | C54: =Stammdaten!D49 -> Hintersee | D54: =VLOOKUP($B54,FAG!$B$4:$EZ$159,(150+D$1),0) -> 108434.1 | E54: =VLOOKUP($B54,FAG!$B$4:$EZ$159,(150+E$1),0) -> 126119.41 | F54: =VLOOKUP($B54,FAG!$B$4:$EZ$159,(150+F$1),0) -> 131248.74 | G54: =VLOOKUP($B54,FAG!$B$4:$EZ$159,(150+G$1),0) -> 134130.97 | H54: =VLOOKUP($B54,FAG!$B$4:$EZ$159,(150+H$1),0) -> 145544.68 | I54: =FAG!BM50 -> 178074.44 | J54: =FAG!BN50 -> 167693.1 | K54: =FAG!BO50 -> 171073.66 | L54: =FAG!BP50 -> 191520.15 | M54: 20446.49
B55: =Stammdaten!B50 -> 13075053 | C55: =Stammdaten!D50 -> Iven | D55: =VLOOKUP($B55,FAG!$B$4:$EZ$159,(150+D$1),0) -> 65397.31 | E55: =VLOOKUP($B55,FAG!$B$4:$EZ$159,(150+E$1),0) -> 59955.59 | F55: =VLOOKUP($B55,FAG!$B$4:$EZ$159,(150+F$1),0) -> 68085.42 | G55: =VLOOKUP($B55,FAG!$B$4:$EZ$159,(150+G$1),0) -> 80977.64 | H55: =VLOOKUP($B55,FAG!$B$4:$EZ$159,(150+H$1),0) -> 76047.06 | I55: =FAG!BM51 -> 97096.86 | J55: =FAG!BN51 -> 48753.99 | K55: =FAG!BO51 -> 103361.15 | L55: =FAG!BP51 -> 86953.89 | M55: -16407.26
B56: =Stammdaten!B51 -> 13075054 | C56: =Stammdaten!D51 -> Jarmen, Stadt | D56: =VLOOKUP($B56,FAG!$B$4:$EZ$159,(150+D$1),0) -> 1003123.92 | E56: =VLOOKUP($B56,FAG!$B$4:$EZ$159,(150+E$1),0) -> 962766.52 | F56: =VLOOKUP($B56,FAG!$B$4:$EZ$159,(150+F$1),0) -> 909515.29 | G56: =VLOOKUP($B56,FAG!$B$4:$EZ$159,(150+G$1),0) -> 1073222.98 | H56: =VLOOKUP($B56,FAG!$B$4:$EZ$159,(150+H$1),0) -> 1081267.67 | I56: =FAG!BM52 -> 1195001.51 | J56: =FAG!BN52 -> 1235416.79 | K56: =FAG!BO52 -> 1255222.09 | L56: =FAG!BP52 -> 1500052.39 | M56: 244830.3
B57: =Stammdaten!B52 -> 13075055 | C57: =Stammdaten!D52 -> Jatznick | D57: =VLOOKUP($B57,FAG!$B$4:$EZ$159,(150+D$1),0) -> 859452.8 | E57: =VLOOKUP($B57,FAG!$B$4:$EZ$159,(150+E$1),0) -> 633685.77 | F57: =VLOOKUP($B57,FAG!$B$4:$EZ$159,(150+F$1),0) -> 908749.85 | G57: =VLOOKUP($B57,FAG!$B$4:$EZ$159,(150+G$1),0) -> 936673.78 | H57: =VLOOKUP($B57,FAG!$B$4:$EZ$159,(150+H$1),0) -> 1012601.3 | I57: =FAG!BM53 -> 1359226.8 | J57: =FAG!BN53 -> 1365663.1 | K57: =FAG!BO53 -> 1464731.63 | L57: =FAG!BP53 -> 1498962.09 | M57: 34230.46
B58: =Stammdaten!B53 -> 13075056 | C58: =Stammdaten!D53 -> Kamminke | D58: =VLOOKUP($B58,FAG!$B$4:$EZ$159,(150+D$1),0) -> 110927.11 | E58: =VLOOKUP($B58,FAG!$B$4:$EZ$159,(150+E$1),0) -> 121855.47 | F58: =VLOOKUP($B58,FAG!$B$4:$EZ$159,(150+F$1),0) -> 111005.03 | G58: =VLOOKUP($B58,FAG!$B$4:$EZ$159,(150+G$1),0) -> 110979.42 | H58: =VLOOKUP($B58,FAG!$B$4:$EZ$159,(150+H$1),0) -> 119195.7 | I58: =FAG!BM54 -> 171009.85 | J58: =FAG!BN54 -> 147818.8 | K58: =FAG!BO54 -> 130093.33 | L58: =FAG!BP54 -> 146402.28 | M58: 16308.95
B59: =Stammdaten!B54 -> 13075057 | C59: =Stammdaten!D54 -> Karlsburg (bis 2019) | D59: =VLOOKUP($B59,FAG!$B$4:$EZ$159,(150+D$1),0) -> 378412.3 | E59: =VLOOKUP($B59,FAG!$B$4:$EZ$159,(150+E$1),0) -> 390047 | F59: =VLOOKUP($B59,FAG!$B$4:$EZ$159,(150+F$1),0) -> 376211.1 | G59: =VLOOKUP($B59,FAG!$B$4:$EZ$159,(150+G$1),0) -> 382848.13 | H59: =VLOOKUP($B59,FAG!$B$4:$EZ$159,(150+H$1),0) -> 414355.1 | I59: =FAG!BM55 -> 0 | J59: =FAG!BN55 -> 0 | K59: =FAG!BO55 -> 0 | L59: =FAG!BP55 -> 0 | M59: 0
B60: =Stammdaten!B55 -> 13075058 | C60: =Stammdaten!D55 -> Karlshagen | D60: =VLOOKUP($B60,FAG!$B$4:$EZ$159,(150+D$1),0) -> 994471.72 | E60: =VLOOKUP($B60,FAG!$B$4:$EZ$159,(150+E$1),0) -> 1038441.3 | F60: =VLOOKUP($B60,FAG!$B$4:$EZ$159,(150+F$1),0) -> 974236.12 | G60: =VLOOKUP($B60,FAG!$B$4:$EZ$159,(150+G$1),0) -> 1053277.89 | H60: =VLOOKUP($B60,FAG!$B$4:$EZ$159,(150+H$1),0) -> 1100841.47 | I60: =FAG!BM56 -> 1362185.36 | J60: =FAG!BN56 -> 1397266.25 | K60: =FAG!BO56 -> 1392947.23 | L60: =FAG!BP56 -> 1688525.48 | M60: 295578.25
B61: =Stammdaten!B56 -> 13075059 | C61: =Stammdaten!D56 -> Katzow | D61: =VLOOKUP($B61,FAG!$B$4:$EZ$159,(150+D$1),0) -> 158047.46 | E61: =VLOOKUP($B61,FAG!$B$4:$EZ$159,(150+E$1),0) -> 226977.02 | F61: =VLOOKUP($B61,FAG!$B$4:$EZ$159,(150+F$1),0) -> 195504.27 | G61: =VLOOKUP($B61,FAG!$B$4:$EZ$159,(150+G$1),0) -> 212164.24 | H61: =VLOOKUP($B61,FAG!$B$4:$EZ$159,(150+H$1),0) -> 216180.43 | I61: =FAG!BM57 -> 262299.21 | J61: =FAG!BN57 -> 271198.09 | K61: =FAG!BO57 -> 306853.08 | L61: =FAG!BP57 -> 301481.01 | M61: -5372.07
B62: =Stammdaten!B57 -> 13075060 | C62: =Stammdaten!D57 -> Kemnitz | D62: =VLOOKUP($B62,FAG!$B$4:$EZ$159,(150+D$1),0) -> 368296.7 | E62: =VLOOKUP($B62,FAG!$B$4:$EZ$159,(150+E$1),0) -> 375736.46 | F62: =VLOOKUP($B62,FAG!$B$4:$EZ$159,(150+F$1),0) -> 317013.35 | G62: =VLOOKUP($B62,FAG!$B$4:$EZ$159,(150+G$1),0) -> 372550.13 | H62: =VLOOKUP($B62,FAG!$B$4:$EZ$159,(150+H$1),0) -> 445995.85 | I62: =FAG!BM58 -> 598113.37 | J62: =FAG!BN58 -> 533338.31 | K62: =FAG!BO58 -> 655401.74 | L62: =FAG!BP58 -> 656222.94 | M62: 821.2
B63: =Stammdaten!B58 -> 13075061 | C63: =Stammdaten!D58 -> Klein Bünzow | D63: =VLOOKUP($B63,FAG!$B$4:$EZ$159,(150+D$1),0) -> 0 | E63: =VLOOKUP($B63,FAG!$B$4:$EZ$159,(150+E$1),0) -> 35442.92 | F63: =VLOOKUP($B63,FAG!$B$4:$EZ$159,(150+F$1),0) -> 101273.23 | G63: =VLOOKUP($B63,FAG!$B$4:$EZ$159,(150+G$1),0) -> 36352.16 | H63: =VLOOKUP($B63,FAG!$B$4:$EZ$159,(150+H$1),0) -> 151287.29 | I63: =FAG!BM59 -> 77338.9 | J63: =FAG!BN59 -> 164583.78 | K63: =FAG!BO59 -> 120147.81 | L63: =FAG!BP59 -> 126964.93 | M63: 6817.12
B64: =Stammdaten!B59 -> 13075063 | C64: =Stammdaten!D59 -> Koblentz | D64: =VLOOKUP($B64,FAG!$B$4:$EZ$159,(150+D$1),0) -> 84764.95 | E64: =VLOOKUP($B64,FAG!$B$4:$EZ$159,(150+E$1),0) -> 57303.31 | F64: =VLOOKUP($B64,FAG!$B$4:$EZ$159,(150+F$1),0) -> 40682.61 | G64: =VLOOKUP($B64,FAG!$B$4:$EZ$159,(150+G$1),0) -> 100069.44 | H64: =VLOOKUP($B64,FAG!$B$4:$EZ$159,(150+H$1),0) -> 89885.55 | I64: =FAG!BM60 -> 115956.29 | J64: =FAG!BN60 -> 80603.59 | K64: =FAG!BO60 -> 101717.11 | L64: =FAG!BP60 -> 124030.3 | M64: 22313.19
B65: =Stammdaten!B60 -> 13075065 | C65: =Stammdaten!D60 -> Korswandt | D65: =VLOOKUP($B65,FAG!$B$4:$EZ$159,(150+D$1),0) -> 225774.13 | E65: =VLOOKUP($B65,FAG!$B$4:$EZ$159,(150+E$1),0) -> 231507.35 | F65: =VLOOKUP($B65,FAG!$B$4:$EZ$159,(150+F$1),0) -> 231353.51 | G65: =VLOOKUP($B65,FAG!$B$4:$EZ$159,(150+G$1),0) -> 258588.89 | H65: =VLOOKUP($B65,FAG!$B$4:$EZ$159,(150+H$1),0) -> 264696.56 | I65: =FAG!BM61 -> 321619.89 | J65: =FAG!BN61 -> 349967.81 | K65: =FAG!BO61 -> 338262.36 | L65: =FAG!BP61 -> 365428.64 | M65: 27166.28
B66: =Stammdaten!B61 -> 13075066 | C66: =Stammdaten!D61 -> Koserow | D66: =VLOOKUP($B66,FAG!$B$4:$EZ$159,(150+D$1),0) -> 276802.19 | E66: =VLOOKUP($B66,FAG!$B$4:$EZ$159,(150+E$1),0) -> 267463.03 | F66: =VLOOKUP($B66,FAG!$B$4:$EZ$159,(150+F$1),0) -> 240870.43 | G66: =VLOOKUP($B66,FAG!$B$4:$EZ$159,(150+G$1),0) -> 87093.16 | H66: =VLOOKUP($B66,FAG!$B$4:$EZ$159,(150+H$1),0) -> 168810.12 | I66: =FAG!BM62 -> 60328.79 | J66: =FAG!BN62 -> 0 | K66: =FAG!BO62 -> 0 | L66: =FAG!BP62 -> 0 | M66: 0
B67: =Stammdaten!B62 -> 13075067 | C67: =Stammdaten!D62 -> Krackow | D67: =VLOOKUP($B67,FAG!$B$4:$EZ$159,(150+D$1),0) -> 50003.93 | E67: =VLOOKUP($B67,FAG!$B$4:$EZ$159,(150+E$1),0) -> 144142.21 | F67: =VLOOKUP($B67,FAG!$B$4:$EZ$159,(150+F$1),0) -> 0 | G67: =VLOOKUP($B67,FAG!$B$4:$EZ$159,(150+G$1),0) -> 119653.88 | H67: =VLOOKUP($B67,FAG!$B$4:$EZ$159,(150+H$1),0) -> 95958.09 | I67: =FAG!BM63 -> 155428.06 | J67: =FAG!BN63 -> 262877.19 | K67: =FAG!BO63 -> 134122.62 | L67: =FAG!BP63 -> 180648.17 | M67: 46525.55
B68: =Stammdaten!B63 -> 13075068 | C68: =Stammdaten!D63 -> Krien | D68: =VLOOKUP($B68,FAG!$B$4:$EZ$159,(150+D$1),0) -> 154869.61 | E68: =VLOOKUP($B68,FAG!$B$4:$EZ$159,(150+E$1),0) -> 113759.37 | F68: =VLOOKUP($B68,FAG!$B$4:$EZ$159,(150+F$1),0) -> 91618.42 | G68: =VLOOKUP($B68,FAG!$B$4:$EZ$159,(150+G$1),0) -> 283447.95 | H68: =VLOOKUP($B68,FAG!$B$4:$EZ$159,(150+H$1),0) -> 157044.29 | I68: =FAG!BM64 -> 352914.89 | J68: =FAG!BN64 -> 189405.89 | K68: =FAG!BO64 -> 275847.46 | L68: =FAG!BP64 -> 417178.5 | M68: 141331.04
B69: =Stammdaten!B64 -> 13075069 | C69: =Stammdaten!D64 -> Kröslin | D69: =VLOOKUP($B69,FAG!$B$4:$EZ$159,(150+D$1),0) -> 559959.48 | E69: =VLOOKUP($B69,FAG!$B$4:$EZ$159,(150+E$1),0) -> 605748.75 | F69: =VLOOKUP($B69,FAG!$B$4:$EZ$159,(150+F$1),0) -> 563470.61 | G69: =VLOOKUP($B69,FAG!$B$4:$EZ$159,(150+G$1),0) -> 664646.15 | H69: =VLOOKUP($B69,FAG!$B$4:$EZ$159,(150+H$1),0) -> 677371.2 | I69: =FAG!BM65 -> 866525.41 | J69: =FAG!BN65 -> 834965.07 | K69: =FAG!BO65 -> 917851.56 | L69: =FAG!BP65 -> 978538.99 | M69: 60687.43
B70: =Stammdaten!B65 -> 13075070 | C70: =Stammdaten!D65 -> Kruckow | D70: =VLOOKUP($B70,FAG!$B$4:$EZ$159,(150+D$1),0) -> 129161.83 | E70: =VLOOKUP($B70,FAG!$B$4:$EZ$159,(150+E$1),0) -> 139583.89 | F70: =VLOOKUP($B70,FAG!$B$4:$EZ$159,(150+F$1),0) -> 177611.19 | G70: =VLOOKUP($B70,FAG!$B$4:$EZ$159,(150+G$1),0) -> 85705.96 | H70: =VLOOKUP($B70,FAG!$B$4:$EZ$159,(150+H$1),0) -> 142279.22 | I70: =FAG!BM66 -> 204904.3 | J70: =FAG!BN66 -> 271805.69 | K70: =FAG!BO66 -> 191864.69 | L70: =FAG!BP66 -> 339606.33 | M70: 147741.64
B71: =Stammdaten!B66 -> 13075071 | C71: =Stammdaten!D66 -> Krugsdorf | D71: =VLOOKUP($B71,FAG!$B$4:$EZ$159,(150+D$1),0) -> 133065.94 | E71: =VLOOKUP($B71,FAG!$B$4:$EZ$159,(150+E$1),0) -> 176575.39 | F71: =VLOOKUP($B71,FAG!$B$4:$EZ$159,(150+F$1),0) -> 124980.42 | G71: =VLOOKUP($B71,FAG!$B$4:$EZ$159,(150+G$1),0) -> 164272.44 | H71: =VLOOKUP($B71,FAG!$B$4:$EZ$159,(150+H$1),0) -> 94031.08 | I71: =FAG!BM67 -> 283768.18 | J71: =FAG!BN67 -> 275457.31 | K71: =FAG!BO67 -> 249884.19 | L71: =FAG!BP67 -> 295306.13 | M71: 45421.94
B72: =Stammdaten!B67 -> 13075072 | C72: =Stammdaten!D67 -> Krummin | D72: =VLOOKUP($B72,FAG!$B$4:$EZ$159,(150+D$1),0) -> 83213.02 | E72: =VLOOKUP($B72,FAG!$B$4:$EZ$159,(150+E$1),0) -> 77953.2 | F72: =VLOOKUP($B72,FAG!$B$4:$EZ$159,(150+F$1),0) -> 69330.18 | G72: =VLOOKUP($B72,FAG!$B$4:$EZ$159,(150+G$1),0) -> 72408.3 | H72: =VLOOKUP($B72,FAG!$B$4:$EZ$159,(150+H$1),0) -> 80223.68 | I72: =FAG!BM68 -> 117930.13 | J72: =FAG!BN68 -> 118620.47 | K72: =FAG!BO68 -> 141664.36 | L72: =FAG!BP68 -> 103950.47 | M72: -37713.89
B73: =Stammdaten!B68 -> 13075073 | C73: =Stammdaten!D68 -> Krusenfelde | D73: =VLOOKUP($B73,FAG!$B$4:$EZ$159,(150+D$1),0) -> 70079.32 | E73: =VLOOKUP($B73,FAG!$B$4:$EZ$159,(150+E$1),0) -> 76224.7 | F73: =VLOOKUP($B73,FAG!$B$4:$EZ$159,(150+F$1),0) -> 71852.22 | G73: =VLOOKUP($B73,FAG!$B$4:$EZ$159,(150+G$1),0) -> 70365.91 | H73: =VLOOKUP($B73,FAG!$B$4:$EZ$159,(150+H$1),0) -> 75619.54 | I73: =FAG!BM69 -> 104551.78 | J73: =FAG!BN69 -> 98396.54 | K73: =FAG!BO69 -> 103977.11 | L73: =FAG!BP69 -> 110363.53 | M73: 6386.42
B74: =Stammdaten!B69 -> 13075074 | C74: =Stammdaten!D69 -> Lassan, Stadt | D74: =VLOOKUP($B74,FAG!$B$4:$EZ$159,(150+D$1),0) -> 460914.95 | E74: =VLOOKUP($B74,FAG!$B$4:$EZ$159,(150+E$1),0) -> 522307.38 | F74: =VLOOKUP($B74,FAG!$B$4:$EZ$159,(150+F$1),0) -> 551162.6 | G74: =VLOOKUP($B74,FAG!$B$4:$EZ$159,(150+G$1),0) -> 673708.65 | H74: =VLOOKUP($B74,FAG!$B$4:$EZ$159,(150+H$1),0) -> 737292.04 | I74: =FAG!BM70 -> 935192.02 | J74: =FAG!BN70 -> 884559.16 | K74: =FAG!BO70 -> 958645.15 | L74: =FAG!BP70 -> 932862.9 | M74: =L74-K74 -> -25782.25
B75: =Stammdaten!B70 -> 13075075 | C75: =Stammdaten!D70 -> Leopoldshagen | D75: =VLOOKUP($B75,FAG!$B$4:$EZ$159,(150+D$1),0) -> 293193.88 | E75: =VLOOKUP($B75,FAG!$B$4:$EZ$159,(150+E$1),0) -> 295635.23 | F75: =VLOOKUP($B75,FAG!$B$4:$EZ$159,(150+F$1),0) -> 292010.36 | G75: =VLOOKUP($B75,FAG!$B$4:$EZ$159,(150+G$1),0) -> 326465.67 | H75: =VLOOKUP($B75,FAG!$B$4:$EZ$159,(150+H$1),0) -> 338814.16 | I75: =FAG!BM71 -> 457081.43 | J75: =FAG!BN71 -> 440297.81 | K75: =FAG!BO71 -> 429076.1 | L75: =FAG!BP71 -> 430754.18 | M75: 1678.08
B76: =Stammdaten!B71 -> 13075076 | C76: =Stammdaten!D71 -> Levenhagen | D76: =VLOOKUP($B76,FAG!$B$4:$EZ$159,(150+D$1),0) -> 46839.38 | E76: =VLOOKUP($B76,FAG!$B$4:$EZ$159,(150+E$1),0) -> 75715.32 | F76: =VLOOKUP($B76,FAG!$B$4:$EZ$159,(150+F$1),0) -> 0 | G76: =VLOOKUP($B76,FAG!$B$4:$EZ$159,(150+G$1),0) -> 41277.21 | H76: =VLOOKUP($B76,FAG!$B$4:$EZ$159,(150+H$1),0) -> 102485 | I76: =FAG!BM72 -> 172116.11 | J76: =FAG!BN72 -> 109776.03 | K76: =FAG!BO72 -> 159417.57 | L76: =FAG!BP72 -> 142448.59 | M76: -16968.98
B77: =Stammdaten!B72 -> 13075078 | C77: =Stammdaten!D72 -> Liepgarten | D77: =VLOOKUP($B77,FAG!$B$4:$EZ$159,(150+D$1),0) -> 229045.39 | E77: =VLOOKUP($B77,FAG!$B$4:$EZ$159,(150+E$1),0) -> 249809.59 | F77: =VLOOKUP($B77,FAG!$B$4:$EZ$159,(150+F$1),0) -> 244424.23 | G77: =VLOOKUP($B77,FAG!$B$4:$EZ$159,(150+G$1),0) -> 282452.13 | H77: =VLOOKUP($B77,FAG!$B$4:$EZ$159,(150+H$1),0) -> 295488.97 | I77: =FAG!BM73 -> 432675.15 | J77: =FAG!BN73 -> 374368.77 | K77: =FAG!BO73 -> 411825.7 | L77: =FAG!BP73 -> 455905.61 | M77: 44079.91
B78: =Stammdaten!B73 -> 13075079 | C78: =Stammdaten!D73 -> Löcknitz | D78: =VLOOKUP($B78,FAG!$B$4:$EZ$159,(150+D$1),0) -> 1070584.33 | E78: =VLOOKUP($B78,FAG!$B$4:$EZ$159,(150+E$1),0) -> 1142628.38 | F78: =VLOOKUP($B78,FAG!$B$4:$EZ$159,(150+F$1),0) -> 1174614.4 | G78: =VLOOKUP($B78,FAG!$B$4:$EZ$159,(150+G$1),0) -> 1052070.03 | H78: =VLOOKUP($B78,FAG!$B$4:$EZ$159,(150+H$1),0) -> 1275738.53 | I78: =FAG!BM74 -> 1754057.98 | J78: =FAG!BN74 -> 1696812.58 | K78: =FAG!BO74 -> 1732570.81 | L78: =FAG!BP74 -> 1837354.7 | M78: 104783.89
B79: =Stammdaten!B74 -> 13075080 | C79: =Stammdaten!D74 -> Loddin | D79: =VLOOKUP($B79,FAG!$B$4:$EZ$159,(150+D$1),0) -> 201239.83 | E79: =VLOOKUP($B79,FAG!$B$4:$EZ$159,(150+E$1),0) -> 201685.36 | F79: =VLOOKUP($B79,FAG!$B$4:$EZ$159,(150+F$1),0) -> 151719.57 | G79: =VLOOKUP($B79,FAG!$B$4:$EZ$159,(150+G$1),0) -> 106422.79 | H79: =VLOOKUP($B79,FAG!$B$4:$EZ$159,(150+H$1),0) -> 145575.91 | I79: =FAG!BM75 -> 76611.15 | J79: =FAG!BN75 -> 35876.87 | K79: =FAG!BO75 -> 38867.52 | L79: =FAG!BP75 -> 97837.01 | M79: 58969.49
B80: =Stammdaten!B75 -> 13075081 | C80: =Stammdaten!D75 -> Loissin | D80: =VLOOKUP($B80,FAG!$B$4:$EZ$159,(150+D$1),0) -> 208106.69 | E80: =VLOOKUP($B80,FAG!$B$4:$EZ$159,(150+E$1),0) -> 227511.17 | F80: =VLOOKUP($B80,FAG!$B$4:$EZ$159,(150+F$1),0) -> 229355.53 | G80: =VLOOKUP($B80,FAG!$B$4:$EZ$159,(150+G$1),0) -> 235206.11 | H80: =VLOOKUP($B80,FAG!$B$4:$EZ$159,(150+H$1),0) -> 270655.7 | I80: =FAG!BM76 -> 256333.56 | J80: =FAG!BN76 -> 161053.5 | K80: =FAG!BO76 -> 273556.83 | L80: =FAG!BP76 -> 243195.95 | M80: -30360.88
B81: =Stammdaten!B76 -> 13075082 | C81: =Stammdaten!D76 -> Loitz, Stadt | D81: =VLOOKUP($B81,FAG!$B$4:$EZ$159,(150+D$1),0) -> 1508220.2 | E81: =VLOOKUP($B81,FAG!$B$4:$EZ$159,(150+E$1),0) -> 1469029.94 | F81: =VLOOKUP($B81,FAG!$B$4:$EZ$159,(150+F$1),0) -> 1436704.01 | G81: =VLOOKUP($B81,FAG!$B$4:$EZ$159,(150+G$1),0) -> 1574376.98 | H81: =VLOOKUP($B81,FAG!$B$4:$EZ$159,(150+H$1),0) -> 1746282.95 | I81: =FAG!BM77 -> 2452398.03 | J81: =FAG!BN77 -> 2082043.92 | K81: =FAG!BO77 -> 2122465.55 | L81: =FAG!BP77 -> 2316270.06 | M81: 193804.51
B82: =Stammdaten!B77 -> 13075083 | C82: =Stammdaten!D77 -> Lubmin | D82: =VLOOKUP($B82,FAG!$B$4:$EZ$159,(150+D$1),0) -> 0 | E82: =VLOOKUP($B82,FAG!$B$4:$EZ$159,(150+E$1),0) -> 0 | F82: =VLOOKUP($B82,FAG!$B$4:$EZ$159,(150+F$1),0) -> 0 | G82: =VLOOKUP($B82,FAG!$B$4:$EZ$159,(150+G$1),0) -> 0 | H82: =VLOOKUP($B82,FAG!$B$4:$EZ$159,(150+H$1),0) -> 0 | I82: =FAG!BM78 -> 0 | J82: =FAG!BN78 -> 0 | K82: =FAG!BO78 -> 0 | L82: =FAG!BP78 -> 0 | M82: 0
B83: =Stammdaten!B78 -> 13075084 | C83: =Stammdaten!D78 -> Lübs | D83: =VLOOKUP($B83,FAG!$B$4:$EZ$159,(150+D$1),0) -> 126171.6 | E83: =VLOOKUP($B83,FAG!$B$4:$EZ$159,(150+E$1),0) -> 155420.92 | F83: =VLOOKUP($B83,FAG!$B$4:$EZ$159,(150+F$1),0) -> 126189.03 | G83: =VLOOKUP($B83,FAG!$B$4:$EZ$159,(150+G$1),0) -> 69926.08 | H83: =VLOOKUP($B83,FAG!$B$4:$EZ$159,(150+H$1),0) -> 111383.92 | I83: =FAG!BM79 -> 152721.59 | J83: =FAG!BN79 -> 155482.43 | K83: =FAG!BO79 -> 165799.56 | L83: =FAG!BP79 -> 94989.74 | M83: -70809.82
B84: =Stammdaten!B79 -> 13075085 | C84: =Stammdaten!D79 -> Luckow | D84: =VLOOKUP($B84,FAG!$B$4:$EZ$159,(150+D$1),0) -> 233315.7 | E84: =VLOOKUP($B84,FAG!$B$4:$EZ$159,(150+E$1),0) -> 231362.58 | F84: =VLOOKUP($B84,FAG!$B$4:$EZ$159,(150+F$1),0) -> 229363.32 | G84: =VLOOKUP($B84,FAG!$B$4:$EZ$159,(150+G$1),0) -> 220462.85 | H84: =VLOOKUP($B84,FAG!$B$4:$EZ$159,(150+H$1),0) -> 240817.45 | I84: =FAG!BM80 -> 353981.01 | J84: =FAG!BN80 -> 332130.17 | K84: =FAG!BO80 -> 399492.27 | L84: =FAG!BP80 -> 359228.5 | M84: -40263.77
B85: =Stammdaten!B80 -> 13075086 | C85: =Stammdaten!D80 -> Lühmannsdorf (bis 2019) | D85: =VLOOKUP($B85,FAG!$B$4:$EZ$159,(150+D$1),0) -> 225501.53 | E85: =VLOOKUP($B85,FAG!$B$4:$EZ$159,(150+E$1),0) -> 240264 | F85: =VLOOKUP($B85,FAG!$B$4:$EZ$159,(150+F$1),0) -> 208620.66 | G85: =VLOOKUP($B85,FAG!$B$4:$EZ$159,(150+G$1),0) -> 263981.96 | H85: =VLOOKUP($B85,FAG!$B$4:$EZ$159,(150+H$1),0) -> 292254.49 | I85: =FAG!BM81 -> 0 | J85: =FAG!BN81 -> 0 | K85: =FAG!BO81 -> 0 | L85: =FAG!BP81 -> 0 | M85: 0
B86: =Stammdaten!B81 -> 13075087 | C86: =Stammdaten!D81 -> Lütow | D86: =VLOOKUP($B86,FAG!$B$4:$EZ$159,(150+D$1),0) -> 2535.22 | E86: =VLOOKUP($B86,FAG!$B$4:$EZ$159,(150+E$1),0) -> 0 | F86: =VLOOKUP($B86,FAG!$B$4:$EZ$159,(150+F$1),0) -> 61955.98 | G86: =VLOOKUP($B86,FAG!$B$4:$EZ$159,(150+G$1),0) -> 168951.67 | H86: =VLOOKUP($B86,FAG!$B$4:$EZ$159,(150+H$1),0) -> 95740.36 | I86: =FAG!BM82 -> 169167.2 | J86: =FAG!BN82 -> 152988.35 | K86: =FAG!BO82 -> 174289.63 | L86: =FAG!BP82 -> 181505.42 | M86: 7215.79
B87: =Stammdaten!B82 -> 13075088 | C87: =Stammdaten!D82 -> Medow | D87: =VLOOKUP($B87,FAG!$B$4:$EZ$159,(150+D$1),0) -> 82069.99 | E87: =VLOOKUP($B87,FAG!$B$4:$EZ$159,(150+E$1),0) -> 93816.88 | F87: =VLOOKUP($B87,FAG!$B$4:$EZ$159,(150+F$1),0) -> 52281.02 | G87: =VLOOKUP($B87,FAG!$B$4:$EZ$159,(150+G$1),0) -> 91887.17 | H87: =VLOOKUP($B87,FAG!$B$4:$EZ$159,(150+H$1),0) -> 31212.81 | I87: =FAG!BM83 -> 154698.47 | J87: =FAG!BN83 -> 169967.71 | K87: =FAG!BO83 -> 69240.13 | L87: =FAG!BP83 -> 101317.5 | M87: 32077.37
B88: =Stammdaten!B83 -> 13075089 | C88: =Stammdaten!D83 -> Meiersberg | D88: =VLOOKUP($B88,FAG!$B$4:$EZ$159,(150+D$1),0) -> 174919.14 | E88: =VLOOKUP($B88,FAG!$B$4:$EZ$159,(150+E$1),0) -> 188599.17 | F88: =VLOOKUP($B88,FAG!$B$4:$EZ$159,(150+F$1),0) -> 165775.94 | G88: =VLOOKUP($B88,FAG!$B$4:$EZ$159,(150+G$1),0) -> 185348.08 | H88: =VLOOKUP($B88,FAG!$B$4:$EZ$159,(150+H$1),0) -> 202569.8 | I88: =FAG!BM84 -> 276543.31 | J88: =FAG!BN84 -> 282217.71 | K88: =FAG!BO84 -> 285783.63 | L88: =FAG!BP84 -> 285178.52 | M88: -605.11
B89: =Stammdaten!B84 -> 13075090 | C89: =Stammdaten!D84 -> Mellenthin | D89: =VLOOKUP($B89,FAG!$B$4:$EZ$159,(150+D$1),0) -> 154957.73 | E89: =VLOOKUP($B89,FAG!$B$4:$EZ$159,(150+E$1),0) -> 100863.17 | F89: =VLOOKUP($B89,FAG!$B$4:$EZ$159,(150+F$1),0) -> 169669.49 | G89: =VLOOKUP($B89,FAG!$B$4:$EZ$159,(150+G$1),0) -> 158771.57 | H89: =VLOOKUP($B89,FAG!$B$4:$EZ$159,(150+H$1),0) -> 175142.81 | I89: =FAG!BM85 -> 236695.92 | J89: =FAG!BN85 -> 231745.02 | K89: =FAG!BO85 -> 272313.37 | L89: =FAG!BP85 -> 127339.28 | M89: -144974.09
B90: =Stammdaten!B85 -> 13075091 | C90: =Stammdaten!D85 -> Mesekenhagen | D90: =VLOOKUP($B90,FAG!$B$4:$EZ$159,(150+D$1),0) -> 148369.92 | E90: =VLOOKUP($B90,FAG!$B$4:$EZ$159,(150+E$1),0) -> 23136.95 | F90: =VLOOKUP($B90,FAG!$B$4:$EZ$159,(150+F$1),0) -> 266880.96 | G90: =VLOOKUP($B90,FAG!$B$4:$EZ$159,(150+G$1),0) -> 0 | H90: =VLOOKUP($B90,FAG!$B$4:$EZ$159,(150+H$1),0) -> 153025.21 | I90: =FAG!BM86 -> 378118.15 | J90: =FAG!BN86 -> 320853.22 | K90: =FAG!BO86 -> 154764.5 | L90: =FAG!BP86 -> 436801.64 | M90: 282037.14
B91: =Stammdaten!B86 -> 13075092 | C91: =Stammdaten!D86 -> Mölschow | D91: =VLOOKUP($B91,FAG!$B$4:$EZ$159,(150+D$1),0) -> 238006.25 | E91: =VLOOKUP($B91,FAG!$B$4:$EZ$159,(150+E$1),0) -> 248152.54 | F91: =VLOOKUP($B91,FAG!$B$4:$EZ$159,(150+F$1),0) -> 252209.2 | G91: =VLOOKUP($B91,FAG!$B$4:$EZ$159,(150+G$1),0) -> 284135.96 | H91: =VLOOKUP($B91,FAG!$B$4:$EZ$159,(150+H$1),0) -> 288951.19 | I91: =FAG!BM87 -> 369808.68 | J91: =FAG!BN87 -> 383232.75 | K91: =FAG!BO87 -> 392405.49 | L91: =FAG!BP87 -> 447054.87 | M91: 54649.38
B92: =Stammdaten!B87 -> 13075093 | C92: =Stammdaten!D87 -> Mönkebude | D92: =VLOOKUP($B92,FAG!$B$4:$EZ$159,(150+D$1),0) -> 268848.12 | E92: =VLOOKUP($B92,FAG!$B$4:$EZ$159,(150+E$1),0) -> 269081.47 | F92: =VLOOKUP($B92,FAG!$B$4:$EZ$159,(150+F$1),0) -> 242846.81 | G92: =VLOOKUP($B92,FAG!$B$4:$EZ$159,(150+G$1),0) -> 265685.62 | H92: =VLOOKUP($B92,FAG!$B$4:$EZ$159,(150+H$1),0) -> 255589.25 | I92: =FAG!BM88 -> 336598.88 | J92: =FAG!BN88 -> 308654.75 | K92: =FAG!BO88 -> 342330.54 | L92: =FAG!BP88 -> 412510.44 | M92: 70179.9
B93: =Stammdaten!B88 -> 13075094 | C93: =Stammdaten!D88 -> Murchin | D93: =VLOOKUP($B93,FAG!$B$4:$EZ$159,(150+D$1),0) -> 175413.08 | E93: =VLOOKUP($B93,FAG!$B$4:$EZ$159,(150+E$1),0) -> 175724.82 | F93: =VLOOKUP($B93,FAG!$B$4:$EZ$159,(150+F$1),0) -> 164157.07 | G93: =VLOOKUP($B93,FAG!$B$4:$EZ$159,(150+G$1),0) -> 175201.35 | H93: =VLOOKUP($B93,FAG!$B$4:$EZ$159,(150+H$1),0) -> 183691.19 | I93: =FAG!BM89 -> 10584.91 | J93: =FAG!BN89 -> 241621 | K93: =FAG!BO89 -> 252495.43 | L93: =FAG!BP89 -> 103490.29 | M93: -149005.14
B94: =Stammdaten!B89 -> 13075095 | C94: =Stammdaten!D89 -> Nadrensee | D94: =VLOOKUP($B94,FAG!$B$4:$EZ$159,(150+D$1),0) -> 153907.3 | E94: =VLOOKUP($B94,FAG!$B$4:$EZ$159,(150+E$1),0) -> 158087.34 | F94: =VLOOKUP($B94,FAG!$B$4:$EZ$159,(150+F$1),0) -> 110695.06 | G94: =VLOOKUP($B94,FAG!$B$4:$EZ$159,(150+G$1),0) -> 150300.99 | H94: =VLOOKUP($B94,FAG!$B$4:$EZ$159,(150+H$1),0) -> 38146.34 | I94: =FAG!BM90 -> 35233.26 | J94: =FAG!BN90 -> 85170.99 | K94: =FAG!BO90 -> 21451.63 | L94: =FAG!BP90 -> 0 | M94: -21451.63
B95: =Stammdaten!B90 -> 13075097 | C95: =Stammdaten!D90 -> Neu Boltenhagen | D95: =VLOOKUP($B95,FAG!$B$4:$EZ$159,(150+D$1),0) -> 240031.86 | E95: =VLOOKUP($B95,FAG!$B$4:$EZ$159,(150+E$1),0) -> 248286.33 | F95: =VLOOKUP($B95,FAG!$B$4:$EZ$159,(150+F$1),0) -> 216756.57 | G95: =VLOOKUP($B95,FAG!$B$4:$EZ$159,(150+G$1),0) -> 253284.71 | H95: =VLOOKUP($B95,FAG!$B$4:$EZ$159,(150+H$1),0) -> 250787.17 | I95: =FAG!BM91 -> 364981.87 | J95: =FAG!BN91 -> 368357.25 | K95: =FAG!BO91 -> 413003.53 | L95: =FAG!BP91 -> 362534.7 | M95: -50468.83
B96: =Stammdaten!B91 -> 13075098 | C96: =Stammdaten!D91 -> Neu Kosenow | D96: =VLOOKUP($B96,FAG!$B$4:$EZ$159,(150+D$1),0) -> 122621.25 | E96: =VLOOKUP($B96,FAG!$B$4:$EZ$159,(150+E$1),0) -> 47557.3 | F96: =VLOOKUP($B96,FAG!$B$4:$EZ$159,(150+F$1),0) -> 128778.54 | G96: =VLOOKUP($B96,FAG!$B$4:$EZ$159,(150+G$1),0) -> 142435.81 | H96: =VLOOKUP($B96,FAG!$B$4:$EZ$159,(150+H$1),0) -> 47637.47 | I96: =FAG!BM92 -> 0 | J96: =FAG!BN92 -> 0 | K96: =FAG!BO92 -> 0 | L96: =FAG!BP92 -> 0 | M96: 0
B97: =Stammdaten!B92 -> 13075101 | C97: =Stammdaten!D92 -> Neuenkirchen bei Anklam | D97: =VLOOKUP($B97,FAG!$B$4:$EZ$159,(150+D$1),0) -> 14842.36 | E97: =VLOOKUP($B97,FAG!$B$4:$EZ$159,(150+E$1),0) -> 34131.93 | F97: =VLOOKUP($B97,FAG!$B$4:$EZ$159,(150+F$1),0) -> 30445.29 | G97: =VLOOKUP($B97,FAG!$B$4:$EZ$159,(150+G$1),0) -> 62778.04 | H97: =VLOOKUP($B97,FAG!$B$4:$EZ$159,(150+H$1),0) -> 2935.02 | I97: =FAG!BM93 -> 63946.07 | J97: =FAG!BN93 -> 19341.61 | K97: =FAG!BO93 -> 0 | L97: =FAG!BP93 -> 0 | M97: 0
B98: =Stammdaten!B93 -> 13075102 | C98: =Stammdaten!D93 -> Neuenkirchen bei Greifswald | D98: =VLOOKUP($B98,FAG!$B$4:$EZ$159,(150+D$1),0) -> 295884.6 | E98: =VLOOKUP($B98,FAG!$B$4:$EZ$159,(150+E$1),0) -> 369778.4 | F98: =VLOOKUP($B98,FAG!$B$4:$EZ$159,(150+F$1),0) -> 353921.74 | G98: =VLOOKUP($B98,FAG!$B$4:$EZ$159,(150+G$1),0) -> 307063.42 | H98: =VLOOKUP($B98,FAG!$B$4:$EZ$159,(150+H$1),0) -> 0 | I98: =FAG!BM94 -> 426160.48 | J98: =FAG!BN94 -> 556272.33 | K98: =FAG!BO94 -> 634748.61 | L98: =FAG!BP94 -> 317129.32 | M98: -317619.29
B99: =Stammdaten!B94 -> 13075103 | C99: =Stammdaten!D94 -> Nieden | D99: =VLOOKUP($B99,FAG!$B$4:$EZ$159,(150+D$1),0) -> 68343.87 | E99: =VLOOKUP($B99,FAG!$B$4:$EZ$159,(150+E$1),0) -> 68695.84 | F99: =VLOOKUP($B99,FAG!$B$4:$EZ$159,(150+F$1),0) -> 68810.95 | G99: =VLOOKUP($B99,FAG!$B$4:$EZ$159,(150+G$1),0) -> 75662.23 | H99: =VLOOKUP($B99,FAG!$B$4:$EZ$159,(150+H$1),0) -> 80685.97 | I99: =FAG!BM95 -> 107455.74 | J99: =FAG!BN95 -> 105201.57 | K99: =FAG!BO95 -> 110084.7 | L99: =FAG!BP95 -> 119974.25 | M99: 9889.55
B100: =Stammdaten!B95 -> 13075104 | C100: =Stammdaten!D95 -> Papendorf | D100: =VLOOKUP($B100,FAG!$B$4:$EZ$159,(150+D$1),0) -> 102544.77 | E100: =VLOOKUP($B100,FAG!$B$4:$EZ$159,(150+E$1),0) -> 0 | F100: =VLOOKUP($B100,FAG!$B$4:$EZ$159,(150+F$1),0) -> 110165.66 | G100: =VLOOKUP($B100,FAG!$B$4:$EZ$159,(150+G$1),0) -> 102812.77 | H100: =VLOOKUP($B100,FAG!$B$4:$EZ$159,(150+H$1),0) -> 98413.01 | I100: =FAG!BM96 -> 120901.25 | J100: =FAG!BN96 -> 129255.51 | K100: =FAG!BO96 -> 143247.62 | L100: =FAG!BP96 -> 120467.89 | M100: -22779.73
B101: =Stammdaten!B96 -> 13075105 | C101: =Stammdaten!D96 -> Pasewalk, Stadt | D101: =VLOOKUP($B101,FAG!$B$4:$EZ$159,(150+D$1),0) -> 2703761.59 | E101: =VLOOKUP($B101,FAG!$B$4:$EZ$159,(150+E$1),0) -> 3011814.52 | F101: =VLOOKUP($B101,FAG!$B$4:$EZ$159,(150+F$1),0) -> 2735527.84 | G101: =VLOOKUP($B101,FAG!$B$4:$EZ$159,(150+G$1),0) -> 2973502.72 | H101: =VLOOKUP($B101,FAG!$B$4:$EZ$159,(150+H$1),0) -> 2988252.57 | I101: =FAG!BM97 -> 5508653.6 | J101: =FAG!BN97 -> 5296978.38 | K101: =FAG!BO97 -> 5024701.13 | L101: =FAG!BP97 -> 5544396.13 | M101: 519695
B102: =Stammdaten!B97 -> 13075106 | C102: =Stammdaten!D97 -> Peenemünde | D102: =VLOOKUP($B102,FAG!$B$4:$EZ$159,(150+D$1),0) -> 0 | E102: =VLOOKUP($B102,FAG!$B$4:$EZ$159,(150+E$1),0) -> 0 | F102: =VLOOKUP($B102,FAG!$B$4:$EZ$159,(150+F$1),0) -> 13314.68 | G102: =VLOOKUP($B102,FAG!$B$4:$EZ$159,(150+G$1),0) -> 0 | H102: =VLOOKUP($B102,FAG!$B$4:$EZ$159,(150+H$1),0) -> 1898.24 | I102: =FAG!BM98 -> 0 | J102: =FAG!BN98 -> 0 | K102: =FAG!BO98 -> 1931.89 | L102: =FAG!BP98 -> 0 | M102: -1931.89
B103: =Stammdaten!B98 -> 13075107 | C103: =Stammdaten!D98 -> Penkun, Stadt | D103: =VLOOKUP($B103,FAG!$B$4:$EZ$159,(150+D$1),0) -> 676174.03 | E103: =VLOOKUP($B103,FAG!$B$4:$EZ$159,(150+E$1),0) -> 716802.26 | F103: =VLOOKUP($B103,FAG!$B$4:$EZ$159,(150+F$1),0) -> 738920.11 | G103: =VLOOKUP($B103,FAG!$B$4:$EZ$159,(150+G$1),0) -> 553592.75 | H103: =VLOOKUP($B103,FAG!$B$4:$EZ$159,(150+H$1),0) -> 679406.31 | I103: =FAG!BM99 -> 695416.29 | J103: =FAG!BN99 -> 1132756.92 | K103: =FAG!BO99 -> 917273.88 | L103: =FAG!BP99 -> 1013493.81 | M103: 96219.93
B104: =Stammdaten!B99 -> 13075108 | C104: =Stammdaten!D99 -> Plöwen | D104: =VLOOKUP($B104,FAG!$B$4:$EZ$159,(150+D$1),0) -> 128762.12 | E104: =VLOOKUP($B104,FAG!$B$4:$EZ$159,(150+E$1),0) -> 162836.69 | F104: =VLOOKUP($B104,FAG!$B$4:$EZ$159,(150+F$1),0) -> 194219.27 | G104: =VLOOKUP($B104,FAG!$B$4:$EZ$159,(150+G$1),0) -> 116891.31 | H104: =VLOOKUP($B104,FAG!$B$4:$EZ$159,(150+H$1),0) -> 114337.61 | I104: =FAG!BM100 -> 180739.86 | J104: =FAG!BN100 -> 167852.53 | K104: =FAG!BO100 -> 148746.03 | L104: =FAG!BP100 -> 177479.1 | M104: 28733.07
B105: =Stammdaten!B100 -> 13075109 | C105: =Stammdaten!D100 -> Polzow | D105: =VLOOKUP($B105,FAG!$B$4:$EZ$159,(150+D$1),0) -> 88847.8 | E105: =VLOOKUP($B105,FAG!$B$4:$EZ$159,(150+E$1),0) -> 89169.68 | F105: =VLOOKUP($B105,FAG!$B$4:$EZ$159,(150+F$1),0) -> 85850.72 | G105: =VLOOKUP($B105,FAG!$B$4:$EZ$159,(150+G$1),0) -> 88061.58 | H105: =VLOOKUP($B105,FAG!$B$4:$EZ$159,(150+H$1),0) -> 100477.58 | I105: =FAG!BM101 -> 146614.56 | J105: =FAG!BN101 -> 145794.5 | K105: =FAG!BO101 -> 156448.86 | L105: =FAG!BP101 -> 182725.95 | M105: 26277.09
B106: =Stammdaten!B101 -> 13075110 | C106: =Stammdaten!D101 -> Postlow | D106: =VLOOKUP($B106,FAG!$B$4:$EZ$159,(150+D$1),0) -> 63673.21 | E106: =VLOOKUP($B106,FAG!$B$4:$EZ$159,(150+E$1),0) -> 77370.34 | F106: =VLOOKUP($B106,FAG!$B$4:$EZ$159,(150+F$1),0) -> 64185.93 | G106: =VLOOKUP($B106,FAG!$B$4:$EZ$159,(150+G$1),0) -> 65739.5 | H106: =VLOOKUP($B106,FAG!$B$4:$EZ$159,(150+H$1),0) -> 108294.06 | I106: =FAG!BM102 -> 110939.39 | J106: =FAG!BN102 -> 132857.67 | K106: =FAG!BO102 -> 113330.14 | L106: =FAG!BP102 -> 221296.53 | M106: 107966.39
B107: =Stammdaten!B102 -> 13075111 | C107: =Stammdaten!D102 -> Pudagla | D107: =VLOOKUP($B107,FAG!$B$4:$EZ$159,(150+D$1),0) -> 87459.56 | E107: =VLOOKUP($B107,FAG!$B$4:$EZ$159,(150+E$1),0) -> 122470.54 | F107: =VLOOKUP($B107,FAG!$B$4:$EZ$159,(150+F$1),0) -> 98493.5 | G107: =VLOOKUP($B107,FAG!$B$4:$EZ$159,(150+G$1),0) -> 97478.22 | H107: =VLOOKUP($B107,FAG!$B$4:$EZ$159,(150+H$1),0) -> 195907.49 | I107: =FAG!BM103 -> 215119.32 | J107: =FAG!BN103 -> 179405.88 | K107: =FAG!BO103 -> 100139.8 | L107: =FAG!BP103 -> 132038.06 | M107: 31898.26
B108: =Stammdaten!B103 -> 13075113 | C108: =Stammdaten!D103 -> Ramin | D108: =VLOOKUP($B108,FAG!$B$4:$EZ$159,(150+D$1),0) -> 256756.68 | E108: =VLOOKUP($B108,FAG!$B$4:$EZ$159,(150+E$1),0) -> 157516.09 | F108: =VLOOKUP($B108,FAG!$B$4:$EZ$159,(150+F$1),0) -> 213481.62 | G108: =VLOOKUP($B108,FAG!$B$4:$EZ$159,(150+G$1),0) -> 201537.65 | H108: =VLOOKUP($B108,FAG!$B$4:$EZ$159,(150+H$1),0) -> 236411.46 | I108: =FAG!BM104 -> 345771.06 | J108: =FAG!BN104 -> 311987.56 | K108: =FAG!BO104 -> 273486.18 | L108: =FAG!BP104 -> 441009.59 | M108: 167523.41
B109: =Stammdaten!B104 -> 13075114 | C109: =Stammdaten!D104 -> Rankwitz | D109: =VLOOKUP($B109,FAG!$B$4:$EZ$159,(150+D$1),0) -> 201583.43 | E109: =VLOOKUP($B109,FAG!$B$4:$EZ$159,(150+E$1),0) -> 224169.95 | F109: =VLOOKUP($B109,FAG!$B$4:$EZ$159,(150+F$1),0) -> 209264.52 | G109: =VLOOKUP($B109,FAG!$B$4:$EZ$159,(150+G$1),0) -> 223054.93 | H109: =VLOOKUP($B109,FAG!$B$4:$EZ$159,(150+H$1),0) -> 237219.21 | I109: =FAG!BM105 -> 339696.15 | J109: =FAG!BN105 -> 322559.08 | K109: =FAG!BO105 -> 321547.67 | L109: =FAG!BP105 -> 255977.88 | M109: -65569.79
B110: =Stammdaten!B105 -> 13075115 | C110: =Stammdaten!D105 -> Rollwitz | D110: =VLOOKUP($B110,FAG!$B$4:$EZ$159,(150+D$1),0) -> 199067.89 | E110: =VLOOKUP($B110,FAG!$B$4:$EZ$159,(150+E$1),0) -> 295899.1 | F110: =VLOOKUP($B110,FAG!$B$4:$EZ$159,(150+F$1),0) -> 279983.67 | G110: =VLOOKUP($B110,FAG!$B$4:$EZ$159,(150+G$1),0) -> 250389.27 | H110: =VLOOKUP($B110,FAG!$B$4:$EZ$159,(150+H$1),0) -> 191530.52 | I110: =FAG!BM106 -> 364170.42 | J110: =FAG!BN106 -> 215847.58 | K110: =FAG!BO106 -> 305016.84 | L110: =FAG!BP106 -> 307283.74 | M110: 2266.9
B111: =Stammdaten!B106 -> 13075116 | C111: =Stammdaten!D106 -> Rossin | D111: =VLOOKUP($B111,FAG!$B$4:$EZ$159,(150+D$1),0) -> 68471.47 | E111: =VLOOKUP($B111,FAG!$B$4:$EZ$159,(150+E$1),0) -> 66497.86 | F111: =VLOOKUP($B111,FAG!$B$4:$EZ$159,(150+F$1),0) -> 77457.6 | G111: =VLOOKUP($B111,FAG!$B$4:$EZ$159,(150+G$1),0) -> 82397.76 | H111: =VLOOKUP($B111,FAG!$B$4:$EZ$159,(150+H$1),0) -> 83947.16 | I111: =FAG!BM107 -> 118558.01 | J111: =FAG!BN107 -> 113974.19 | K111: =FAG!BO107 -> 129311.51 | L111: =FAG!BP107 -> 125705.37 | M111: -3606.14
B112: =Stammdaten!B107 -> 13075117 | C112: =Stammdaten!D107 -> Rossow | D112: =VLOOKUP($B112,FAG!$B$4:$EZ$159,(150+D$1),0) -> 175297.11 | E112: =VLOOKUP($B112,FAG!$B$4:$EZ$159,(150+E$1),0) -> 191162.32 | F112: =VLOOKUP($B112,FAG!$B$4:$EZ$159,(150+F$1),0) -> 178436.73 | G112: =VLOOKUP($B112,FAG!$B$4:$EZ$159,(150+G$1),0) -> 192723.73 | H112: =VLOOKUP($B112,FAG!$B$4:$EZ$159,(150+H$1),0) -> 210833.44 | I112: =FAG!BM108 -> 255683.99 | J112: =FAG!BN108 -> 261265.19 | K112: =FAG!BO108 -> 290136.74 | L112: =FAG!BP108 -> 300596.34 | M112: 10459.6
B113: =Stammdaten!B108 -> 13075118 | C113: =Stammdaten!D108 -> Rothemühl | D113: =VLOOKUP($B113,FAG!$B$4:$EZ$159,(150+D$1),0) -> 105791.68 | E113: =VLOOKUP($B113,FAG!$B$4:$EZ$159,(150+E$1),0) -> 92393.31 | F113: =VLOOKUP($B113,FAG!$B$4:$EZ$159,(150+F$1),0) -> 107508.07 | G113: =VLOOKUP($B113,FAG!$B$4:$EZ$159,(150+G$1),0) -> 106494.32 | H113: =VLOOKUP($B113,FAG!$B$4:$EZ$159,(150+H$1),0) -> 118266.05 | I113: =FAG!BM109 -> 115717.03 | J113: =FAG!BN109 -> 0 | K113: =FAG!BO109 -> 121251.77 | L113: =FAG!BP109 -> 89220.6 | M113: -32031.17
B114: =Stammdaten!B109 -> 13075119 | C114: =Stammdaten!D109 -> Rothenklempenow | D114: =VLOOKUP($B114,FAG!$B$4:$EZ$159,(150+D$1),0) -> 217660.33 | E114: =VLOOKUP($B114,FAG!$B$4:$EZ$159,(150+E$1),0) -> 208726.89 | F114: =VLOOKUP($B114,FAG!$B$4:$EZ$159,(150+F$1),0) -> 209392.45 | G114: =VLOOKUP($B114,FAG!$B$4:$EZ$159,(150+G$1),0) -> 231365.93 | H114: =VLOOKUP($B114,FAG!$B$4:$EZ$159,(150+H$1),0) -> 272302.09 | I114: =FAG!BM110 -> 371918.94 | J114: =FAG!BN110 -> 328369.64 | K114: =FAG!BO110 -> 330766.24 | L114: =FAG!BP110 -> 421044.62 | M114: 90278.38
B115: =Stammdaten!B110 -> 13075120 | C115: =Stammdaten!D110 -> Rubenow | D115: =VLOOKUP($B115,FAG!$B$4:$EZ$159,(150+D$1),0) -> 0 | E115: =VLOOKUP($B115,FAG!$B$4:$EZ$159,(150+E$1),0) -> 0 | F115: =VLOOKUP($B115,FAG!$B$4:$EZ$159,(150+F$1),0) -> 0 | G115: =VLOOKUP($B115,FAG!$B$4:$EZ$159,(150+G$1),0) -> 0 | H115: =VLOOKUP($B115,FAG!$B$4:$EZ$159,(150+H$1),0) -> 1926779.68 | I115: =FAG!BM111 -> 0 | J115: =FAG!BN111 -> 0 | K115: =FAG!BO111 -> 0 | L115: =FAG!BP111 -> 0 | M115: 0
B116: =Stammdaten!B111 -> 13075121 | C116: =Stammdaten!D111 -> Rubkow | D116: =VLOOKUP($B116,FAG!$B$4:$EZ$159,(150+D$1),0) -> 248230.36 | E116: =VLOOKUP($B116,FAG!$B$4:$EZ$159,(150+E$1),0) -> 213813 | F116: =VLOOKUP($B116,FAG!$B$4:$EZ$159,(150+F$1),0) -> 247187.99 | G116: =VLOOKUP($B116,FAG!$B$4:$EZ$159,(150+G$1),0) -> 245920.93 | H116: =VLOOKUP($B116,FAG!$B$4:$EZ$159,(150+H$1),0) -> 276826.23 | I116: =FAG!BM112 -> 290621.61 | J116: =FAG!BN112 -> 320887.94 | K116: =FAG!BO112 -> 298737.32 | L116: =FAG!BP112 -> 338844.15 | M116: 40106.83
B117: =Stammdaten!B112 -> 13075122 | C117: =Stammdaten!D112 -> Sarnow | D117: =VLOOKUP($B117,FAG!$B$4:$EZ$159,(150+D$1),0) -> 105017.14 | E117: =VLOOKUP($B117,FAG!$B$4:$EZ$159,(150+E$1),0) -> 130329.95 | F117: =VLOOKUP($B117,FAG!$B$4:$EZ$159,(150+F$1),0) -> 117431.17 | G117: =VLOOKUP($B117,FAG!$B$4:$EZ$159,(150+G$1),0) -> 161377.64 | H117: =VLOOKUP($B117,FAG!$B$4:$EZ$159,(150+H$1),0) -> 0 | I117: =FAG!BM113 -> 193195.94 | J117: =FAG!BN113 -> 170847.91 | K117: =FAG!BO113 -> 166757.96 | L117: =FAG!BP113 -> 216306.41 | M117: 49548.45
B118: =Stammdaten!B113 -> 13075123 | C118: =Stammdaten!D113 -> Sassen-Trantow | D118: =VLOOKUP($B118,FAG!$B$4:$EZ$159,(150+D$1),0) -> 309702.8 | E118: =VLOOKUP($B118,FAG!$B$4:$EZ$159,(150+E$1),0) -> 204837.91 | F118: =VLOOKUP($B118,FAG!$B$4:$EZ$159,(150+F$1),0) -> 167088.67 | G118: =VLOOKUP($B118,FAG!$B$4:$EZ$159,(150+G$1),0) -> 200282.01 | H118: =VLOOKUP($B118,FAG!$B$4:$EZ$159,(150+H$1),0) -> 164136.16 | I118: =FAG!BM114 -> 280707.95 | J118: =FAG!BN114 -> 246608.45 | K118: =FAG!BO114 -> 249890.01 | L118: =FAG!BP114 -> 61007.21 | M118: -188882.8
B119: =Stammdaten!B114 -> 13075124 | C119: =Stammdaten!D114 -> Sauzin | D119: =VLOOKUP($B119,FAG!$B$4:$EZ$159,(150+D$1),0) -> 112149.75 | E119: =VLOOKUP($B119,FAG!$B$4:$EZ$159,(150+E$1),0) -> 130323.35 | F119: =VLOOKUP($B119,FAG!$B$4:$EZ$159,(150+F$1),0) -> 130446.67 | G119: =VLOOKUP($B119,FAG!$B$4:$EZ$159,(150+G$1),0) -> 144655.46 | H119: =VLOOKUP($B119,FAG!$B$4:$EZ$159,(150+H$1),0) -> 141740.54 | I119: =FAG!BM115 -> 204786.75 | J119: =FAG!BN115 -> 190765.87 | K119: =FAG!BO115 -> 204071.61 | L119: =FAG!BP115 -> 207111.52 | M119: 3039.91
B120: =Stammdaten!B115 -> 13075125 | C120: =Stammdaten!D115 -> Schmatzin | D120: =VLOOKUP($B120,FAG!$B$4:$EZ$159,(150+D$1),0) -> 106203.94 | E120: =VLOOKUP($B120,FAG!$B$4:$EZ$159,(150+E$1),0) -> 104526 | F120: =VLOOKUP($B120,FAG!$B$4:$EZ$159,(150+F$1),0) -> 105106.42 | G120: =VLOOKUP($B120,FAG!$B$4:$EZ$159,(150+G$1),0) -> 109215.97 | H120: =VLOOKUP($B120,FAG!$B$4:$EZ$159,(150+H$1),0) -> 106876.76 | I120: =FAG!BM116 -> 152971.14 | J120: =FAG!BN116 -> 167651 | K120: =FAG!BO116 -> 170235.98 | L120: =FAG!BP116 -> 190714.6 | M120: 20478.62
B121: =Stammdaten!B116 -> 13075126 | C121: =Stammdaten!D116 -> Schönwalde | D121: =VLOOKUP($B121,FAG!$B$4:$EZ$159,(150+D$1),0) -> 180007.8 | E121: =VLOOKUP($B121,FAG!$B$4:$EZ$159,(150+E$1),0) -> 179533.93 | F121: =VLOOKUP($B121,FAG!$B$4:$EZ$159,(150+F$1),0) -> 173654.46 | G121: =VLOOKUP($B121,FAG!$B$4:$EZ$159,(150+G$1),0) -> 173514.7 | H121: =VLOOKUP($B121,FAG!$B$4:$EZ$159,(150+H$1),0) -> 195333.57 | I121: =FAG!BM117 -> 272623.06 | J121: =FAG!BN117 -> 280549.97 | K121: =FAG!BO117 -> 264367.83 | L121: =FAG!BP117 -> 291974.92 | M121: 27607.09
B122: =Stammdaten!B117 -> 13075127 | C122: =Stammdaten!D117 -> Spantekow | D122: =VLOOKUP($B122,FAG!$B$4:$EZ$159,(150+D$1),0) -> 365794.48 | E122: =VLOOKUP($B122,FAG!$B$4:$EZ$159,(150+E$1),0) -> 351695.58 | F122: =VLOOKUP($B122,FAG!$B$4:$EZ$159,(150+F$1),0) -> 336168.05 | G122: =VLOOKUP($B122,FAG!$B$4:$EZ$159,(150+G$1),0) -> 403348.13 | H122: =VLOOKUP($B122,FAG!$B$4:$EZ$159,(150+H$1),0) -> 452580.9 | I122: =FAG!BM118 -> 572975.69 | J122: =FAG!BN118 -> 104017.51 | K122: =FAG!BO118 -> 433259.05 | L122: =FAG!BP118 -> 506102.34 | M122: 72843.29
B123: =Stammdaten!B118 -> 13075128 | C123: =Stammdaten!D118 -> Stolpe an der Peene | D123: =VLOOKUP($B123,FAG!$B$4:$EZ$159,(150+D$1),0) -> 910685.16 | E123: =VLOOKUP($B123,FAG!$B$4:$EZ$159,(150+E$1),0) -> 125526.01 | F123: =VLOOKUP($B123,FAG!$B$4:$EZ$159,(150+F$1),0) -> 0 | G123: =VLOOKUP($B123,FAG!$B$4:$EZ$159,(150+G$1),0) -> 58656.91 | H123: =VLOOKUP($B123,FAG!$B$4:$EZ$159,(150+H$1),0) -> 109152.86 | I123: =FAG!BM119 -> 147347.29 | J123: =FAG!BN119 -> 121118.37 | K123: =FAG!BO119 -> 133962.77 | L123: =FAG!BP119 -> 163259.05 | M123: 29296.28
B124: =Stammdaten!B119 -> 13075129 | C124: =Stammdaten!D119 -> Stolpe auf Usedom | D124: =VLOOKUP($B124,FAG!$B$4:$EZ$159,(150+D$1),0) -> 125430.34 | E124: =VLOOKUP($B124,FAG!$B$4:$EZ$159,(150+E$1),0) -> 122700.69 | F124: =VLOOKUP($B124,FAG!$B$4:$EZ$159,(150+F$1),0) -> 124140.97 | G124: =VLOOKUP($B124,FAG!$B$4:$EZ$159,(150+G$1),0) -> 149484.29 | H124: =VLOOKUP($B124,FAG!$B$4:$EZ$159,(150+H$1),0) -> 138747.51 | I124: =FAG!BM120 -> 149589.59 | J124: =FAG!BN120 -> 138790.05 | K124: =FAG!BO120 -> 153234.76 | L124: =FAG!BP120 -> 200262.65 | M124: 47027.89
B125: =Stammdaten!B120 -> 13075130 | C125: =Stammdaten!D120 -> Strasburg (Uckermark), Stadt | D125: =VLOOKUP($B125,FAG!$B$4:$EZ$159,(150+D$1),0) -> 1683788.24 | E125: =VLOOKUP($B125,FAG!$B$4:$EZ$159,(150+E$1),0) -> 1580370.9 | F125: =VLOOKUP($B125,FAG!$B$4:$EZ$159,(150+F$1),0) -> 1553709.53 | G125: =VLOOKUP($B125,FAG!$B$4:$EZ$159,(150+G$1),0) -> 1839855.37 | H125: =VLOOKUP($B125,FAG!$B$4:$EZ$159,(150+H$1),0) -> 1911111.12 | I125: =FAG!BM121 -> 2677467.33 | J125: =FAG!BN121 -> 2237817.29 | K125: =FAG!BO121 -> 2364419.81 | L125: =FAG!BP121 -> 2680983.4 | M125: 316563.59
B126: =Stammdaten!B121 -> 13075131 | C126: =Stammdaten!D121 -> Torgelow, Stadt | D126: =VLOOKUP($B126,FAG!$B$4:$EZ$159,(150+D$1),0) -> 2670479.43 | E126: =VLOOKUP($B126,FAG!$B$4:$EZ$159,(150+E$1),0) -> 2999388.88 | F126: =VLOOKUP($B126,FAG!$B$4:$EZ$159,(150+F$1),0) -> 2791980.63 | G126: =VLOOKUP($B126,FAG!$B$4:$EZ$159,(150+G$1),0) -> 2989695.58 | H126: =VLOOKUP($B126,FAG!$B$4:$EZ$159,(150+H$1),0) -> 3153174.51 | I126: =FAG!BM122 -> 2777462.87 | J126: =FAG!BN122 -> 3726755.92 | K126: =FAG!BO122 -> 3474231.09 | L126: =FAG!BP122 -> 4544891.28 | M126: 1070660.19
B127: =Stammdaten!B122 -> 13075133 | C127: =Stammdaten!D122 -> Trassenheide | D127: =VLOOKUP($B127,FAG!$B$4:$EZ$159,(150+D$1),0) -> 50766.58 | E127: =VLOOKUP($B127,FAG!$B$4:$EZ$159,(150+E$1),0) -> 0 | F127: =VLOOKUP($B127,FAG!$B$4:$EZ$159,(150+F$1),0) -> 14189.18 | G127: =VLOOKUP($B127,FAG!$B$4:$EZ$159,(150+G$1),0) -> 0 | H127: =VLOOKUP($B127,FAG!$B$4:$EZ$159,(150+H$1),0) -> 0 | I127: =FAG!BM123 -> 0 | J127: =FAG!BN123 -> 0 | K127: =FAG!BO123 -> 0 | L127: =FAG!BP123 -> 0 | M127: 0
B128: =Stammdaten!B123 -> 13075134 | C128: =Stammdaten!D123 -> Tutow | D128: =VLOOKUP($B128,FAG!$B$4:$EZ$159,(150+D$1),0) -> 384094.06 | E128: =VLOOKUP($B128,FAG!$B$4:$EZ$159,(150+E$1),0) -> 309261.65 | F128: =VLOOKUP($B128,FAG!$B$4:$EZ$159,(150+F$1),0) -> 385006.71 | G128: =VLOOKUP($B128,FAG!$B$4:$EZ$159,(150+G$1),0) -> 376427.63 | H128: =VLOOKUP($B128,FAG!$B$4:$EZ$159,(150+H$1),0) -> 302242.56 | I128: =FAG!BM124 -> 631920.78 | J128: =FAG!BN124 -> 492551.93 | K128: =FAG!BO124 -> 165686.12 | L128: =FAG!BP124 -> 296805.81 | M128: 131119.69
B129: =Stammdaten!B124 -> 13075135 | C129: =Stammdaten!D124 -> Ückeritz | D129: =VLOOKUP($B129,FAG!$B$4:$EZ$159,(150+D$1),0) -> 187596.65 | E129: =VLOOKUP($B129,FAG!$B$4:$EZ$159,(150+E$1),0) -> 231343.88 | F129: =VLOOKUP($B129,FAG!$B$4:$EZ$159,(150+F$1),0) -> 197186.05 | G129: =VLOOKUP($B129,FAG!$B$4:$EZ$159,(150+G$1),0) -> 185129.53 | H129: =VLOOKUP($B129,FAG!$B$4:$EZ$159,(150+H$1),0) -> 229270.4 | I129: =FAG!BM125 -> 221452.44 | J129: =FAG!BN125 -> 190779.75 | K129: =FAG!BO125 -> 190080 | L129: =FAG!BP125 -> 151031.51 | M129: -39048.49
B130: =Stammdaten!B125 -> 13075136 | C130: =Stammdaten!D125 -> Ueckermünde, Stadt | D130: =VLOOKUP($B130,FAG!$B$4:$EZ$159,(150+D$1),0) -> 2425568.24 | E130: =VLOOKUP($B130,FAG!$B$4:$EZ$159,(150+E$1),0) -> 2576483.21 | F130: =VLOOKUP($B130,FAG!$B$4:$EZ$159,(150+F$1),0) -> 2570113.48 | G130: =VLOOKUP($B130,FAG!$B$4:$EZ$159,(150+G$1),0) -> 2841487.57 | H130: =VLOOKUP($B130,FAG!$B$4:$EZ$159,(150+H$1),0) -> 2407925.95 | I130: =FAG!BM126 -> 5144733.65 | J130: =FAG!BN126 -> 5549519.02 | K130: =FAG!BO126 -> 5204111.07 | L130: =FAG!BP126 -> 5151107.68 | M130: -53003.39
B131: =Stammdaten!B126 -> 13075137 | C131: =Stammdaten!D126 -> Usedom, Stadt | D131: =VLOOKUP($B131,FAG!$B$4:$EZ$159,(150+D$1),0) -> 637984.1 | E131: =VLOOKUP($B131,FAG!$B$4:$EZ$159,(150+E$1),0) -> 726809.87 | F131: =VLOOKUP($B131,FAG!$B$4:$EZ$159,(150+F$1),0) -> 667653.23 | G131: =VLOOKUP($B131,FAG!$B$4:$EZ$159,(150+G$1),0) -> 729433.21 | H131: =VLOOKUP($B131,FAG!$B$4:$EZ$159,(150+H$1),0) -> 747437.3 | I131: =FAG!BM127 -> 953012.78 | J131: =FAG!BN127 -> 935015.2 | K131: =FAG!BO127 -> 934091.43 | L131: =FAG!BP127 -> 966403.4 | M131: 32311.97
B132: =Stammdaten!B127 -> 13075138 | C132: =Stammdaten!D127 -> Viereck | D132: =VLOOKUP($B132,FAG!$B$4:$EZ$159,(150+D$1),0) -> 318743.66 | E132: =VLOOKUP($B132,FAG!$B$4:$EZ$159,(150+E$1),0) -> 317059.47 | F132: =VLOOKUP($B132,FAG!$B$4:$EZ$159,(150+F$1),0) -> 294419.36 | G132: =VLOOKUP($B132,FAG!$B$4:$EZ$159,(150+G$1),0) -> 348350.55 | H132: =VLOOKUP($B132,FAG!$B$4:$EZ$159,(150+H$1),0) -> 391063.24 | I132: =FAG!BM128 -> 530427.76 | J132: =FAG!BN128 -> 478442.51 | K132: =FAG!BO128 -> 557046.9 | L132: =FAG!BP128 -> 601208.38 | M132: 44161.48
B133: =Stammdaten!B128 -> 13075139 | C133: =Stammdaten!D128 -> Vogelsang-Warsin | D133: =VLOOKUP($B133,FAG!$B$4:$EZ$159,(150+D$1),0) -> 128852.02 | E133: =VLOOKUP($B133,FAG!$B$4:$EZ$159,(150+E$1),0) -> 133487.82 | F133: =VLOOKUP($B133,FAG!$B$4:$EZ$159,(150+F$1),0) -> 134724.72 | G133: =VLOOKUP($B133,FAG!$B$4:$EZ$159,(150+G$1),0) -> 148524.04 | H133: =VLOOKUP($B133,FAG!$B$4:$EZ$159,(150+H$1),0) -> 159676.11 | I133: =FAG!BM129 -> 196889.92 | J133: =FAG!BN129 -> 214579.14 | K133: =FAG!BO129 -> 221511.58 | L133: =FAG!BP129 -> 253437.2 | M133: 31925.62
B134: =Stammdaten!B129 -> 13075140 | C134: =Stammdaten!D129 -> Völschow | D134: =VLOOKUP($B134,FAG!$B$4:$EZ$159,(150+D$1),0) -> 156924.39 | E134: =VLOOKUP($B134,FAG!$B$4:$EZ$159,(150+E$1),0) -> 126595.78 | F134: =VLOOKUP($B134,FAG!$B$4:$EZ$159,(150+F$1),0) -> 116758.43 | G134: =VLOOKUP($B134,FAG!$B$4:$EZ$159,(150+G$1),0) -> 95711.7 | H134: =VLOOKUP($B134,FAG!$B$4:$EZ$159,(150+H$1),0) -> 128915.85 | I134: =FAG!BM130 -> 206948.95 | J134: =FAG!BN130 -> 240924.14 | K134: =FAG!BO130 -> 41800.58 | L134: =FAG!BP130 -> 0 | M134: -41800.58
B135: =Stammdaten!B130 -> 13075141 | C135: =Stammdaten!D130 -> Wackerow | D135: =VLOOKUP($B135,FAG!$B$4:$EZ$159,(150+D$1),0) -> 319692.32 | E135: =VLOOKUP($B135,FAG!$B$4:$EZ$159,(150+E$1),0) -> 327104.43 | F135: =VLOOKUP($B135,FAG!$B$4:$EZ$159,(150+F$1),0) -> 304464.83 | G135: =VLOOKUP($B135,FAG!$B$4:$EZ$159,(150+G$1),0) -> 352001.23 | H135: =VLOOKUP($B135,FAG!$B$4:$EZ$159,(150+H$1),0) -> 385650.58 | I135: =FAG!BM131 -> 705127.1 | J135: =FAG!BN131 -> 766083.07 | K135: =FAG!BO131 -> 882062.14 | L135: =FAG!BP131 -> 951048.33 | M135: 68986.19
B136: =Stammdaten!B131 -> 13075142 | C136: =Stammdaten!D131 -> Weitenhagen | D136: =VLOOKUP($B136,FAG!$B$4:$EZ$159,(150+D$1),0) -> 216177.48 | E136: =VLOOKUP($B136,FAG!$B$4:$EZ$159,(150+E$1),0) -> 128402.35 | F136: =VLOOKUP($B136,FAG!$B$4:$EZ$159,(150+F$1),0) -> 38395.4 | G136: =VLOOKUP($B136,FAG!$B$4:$EZ$159,(150+G$1),0) -> 145955.12 | H136: =VLOOKUP($B136,FAG!$B$4:$EZ$159,(150+H$1),0) -> 0 | I136: =FAG!BM132 -> 652721.94 | J136: =FAG!BN132 -> 221109.97 | K136: =FAG!BO132 -> 396040.94 | L136: =FAG!BP132 -> 444197.47 | M136: 48156.53
B137: =Stammdaten!B132 -> 13075143 | C137: =Stammdaten!D132 -> Wilhelmsburg | D137: =VLOOKUP($B137,FAG!$B$4:$EZ$159,(150+D$1),0) -> 200152.01 | E137: =VLOOKUP($B137,FAG!$B$4:$EZ$159,(150+E$1),0) -> 126008.96 | F137: =VLOOKUP($B137,FAG!$B$4:$EZ$159,(150+F$1),0) -> 111651.98 | G137: =VLOOKUP($B137,FAG!$B$4:$EZ$159,(150+G$1),0) -> 87178.27 | H137: =VLOOKUP($B137,FAG!$B$4:$EZ$159,(150+H$1),0) -> 226126.93 | I137: =FAG!BM133 -> 353692.57 | J137: =FAG!BN133 -> 320696.11 | K137: =FAG!BO133 -> 325906.83 | L137: =FAG!BP133 -> 375658.77 | M137: 49751.94
B138: =Stammdaten!B133 -> 13075144 | C138: =Stammdaten!D133 -> Wolgast, Stadt | D138: =VLOOKUP($B138,FAG!$B$4:$EZ$159,(150+D$1),0) -> 3192197.44 | E138: =VLOOKUP($B138,FAG!$B$4:$EZ$159,(150+E$1),0) -> 3201419.02 | F138: =VLOOKUP($B138,FAG!$B$4:$EZ$159,(150+F$1),0) -> 2892664.77 | G138: =VLOOKUP($B138,FAG!$B$4:$EZ$159,(150+G$1),0) -> 3176253.76 | H138: =VLOOKUP($B138,FAG!$B$4:$EZ$159,(150+H$1),0) -> 2582705.81 | I138: =FAG!BM134 -> 4865830.46 | J138: =FAG!BN134 -> 6493375.36 | K138: =FAG!BO134 -> 6326149.86 | L138: =FAG!BP134 -> 4688586.41 | M138: =L138-K138 -> -1637563.45
B139: =Stammdaten!B134 -> 13075145 | C139: =Stammdaten!D134 -> Wrangelsburg | D139: =VLOOKUP($B139,FAG!$B$4:$EZ$159,(150+D$1),0) -> 77687.86 | E139: =VLOOKUP($B139,FAG!$B$4:$EZ$159,(150+E$1),0) -> 83359.66 | F139: =VLOOKUP($B139,FAG!$B$4:$EZ$159,(150+F$1),0) -> 72812.11 | G139: =VLOOKUP($B139,FAG!$B$4:$EZ$159,(150+G$1),0) -> 80462.41 | H139: =VLOOKUP($B139,FAG!$B$4:$EZ$159,(150+H$1),0) -> 92133.09 | I139: =FAG!BM135 -> 138370.74 | J139: =FAG!BN135 -> 152038.02 | K139: =FAG!BO135 -> 143664.27 | L139: =FAG!BP135 -> 164722.36 | M139: 21058.09
B140: =Stammdaten!B135 -> 13075146 | C140: =Stammdaten!D135 -> Wusterhusen | D140: =VLOOKUP($B140,FAG!$B$4:$EZ$159,(150+D$1),0) -> 358139.33 | E140: =VLOOKUP($B140,FAG!$B$4:$EZ$159,(150+E$1),0) -> 252648.95 | F140: =VLOOKUP($B140,FAG!$B$4:$EZ$159,(150+F$1),0) -> 269702.88 | G140: =VLOOKUP($B140,FAG!$B$4:$EZ$159,(150+G$1),0) -> 307958.26 | H140: =VLOOKUP($B140,FAG!$B$4:$EZ$159,(150+H$1),0) -> 125775.16 | I140: =FAG!BM136 -> 424736.54 | J140: =FAG!BN136 -> 245562.54 | K140: =FAG!BO136 -> 274544.32 | L140: =FAG!BP136 -> 370838.49 | M140: 96294.17
B141: =Stammdaten!B136 -> 13075147 | C141: =Stammdaten!D136 -> Zemitz | D141: =VLOOKUP($B141,FAG!$B$4:$EZ$159,(150+D$1),0) -> 250612.46 | E141: =VLOOKUP($B141,FAG!$B$4:$EZ$159,(150+E$1),0) -> 261856.83 | F141: =VLOOKUP($B141,FAG!$B$4:$EZ$159,(150+F$1),0) -> 240809.36 | G141: =VLOOKUP($B141,FAG!$B$4:$EZ$159,(150+G$1),0) -> 268693.23 | H141: =VLOOKUP($B141,FAG!$B$4:$EZ$159,(150+H$1),0) -> 312021.15 | I141: =FAG!BM137 -> 392189.86 | J141: =FAG!BN137 -> 388535.7 | K141: =FAG!BO137 -> 426347.6 | L141: =FAG!BP137 -> 460627.43 | M141: 34279.83
B142: =Stammdaten!B137 -> 13075148 | C142: =Stammdaten!D137 -> Zempin | D142: =VLOOKUP($B142,FAG!$B$4:$EZ$159,(150+D$1),0) -> 239587.62 | E142: =VLOOKUP($B142,FAG!$B$4:$EZ$159,(150+E$1),0) -> 222804.81 | F142: =VLOOKUP($B142,FAG!$B$4:$EZ$159,(150+F$1),0) -> 223221.59 | G142: =VLOOKUP($B142,FAG!$B$4:$EZ$159,(150+G$1),0) -> 235255.84 | H142: =VLOOKUP($B142,FAG!$B$4:$EZ$159,(150+H$1),0) -> 247039.49 | I142: =FAG!BM138 -> 338111.33 | J142: =FAG!BN138 -> 383503.34 | K142: =FAG!BO138 -> 456548.22 | L142: =FAG!BP138 -> 446166.8 | M142: -10381.42
B143: =Stammdaten!B138 -> 13075149 | C143: =Stammdaten!D138 -> Zerrenthin | D143: =VLOOKUP($B143,FAG!$B$4:$EZ$159,(150+D$1),0) -> 177432.33 | E143: =VLOOKUP($B143,FAG!$B$4:$EZ$159,(150+E$1),0) -> 180010.56 | F143: =VLOOKUP($B143,FAG!$B$4:$EZ$159,(150+F$1),0) -> 193586.15 | G143: =VLOOKUP($B143,FAG!$B$4:$EZ$159,(150+G$1),0) -> 200542.73 | H143: =VLOOKUP($B143,FAG!$B$4:$EZ$159,(150+H$1),0) -> 224722.96 | I143: =FAG!BM139 -> 309235.34 | J143: =FAG!BN139 -> 293792.99 | K143: =FAG!BO139 -> 322336.23 | L143: =FAG!BP139 -> 336096.89 | M143: 13760.66
B144: =Stammdaten!B139 -> 13075150 | C144: =Stammdaten!D139 -> Ziethen | D144: =VLOOKUP($B144,FAG!$B$4:$EZ$159,(150+D$1),0) -> 150226.23 | E144: =VLOOKUP($B144,FAG!$B$4:$EZ$159,(150+E$1),0) -> 162298.46 | F144: =VLOOKUP($B144,FAG!$B$4:$EZ$159,(150+F$1),0) -> 166922.43 | G144: =VLOOKUP($B144,FAG!$B$4:$EZ$159,(150+G$1),0) -> 179141.7 | H144: =VLOOKUP($B144,FAG!$B$4:$EZ$159,(150+H$1),0) -> 186913.24 | I144: =FAG!BM140 -> 255830.47 | J144: =FAG!BN140 -> 241287.2 | K144: =FAG!BO140 -> 214015.05 | L144: =FAG!BP140 -> 258506.17 | M144: 44491.12
B145: =Stammdaten!B140 -> 13075151 | C145: =Stammdaten!D140 -> Zinnowitz | D145: =VLOOKUP($B145,FAG!$B$4:$EZ$159,(150+D$1),0) -> 656823.15 | E145: =VLOOKUP($B145,FAG!$B$4:$EZ$159,(150+E$1),0) -> 877075.49 | F145: =VLOOKUP($B145,FAG!$B$4:$EZ$159,(150+F$1),0) -> 750778.34 | G145: =VLOOKUP($B145,FAG!$B$4:$EZ$159,(150+G$1),0) -> 606079.38 | H145: =VLOOKUP($B145,FAG!$B$4:$EZ$159,(150+H$1),0) -> 511514.09 | I145: =FAG!BM141 -> 674890.57 | J145: =FAG!BN141 -> 941218.43 | K145: =FAG!BO141 -> 865751.11 | L145: =FAG!BP141 -> 797414.35 | M145: -68336.76
B146: =Stammdaten!B141 -> 13075152 | C146: =Stammdaten!D141 -> Zirchow | D146: =VLOOKUP($B146,FAG!$B$4:$EZ$159,(150+D$1),0) -> 237724.88 | E146: =VLOOKUP($B146,FAG!$B$4:$EZ$159,(150+E$1),0) -> 272439.14 | F146: =VLOOKUP($B146,FAG!$B$4:$EZ$159,(150+F$1),0) -> 147819.41 | G146: =VLOOKUP($B146,FAG!$B$4:$EZ$159,(150+G$1),0) -> 129327.86 | H146: =VLOOKUP($B146,FAG!$B$4:$EZ$159,(150+H$1),0) -> 260700.01 | I146: =FAG!BM142 -> 225882.69 | J146: =FAG!BN142 -> 122561.68 | K146: =FAG!BO142 -> 280605 | L146: =FAG!BP142 -> 350785.09 | M146: 70180.09
B147: =Stammdaten!B142 -> 13075154 | C147: =Stammdaten!D142 -> Züssow | D147: =VLOOKUP($B147,FAG!$B$4:$EZ$159,(150+D$1),0) -> 236894.92 | E147: =VLOOKUP($B147,FAG!$B$4:$EZ$159,(150+E$1),0) -> 75737.87 | F147: =VLOOKUP($B147,FAG!$B$4:$EZ$159,(150+F$1),0) -> 347990.75 | G147: =VLOOKUP($B147,FAG!$B$4:$EZ$159,(150+G$1),0) -> 647943.04 | H147: =VLOOKUP($B147,FAG!$B$4:$EZ$159,(150+H$1),0) -> 406525.89 | I147: =FAG!BM143 -> 544725.57 | J147: =FAG!BN143 -> 573264.61 | K147: =FAG!BO143 -> 602595.58 | L147: =FAG!BP143 -> 732940.52 | M147: 130344.94
B148: =Stammdaten!B143 -> 13075155 | C148: =Stammdaten!D143 -> Neetzow-Liepen | D148: =VLOOKUP($B148,FAG!$B$4:$EZ$159,(150+D$1),0) -> 324634.77 | E148: =VLOOKUP($B148,FAG!$B$4:$EZ$159,(150+E$1),0) -> 346854.68 | F148: =VLOOKUP($B148,FAG!$B$4:$EZ$159,(150+F$1),0) -> 334484.37 | G148: =VLOOKUP($B148,FAG!$B$4:$EZ$159,(150+G$1),0) -> 0 | H148: =VLOOKUP($B148,FAG!$B$4:$EZ$159,(150+H$1),0) -> 229925.58 | I148: =FAG!BM144 -> 381270.41 | J148: =FAG!BN144 -> 184819.54 | K148: =FAG!BO144 -> 291869.95 | L148: =FAG!BP144 -> 80512.46 | M148: -211357.49
B149: =Stammdaten!B144 -> 13075156 | C149: =Stammdaten!D144 -> Karlsburg | D149: =VLOOKUP($B149,FAG!$B$4:$EZ$159,(150+D$1),0) -> 0 | E149: =VLOOKUP($B149,FAG!$B$4:$EZ$159,(150+E$1),0) -> 0 | F149: =VLOOKUP($B149,FAG!$B$4:$EZ$159,(150+F$1),0) -> 0 | G149: =VLOOKUP($B149,FAG!$B$4:$EZ$159,(150+G$1),0) -> 0 | H149: =VLOOKUP($B149,FAG!$B$4:$EZ$159,(150+H$1),0) -> 0 | I149: =FAG!BM145 -> 733934.4 | J149: =FAG!BN145 -> 772648.39 | K149: =FAG!BO145 -> 804644.44 | L149: =FAG!BP145 -> 876763.72 | M149: 72119.28
B150: =Stammdaten!B145 -> 5551 | C150: =Stammdaten!D145 -> Gemeinden des Amtes Am Peenestrom | D150: =VLOOKUP($B150,FAG!$B$4:$EZ$159,(150+D$1),0) -> 4134112.84 | E150: =VLOOKUP($B150,FAG!$B$4:$EZ$159,(150+E$1),0) -> 4253640.68 | F150: =VLOOKUP($B150,FAG!$B$4:$EZ$159,(150+F$1),0) -> 3999307.87 | G150: =VLOOKUP($B150,FAG!$B$4:$EZ$159,(150+G$1),0) -> 4606546.68 | H150: =VLOOKUP($B150,FAG!$B$4:$EZ$159,(150+H$1),0) -> 4052093.1 | I150: =FAG!BM146 -> 6810983.51 | J150: =FAG!BN146 -> 8335428.7 | K150: =FAG!BO146 -> 8367747.23 | L150: =FAG!BP146 -> 6709282.4 | M150: -1658464.83
B151: =Stammdaten!B146 -> 5552 | C151: =Stammdaten!D146 -> Gemeinden des Amtes Am Stettiner Haff | D151: =VLOOKUP($B151,FAG!$B$4:$EZ$159,(150+D$1),0) -> 3677614.97 | E151: =VLOOKUP($B151,FAG!$B$4:$EZ$159,(150+E$1),0) -> 3639416.17 | F151: =VLOOKUP($B151,FAG!$B$4:$EZ$159,(150+F$1),0) -> 3633581.9 | G151: =VLOOKUP($B151,FAG!$B$4:$EZ$159,(150+G$1),0) -> 3955047.72 | H151: =VLOOKUP($B151,FAG!$B$4:$EZ$159,(150+H$1),0) -> 3996682.61 | I151: =FAG!BM147 -> 5507034.79 | J151: =FAG!BN147 -> 5410020.71 | K151: =FAG!BO147 -> 5685826.05 | L151: =FAG!BP147 -> 5854549.56 | M151: 168723.51
B152: =Stammdaten!B147 -> 5553 | C152: =Stammdaten!D147 -> Gemeinden des Amtes Anklam-Land | D152: =VLOOKUP($B152,FAG!$B$4:$EZ$159,(150+D$1),0) -> 3921267.62 | E152: =VLOOKUP($B152,FAG!$B$4:$EZ$159,(150+E$1),0) -> 3129075.01 | F152: =VLOOKUP($B152,FAG!$B$4:$EZ$159,(150+F$1),0) -> 2883799.72 | G152: =VLOOKUP($B152,FAG!$B$4:$EZ$159,(150+G$1),0) -> 3176446.32 | H152: =VLOOKUP($B152,FAG!$B$4:$EZ$159,(150+H$1),0) -> 3154031.34 | I152: =FAG!BM148 -> 4767214.47 | J152: =FAG!BN148 -> 3640414.86 | K152: =FAG!BO148 -> 4245594.99 | L152: =FAG!BP148 -> 4578746.47 | M152: 333151.48
B153: =Stammdaten!B148 -> 5554 | C153: =Stammdaten!D148 -> Gemeinden des Amtes Jarmen-Tutow | D153: =VLOOKUP($B153,FAG!$B$4:$EZ$159,(150+D$1),0) -> 2164879.84 | E153: =VLOOKUP($B153,FAG!$B$4:$EZ$159,(150+E$1),0) -> 2048620.51 | F153: =VLOOKUP($B153,FAG!$B$4:$EZ$159,(150+F$1),0) -> 2065696.41 | G153: =VLOOKUP($B153,FAG!$B$4:$EZ$159,(150+G$1),0) -> 2094616.55 | H153: =VLOOKUP($B153,FAG!$B$4:$EZ$159,(150+H$1),0) -> 2187512.38 | I153: =FAG!BM149 -> 2749422.4 | J153: =FAG!BN149 -> 3078334.54 | K153: =FAG!BO149 -> 2471625 | L153: =FAG!BP149 -> 3020796.07 | M153: 549171.07
B154: =Stammdaten!B149 -> 5555 | C154: =Stammdaten!D149 -> Gemeinden des Amtes Landhagen | D154: =VLOOKUP($B154,FAG!$B$4:$EZ$159,(150+D$1),0) -> 2023095.99 | E154: =VLOOKUP($B154,FAG!$B$4:$EZ$159,(150+E$1),0) -> 1828527.68 | F154: =VLOOKUP($B154,FAG!$B$4:$EZ$159,(150+F$1),0) -> 1822866.95 | G154: =VLOOKUP($B154,FAG!$B$4:$EZ$159,(150+G$1),0) -> 1822929.49 | H154: =VLOOKUP($B154,FAG!$B$4:$EZ$159,(150+H$1),0) -> 1677919.45 | I154: =FAG!BM150 -> 3500017.56 | J154: =FAG!BN150 -> 2885383.79 | K154: =FAG!BO150 -> 3484027.96 | L154: =FAG!BP150 -> 3551438.45 | M154: 67410.49
B155: =Stammdaten!B150 -> 5556 | C155: =Stammdaten!D150 -> Gemeinden des Amtes Löcknitz-Penkun | D155: =VLOOKUP($B155,FAG!$B$4:$EZ$159,(150+D$1),0) -> 3754847.9 | E155: =VLOOKUP($B155,FAG!$B$4:$EZ$159,(150+E$1),0) -> 3964271.77 | F155: =VLOOKUP($B155,FAG!$B$4:$EZ$159,(150+F$1),0) -> 3868448.03 | G155: =VLOOKUP($B155,FAG!$B$4:$EZ$159,(150+G$1),0) -> 3672052.87 | H155: =VLOOKUP($B155,FAG!$B$4:$EZ$159,(150+H$1),0) -> 4116755.02 | I155: =FAG!BM151 -> 5394135.43 | J155: =FAG!BN151 -> 5700699 | K155: =FAG!BO151 -> 5428257.09 | L155: =FAG!BP151 -> 6092956.28 | M155: 664699.19
B156: =Stammdaten!B151 -> 5557 | C156: =Stammdaten!D151 -> Gemeinden des Amtes Lubmin | D156: =VLOOKUP($B156,FAG!$B$4:$EZ$159,(150+D$1),0) -> 2245684.73 | E156: =VLOOKUP($B156,FAG!$B$4:$EZ$159,(150+E$1),0) -> 2307399.76 | F156: =VLOOKUP($B156,FAG!$B$4:$EZ$159,(150+F$1),0) -> 2069739.13 | G156: =VLOOKUP($B156,FAG!$B$4:$EZ$159,(150+G$1),0) -> 2490289.37 | H156: =VLOOKUP($B156,FAG!$B$4:$EZ$159,(150+H$1),0) -> 4200772.12 | I156: =FAG!BM152 -> 3357811.47 | J156: =FAG!BN152 -> 2899909.16 | K156: =FAG!BO152 -> 3354110.81 | L156: =FAG!BP152 -> 3489753.7 | M156: 135642.89
B157: =Stammdaten!B152 -> 5558 | C157: =Stammdaten!D152 -> Gemeinden des Amtes Peenetal/Loitz | D157: =VLOOKUP($B157,FAG!$B$4:$EZ$159,(150+D$1),0) -> 1960323.1 | E157: =VLOOKUP($B157,FAG!$B$4:$EZ$159,(150+E$1),0) -> 1911264.18 | F157: =VLOOKUP($B157,FAG!$B$4:$EZ$159,(150+F$1),0) -> 1781814.45 | G157: =VLOOKUP($B157,FAG!$B$4:$EZ$159,(150+G$1),0) -> 2125857.65 | H157: =VLOOKUP($B157,FAG!$B$4:$EZ$159,(150+H$1),0) -> 2065097.48 | I157: =FAG!BM153 -> 3041834.81 | J157: =FAG!BN153 -> 2648501.55 | K157: =FAG!BO153 -> 2755155.34 | L157: =FAG!BP153 -> 2482637.29 | M157: -272518.05
B158: =Stammdaten!B153 -> 5559 | C158: =Stammdaten!D153 -> Gemeinden des Amtes Torgelow-Ferdinandshof | D158: =VLOOKUP($B158,FAG!$B$4:$EZ$159,(150+D$1),0) -> 4480864.98 | E158: =VLOOKUP($B158,FAG!$B$4:$EZ$159,(150+E$1),0) -> 4786348.75 | F158: =VLOOKUP($B158,FAG!$B$4:$EZ$159,(150+F$1),0) -> 4623757.03 | G158: =VLOOKUP($B158,FAG!$B$4:$EZ$159,(150+G$1),0) -> 4801217.44 | H158: =VLOOKUP($B158,FAG!$B$4:$EZ$159,(150+H$1),0) -> 5196678.9 | I158: =FAG!BM154 -> 5675396.21 | J158: =FAG!BN154 -> 6423241.13 | K158: =FAG!BO154 -> 6401611.2 | L158: =FAG!BP154 -> 7653949.43 | M158: 1252338.23
B159: =Stammdaten!B154 -> 5560 | C159: =Stammdaten!D154 -> Gemeinden des Amtes Uecker-Randow-Tal | D159: =VLOOKUP($B159,FAG!$B$4:$EZ$159,(150+D$1),0) -> 2406252.89 | E159: =VLOOKUP($B159,FAG!$B$4:$EZ$159,(150+E$1),0) -> 2371375.44 | F159: =VLOOKUP($B159,FAG!$B$4:$EZ$159,(150+F$1),0) -> 2490968.85 | G159: =VLOOKUP($B159,FAG!$B$4:$EZ$159,(150+G$1),0) -> 2563741.86 | H159: =VLOOKUP($B159,FAG!$B$4:$EZ$159,(150+H$1),0) -> 2720304.86 | I159: =FAG!BM155 -> 3804002.47 | J159: =FAG!BN155 -> 3579325.86 | K159: =FAG!BO155 -> 3844913.69 | L159: =FAG!BP155 -> 4127185.69 | M159: 282272
B160: =Stammdaten!B155 -> 5561 | C160: =Stammdaten!D155 -> Gemeinden des Amtes Usedom-Nord | D160: =VLOOKUP($B160,FAG!$B$4:$EZ$159,(150+D$1),0) -> 1940067.7 | E160: =VLOOKUP($B160,FAG!$B$4:$EZ$159,(150+E$1),0) -> 2163669.33 | F160: =VLOOKUP($B160,FAG!$B$4:$EZ$159,(150+F$1),0) -> 2004727.52 | G160: =VLOOKUP($B160,FAG!$B$4:$EZ$159,(150+G$1),0) -> 1943493.23 | H160: =VLOOKUP($B160,FAG!$B$4:$EZ$159,(150+H$1),0) -> 1903204.99 | I160: =FAG!BM156 -> 2406884.61 | J160: =FAG!BN156 -> 2721717.43 | K160: =FAG!BO156 -> 2653035.72 | L160: =FAG!BP156 -> 2932994.7 | M160: 279958.98
B161: =Stammdaten!B156 -> 5562 | C161: =Stammdaten!D156 -> Gemeinden des Amtes Usedom-Süd | D161: =VLOOKUP($B161,FAG!$B$4:$EZ$159,(150+D$1),0) -> 3261560.53 | E161: =VLOOKUP($B161,FAG!$B$4:$EZ$159,(150+E$1),0) -> 3421000.58 | F161: =VLOOKUP($B161,FAG!$B$4:$EZ$159,(150+F$1),0) -> 3031070.17 | G161: =VLOOKUP($B161,FAG!$B$4:$EZ$159,(150+G$1),0) -> 3093365.99 | H161: =VLOOKUP($B161,FAG!$B$4:$EZ$159,(150+H$1),0) -> 3590886 | I161: =FAG!BM157 -> 4233315.38 | J161: =FAG!BN157 -> 3819619.57 | K161: =FAG!BO157 -> 4097387.98 | L161: =FAG!BP157 -> 4310016.75 | M161: 212628.77
B162: =Stammdaten!B157 -> 5563 | C162: =Stammdaten!D157 -> Gemeinden des Amtes Züssow | D162: =VLOOKUP($B162,FAG!$B$4:$EZ$159,(150+D$1),0) -> 3260904.5 | E162: =VLOOKUP($B162,FAG!$B$4:$EZ$159,(150+E$1),0) -> 3222235.6 | F162: =VLOOKUP($B162,FAG!$B$4:$EZ$159,(150+F$1),0) -> 3345150.43 | G162: =VLOOKUP($B162,FAG!$B$4:$EZ$159,(150+G$1),0) -> 3766213.82 | H162: =VLOOKUP($B162,FAG!$B$4:$EZ$159,(150+H$1),0) -> 4261284.64 | I162: =FAG!BM158 -> 4761348.87 | J162: =FAG!BN158 -> 5635783.74 | K162: =FAG!BO158 -> 5436159.58 | L162: =FAG!BP158 -> 5865302.16 | M162: 429142.58
B163: =Stammdaten!B158 -> 6667 | C163: =Stammdaten!D158 -> Vorpommern-Greifswald (Durchschnitt) | D163: =VLOOKUP($B163,FAG!$B$4:$EZ$159,(150+D$1),0) -> 449821.6284 | E163: =VLOOKUP($B163,FAG!$B$4:$EZ$159,(150+E$1),0) -> 470253.0272 | F163: =VLOOKUP($B163,FAG!$B$4:$EZ$159,(150+F$1),0) -> 451928.8282 | G163: =VLOOKUP($B163,FAG!$B$4:$EZ$159,(150+G$1),0) -> 490321.9344 | H163: =VLOOKUP($B163,FAG!$B$4:$EZ$159,(150+H$1),0) -> 517553.044 | I163: =FAG!BM159 -> 730587.953 | J163: =FAG!BN159 -> 712502.534 | K163: =FAG!BO159 -> 759287.045 | L163: =FAG!BP159 -> 829786.3908 | M163: 70499.34573

Sheet Kreisumlage
D1: =D3-2013 -> 9 | E1: =E3*100 -> 43.4 | F1: =F3*100 -> 47 | G1: =G3*100 -> 46.5
C2: Kreisumlage
D3: 2022 | E3: =VLOOKUP($D$3,$X$14:$Y$26,2,0) -> 0.434 | F3: 0.47 | G3: 0.465
C4: Gemeinde | D4: =CONCATENATE("Grundlage der Kreisumlage ",D3) -> Grundlage der Kreisumlage 2022 | E4: =CONCATENATE("Kreisumlage bei ",E1,"%") -> Kreisumlage bei 43,4% | F4: =CONCATENATE("Kreisumlage bei ",F1,"%") -> Kreisumlage bei 47% | G4: =CONCATENATE("Kreisumlage bei ",G1,"%") -> Kreisumlage bei 46,5% | H4: Veränderung zu 47% | I4: Veränderung | K4: Legende
I5: pro Kopf | K5: Auswahlfeld
B6: =VLOOKUP(C6,Stammdaten!D3:F157,3,0) -> 6666 | C6: Vorpommern-Greifswald (gesamt) | D6: =VLOOKUP($C$6,$C$8:$I$162,2,0) -> 276989189.8 | E6: =$D6*E$3 -> 120213308.4 | F6: =$D6*F$3 -> 130184919.2 | G6: =$D6*G$3 -> 128799973.3 | H6: =E6-F6 -> -9971610.834 | I6: =VLOOKUP($C$6,$C$8:$I$162,7,0) -> -42.35110844
A8: =Stammdaten!B3 -> 6666 | B8: 6666 | C8: =Stammdaten!D3 -> Vorpommern-Greifswald (gesamt) | D8: =VLOOKUP(A8,FAG!$B$3:$AR$159,31+Kreisumlage!$D$1,0) -> 276989189.8 | E8: =$D8*E$3 -> 120213308.4 | F8: =$D8*F$3 -> 130184919.2 | G8: =$D8*G$3 -> 128799973.3 | H8: =E8-F8 -> -9971610.834 | I8: =IF(H8="","",H8/FAG!N4) -> -42.35110844 | W8: 2013
A9: =Stammdaten!B4 -> 13075001 | B9: =Stammdaten!C4 -> 5552 | C9: =Stammdaten!D4 -> Ahlbeck | D9: =VLOOKUP(A9,FAG!$B$3:$AR$159,31+Kreisumlage!$D$1,0) -> 599925.45 | E9: =$D9*E$3 -> 260367.6453 | F9: =$D9*F$3 -> 281964.9615 | G9: 278965.3343 | H9: -21597.3162 | I9: =IF(H9="","",H9/FAG!N5) -> -36.8554884 | W9: 2014
A10: =Stammdaten!B5 -> 13075002 | B10: 13075002 | C10: =Stammdaten!D5 -> Alt Tellin | D10: =VLOOKUP(A10,FAG!$B$3:$AR$159,31+Kreisumlage!$D$1,0) -> 423955.52 | E10: =$D10*E$3 -> 183996.6957 | F10: =$D10*F$3 -> 199259.0944 | G10: 197139.3168 | H10: -15262.39872 | I10: =IF(H10="","",H10/FAG!N6) -> -38.06084469 | W10: 2015
A11: =Stammdaten!B6 -> 13075003 | B11: 13075003 | C11: =Stammdaten!D6 -> Altwarp | D11: =VLOOKUP(A11,FAG!$B$3:$AR$159,31+Kreisumlage!$D$1,0) -> 464490.09 | E11: 201588.6991 | F11: 218310.3423 | G11: 215987.8919 | H11: -16721.64324 | I11: =IF(H11="","",H11/FAG!N7) -> -37.1592072 | W11: 2016
A12: =Stammdaten!B7 -> 13075004 | B12: 13075004 | C12: =Stammdaten!D7 -> Altwigshagen | D12: =VLOOKUP(A12,FAG!$B$3:$AR$159,31+Kreisumlage!$D$1,0) -> 401776.67 | E12: 174371.0748 | F12: 188835.0349 | G12: 186826.1516 | H12: -14463.96012 | I12: =IF(H12="","",H12/FAG!N8) -> -37.66656281 | W12: 2017
A13: =Stammdaten!B8 -> 13075005 | B13: 13075005 | C13: =Stammdaten!D8 -> Anklam, Stadt | D13: =VLOOKUP(A13,FAG!$B$3:$AR$159,31+Kreisumlage!$D$1,0) -> 13926703.37 | E13: 6044189.263 | F13: 6545550.584 | G13: 6475917.067 | H13: -501361.3213 | I13: =IF(H13="","",H13/FAG!N9) -> -41.17281115 | W13: 2018
A14: =Stammdaten!B9 -> 13075006 | B14: 13075006 | C14: =Stammdaten!D9 -> Bandelin | D14: =VLOOKUP(A14,FAG!$B$3:$AR$159,31+Kreisumlage!$D$1,0) -> 557188.99 | E14: 241820.0217 | F14: 261878.8253 | G14: 259092.8804 | H14: -20058.80364 | I14: =IF(H14="","",H14/FAG!N10) -> -38.64894728 | W14: 2019 | X14: 2013 | Y14: 0.47
A15: =Stammdaten!B10 -> 13075007 | B15: 13075007 | C15: =Stammdaten!D10 -> Bargischow | D15: =VLOOKUP(A15,FAG!$B$3:$AR$159,31+Kreisumlage!$D$1,0) -> 379291.67 | E15: 164612.5848 | F15: 178267.0849 | G15: 176370.6266 | H15: -13654.50012 | I15: =IF(H15="","",H15/FAG!N11) -> -47.74300741 | W15: 2020 | X15: 2014 | Y15: 0.47
A16: =Stammdaten!B11 -> 13075008 | B16: 13075008 | C16: =Stammdaten!D11 -> Behrenhoff | D16: =VLOOKUP(A16,FAG!$B$3:$AR$159,31+Kreisumlage!$D$1,0) -> 865941.39 | E16: 375818.5633 | F16: 406992.4533 | G16: 402662.7464 | H16: -31173.89004 | I16: =IF(H16="","",H16/FAG!N12) -> -37.64962565 | W16: 2021 | X16: 2015 | Y16: 0.47
A17: =Stammdaten!B12 -> 13075009 | B17: 13075009 | C17: =Stammdaten!D12 -> Bentzin | D17: =VLOOKUP(A17,FAG!$B$3:$AR$159,31+Kreisumlage!$D$1,0) -> 881685.18 | E17: 382651.3681 | F17: 414392.0346 | G17: 409983.6087 | H17: -31740.66648 | I17: =IF(H17="","",H17/FAG!N13) -> -37.65203616 | W17: 2022 | X17: 2016 | Y17: 0.47
A18: =Stammdaten!B13 -> 13075010 | B18: 13075010 | C18: =Stammdaten!D13 -> Benz | D18: =VLOOKUP(A18,FAG!$B$3:$AR$159,31+Kreisumlage!$D$1,0) -> 1162943.68 | E18: 504717.5571 | F18: 546583.5296 | G18: 540768.8112 | H18: -41865.97248 | I18: =IF(H18="","",H18/FAG!N14) -> -37.48072738 | W18: 2023 | X18: 2017 | Y18: 0.47
A19: =Stammdaten!B14 -> 13075011 | B19: 13075011 | C19: =Stammdaten!D14 -> Bergholz | D19: =VLOOKUP(A19,FAG!$B$3:$AR$159,31+Kreisumlage!$D$1,0) -> 334785.63 | E19: 145296.9634 | F19: 157349.2461 | G19: 155675.3179 | H19: -12052.28268 | I19: =IF(H19="","",H19/FAG!N15) -> -38.26121486 | X19: 2018 | Y19: 0.4636
A20: =Stammdaten!B15 -> 13075012 | B20: 13075012 | C20: =Stammdaten!D15 -> Blankensee | D20: =VLOOKUP(A20,FAG!$B$3:$AR$159,31+Kreisumlage!$D$1,0) -> 564798.38 | E20: 245122.4969 | F20: 265455.2386 | G20: 262631.2467 | H20: -20332.74168 | I20: =IF(H20="","",H20/FAG!N16) -> -36.96862124 | X20: 2019 | Y20: 0.455
A21: =Stammdaten!B16 -> 13075013 | B21: 13075013 | C21: =Stammdaten!D16 -> Blesewitz | D21: =VLOOKUP(A21,FAG!$B$3:$AR$159,31+Kreisumlage!$D$1,0) -> 249786.9 | E21: 108407.5146 | F21: 117399.843 | G21: 116150.9085 | H21: -8992.3284 | I21: =IF(H21="","",H21/FAG!N17) -> -36.55418049 | X21: 2020 | Y21: 0.4475
A22: =Stammdaten!B17 -> 13075015 | B22: 13075015 | C22: =Stammdaten!D17 -> Boldekow | D22: =VLOOKUP(A22,FAG!$B$3:$AR$159,31+Kreisumlage!$D$1,0) -> 682724.26 | E22: 296302.3288 | F22: 320880.4022 | G22: 317466.7809 | H22: -24578.07336 | I22: =IF(H22="","",H22/FAG!N18) -> -37.98774862 | X22: 2021 | Y22: 0.425
A23: =Stammdaten!B18 -> 13075016 | B23: 13075016 | C23: =Stammdaten!D18 -> Boock | D23: =VLOOKUP(A23,FAG!$B$3:$AR$159,31+Kreisumlage!$D$1,0) -> 587719.66 | E23: 255070.3324 | F23: 276228.2402 | G23: 273289.6419 | H23: -21157.90776 | I23: =IF(H23="","",H23/FAG!N19) -> -36.47915131 | X23: 2022 | Y23: 0.434
A24: =Stammdaten!B19 -> 13075017 | B24: 13075017 | C24: =Stammdaten!D19 -> Brietzig | D24: =VLOOKUP(A24,FAG!$B$3:$AR$159,31+Kreisumlage!$D$1,0) -> 201685.7 | E24: 87531.5938 | F24: 94792.279 | G24: 93783.8505 | H24: -7260.6852 | I24: =IF(H24="","",H24/FAG!N20) -> -37.81606875 | X24: 2023 | Y24: 0.465
A25: =Stammdaten!B20 -> 13075018 | B25: 13075018 | C25: =Stammdaten!D20 -> Brünzow | D25: =VLOOKUP(A25,FAG!$B$3:$AR$159,31+Kreisumlage!$D$1,0) -> 738226.96 | E25: 320390.5006 | F25: 346966.6712 | G25: 343275.5364 | H25: -26576.17056 | I25: =IF(H25="","",H25/FAG!N21) -> -40.38931696
A26: =Stammdaten!B21 -> 13075020 | B26: 13075020 | C26: =Stammdaten!D21 -> Bugewitz | D26: =VLOOKUP(A26,FAG!$B$3:$AR$159,31+Kreisumlage!$D$1,0) -> 239835.95 | E26: 104088.8023 | F26: 112722.8965 | G26: 111523.7168 | H26: -8634.0942 | I26: =IF(H26="","",H26/FAG!N22) -> -35.24120082
A27: =Stammdaten!B22 -> 13075021 | B27: 13075021 | C27: =Stammdaten!D22 -> Buggenhagen | D27: =VLOOKUP(A27,FAG!$B$3:$AR$159,31+Kreisumlage!$D$1,0) -> 217237.63 | E27: 94281.13142 | F27: 102101.6861 | G27: 101015.498 | H27: -7820.55468 | I27: =IF(H27="","",H27/FAG!N23) -> -35.38712525
A28: =Stammdaten!B23 -> 13075022 | B28: 13075022 | C28: =Stammdaten!D23 -> Butzow | D28: =VLOOKUP(A28,FAG!$B$3:$AR$159,31+Kreisumlage!$D$1,0) -> 448138.46 | E28: 194492.0916 | F28: 210625.0762 | G28: 208384.3839 | H28: -16132.98456 | I28: =IF(H28="","",H28/FAG!N24) -> -37.4315187
A29: =Stammdaten!B24 -> 13075023 | B29: 13075023 | C29: =Stammdaten!D24 -> Daberkow | D29: =VLOOKUP(A29,FAG!$B$3:$AR$159,31+Kreisumlage!$D$1,0) -> 349922.87 | E29: 151866.5256 | F29: 164463.7489 | G29: 162714.1346 | H29: -12597.22332 | I29: =IF(H29="","",H29/FAG!N25) -> -38.28943258
A30: =Stammdaten!B25 -> 13075025 | B30: 13075025 | C30: =Stammdaten!D25 -> Dargelin | D30: =VLOOKUP(A30,FAG!$B$3:$AR$159,31+Kreisumlage!$D$1,0) -> 373494.99 | E30: 162096.8257 | F30: 175542.6453 | G30: 173675.1704 | H30: -13445.81964 | I30: =IF(H30="","",H30/FAG!N26) -> -37.76915629
A31: =Stammdaten!B26 -> 13075026 | B31: 13075026 | C31: =Stammdaten!D26 -> Dargen | D31: =VLOOKUP(A31,FAG!$B$3:$AR$159,31+Kreisumlage!$D$1,0) -> 597934.33 | E31: 259503.4992 | F31: 281029.1351 | G31: 278039.4634 | H31: -21525.63588 | I31: =IF(H31="","",H31/FAG!N27) -> -36.60822429
A32: =Stammdaten!B27 -> 13075027 | B32: 13075027 | C32: =Stammdaten!D27 -> Dersekow | D32: =VLOOKUP(A32,FAG!$B$3:$AR$159,31+Kreisumlage!$D$1,0) -> 1161052.24 | E32: 503896.6722 | F32: 545694.5528 | G32: 539889.2916 | H32: -41797.88064 | I32: =IF(H32="","",H32/FAG!N28) -> -37.99807331
A33: =Stammdaten!B28 -> 13075028 | B33: 13075028 | C33: =Stammdaten!D28 -> Diedrichshagen | I33: =IF(H33="","",H33/FAG!N29) -> 
A34: =Stammdaten!B29 -> 13075029 | B34: 13075029 | C34: =Stammdaten!D29 -> Ducherow | D34: =VLOOKUP(A34,FAG!$B$3:$AR$159,31+Kreisumlage!$D$1,0) -> 2514768.16 | E34: =$D34*E$3 -> 1091409.381 | F34: 1181941.035 | G34: 1169367.194 | H34: =E34-F34 -> -90531.65376 | I34: =IF(H34="","",H34/FAG!N30) -> -37.59620173
A35: =Stammdaten!B30 -> 13075031 | B35: 13075031 | C35: =Stammdaten!D30 -> Eggesin, Stadt | D35: =VLOOKUP(A35,FAG!$B$3:$AR$159,31+Kreisumlage!$D$1,0) -> 4910964.71 | E35: 2131358.684 | F35: 2308153.414 | G35: 2283598.59 | H35: -176794.7296 | I35: =IF(H35="","",H35/FAG!N31) -> -37.61589991
A36: =Stammdaten!B31 -> 13075032 | B36: 13075032 | C36: =Stammdaten!D31 -> Fahrenwalde | D36: =VLOOKUP(A36,FAG!$B$3:$AR$159,31+Kreisumlage!$D$1,0) -> 314512.73 | E36: 136498.5248 | F36: 147820.9831 | G36: 146248.4194 | H36: -11322.45828 | I36: =IF(H36="","",H36/FAG!N32) -> -40.15056128
A37: =Stammdaten!B32 -> 13075033 | B37: 13075033 | C37: =Stammdaten!D32 -> Ferdinandshof | D37: =VLOOKUP(A37,FAG!$B$3:$AR$159,31+Kreisumlage!$D$1,0) -> 2736733.35 | E37: 1187742.274 | F37: 1286264.674 | G37: 1272581.008 | H37: -98522.4006 | I37: =IF(H37="","",H37/FAG!N33) -> -37.2908405
A38: =Stammdaten!B33 -> 13075034 | B38: 13075034 | C38: =Stammdaten!D33 -> Garz | D38: =VLOOKUP(A38,FAG!$B$3:$AR$159,31+Kreisumlage!$D$1,0) -> 290135.71 | E38: 125918.8981 | F38: 136363.7837 | G38: 134913.1052 | H38: -10444.88556 | I38: =IF(H38="","",H38/FAG!N34) -> -37.17041125
A39: =Stammdaten!B34 -> 13075035 | B39: 13075035 | C39: =Stammdaten!D34 -> Glasow | D39: =VLOOKUP(A39,FAG!$B$3:$AR$159,31+Kreisumlage!$D$1,0) -> 155453.05 | E39: 67466.6237 | F39: 73062.9335 | G39: 72285.66825 | H39: -5596.3098 | I39: =IF(H39="","",H39/FAG!N35) -> -37.55912617
A40: =Stammdaten!B35 -> 13075036 | B40: 13075036 | C40: =Stammdaten!D35 -> Görmin | D40: =VLOOKUP(A40,FAG!$B$3:$AR$159,31+Kreisumlage!$D$1,0) -> 919287.19 | E40: 398970.6405 | F40: 432064.9793 | G40: 427468.5433 | H40: -33094.33884 | I40: =IF(H40="","",H40/FAG!N36) -> -37.14291677
A41: =Stammdaten!B36 -> 13075037 | B41: 13075037 | C41: =Stammdaten!D36 -> Grambin | D41: =VLOOKUP(A41,FAG!$B$3:$AR$159,31+Kreisumlage!$D$1,0) -> 437788.8 | E41: 190000.3392 | F41: =$D41*F$3 -> 205760.736 | G41: 203571.792 | H41: -15760.3968 | I41: =IF(H41="","",H41/FAG!N37) -> -37.17074717
A42: =Stammdaten!B37 -> 13075038 | B42: 13075038 | C42: =Stammdaten!D37 -> Grambow | D42: =VLOOKUP(A42,FAG!$B$3:$AR$159,31+Kreisumlage!$D$1,0) -> 880612.85 | E42: 382185.9769 | F42: 413888.0395 | G42: 409484.9753 | H42: -31702.0626 | I42: =IF(H42="","",H42/FAG!N38) -> -37.83062363
A43: =Stammdaten!B38 -> 13075039 | B43: 13075039 | C43: =Stammdaten!D38 -> Greifswald, Hansestadt | D43: =VLOOKUP(A43,FAG!$B$3:$AR$159,31+Kreisumlage!$D$1,0) -> 77024547.3 | E43: 33428653.53 | F43: 36201537.23 | G43: 35816414.49 | H43: -2772883.703 | I43: =IF(H43="","",H43/FAG!N39) -> -46.73504522
A44: =Stammdaten!B39 -> 13075040 | B44: 13075040 | C44: =Stammdaten!D39 -> Gribow | D44: =VLOOKUP(A44,FAG!$B$3:$AR$159,31+Kreisumlage!$D$1,0) -> 144538.36 | E44: 62729.64824 | F44: 67933.0292 | G44: 67210.3374 | H44: -5203.38096 | I44: =IF(H44="","",H44/FAG!N40) -> -37.98088292
A45: =Stammdaten!B40 -> 13075041 | B45: 13075041 | C45: =Stammdaten!D40 -> Groß Kiesow | D45: =VLOOKUP(A45,FAG!$B$3:$AR$159,31+Kreisumlage!$D$1,0) -> 1316769.41 | E45: 571477.9239 | F45: 618881.6227 | G45: 612297.7756 | H45: -47403.69876 | I45: =IF(H45="","",H45/FAG!N41) -> -36.9187685
A46: =Stammdaten!B41 -> 13075042 | B46: 13075042 | C46: =Stammdaten!D41 -> Groß Luckow | D46: =VLOOKUP(A46,FAG!$B$3:$AR$159,31+Kreisumlage!$D$1,0) -> 210565.57 | E46: 91385.45738 | F46: 98965.8179 | G46: 97912.99005 | H46: -7580.36052 | I46: =IF(H46="","",H46/FAG!N42) -> -39.68775141
A47: =Stammdaten!B42 -> 13075043 | B47: 13075043 | C47: =Stammdaten!D42 -> Groß Polzin | D47: =VLOOKUP(A47,FAG!$B$3:$AR$159,31+Kreisumlage!$D$1,0) -> 413259.3 | E47: 179354.5362 | F47: 194231.871 | G47: 192165.5745 | H47: -14877.3348 | I47: =IF(H47="","",H47/FAG!N43) -> -37.193337
A48: =Stammdaten!B43 -> 13075044 | B48: 13075044 | C48: =Stammdaten!D43 -> Gützkow, Stadt | D48: =VLOOKUP(A48,FAG!$B$3:$AR$159,31+Kreisumlage!$D$1,0) -> 3089812.98 | E48: 1340978.833 | F48: 1452212.101 | G48: 1436763.036 | H48: -111233.2673 | I48: =IF(H48="","",H48/FAG!N44) -> -38.05448761
A49: =Stammdaten!B44 -> 13075045 | B49: 13075045 | C49: =Stammdaten!D44 -> Hammer a. d. Uecker | D49: =VLOOKUP(A49,FAG!$B$3:$AR$159,31+Kreisumlage!$D$1,0) -> 476823.98 | E49: 206941.6073 | F49: 224107.2706 | G49: 221723.1507 | H49: -17165.66328 | I49: =IF(H49="","",H49/FAG!N45) -> -37.56162643
A50: =Stammdaten!B45 -> 13075046 | B50: 13075046 | C50: =Stammdaten!D45 -> Hanshagen | D50: =VLOOKUP(A50,FAG!$B$3:$AR$159,31+Kreisumlage!$D$1,0) -> 926795.7 | E50: 402229.3338 | F50: 435593.979 | G50: 430960.0005 | H50: -33364.6452 | I50: =IF(H50="","",H50/FAG!N46) -> -36.90779336
A51: =Stammdaten!B46 -> 13075048 | B51: 13075048 | C51: =Stammdaten!D46 -> Heinrichswalde | D51: =VLOOKUP(A51,FAG!$B$3:$AR$159,31+Kreisumlage!$D$1,0) -> 416720.54 | E51: 180856.7144 | F51: 195858.6538 | G51: 193775.0511 | H51: -15001.93944 | I51: =IF(H51="","",H51/FAG!N47) -> -37.59884571
A52: =Stammdaten!B47 -> 13075049 | B52: 13075049 | C52: =Stammdaten!D47 -> Heringsdorf | D52: =VLOOKUP(A52,FAG!$B$3:$AR$159,31+Kreisumlage!$D$1,0) -> 10495157.82 | E52: 4554898.494 | F52: 4932724.175 | G52: 4880248.386 | H52: -377825.6815 | I52: =IF(H52="","",H52/FAG!N48) -> -45.04896644
A53: =Stammdaten!B48 -> 13075050 | B53: 13075050 | C53: =Stammdaten!D48 -> Hinrichshagen | D53: =VLOOKUP(A53,FAG!$B$3:$AR$159,31+Kreisumlage!$D$1,0) -> 963241.32 | E53: 418046.7329 | F53: 452723.4204 | G53: 447907.2138 | H53: -34676.68752 | I53: =IF(H53="","",H53/FAG!N49) -> -37.32689722
A54: =Stammdaten!B49 -> 13075051 | B54: 13075051 | C54: =Stammdaten!D49 -> Hintersee | D54: =VLOOKUP(A54,FAG!$B$3:$AR$159,31+Kreisumlage!$D$1,0) -> 329675.75 | E54: 143079.2755 | F54: 154947.6025 | G54: 153299.2238 | H54: -11868.327 | I54: =IF(H54="","",H54/FAG!N50) -> -36.51792923
A55: =Stammdaten!B50 -> 13075053 | B55: 13075053 | C55: =Stammdaten!D50 -> Iven | D55: =VLOOKUP(A55,FAG!$B$3:$AR$159,31+Kreisumlage!$D$1,0) -> 186821.87 | E55: 81080.69158 | F55: 87806.2789 | G55: 86872.16955 | H55: -6725.58732 | I55: =IF(H55="","",H55/FAG!N51) -> -38.21356432
A56: =Stammdaten!B51 -> 13075054 | B56: 13075054 | C56: =Stammdaten!D51 -> Jarmen, Stadt | D56: =VLOOKUP(A56,FAG!$B$3:$AR$159,31+Kreisumlage!$D$1,0) -> 3085548.25 | E56: 1339127.941 | F56: 1450207.677 | G56: 1434779.936 | H56: -111079.737 | I56: =IF(H56="","",H56/FAG!N52) -> -38.01496817
A57: =Stammdaten!B52 -> 13075055 | B57: 13075055 | C57: =Stammdaten!D52 -> Jatznick | D57: =VLOOKUP(A57,FAG!$B$3:$AR$159,31+Kreisumlage!$D$1,0) -> 2305935.88 | E57: 1000776.172 | F57: 1083789.864 | G57: 1072260.184 | H57: -83013.69168 | I57: =IF(H57="","",H57/FAG!N53) -> -37.19251419
A58: =Stammdaten!B53 -> 13075056 | B58: 13075056 | C58: =Stammdaten!D53 -> Kamminke | D58: =VLOOKUP(A58,FAG!$B$3:$AR$159,31+Kreisumlage!$D$1,0) -> 257128.89 | E58: 111593.9383 | F58: 120850.5783 | G58: 119564.9339 | H58: -9256.64004 | I58: =IF(H58="","",H58/FAG!N54) -> -37.47627547
A59: =Stammdaten!B54 -> 13075057 | B59: 13075057 | C59: =Stammdaten!D54 -> Karlsburg (bis 2019) | I59: =IF(H59="","",H59/FAG!N55) -> 
A60: =Stammdaten!B55 -> 13075058 | B60: 13075058 | C60: =Stammdaten!D55 -> Karlshagen | D60: =VLOOKUP(A60,FAG!$B$3:$AR$159,31+Kreisumlage!$D$1,0) -> 3333638.77 | E60: =$D60*E$3 -> 1446799.226 | F60: 1566810.222 | G60: 1550142.028 | H60: =E60-F60 -> -120010.9957 | I60: =IF(H60="","",H60/FAG!N56) -> -37.3168519
A61: =Stammdaten!B56 -> 13075059 | B61: 13075059 | C61: =Stammdaten!D56 -> Katzow | D61: =VLOOKUP(A61,FAG!$B$3:$AR$159,31+Kreisumlage!$D$1,0) -> 612117.92 | E61: 265659.1773 | F61: 287695.4224 | G61: 284634.8328 | H61: -22036.24512 | I61: =IF(H61="","",H61/FAG!N57) -> -36.60505834
A62: =Stammdaten!B57 -> 13075060 | B62: 13075060 | C62: =Stammdaten!D57 -> Kemnitz | D62: =VLOOKUP(A62,FAG!$B$3:$AR$159,31+Kreisumlage!$D$1,0) -> 1189772.79 | E62: 516361.3909 | F62: 559193.2113 | G62: 553244.3474 | H62: -42831.82044 | I62: =IF(H62="","",H62/FAG!N58) -> -37.14815303
A63: =Stammdaten!B58 -> 13075061 | B63: 13075061 | C63: =Stammdaten!D58 -> Klein Bünzow | D63: =VLOOKUP(A63,FAG!$B$3:$AR$159,31+Kreisumlage!$D$1,0) -> 724350.7 | E63: 314368.2038 | F63: 340444.829 | G63: 336823.0755 | H63: -26076.6252 | I63: =IF(H63="","",H63/FAG!N59) -> -38.57488935
A64: =Stammdaten!B59 -> 13075063 | B64: 13075063 | C64: =Stammdaten!D59 -> Koblentz | D64: =VLOOKUP(A64,FAG!$B$3:$AR$159,31+Kreisumlage!$D$1,0) -> 209930.3 | E64: 91109.7502 | F64: 98667.241 | G64: 97617.5895 | H64: -7557.4908 | I64: =IF(H64="","",H64/FAG!N60) -> -37.787454
A65: =Stammdaten!B60 -> 13075065 | B65: 13075065 | C65: =Stammdaten!D60 -> Korswandt | D65: =VLOOKUP(A65,FAG!$B$3:$AR$159,31+Kreisumlage!$D$1,0) -> 604469.3 | E65: 262339.6762 | F65: 284100.571 | G65: 281078.2245 | H65: -21760.8948 | I65: =IF(H65="","",H65/FAG!N61) -> -36.32870584
A66: =Stammdaten!B61 -> 13075066 | B66: 13075066 | C66: =Stammdaten!D61 -> Koserow | D66: =VLOOKUP(A66,FAG!$B$3:$AR$159,31+Kreisumlage!$D$1,0) -> 1908076.83 | E66: 828105.3442 | F66: 896796.1101 | G66: 887255.726 | H66: -68690.76588 | I66: =IF(H66="","",H66/FAG!N62) -> -39.98298363
A67: =Stammdaten!B62 -> 13075067 | B67: 13075067 | C67: =Stammdaten!D62 -> Krackow | D67: =VLOOKUP(A67,FAG!$B$3:$AR$159,31+Kreisumlage!$D$1,0) -> 656811.46 | E67: 285056.1736 | F67: 308701.3862 | G67: 305417.3289 | H67: -23645.21256 | I67: =IF(H67="","",H67/FAG!N63) -> -38.19905099
A68: =Stammdaten!B63 -> 13075068 | B68: 13075068 | C68: =Stammdaten!D63 -> Krien | D68: =VLOOKUP(A68,FAG!$B$3:$AR$159,31+Kreisumlage!$D$1,0) -> 688487.24 | E68: 298803.4622 | F68: 323589.0028 | G68: 320146.5666 | H68: -24785.54064 | I68: =IF(H68="","",H68/FAG!N64) -> -37.10410275
A69: =Stammdaten!B64 -> 13075069 | B69: 13075069 | C69: =Stammdaten!D64 -> Kröslin | D69: =VLOOKUP(A69,FAG!$B$3:$AR$159,31+Kreisumlage!$D$1,0) -> 1814717.65 | E69: 787587.4601 | F69: 852917.2955 | G69: 843843.7072 | H69: -65329.8354 | I69: =IF(H69="","",H69/FAG!N65) -> -37.16145358
A70: =Stammdaten!B65 -> 13075070 | B70: 13075070 | C70: =Stammdaten!D65 -> Kruckow | D70: =VLOOKUP(A70,FAG!$B$3:$AR$159,31+Kreisumlage!$D$1,0) -> 696629.5 | E70: 302337.203 | F70: 327415.865 | G70: 323932.7175 | H70: -25078.662 | I70: =IF(H70="","",H70/FAG!N66) -> -37.8260362
A71: =Stammdaten!B66 -> 13075071 | B71: 13075071 | C71: =Stammdaten!D66 -> Krugsdorf | D71: =VLOOKUP(A71,FAG!$B$3:$AR$159,31+Kreisumlage!$D$1,0) -> 471204.31 | E71: 204502.6705 | F71: 221466.0257 | G71: 219110.0042 | H71: -16963.35516 | I71: =IF(H71="","",H71/FAG!N67) -> -35.04825446
A72: =Stammdaten!B67 -> 13075072 | B72: 13075072 | C72: =Stammdaten!D67 -> Krummin | D72: =VLOOKUP(A72,FAG!$B$3:$AR$159,31+Kreisumlage!$D$1,0) -> 251146.98 | E72: 108997.7893 | F72: 118039.0806 | G72: 116783.3457 | H72: -9041.29128 | I72: =IF(H72="","",H72/FAG!N68) -> -39.30996209
A73: =Stammdaten!B68 -> 13075073 | B73: 13075073 | C73: =Stammdaten!D68 -> Krusenfelde | D73: =VLOOKUP(A73,FAG!$B$3:$AR$159,31+Kreisumlage!$D$1,0) -> 158872.73 | E73: 68950.76482 | F73: =$D73*F$3 -> 74670.1831 | G73: 73875.81945 | H73: -5719.41828 | I73: =IF(H73="","",H73/FAG!N69) -> -35.52433714
A74: =Stammdaten!B69 -> 13075074 | B74: 13075074 | C74: =Stammdaten!D69 -> Lassan, Stadt | D74: =VLOOKUP(A74,FAG!$B$3:$AR$159,31+Kreisumlage!$D$1,0) -> 1511086.04 | E74: 655811.3414 | F74: 710210.4388 | G74: 702655.0086 | H74: -54399.09744 | I74: =IF(H74="","",H74/FAG!N70) -> -37.36201747
A75: =Stammdaten!B70 -> 13075075 | B75: 13075075 | C75: =Stammdaten!D70 -> Leopoldshagen | D75: =VLOOKUP(A75,FAG!$B$3:$AR$159,31+Kreisumlage!$D$1,0) -> 642908.85 | E75: 279022.4409 | F75: 302167.1595 | G75: 298952.6153 | H75: -23144.7186 | I75: =IF(H75="","",H75/FAG!N71) -> -37.21015852
A76: =Stammdaten!B71 -> 13075076 | B76: 13075076 | C76: =Stammdaten!D71 -> Levenhagen | D76: =VLOOKUP(A76,FAG!$B$3:$AR$159,31+Kreisumlage!$D$1,0) -> 441773.32 | E76: 191729.6209 | F76: 207633.4604 | G76: 205424.5938 | H76: -15903.83952 | I76: =IF(H76="","",H76/FAG!N72) -> -38.8846932
A77: =Stammdaten!B72 -> 13075078 | B77: 13075078 | C77: =Stammdaten!D72 -> Liepgarten | D77: =VLOOKUP(A77,FAG!$B$3:$AR$159,31+Kreisumlage!$D$1,0) -> 800778.51 | E77: 347537.8733 | F77: 376365.8997 | G77: 372362.0072 | H77: -28828.02636 | I77: =IF(H77="","",H77/FAG!N73) -> -36.44503965
A78: =Stammdaten!B73 -> 13075079 | B78: 13075079 | C78: =Stammdaten!D73 -> Löcknitz | D78: =VLOOKUP(A78,FAG!$B$3:$AR$159,31+Kreisumlage!$D$1,0) -> 3416308.42 | E78: 1482677.854 | F78: 1605664.957 | G78: 1588583.415 | H78: -122987.1031 | I78: =IF(H78="","",H78/FAG!N74) -> -37.49606802
A79: =Stammdaten!B74 -> 13075080 | B79: 13075080 | C79: =Stammdaten!D74 -> Loddin | D79: =VLOOKUP(A79,FAG!$B$3:$AR$159,31+Kreisumlage!$D$1,0) -> 1061684.71 | E79: 460771.1641 | F79: 498991.8137 | G79: 493683.3901 | H79: -38220.64956 | I79: =IF(H79="","",H79/FAG!N75) -> -39.32165593
A80: =Stammdaten!B75 -> 13075081 | B80: 13075081 | C80: =Stammdaten!D75 -> Loissin | D80: =VLOOKUP(A80,FAG!$B$3:$AR$159,31+Kreisumlage!$D$1,0) -> 829605.67 | E80: 360048.8608 | F80: 389914.6649 | G80: 385766.6366 | H80: -29865.80412 | I80: =IF(H80="","",H80/FAG!N76) -> -37.75702164
A81: =Stammdaten!B76 -> 13075082 | B81: 13075082 | C81: =Stammdaten!D76 -> Loitz, Stadt | D81: =VLOOKUP(A81,FAG!$B$3:$AR$159,31+Kreisumlage!$D$1,0) -> 4444568.84 | E81: 1928942.877 | F81: 2088947.355 | G81: 2066724.511 | H81: -160004.4782 | I81: =IF(H81="","",H81/FAG!N77) -> -37.79930977
A82: =Stammdaten!B77 -> 13075083 | B82: 13075083 | C82: =Stammdaten!D77 -> Lubmin | D82: =VLOOKUP(A82,FAG!$B$3:$AR$159,31+Kreisumlage!$D$1,0) -> 6284161.36 | E82: 2727326.03 | F82: 2953555.839 | G82: 2922135.032 | H82: -226229.809 | I82: =IF(H82="","",H82/FAG!N78) -> -106.0617951
A83: =Stammdaten!B78 -> 13075084 | B83: 13075084 | C83: =Stammdaten!D78 -> Lübs | D83: =VLOOKUP(A83,FAG!$B$3:$AR$159,31+Kreisumlage!$D$1,0) -> 351240.84 | E83: 152438.5246 | F83: 165083.1948 | G83: 163326.9906 | H83: -12644.67024 | I83: =IF(H83="","",H83/FAG!N79) -> -36.86492781
A84: =Stammdaten!B79 -> 13075085 | B84: 13075085 | C84: =Stammdaten!D79 -> Luckow | D84: =VLOOKUP(A84,FAG!$B$3:$AR$159,31+Kreisumlage!$D$1,0) -> 588425.62 | E84: 255376.7191 | F84: 276560.0414 | G84: 273617.9133 | H84: -21183.32232 | I84: =IF(H84="","",H84/FAG!N80) -> -37.49260588
A85: =Stammdaten!B80 -> 13075086 | B85: 13075086 | C85: =Stammdaten!D80 -> Lühmannsdorf (bis 2019) | I85: =IF(H85="","",H85/FAG!N81) -> 
A86: =Stammdaten!B81 -> 13075087 | B86: 13075087 | C86: =Stammdaten!D81 -> Lütow | D86: =VLOOKUP(A86,FAG!$B$3:$AR$159,31+Kreisumlage!$D$1,0) -> 445871.39 | E86: =$D86*E$3 -> 193508.1833 | F86: 209559.5533 | G86: 207330.1964 | H86: =E86-F86 -> -16051.37004 | I86: =IF(H86="","",H86/FAG!N82) -> -36.73082389
A87: =Stammdaten!B82 -> 13075088 | B87: 13075088 | C87: =Stammdaten!D82 -> Medow | D87: =VLOOKUP(A87,FAG!$B$3:$AR$159,31+Kreisumlage!$D$1,0) -> 514265.23 | E87: 223191.1098 | F87: 241704.6581 | G87: 239133.3319 | H87: -18513.54828 | I87: =IF(H87="","",H87/FAG!N83) -> -37.86001693
A88: =Stammdaten!B83 -> 13075089 | B88: 13075089 | C88: =Stammdaten!D83 -> Meiersberg | D88: =VLOOKUP(A88,FAG!$B$3:$AR$159,31+Kreisumlage!$D$1,0) -> 431857.88 | E88: 187426.3199 | F88: 202973.2036 | G88: 200813.9142 | H88: -15546.88368 | I88: =IF(H88="","",H88/FAG!N84) -> -38.01194054
A89: =Stammdaten!B84 -> 13075090 | B89: 13075090 | C89: =Stammdaten!D84 -> Mellenthin | D89: =VLOOKUP(A89,FAG!$B$3:$AR$159,31+Kreisumlage!$D$1,0) -> 475818.89 | E89: 206505.3983 | F89: 223634.8783 | G89: 221255.7839 | H89: -17129.48004 | I89: =IF(H89="","",H89/FAG!N85) -> -37.73013225
A90: =Stammdaten!B85 -> 13075091 | B90: 13075091 | C90: =Stammdaten!D85 -> Mesekenhagen | D90: =VLOOKUP(A90,FAG!$B$3:$AR$159,31+Kreisumlage!$D$1,0) -> 1123867.76 | E90: 487758.6078 | F90: 528217.8472 | G90: 522598.5084 | H90: -40459.23936 | I90: =IF(H90="","",H90/FAG!N86) -> -37.74182776
A91: =Stammdaten!B86 -> 13075092 | B91: 13075092 | C91: =Stammdaten!D86 -> Mölschow | D91: =VLOOKUP(A91,FAG!$B$3:$AR$159,31+Kreisumlage!$D$1,0) -> 807076.08 | E91: 350271.0187 | F91: 379325.7576 | G91: 375290.3772 | H91: -29054.73888 | I91: =IF(H91="","",H91/FAG!N87) -> -36.91834673
A92: =Stammdaten!B87 -> 13075093 | B92: 13075093 | C92: =Stammdaten!D87 -> Mönkebude | D92: =VLOOKUP(A92,FAG!$B$3:$AR$159,31+Kreisumlage!$D$1,0) -> 801063.55 | E92: 347661.5807 | F92: 376499.8685 | G92: 372494.5508 | H92: -28838.2878 | I92: =IF(H92="","",H92/FAG!N88) -> -37.25876977
A93: =Stammdaten!B88 -> 13075094 | B93: 13075094 | C93: =Stammdaten!D88 -> Murchin | D93: =VLOOKUP(A93,FAG!$B$3:$AR$159,31+Kreisumlage!$D$1,0) -> 793966.47 | E93: 344581.448 | F93: 373164.2409 | G93: 369194.4085 | H93: -28582.79292 | I93: =IF(H93="","",H93/FAG!N89) -> -37.12051029
A94: =Stammdaten!B89 -> 13075095 | B94: 13075095 | C94: =Stammdaten!D89 -> Nadrensee | D94: =VLOOKUP(A94,FAG!$B$3:$AR$159,31+Kreisumlage!$D$1,0) -> 378119.41 | E94: 164103.8239 | F94: 177716.1227 | G94: 175825.5256 | H94: -13612.29876 | I94: =IF(H94="","",H94/FAG!N90) -> -41.37476827
A95: =Stammdaten!B90 -> 13075097 | B95: 13075097 | C95: =Stammdaten!D90 -> Neu Boltenhagen | D95: =VLOOKUP(A95,FAG!$B$3:$AR$159,31+Kreisumlage!$D$1,0) -> 587199.26 | E95: 254844.4788 | F95: 275983.6522 | G95: 273047.6559 | H95: -21139.17336 | I95: =IF(H95="","",H95/FAG!N91) -> -38.02009597
A96: =Stammdaten!B91 -> 13075098 | B96: 13075098 | C96: =Stammdaten!D91 -> Neu Kosenow | D96: =VLOOKUP(A96,FAG!$B$3:$AR$159,31+Kreisumlage!$D$1,0) -> 906319.9 | E96: 393342.8366 | F96: 425970.353 | G96: 421438.7535 | H96: -32627.5164 | I96: =IF(H96="","",H96/FAG!N92) -> -69.42024766
A97: =Stammdaten!B92 -> 13075101 | B97: 13075101 | C97: =Stammdaten!D92 -> Neuenkirchen bei Anklam | D97: =VLOOKUP(A97,FAG!$B$3:$AR$159,31+Kreisumlage!$D$1,0) -> 302448.05 | E97: 131262.4537 | F97: 142150.5835 | G97: 140638.3433 | H97: -10888.1298 | I97: =IF(H97="","",H97/FAG!N93) -> -49.26755566
A98: =Stammdaten!B93 -> 13075102 | B98: 13075102 | C98: =Stammdaten!D93 -> Neuenkirchen bei Greifswald | D98: =VLOOKUP(A98,FAG!$B$3:$AR$159,31+Kreisumlage!$D$1,0) -> 2504732.44 | E98: 1087053.879 | F98: 1177224.247 | G98: 1164700.585 | H98: -90170.36784 | I98: =IF(H98="","",H98/FAG!N94) -> -37.43062177
A99: =Stammdaten!B94 -> 13075103 | B99: 13075103 | C99: =Stammdaten!D94 -> Nieden | D99: =VLOOKUP(A99,FAG!$B$3:$AR$159,31+Kreisumlage!$D$1,0) -> 162512.95 | E99: 70530.6203 | F99: 76381.0865 | G99: 75568.52175 | H99: -5850.4662 | I99: =IF(H99="","",H99/FAG!N95) -> -37.26411592
A100: =Stammdaten!B95 -> 13075104 | B100: 13075104 | C100: =Stammdaten!D95 -> Papendorf | D100: =VLOOKUP(A100,FAG!$B$3:$AR$159,31+Kreisumlage!$D$1,0) -> 220327.9 | E100: 95622.3086 | F100: 103554.113 | G100: 102452.4735 | H100: -7931.8044 | I100: =IF(H100="","",H100/FAG!N96) -> -40.4683898
A101: =Stammdaten!B96 -> 13075105 | B101: 13075105 | C101: =Stammdaten!D96 -> Pasewalk, Stadt | D101: =VLOOKUP(A101,FAG!$B$3:$AR$159,31+Kreisumlage!$D$1,0) -> 12425015.79 | E101: 5392456.853 | F101: 5839757.421 | G101: 5777632.342 | H101: -447300.5684 | I101: =IF(H101="","",H101/FAG!N97) -> -45.45275566
A102: =Stammdaten!B97 -> 13075106 | B102: 13075106 | C102: =Stammdaten!D97 -> Peenemünde | D102: =VLOOKUP(A102,FAG!$B$3:$AR$159,31+Kreisumlage!$D$1,0) -> 381303.17 | E102: 165485.5758 | F102: 179212.4899 | G102: 177305.974 | H102: -13726.91412 | I102: =IF(H102="","",H102/FAG!N98) -> -40.02015778
A103: =Stammdaten!B98 -> 13075107 | B103: 13075107 | C103: =Stammdaten!D98 -> Penkun, Stadt | D103: =VLOOKUP(A103,FAG!$B$3:$AR$159,31+Kreisumlage!$D$1,0) -> 1827835.16 | E103: 793280.4594 | F103: 859082.5252 | G103: 849943.3494 | H103: -65802.06576 | I103: =IF(H103="","",H103/FAG!N99) -> -37.11340426
A104: =Stammdaten!B99 -> 13075108 | B104: 13075108 | C104: =Stammdaten!D99 -> Plöwen | D104: =VLOOKUP(A104,FAG!$B$3:$AR$159,31+Kreisumlage!$D$1,0) -> 278044.95 | E104: 120671.5083 | F104: 130681.1265 | G104: 129290.9018 | H104: -10009.6182 | I104: =IF(H104="","",H104/FAG!N100) -> -37.21047658
A105: =Stammdaten!B100 -> 13075109 | B105: 13075109 | C105: =Stammdaten!D100 -> Polzow | D105: =VLOOKUP(A105,FAG!$B$3:$AR$159,31+Kreisumlage!$D$1,0) -> 255903.29 | E105: 111062.0279 | F105: =$D105*F$3 -> 120274.5463 | G105: 118995.0299 | H105: -9212.51844 | I105: =IF(H105="","",H105/FAG!N101) -> -36.41311636
A106: =Stammdaten!B101 -> 13075110 | B106: 13075110 | C106: =Stammdaten!D101 -> Postlow | D106: =VLOOKUP(A106,FAG!$B$3:$AR$159,31+Kreisumlage!$D$1,0) -> 308662.62 | E106: 133959.5771 | F106: 145071.4314 | G106: 143528.1183 | H106: -11111.85432 | I106: =IF(H106="","",H106/FAG!N102) -> -37.79542286
A107: =Stammdaten!B102 -> 13075111 | B107: 13075111 | C107: =Stammdaten!D102 -> Pudagla | D107: =VLOOKUP(A107,FAG!$B$3:$AR$159,31+Kreisumlage!$D$1,0) -> 524317.28 | E107: 227553.6995 | F107: 246429.1216 | G107: 243807.5352 | H107: -18875.42208 | I107: =IF(H107="","",H107/FAG!N103) -> -38.44281483
A108: =Stammdaten!B103 -> 13075113 | B108: 13075113 | C108: =Stammdaten!D103 -> Ramin | D108: =VLOOKUP(A108,FAG!$B$3:$AR$159,31+Kreisumlage!$D$1,0) -> 695749.7 | E108: 301955.3698 | F108: 327002.359 | G108: 323523.6105 | H108: -25046.9892 | I108: =IF(H108="","",H108/FAG!N104) -> -37.43944574
A109: =Stammdaten!B104 -> 13075114 | B109: 13075114 | C109: =Stammdaten!D104 -> Rankwitz | D109: =VLOOKUP(A109,FAG!$B$3:$AR$159,31+Kreisumlage!$D$1,0) -> 566359.76 | E109: 245800.1358 | F109: 266189.0872 | G109: 263357.2884 | H109: -20388.95136 | I109: =IF(H109="","",H109/FAG!N105) -> -37.00354149
A110: =Stammdaten!B105 -> 13075115 | B110: 13075115 | C110: =Stammdaten!D105 -> Rollwitz | D110: =VLOOKUP(A110,FAG!$B$3:$AR$159,31+Kreisumlage!$D$1,0) -> 942420.42 | E110: 409010.4623 | F110: 442937.5974 | G110: 438225.4953 | H110: -33927.13512 | I110: =IF(H110="","",H110/FAG!N106) -> -37.16006037
A111: =Stammdaten!B106 -> 13075116 | B111: 13075116 | C111: =Stammdaten!D106 -> Rossin | D111: =VLOOKUP(A111,FAG!$B$3:$AR$159,31+Kreisumlage!$D$1,0) -> 172021.18 | E111: 74657.19212 | F111: 80849.9546 | G111: 79989.8487 | H111: -6192.76248 | I111: =IF(H111="","",H111/FAG!N107) -> -37.08241006
A112: =Stammdaten!B107 -> 13075117 | B112: 13075117 | C112: =Stammdaten!D107 -> Rossow | D112: =VLOOKUP(A112,FAG!$B$3:$AR$159,31+Kreisumlage!$D$1,0) -> 462175.54 | E112: 200584.1844 | F112: 217222.5038 | G112: 214911.6261 | H112: -16638.31944 | I112: =IF(H112="","",H112/FAG!N108) -> -37.30564897
A113: =Stammdaten!B108 -> 13075118 | B113: 13075118 | C113: =Stammdaten!D108 -> Rothemühl | D113: =VLOOKUP(A113,FAG!$B$3:$AR$159,31+Kreisumlage!$D$1,0) -> 308626.95 | E113: 133944.0963 | F113: 145054.6665 | G113: 143511.5318 | H113: -11110.5702 | I113: =IF(H113="","",H113/FAG!N109) -> -37.40932727
A114: =Stammdaten!B109 -> 13075119 | B114: 13075119 | C114: =Stammdaten!D109 -> Rothenklempenow | D114: =VLOOKUP(A114,FAG!$B$3:$AR$159,31+Kreisumlage!$D$1,0) -> 618820.85 | E114: 268568.2489 | F114: 290845.7995 | G114: 287751.6952 | H114: -22277.5506 | I114: =IF(H114="","",H114/FAG!N110) -> -37.3784406
A115: =Stammdaten!B110 -> 13075120 | B115: 13075120 | C115: =Stammdaten!D110 -> Rubenow | D115: =VLOOKUP(A115,FAG!$B$3:$AR$159,31+Kreisumlage!$D$1,0) -> 2447427.29 | E115: 1062183.444 | F115: 1150290.826 | G115: 1138053.69 | H115: -88107.38244 | I115: =IF(H115="","",H115/FAG!N111) -> -112.669287
A116: =Stammdaten!B111 -> 13075121 | B116: 13075121 | C116: =Stammdaten!D111 -> Rubkow | D116: =VLOOKUP(A116,FAG!$B$3:$AR$159,31+Kreisumlage!$D$1,0) -> 636707.12 | E116: 276330.8901 | F116: 299252.3464 | G116: 296068.8108 | H116: -22921.45632 | I116: =IF(H116="","",H116/FAG!N112) -> -37.5761579
A117: =Stammdaten!B112 -> 13075122 | B117: 13075122 | C117: =Stammdaten!D112 -> Sarnow | D117: =VLOOKUP(A117,FAG!$B$3:$AR$159,31+Kreisumlage!$D$1,0) -> 406182.15 | E117: 176283.0531 | F117: 190905.6105 | G117: 188874.6998 | H117: -14622.5574 | I117: =IF(H117="","",H117/FAG!N113) -> -39.20256676
A118: =Stammdaten!B113 -> 13075123 | B118: 13075123 | C118: =Stammdaten!D113 -> Sassen-Trantow | D118: =VLOOKUP(A118,FAG!$B$3:$AR$159,31+Kreisumlage!$D$1,0) -> 885850.49 | E118: =$D118*E$3 -> 384459.1127 | F118: 416349.7303 | G118: 411920.4779 | H118: =E118-F118 -> -31890.61764 | I118: =IF(H118="","",H118/FAG!N114) -> -37.34264361
A119: =Stammdaten!B114 -> 13075124 | B119: 13075124 | C119: =Stammdaten!D114 -> Sauzin | D119: =VLOOKUP(A119,FAG!$B$3:$AR$159,31+Kreisumlage!$D$1,0) -> 450590.38 | E119: 195556.2249 | F119: 211777.4786 | G119: 209524.5267 | H119: -16221.25368 | I119: =IF(H119="","",H119/FAG!N115) -> -37.29023834
A120: =Stammdaten!B115 -> 13075125 | B120: 13075125 | C120: =Stammdaten!D115 -> Schmatzin | D120: =VLOOKUP(A120,FAG!$B$3:$AR$159,31+Kreisumlage!$D$1,0) -> 289717.3 | E120: 125737.3082 | F120: 136167.131 | G120: 134718.5445 | H120: -10429.8228 | I120: =IF(H120="","",H120/FAG!N116) -> -36.08935225
A121: =Stammdaten!B116 -> 13075126 | B121: 13075126 | C121: =Stammdaten!D116 -> Schönwalde | D121: =VLOOKUP(A121,FAG!$B$3:$AR$159,31+Kreisumlage!$D$1,0) -> 452813.21 | E121: 196520.9331 | F121: 212822.2087 | G121: 210558.1427 | H121: -16301.27556 | I121: =IF(H121="","",H121/FAG!N117) -> -38.17628937
A122: =Stammdaten!B117 -> 13075127 | B122: 13075127 | C122: =Stammdaten!D117 -> Spantekow | D122: =VLOOKUP(A122,FAG!$B$3:$AR$159,31+Kreisumlage!$D$1,0) -> 1152690.43 | E122: 500267.6466 | F122: 541764.5021 | G122: 536001.05 | H122: -41496.85548 | I122: =IF(H122="","",H122/FAG!N118) -> -37.86209442
A123: =Stammdaten!B118 -> 13075128 | B123: 13075128 | C123: =Stammdaten!D118 -> Stolpe an der Peene | D123: =VLOOKUP(A123,FAG!$B$3:$AR$159,31+Kreisumlage!$D$1,0) -> 285425.07 | E123: 123874.4804 | F123: 134149.7829 | G123: 132722.6576 | H123: -10275.30252 | I123: =IF(H123="","",H123/FAG!N119) -> -36.82904129
A124: =Stammdaten!B119 -> 13075129 | B124: 13075129 | C124: =Stammdaten!D119 -> Stolpe auf Usedom | D124: =VLOOKUP(A124,FAG!$B$3:$AR$159,31+Kreisumlage!$D$1,0) -> 380705.13 | E124: 165226.0264 | F124: 178931.4111 | G124: 177027.8855 | H124: -13705.38468 | I124: =IF(H124="","",H124/FAG!N120) -> -37.1419639
A125: =Stammdaten!B120 -> 13075130 | B125: 13075130 | C125: =Stammdaten!D120 -> Strasburg (Uckermark), Stadt | D125: =VLOOKUP(A125,FAG!$B$3:$AR$159,31+Kreisumlage!$D$1,0) -> 4737795.53 | E125: 2056203.26 | F125: 2226763.899 | G125: 2203074.921 | H125: -170560.6391 | I125: =IF(H125="","",H125/FAG!N121) -> -38.14820825
A126: =Stammdaten!B121 -> 13075131 | B126: 13075131 | C126: =Stammdaten!D121 -> Torgelow, Stadt | D126: =VLOOKUP(A126,FAG!$B$3:$AR$159,31+Kreisumlage!$D$1,0) -> 9384940.57 | E126: 4073064.207 | F126: 4410922.068 | G126: 4363997.365 | H126: -337857.8605 | I126: =IF(H126="","",H126/FAG!N122) -> -37.83826414
A127: =Stammdaten!B122 -> 13075133 | B127: 13075133 | C127: =Stammdaten!D122 -> Trassenheide | D127: =VLOOKUP(A127,FAG!$B$3:$AR$159,31+Kreisumlage!$D$1,0) -> 1145320.94 | E127: 497069.288 | F127: 538300.8418 | G127: 532574.2371 | H127: -41231.55384 | I127: =IF(H127="","",H127/FAG!N123) -> -43.77022701
A128: =Stammdaten!B123 -> 13075134 | B128: 13075134 | C128: =Stammdaten!D123 -> Tutow | D128: =VLOOKUP(A128,FAG!$B$3:$AR$159,31+Kreisumlage!$D$1,0) -> 1078447.24 | E128: 468046.1022 | F128: 506870.2028 | G128: 501477.9666 | H128: -38824.10064 | I128: =IF(H128="","",H128/FAG!N124) -> -38.40168214
A129: =Stammdaten!B124 -> 13075135 | B129: 13075135 | C129: =Stammdaten!D124 -> Ückeritz | D129: =VLOOKUP(A129,FAG!$B$3:$AR$159,31+Kreisumlage!$D$1,0) -> 1055907.13 | E129: 458263.6944 | F129: 496276.3511 | G129: 490996.8154 | H129: -38012.65668 | I129: =IF(H129="","",H129/FAG!N125) -> -37.67359433
A130: =Stammdaten!B125 -> 13075136 | B130: 13075136 | C130: =Stammdaten!D125 -> Ueckermünde, Stadt | D130: =VLOOKUP(A130,FAG!$B$3:$AR$159,31+Kreisumlage!$D$1,0) -> 10780327.68 | E130: 4678662.213 | F130: 5066754.01 | G130: 5012852.371 | H130: -388091.7965 | I130: =IF(H130="","",H130/FAG!N126) -> -45.89000786
A131: =Stammdaten!B126 -> 13075137 | B131: 13075137 | C131: =Stammdaten!D126 -> Usedom, Stadt | D131: =VLOOKUP(A131,FAG!$B$3:$AR$159,31+Kreisumlage!$D$1,0) -> 1805482.54 | E131: 783579.4224 | F131: 848576.7938 | G131: 839549.3811 | H131: -64997.37144 | I131: =IF(H131="","",H131/FAG!N127) -> -37.33335522
A132: =Stammdaten!B127 -> 13075138 | B132: 13075138 | C132: =Stammdaten!D127 -> Viereck | D132: =VLOOKUP(A132,FAG!$B$3:$AR$159,31+Kreisumlage!$D$1,0) -> 1061314.18 | E132: 460610.3541 | F132: 498817.6646 | G132: 493511.0937 | H132: -38207.31048 | I132: =IF(H132="","",H132/FAG!N128) -> -37.42145982
A133: =Stammdaten!B128 -> 13075139 | B133: 13075139 | C133: =Stammdaten!D128 -> Vogelsang-Warsin | D133: =VLOOKUP(A133,FAG!$B$3:$AR$159,31+Kreisumlage!$D$1,0) -> 370822.15 | E133: 160936.8131 | F133: 174286.4105 | G133: 172432.2998 | H133: -13349.5974 | I133: =IF(H133="","",H133/FAG!N129) -> -37.60449972
A134: =Stammdaten!B129 -> 13075140 | B134: 13075140 | C134: =Stammdaten!D129 -> Völschow | D134: =VLOOKUP(A134,FAG!$B$3:$AR$159,31+Kreisumlage!$D$1,0) -> 540359.64 | E134: 234516.0838 | F134: 253969.0308 | G134: 251267.2326 | H134: -19452.94704 | I134: =IF(H134="","",H134/FAG!N130) -> -37.69950977
A135: =Stammdaten!B130 -> 13075141 | B135: 13075141 | C135: =Stammdaten!D130 -> Wackerow | D135: =VLOOKUP(A135,FAG!$B$3:$AR$159,31+Kreisumlage!$D$1,0) -> 1548164.51 | E135: 671903.3973 | F135: 727637.3197 | G135: 719896.4972 | H135: -55733.92236 | I135: =IF(H135="","",H135/FAG!N131) -> -36.86105976
A136: =Stammdaten!B131 -> 13075142 | B136: 13075142 | C136: =Stammdaten!D131 -> Weitenhagen | D136: =VLOOKUP(A136,FAG!$B$3:$AR$159,31+Kreisumlage!$D$1,0) -> 2120472.94 | E136: 920285.256 | F136: 996622.2818 | G136: 986019.9171 | H136: -76337.02584 | I136: =IF(H136="","",H136/FAG!N132) -> -37.88438007
A137: =Stammdaten!B132 -> 13075143 | B137: 13075143 | C137: =Stammdaten!D132 -> Wilhelmsburg | D137: =VLOOKUP(A137,FAG!$B$3:$AR$159,31+Kreisumlage!$D$1,0) -> 779873.94 | E137: 338465.29 | F137: =$D137*F$3 -> 366540.7518 | G137: 362641.3821 | H137: -28075.46184 | I137: =IF(H137="","",H137/FAG!N133) -> -38.40692454
A138: =Stammdaten!B133 -> 13075144 | B138: 13075144 | C138: =Stammdaten!D133 -> Wolgast, Stadt | D138: =VLOOKUP(A138,FAG!$B$3:$AR$159,31+Kreisumlage!$D$1,0) -> 14683602.22 | E138: 6372683.363 | F138: 6901293.043 | G138: 6827875.032 | H138: -528609.6799 | I138: =IF(H138="","",H138/FAG!N134) -> -44.45834146
A139: =Stammdaten!B134 -> 13075145 | B139: 13075145 | C139: =Stammdaten!D134 -> Wrangelsburg | D139: =VLOOKUP(A139,FAG!$B$3:$AR$159,31+Kreisumlage!$D$1,0) -> 243597.95 | E139: 105721.5103 | F139: 114491.0365 | G139: 113273.0468 | H139: -8769.5262 | I139: =IF(H139="","",H139/FAG!N135) -> -36.5396925
A140: =Stammdaten!B135 -> 13075146 | B140: 13075146 | C140: =Stammdaten!D135 -> Wusterhusen | D140: =VLOOKUP(A140,FAG!$B$3:$AR$159,31+Kreisumlage!$D$1,0) -> 1150040.58 | E140: 499117.6117 | F140: 540519.0726 | G140: 534768.8697 | H140: -41401.46088 | I140: =IF(H140="","",H140/FAG!N136) -> -37.91342571
A141: =Stammdaten!B136 -> 13075147 | B141: 13075147 | C141: =Stammdaten!D136 -> Zemitz | D141: =VLOOKUP(A141,FAG!$B$3:$AR$159,31+Kreisumlage!$D$1,0) -> 726381.51 | E141: 315249.5753 | F141: 341399.3097 | G141: 337767.4022 | H141: -26149.73436 | I141: =IF(H141="","",H141/FAG!N137) -> -36.36958882
A142: =Stammdaten!B137 -> 13075148 | B142: 13075148 | C142: =Stammdaten!D137 -> Zempin | D142: =VLOOKUP(A142,FAG!$B$3:$AR$159,31+Kreisumlage!$D$1,0) -> 995679.24 | E142: 432124.7902 | F142: 467969.2428 | G142: 462990.8466 | H142: -35844.45264 | I142: =IF(H142="","",H142/FAG!N138) -> -37.41592134
A143: =Stammdaten!B138 -> 13075149 | B143: 13075149 | C143: =Stammdaten!D138 -> Zerrenthin | D143: =VLOOKUP(A143,FAG!$B$3:$AR$159,31+Kreisumlage!$D$1,0) -> 482819.62 | E143: 209543.7151 | F143: 226925.2214 | G143: 224511.1233 | H143: -17381.50632 | I143: =IF(H143="","",H143/FAG!N139) -> -36.06121643
A144: =Stammdaten!B139 -> 13075150 | B144: 13075150 | C144: =Stammdaten!D139 -> Ziethen | D144: =VLOOKUP(A144,FAG!$B$3:$AR$159,31+Kreisumlage!$D$1,0) -> 455814.17 | E144: 197823.3498 | F144: 214232.6599 | G144: 211953.5891 | H144: -16409.31012 | I144: =IF(H144="","",H144/FAG!N140) -> -36.8748542
A145: =Stammdaten!B140 -> 13075151 | B145: 13075151 | C145: =Stammdaten!D140 -> Zinnowitz | D145: =VLOOKUP(A145,FAG!$B$3:$AR$159,31+Kreisumlage!$D$1,0) -> 4617623.42 | E145: 2004048.564 | F145: 2170283.007 | G145: 2147194.89 | H145: -166234.4431 | I145: =IF(H145="","",H145/FAG!N141) -> -39.88350363
A146: =Stammdaten!B141 -> 13075152 | B146: 13075152 | C146: =Stammdaten!D141 -> Zirchow | D146: =VLOOKUP(A146,FAG!$B$3:$AR$159,31+Kreisumlage!$D$1,0) -> 590003.89 | E146: 256061.6883 | F146: 277301.8283 | G146: 274351.8089 | H146: -21240.14004 | I146: =IF(H146="","",H146/FAG!N142) -> -35.81811137
A147: =Stammdaten!B142 -> 13075154 | B147: 13075154 | C147: =Stammdaten!D142 -> Züssow | D147: =VLOOKUP(A147,FAG!$B$3:$AR$159,31+Kreisumlage!$D$1,0) -> 1352937.98 | E147: 587175.0833 | F147: 635880.8506 | G147: 629116.1607 | H147: -48705.76728 | I147: =IF(H147="","",H147/FAG!N143) -> -37.58161056
A148: =Stammdaten!B143 -> 13075155 | B148: 13075155 | C148: =Stammdaten!D143 -> Neetzow-Liepen | D148: =VLOOKUP(A148,FAG!$B$3:$AR$159,31+Kreisumlage!$D$1,0) -> 844590.41 | E148: 366552.2379 | F148: 396957.4927 | G148: 392734.5407 | H148: -30405.25476 | I148: =IF(H148="","",H148/FAG!N144) -> -37.30706106
A149: =Stammdaten!B144 -> 13075156 | B149: 5551 | C149: =Stammdaten!D144 -> Karlsburg | D149: =VLOOKUP(A149,FAG!$B$3:$AR$159,31+Kreisumlage!$D$1,0) -> 1918443.37 | E149: 832604.4226 | F149: 901668.3839 | G149: 892076.1671 | H149: -69063.96132 | I149: =IF(H149="","",H149/FAG!N145) -> -37.43304137
A150: =Stammdaten!B145 -> 5551 | B150: 5552 | C150: =Stammdaten!D145 -> Gemeinden des Amtes Am Peenestrom | D150: =VLOOKUP(A150,FAG!$B$3:$AR$159,31+Kreisumlage!$D$1,0) -> 18285916.15 | E150: =$D150*E$3 -> 7936087.609 | F150: 8594380.591 | G150: 8502951.01 | H150: =E150-F150 -> -658292.9814 | I150: =IF(H150="","",H150/FAG!N146) -> -42.77963227
A151: =Stammdaten!B146 -> 5552 | B151: 5553 | C151: =Stammdaten!D146 -> Gemeinden des Amtes Am Stettiner Haff | D151: =VLOOKUP(A151,FAG!$B$3:$AR$159,31+Kreisumlage!$D$1,0) -> 10729942.2 | E151: 4656794.915 | F151: 5043072.834 | G151: 4989423.123 | H151: -386277.9192 | I151: =IF(H151="","",H151/FAG!N147) -> -37.34318631
A152: =Stammdaten!B147 -> 5553 | B152: 5554 | C152: =Stammdaten!D147 -> Gemeinden des Amtes Anklam-Land | D152: =VLOOKUP(A152,FAG!$B$3:$AR$159,31+Kreisumlage!$D$1,0) -> 10441332.28 | E152: 4531538.21 | F152: 4907426.172 | G152: 4855219.51 | H152: -375887.9621 | I152: =IF(H152="","",H152/FAG!N148) -> -39.68411762
A153: =Stammdaten!B148 -> 5554 | B153: 5555 | C153: =Stammdaten!D148 -> Gemeinden des Amtes Jarmen-Tutow | D153: =VLOOKUP(A153,FAG!$B$3:$AR$159,31+Kreisumlage!$D$1,0) -> 7056548.2 | E153: 3062541.919 | F153: 3316577.654 | G153: 3281294.913 | H153: -254035.7352 | I153: =IF(H153="","",H153/FAG!N149) -> -38.00085792
A154: =Stammdaten!B149 -> 5555 | B154: 5556 | C154: =Stammdaten!D149 -> Gemeinden des Amtes Landhagen | D154: =VLOOKUP(A154,FAG!$B$3:$AR$159,31+Kreisumlage!$D$1,0) -> 11102740.91 | E154: 4818589.555 | F154: 5218288.228 | G154: 5162774.523 | H154: -399698.6728 | I154: =IF(H154="","",H154/FAG!N150) -> -37.60100402
A155: =Stammdaten!B150 -> 5556 | B155: 5557 | C155: =Stammdaten!D150 -> Gemeinden des Amtes Löcknitz-Penkun | D155: =VLOOKUP(A155,FAG!$B$3:$AR$159,31+Kreisumlage!$D$1,0) -> 10857235.06 | E155: 4712040.016 | F155: 5102900.478 | G155: 5048614.303 | H155: -390860.4622 | I155: =IF(H155="","",H155/FAG!N151) -> -37.53581697
A156: =Stammdaten!B151 -> 5557 | B156: 5558 | C156: =Stammdaten!D151 -> Gemeinden des Amtes Lubmin | D156: =VLOOKUP(A156,FAG!$B$3:$AR$159,31+Kreisumlage!$D$1,0) -> 16580065.18 | E156: 7195748.288 | F156: 7792630.635 | G156: 7709730.309 | H156: -596882.3465 | I156: =IF(H156="","",H156/FAG!N152) -> -57.23294146
A157: =Stammdaten!B152 -> 5558 | B157: 5559 | C157: =Stammdaten!D152 -> Gemeinden des Amtes Peenetal/Loitz | D157: =VLOOKUP(A157,FAG!$B$3:$AR$159,31+Kreisumlage!$D$1,0) -> 6249706.52 | E157: 2712372.63 | F157: 2937362.064 | G157: 2906113.532 | H157: -224989.4347 | I157: =IF(H157="","",H157/FAG!N153) -> -37.63623866
A158: =Stammdaten!B153 -> 5559 | B158: 5560 | C158: =Stammdaten!D153 -> Gemeinden des Amtes Torgelow-Ferdinandshof | D158: =VLOOKUP(A158,FAG!$B$3:$AR$159,31+Kreisumlage!$D$1,0) -> 14505496 | E158: 6295385.264 | F158: 6817583.12 | G158: 6745055.64 | H158: -522197.856 | I158: =IF(H158="","",H158/FAG!N154) -> -37.73378539
A159: =Stammdaten!B154 -> 5560 | B159: 5561 | C159: =Stammdaten!D154 -> Gemeinden des Amtes Uecker-Randow-Tal | D159: =VLOOKUP(A159,FAG!$B$3:$AR$159,31+Kreisumlage!$D$1,0) -> 7291946.06 | E159: 3164704.59 | F159: 3427214.648 | G159: 3390754.918 | H159: -262510.0582 | I159: =IF(H159="","",H159/FAG!N155) -> -37.3414023
A160: =Stammdaten!B155 -> 5561 | B160: 5562 | C160: =Stammdaten!D155 -> Gemeinden des Amtes Usedom-Nord | D160: =VLOOKUP(A160,FAG!$B$3:$AR$159,31+Kreisumlage!$D$1,0) -> 10284962.38 | E160: 4463673.673 | F160: 4833932.319 | G160: 4782507.507 | H160: -370258.6457 | I160: =IF(H160="","",H160/FAG!N156) -> -39.15594815
A161: =Stammdaten!B156 -> 5562 | B161: 5563 | C161: =Stammdaten!D156 -> Gemeinden des Amtes Usedom-Süd | D161: =VLOOKUP(A161,FAG!$B$3:$AR$159,31+Kreisumlage!$D$1,0) -> 12276647.31 | E161: 5328064.933 | F161: 5770024.236 | G161: 5708640.999 | H161: -441959.3032 | I161: =IF(H161="","",H161/FAG!N157) -> -37.81308206
A162: =Stammdaten!B157 -> 5563 | B162: 6667 | C162: =Stammdaten!D157 -> Gemeinden des Amtes Züssow | D162: =VLOOKUP(A162,FAG!$B$3:$AR$159,31+Kreisumlage!$D$1,0) -> 11937104.1 | E162: 5180703.179 | F162: 5610438.927 | G162: 5550753.407 | H162: -429735.7476 | I162: =IF(H162="","",H162/FAG!N158) -> -37.5840255
A163: =Stammdaten!B158 -> 6667 | C163: =Stammdaten!D158 -> Vorpommern-Greifswald (Durchschnitt) | D163: =VLOOKUP(A163,FAG!$B$3:$AR$159,31+Kreisumlage!$D$1,0) -> 1964462.339 | E163: 852576.6553 | F163: 923297.2995 | G163: 913474.9878 | H163: -70720.64421 | I163: =IF(H163="","",H163/FAG!N159) -> -42.35110844

Sheet Finanzanalyse
B2: Gemeindefinanzanalyse des Landkreises Vorpommern-Greifswald
D3: 6 | E3: 16 | F3: 27 | G3: 38 | H3: 49 | I3: 60 | J3: 71 | K3: 82 | L3: 93 | M3: 104
P4: Legende
C5: =VLOOKUP(C6,Stammdaten!D3:F158,3,0) -> 5557 | D5: 1 | E5: 2 | F5: 3 | G5: 4 | H5: 5 | I5: 6 | J5: 7 | K5: 8 | L5: 9 | M5: 10 | P5: Auswahlfeld
B6: Gemeinde | C6: Gemeinden des Amtes Lubmin | D6: 2013 | E6: 2014 | F6: 2015 | G6: 2016 | H6: 2017 | I6: 2018 | J6: 2019 | K6: 2020 | L6: 2021 | M6: 2022 | N6: Trend | P6: Prognosedaten | V6: Vorpommern-Greifswald (gesamt)
B7: Einwohner | D7: =VLOOKUP($C$5,FAG!$B$4:$R$159,(4+Finanzanalyse!D5),0) -> 10473 | E7: =VLOOKUP($C$5,FAG!$B$4:$R$159,(4+Finanzanalyse!E5),0) -> 10462 | F7: =VLOOKUP($C$5,FAG!$B$4:$R$159,(4+Finanzanalyse!F5),0) -> 10503 | G7: =VLOOKUP($C$5,FAG!$B$4:$R$159,(4+Finanzanalyse!G5),0) -> 10493 | H7: =VLOOKUP($C$5,FAG!$B$4:$R$159,(4+Finanzanalyse!H5),0) -> 10431 | I7: =VLOOKUP($C$5,FAG!$B$4:$R$159,(4+Finanzanalyse!I5),0) -> 10381 | J7: =VLOOKUP($C$5,FAG!$B$4:$R$159,(4+Finanzanalyse!J5),0) -> 10361 | K7: =VLOOKUP($C$5,FAG!$B$4:$R$159,(4+Finanzanalyse!K5),0) -> 10419 | L7: =VLOOKUP($C$5,FAG!$B$4:$R$159,(4+Finanzanalyse!L5),0) -> 10429 | M7: =FORECAST(M6,D7:L7,D6:L6) -> 10380.69444 | P7: Plandaten | V7: Ahlbeck
B8: Jahresbezogener Saldo der laufenden Ein- und Auszahlungen vor planm. Tilgung (Zeile 18) | D8: =VLOOKUP($C$5,'Saldenliste InnenM'!$G$19:$DT$174,D$3-1,0) -> 2169779.99 | E8: =VLOOKUP($C$5,'Saldenliste InnenM'!$G$19:$DT$174,E$3-1,0) -> 1180694.09 | F8: =VLOOKUP($C$5,'Saldenliste InnenM'!$G$19:$DT$174,F$3-1,0) -> 5569287.91 | G8: =VLOOKUP($C$5,'Saldenliste InnenM'!$G$19:$DT$174,G$3-1,0) -> 3483863.54 | H8: =VLOOKUP($C$5,'Saldenliste InnenM'!$G$19:$DT$174,H$3-1,0) -> -1526555.06 | I8: =VLOOKUP($C$5,'Saldenliste InnenM'!$G$19:$DT$174,I$3-1,0) -> 2102439.84 | J8: =VLOOKUP($C$5,'Saldenliste InnenM'!$G$19:$DT$174,J$3-1,0) -> 5935698.65 | K8: =VLOOKUP($C$5,'Saldenliste InnenM'!$G$19:$DT$174,K$3-1,0) -> 7846960.97 | L8: =VLOOKUP($C$5,'Saldenliste InnenM'!$G$19:$DT$174,L$3-1,0) -> 3814568.42 | M8: =VLOOKUP($C$5,'Saldenliste InnenM'!$G$19:$DT$174,M$3-1,0) -> 1250185.73 | P8: noch keine Daten | V8: Alt Tellin
B9: Planmäßige Tilgung | D9: =VLOOKUP($C$5,'Saldenliste InnenM'!$G$19:$DT$174,D$3,0) -> 260159.74 | E9: =VLOOKUP($C$5,'Saldenliste InnenM'!$G$19:$DT$174,E$3,0) -> 246062.94 | F9: =VLOOKUP($C$5,'Saldenliste InnenM'!$G$19:$DT$174,F$3,0) -> 360755.63 | G9: =VLOOKUP($C$5,'Saldenliste InnenM'!$G$19:$DT$174,G$3,0) -> 245048.46 | H9: =VLOOKUP($C$5,'Saldenliste InnenM'!$G$19:$DT$174,H$3,0) -> 257143.54 | I9: =VLOOKUP($C$5,'Saldenliste InnenM'!$G$19:$DT$174,I$3,0) -> 205386.84 | J9: =VLOOKUP($C$5,'Saldenliste InnenM'!$G$19:$DT$174,J$3,0) -> 208071.01 | K9: =VLOOKUP($C$5,'Saldenliste InnenM'!$G$19:$DT$174,K$3,0) -> 184999.2 | L9: =VLOOKUP($C$5,'Saldenliste InnenM'!$G$19:$DT$174,L$3,0) -> 179977.84 | M9: =VLOOKUP($C$5,'Saldenliste InnenM'!$G$19:$DT$174,M$3,0) -> 147435.82 | V9: Altwarp
B10: Jahresbezogener Saldo der laufenden Ein- und Auszahlungen (Zeile 37) | D10: =VLOOKUP($C$5,'Saldenliste InnenM'!$G$19:$DT$174,D$3+1,0) -> 1909620.25 | E10: =VLOOKUP($C$5,'Saldenliste InnenM'!$G$19:$DT$174,E$3+1,0) -> 934631.15 | F10: =VLOOKUP($C$5,'Saldenliste InnenM'!$G$19:$DT$174,F$3+1,0) -> 5208532.28 | G10: =VLOOKUP($C$5,'Saldenliste InnenM'!$G$19:$DT$174,G$3+1,0) -> 3238815.08 | H10: =VLOOKUP($C$5,'Saldenliste InnenM'!$G$19:$DT$174,H$3+1,0) -> -1783698.6 | I10: =VLOOKUP($C$5,'Saldenliste InnenM'!$G$19:$DT$174,I$3+1,0) -> 1897053 | J10: =VLOOKUP($C$5,'Saldenliste InnenM'!$G$19:$DT$174,J$3+1,0) -> 5727627.64 | K10: =VLOOKUP($C$5,'Saldenliste InnenM'!$G$19:$DT$174,K$3+1,0) -> 7661961.77 | L10: =VLOOKUP($C$5,'Saldenliste InnenM'!$G$19:$DT$174,L$3+1,0) -> 3634590.58 | M10: =VLOOKUP($C$5,'Saldenliste InnenM'!$G$19:$DT$174,M$3+1,0) -> 1102749.91 | V10: Altwigshagen
B11: davon Konsolidierungszuweisung nach §27 FAG | K11: =VLOOKUP($C$5,'Saldenliste InnenM'!$G$19:$EZ$174,K$3+36,0)+VLOOKUP($C$5,'Saldenliste InnenM'!$G$19:$EZ$174,K$3+37,0) -> 0 | L11: =VLOOKUP($C$5,'Saldenliste InnenM'!$G$19:$EZ$174,K$3+43,0)+VLOOKUP($C$5,'Saldenliste InnenM'!$G$19:$EZ$174,K$3+44,0) -> 0 | M11: =VLOOKUP($C$5,'Saldenliste InnenM'!$G$19:$EZ$174,K$3+50,0)+VLOOKUP($C$5,'Saldenliste InnenM'!$G$19:$EZ$174,K$3+51,0) -> 0
B12: Saldo der laufenden Ein- und Auszahlungen zum 31. 12 des Haushaltsjahres (Zeile 39) | D12: =VLOOKUP($C$5,'Saldenliste InnenM'!$G$19:$DT$174,D$3+2,0) -> 7744411.11 | E12: =VLOOKUP($C$5,'Saldenliste InnenM'!$G$19:$DT$174,E$3+2,0) -> 8679042.26 | F12: =VLOOKUP($C$5,'Saldenliste InnenM'!$G$19:$DT$174,F$3+2,0) -> 13893078.86 | G12: =VLOOKUP($C$5,'Saldenliste InnenM'!$G$19:$DT$174,G$3+2,0) -> 17108472.56 | H12: =VLOOKUP($C$5,'Saldenliste InnenM'!$G$19:$DT$174,H$3+2,0) -> 15324773.96 | I12: =VLOOKUP($C$5,'Saldenliste InnenM'!$G$19:$DT$174,I$3+2,0) -> 17221826.96 | J12: =VLOOKUP($C$5,'Saldenliste InnenM'!$G$19:$DT$174,J$3+2,0) -> 22949454.6 | K12: =VLOOKUP($C$5,'Saldenliste InnenM'!$G$19:$DT$174,K$3+2,0) -> 30611416.37 | L12: =VLOOKUP($C$5,'Saldenliste InnenM'!$G$19:$DT$174,L$3+2,0) -> 34246006.95 | M12: =VLOOKUP($C$5,'Saldenliste InnenM'!$G$19:$DT$174,M$3+2,0) -> 35348756.86 | V12: Anklam, Stadt
B13: kummulierter Saldo (Saldo der laufenden Ein- und Auszahlungen zum 31. 12 des Haushaltsjahres (Zeile 39)) pro Kopf | D13: =IF(D7=0,"",D12/D7) -> 739.4644429 | E13: 829.5777347 | F13: =IF(F7=0,"",F12/F7) -> 1322.772433 | G13: =IF(G7=0,"",G12/G7) -> 1630.465316 | H13: =IF(H7=0,"",H12/H7) -> 1469.15674 | I13: =IF(I7=0,"",I12/I7) -> 1658.975721 | J13: =IF(J7=0,"",J12/J7) -> 2214.984519 | K13: =IF(K7=0,"",K12/K7) -> 2938.037851 | L13: =IF(L7=0,"",L12/L7) -> 3283.728732 | M13: =IF(M7=0,"",M12/M7) -> 3405.240088 | V13: Bandelin
B14: Schulden | D14: =VLOOKUP($C$5,Schulden!$B$4:$Q$159,5+D$5,0) -> 2862000 | E14: =VLOOKUP($C$5,Schulden!$B$4:$Q$159,5+E$5,0) -> 2695000 | F14: =VLOOKUP($C$5,Schulden!$B$4:$Q$159,5+F$5,0) -> 2081000 | G14: =VLOOKUP($C$5,Schulden!$B$4:$Q$159,5+G$5,0) -> 2345000 | H14: =VLOOKUP($C$5,Schulden!$B$4:$Q$159,5+H$5,0) -> 1633000 | I14: =VLOOKUP($C$5,Schulden!$B$4:$Q$159,5+I$5,0) -> 2864000 | J14: =VLOOKUP($C$5,Schulden!$B$4:$Q$159,5+J$5,0) -> 1343000 | K14: =VLOOKUP($C$5,Schulden!$B$4:$Q$159,5+K$5,0) -> 1052000 | L14: =VLOOKUP($C$5,Schulden!$B$4:$Q$159,5+L$5,0) -> 824000 | V14: Bargischow
B15: pro Kopf Verschuldung | D15: =IF(D7=0,0,D14/D7) -> 273.2741335 | E15: =IF(E7=0,0,E14/E7) -> 257.5989295 | F15: 198.1338665 | G15: 223.4823215 | H15: 156.5525836 | I15: 275.8886427 | J15: 129.620693 | K15: 100.9693829 | L15: 79.01045163 | M15: 0 | V15: Behrenhoff
B16: Haushaltsausgleich unterjährig erreicht | D16: =IF(D10=0,"",IF(D10>0,1,-1)) -> 1 | E16: =IF(E10=0,"",IF(E10>0,1,-1)) -> 1 | F16: 1 | G16: 1 | H16: -1 | I16: =IF(I10=0,"",IF(I10>0,1,-1)) -> 1 | J16: 1 | K16: 1 | L16: 1 | M16: =IF(M10=0,"",IF(M10>0,1,-1)) -> 1 | V16: Bentzin
B17: Haushaltsausgleich erreicht | D17: =IF(D12=0,"",IF(D12>0,1,-1)) -> 1 | E17: =IF(E12=0,"",IF(E12>0,1,-1)) -> 1 | F17: 1 | G17: 1 | H17: 1 | I17: =IF(I12=0,"",IF(I12>0,1,-1)) -> 1 | J17: 1 | K17: 1 | L17: 1 | M17: =IF(M12=0,"",IF(M12>0,1,-1)) -> 1 | V17: Benz
B18: Haushaltssicherungskonzept vorhanden? ja/nein | H18: =VLOOKUP($C$5,Schulden!$B$170:$K$325,6,0) -> 1 | I18: =VLOOKUP($C$5,Schulden!$B$170:$K$325,7,0) -> 1 | J18: =VLOOKUP($C$5,Schulden!$B$170:$K$325,7,0) -> 1 | K18: =VLOOKUP($C$5,Schulden!$B$170:$K$325,7,0) -> 1 | L18: =VLOOKUP($C$5,Schulden!$B$170:$K$325,7,0) -> 1 | M18: =VLOOKUP($C$5,Schulden!$B$170:$K$325,7,0) -> 1 | V18: Bergholz
B19: Wurde eine Konsolidierungsvereinbarung abgeschlossen? | V19: Blankensee
V20: Blesewitz
V21: Boldekow
V22: Boock
V23: Brietzig
V24: Brünzow
V25: Bugewitz
V26: Buggenhagen
V27: Butzow
V28: Daberkow
V29: Dargelin
V30: Dargen
V31: Dersekow
V32: Diedrichshagen
V33: Ducherow
V34: Eggesin, Stadt
V35: Fahrenwalde
V36: Ferdinandshof
V37: Garz
V38: Glasow
V39: Görmin
V40: Grambin
V41: Grambow
V42: Greifswald, Hansestadt
V43: Gribow
V44: Groß Kiesow
V45: Groß Luckow
V46: Groß Polzin
V47: Gützkow, Stadt
V48: Hammer a. d. Uecker
V49: Hanshagen
V50: Heinrichswalde
V51: Heringsdorf
V52: Hinrichshagen
V53: Hintersee
V54: Iven
V55: Jarmen, Stadt
V56: Jatznick
V57: Kamminke
V58: Karlsburg (bis 2019)
V59: Karlshagen
V60: Katzow
V61: Kemnitz
V62: Klein Bünzow
V63: Koblentz
V64: Korswandt
V65: Koserow
V66: Krackow
V67: Krien
V68: Kröslin
V69: Kruckow
V70: Krugsdorf
V71: Krummin
V72: Krusenfelde
V73: Lassan, Stadt
V74: Leopoldshagen
V75: Levenhagen
V76: Liepgarten
V77: Löcknitz
V78: Loddin
V79: Loissin
V80: Loitz, Stadt
V81: Lubmin
V82: Lübs
V83: Luckow
V84: Lühmannsdorf (bis 2019)
V85: Lütow
V86: Medow
V87: Meiersberg
V88: Mellenthin
V89: Mesekenhagen
V90: Mölschow
V91: Mönkebude
V92: Murchin
V93: Nadrensee
V94: Neu Boltenhagen
V95: Neu Kosenow
V96: Neuenkirchen
V97: Neuenkirchen
V98: Nieden
V99: Papendorf
V100: Pasewalk, Stadt
V101: Peenemünde
V102: Penkun, Stadt
V103: Plöwen
V104: Polzow
V105: Postlow
V106: Pudagla
V107: Ramin
V108: Rankwitz
V109: Rollwitz
V110: Rossin
V111: Rossow
V112: Rothemühl
V113: Rothenklempenow
V114: Rubenow
V115: Rubkow
V116: Sarnow
V117: Sassen-Trantow
V118: Sauzin
V119: Schmatzin
V120: Schönwalde
V121: Spantekow
V122: Stolpe an der Peene
V123: Stolpe auf Usedom
V124: Strasburg (Uckermark), Stadt
V125: Torgelow, Stadt
V126: Trassenheide
V127: Tutow
V128: Ückeritz
V129: Ueckermünde, Stadt
V130: Usedom, Stadt
V131: Viereck
V132: Vogelsang-Warsin
V133: Völschow
V134: Wackerow
V135: Weitenhagen
V136: Wilhelmsburg
V137: Wolgast, Stadt
V138: Wrangelsburg
V139: Wusterhusen
V140: Zemitz
V141: Zempin
V142: Zerrenthin
V143: Ziethen
V144: Zinnowitz
V145: Zirchow
V146: Züssow
V147: Neetzow-Liepen
V148: Karlsburg
V149: Gemeinden des Amtes Am Peenestrom
V150: Gemeinden des Amtes Am Stettiner Haff
V151: Gemeinden des Amtes Anklam-Land
V152: Gemeinden des Amtes Jarmen-Tutow
V153: Gemeinden des Amtes Landhagen
V154: Gemeinden des Amtes Löcknitz-Penkun
V155: Gemeinden des Amtes Lubmin
V156: Gemeinden des Amtes Peenetal/Loitz
V157: Gemeinden des Amtes Torgelow-Ferdinandshof
V158: Gemeinden des Amtes Uecker-Randow-Tal
V159: Gemeinden des Amtes Usedom-Nord
V160: Gemeinden des Amtes Usedom-Süd
V161: Gemeinden des Amtes Züssow
V162: Vorpommern-Greifswald (Durchschnitt)

Sheet Kassenkredite
A1: Quelle: Schuldenstandstatistik der Gemeinden und Gemeindeverbände
D2: Kassenkredite (zum 31.12.) | AB2: Anzahl der Gemeinden mit Kassenkredit bis 100.000 EUR | AC2: Anzahl der Gemeinden mit Kassenkredit von 100.000 EUR bis 250.000 EUR | AD2: Anzahl der Gemeinden mit Kassenkredit von 250.000 EUR bis 550.000 EUR | AE2: Anzahl der Gemeinden mit Kassenkredit von 550.000 EUR bis 1.000.000 EUR | AF2: Anzahl der Gemeinden mit Kassenkredit von 1.000.000 EUR bis 5.000.000 EUR | AG2: Anzahl der Gemeinden mit Kassenkredit von 5.000000 EUR bis 25.000.000 EUR | AH2: Anzahl der Gemeinden mit Kassenkredit über 25.000.000 EUR | AI2: Anzahl der Gemeinden mit Kassenkredit von 50000000 EUR bis EUR
B3: Gemeindenummer | C3: Amt | D3: Gemeindenummer | E3: Amt | F3: Gemeinde | G3: Amt | H3: Gemeindenummer | I3: 2016 | J3: 2017 | K3: 2018 | L3: 2019 | M3: 2020 | N3: 2021 | O3: 2022 | AC3: =CONCATENATE($AF$10,AC4," EUR") -> Anzahl der Gemeinden mit Kassenkredit bis 100000 EUR | AD3: Anzahl der Gemeinden mit Kassenkredit bis 250000 EUR | AE3: Anzahl der Gemeinden mit Kassenkredit bis 550000 EUR | AF3: Anzahl der Gemeinden mit Kassenkredit bis 1000000 EUR | AG3: Anzahl der Gemeinden mit Kassenkredit bis 5000000 EUR | AH3: Anzahl der Gemeinden mit Kassenkredit bis 25000000 EUR
B4: 6666 | C4: 666 | D4: 6666 | E4: 666 | F4: Vorpommern-Greifswald (gesamt) | G4: Vorpommern-Greifswald (gesamt) | H4: 6666 | I4: =SUM(I5:I145) -> 0 | J4: 0 | K4: 0 | L4: 0 | M4: 67633000 | N4: =SUM(N5:N145) -> 38820000 | O4: =SUM(O5:O145) -> 34006000 | Q4: Anzahl der Gemeinden mit Kassenkredit | R4: =138-R5 -> 40 | AB4: 0 | AC4: 100000 | AD4: 250000 | AE4: 550000 | AF4: 1000000 | AG4: 5000000 | AH4: 25000000 | AI4: 50000000
B5: 13075001 | C5: 5552 | D5: 13075001 | E5: 5552 | F5: Ahlbeck | G5: Amt Am Stettiner Haff | H5: 13075001 | I5: VERKETTEN(LINKS(A9;5);RECHTS(A9;3)) | M5: 1238000 | N5: 853000 | O5: 746000 | Q5: Anzahl der Gemeinden ohne Kassenkredit | R5: =COUNTIF($O$5:$O$145,0) -> 98 | AB5: =COUNTIF($O$5:$O$145,"> "&AB4) -> 40 | AC5: =COUNTIF($O$5:$O$145,"> "&AC4) -> 31 | AD5: =COUNTIF($O$5:$O$145,"> "&AD4) -> 17 | AE5: 7 | AF5: 3 | AG5: 1 | AH5: 0 | AI5: 0
B6: 13075002 | C6: 5554 | D6: 13075002 | E6: 5554 | F6: Alt Tellin | G6: Amt Jarmen-Tutow | H6: 13075002 | M6: 0 | N6: 0 | O6: 0 | AB6: =AB5-AC5 -> 9 | AC6: =AC5-AD5 -> 14 | AD6: =AD5-AE5 -> 10 | AE6: 4 | AF6: 2 | AG6: 1 | AH6: 0 | AI6: 0
B7: 13075003 | C7: 5552 | D7: 13075003 | E7: 5552 | F7: Altwarp | G7: Amt Am Stettiner Haff | H7: 13075003 | M7: 0 | N7: 40000 | O7: 230000
B8: 13075004 | C8: 5559 | D8: 13075004 | E8: 5559 | F8: Altwigshagen | G8: Amt Torgelow-Ferdinandshof | H8: 13075004 | M8: 278000 | N8: 153000 | O8: 0
B9: 13075005 | C9: 511 | D9: 13075005 | E9: 511 | F9: Anklam, Stadt | G9: Anklam, Stadt | H9: 13075005 | M9: 0 | N9: 0 | O9: 0
B10: 13075006 | C10: 5563 | D10: 13075006 | E10: 5563 | F10: Bandelin | G10: Amt Züssow | H10: 13075006 | M10: 363000 | N10: 0 | O10: 472000 | AF10: Anzahl der Gemeinden mit Kassenkredit bis
B11: 13075007 | C11: 5553 | D11: 13075007 | E11: 5553 | F11: Bargischow | G11: Amt Anklam-Land | H11: 13075007 | M11: 0 | N11: 0 | O11: 18000
B12: 13075008 | C12: 5555 | D12: 13075008 | E12: 5555 | F12: Behrenhoff | G12: Amt Landhagen | H12: 13075008 | M12: 0 | N12: 0 | O12: 0
B13: 13075009 | C13: 5554 | D13: 13075009 | E13: 5554 | F13: Bentzin | G13: Amt Jarmen-Tutow | H13: 13075009 | M13: 0 | N13: 0 | O13: 0
B14: 13075010 | C14: 5562 | D14: 13075010 | E14: 5562 | F14: Benz | G14: Amt Usedom-Süd | H14: 13075010 | M14: 0 | N14: 0 | O14: 0
B15: 13075011 | C15: 5556 | D15: 13075011 | E15: 5556 | F15: Bergholz | G15: Amt Löcknitz-Penkun | H15: 13075011 | M15: 0 | N15: 0 | O15: 19000
B16: 13075012 | C16: 5556 | D16: 13075012 | E16: 5556 | F16: Blankensee | G16: Amt Löcknitz-Penkun | H16: 13075012 | M16: 0 | N16: 0 | O16: 0
B17: 13075013 | C17: 5553 | D17: 13075013 | E17: 5553 | F17: Blesewitz | G17: Amt Anklam-Land | H17: 13075013 | M17: 1005000 | N17: 940000 | O17: 376000
B18: 13075015 | C18: 5553 | D18: 13075015 | E18: 5553 | F18: Boldekow | G18: Amt Anklam-Land | H18: 13075015 | M18: 286000 | N18: 0 | O18: 171000
B19: 13075016 | C19: 5556 | D19: 13075016 | E19: 5556 | F19: Boock | G19: Amt Löcknitz-Penkun | H19: 13075016 | M19: 0 | N19: 0 | O19: 0
B20: 13075017 | C20: 5560 | D20: 13075017 | E20: 5560 | F20: Brietzig | G20: Amt Uecker-Randow-Tal | H20: 13075017 | M20: 0 | N20: 0 | O20: 0
B21: 13075018 | C21: 5557 | D21: 13075018 | E21: 5557 | F21: Brünzow | G21: Amt Lubmin | H21: 13075018 | M21: 0 | N21: 0 | O21: 0
B22: 13075020 | C22: 5553 | D22: 13075020 | E22: 5553 | F22: Bugewitz | G22: Amt Anklam-Land | H22: 13075020 | M22: 483000 | N22: 249000 | O22: 214000
B23: 13075021 | C23: 5551 | D23: 13075021 | E23: 5551 | F23: Buggenhagen | G23: Amt Am Peenestrom | H23: 13075021 | M23: 0 | N23: 0 | O23: 3000
B24: 13075022 | C24: 5553 | D24: 13075022 | E24: 5553 | F24: Butzow | G24: Amt Anklam-Land | H24: 13075022 | M24: 352000 | N24: 352000 | O24: 0
B25: 13075023 | C25: 5554 | D25: 13075023 | E25: 5554 | F25: Daberkow | G25: Amt Jarmen-Tutow | H25: 13075023 | M25: 0 | N25: 0 | O25: 0
B26: 13075025 | C26: 5555 | D26: 13075025 | E26: 5555 | F26: Dargelin | G26: Amt Landhagen | H26: 13075025 | M26: 0 | N26: 0 | O26: 1000
B27: 13075026 | C27: 5562 | D27: 13075026 | E27: 5562 | F27: Dargen | G27: Amt Usedom-Süd | H27: 13075026 | M27: 0 | N27: 0 | O27: 0
B28: 13075027 | C28: 5555 | D28: 13075027 | E28: 5555 | F28: Dersekow | G28: Amt Landhagen | H28: 13075027 | M28: 0 | N28: 0 | O28: 0
B29: 13075028 | C29: 5555 | D29: 13075028 | E29: 5555 | F29: Diedrichshagen | G29: Amt Landhagen | H29: 13075028
B30: 13075029 | C30: 5553 | D30: 13075029 | E30: 5553 | F30: Ducherow | G30: Amt Anklam-Land | H30: 13075029 | M30: 659000 | N30: 324000 | O30: 0
B31: 13075031 | C31: 5552 | D31: 13075031 | E31: 5552 | F31: Eggesin, Stadt | G31: Amt Am Stettiner Haff | H31: 13075031 | M31: 34865000 | N31: 22315000 | O31: 20983000
B32: 13075032 | C32: 5560 | D32: 13075032 | E32: 5560 | F32: Fahrenwalde | G32: Amt Uecker-Randow-Tal | H32: 13075032 | M32: 0 | N32: 0 | O32: 0
B33: 13075033 | C33: 5559 | D33: 13075033 | E33: 5559 | F33: Ferdinandshof | G33: Amt Torgelow-Ferdinandshof | H33: 13075033 | M33: 0 | N33: 0 | O33: 0
B34: 13075034 | C34: 5562 | D34: 13075034 | E34: 5562 | F34: Garz | G34: Amt Usedom-Süd | H34: 13075034 | M34: 0 | N34: 0 | O34: 0
B35: 13075035 | C35: 5556 | D35: 13075035 | E35: 5556 | F35: Glasow | G35: Amt Löcknitz-Penkun | H35: 13075035 | M35: 0 | N35: 0 | O35: 0
B36: 13075036 | C36: 5558 | D36: 13075036 | E36: 5558 | F36: Görmin | G36: Amt Peenetal/Loitz | H36: 13075036 | M36: 0 | N36: 0 | O36: 0
B37: 13075037 | C37: 5552 | D37: 13075037 | E37: 5552 | F37: Grambin | G37: Amt Am Stettiner Haff | H37: 13075037 | M37: 189000 | N37: 145000 | O37: 158000
B38: 13075038 | C38: 5556 | D38: 13075038 | E38: 5556 | F38: Grambow | G38: Amt Löcknitz-Penkun | H38: 13075038 | M38: 0 | N38: 159000 | O38: 0
B39: 13075039 | C39: 501 | D39: 13075039 | E39: 501 | F39: Greifswald, Hansestadt | G39: Greifswald, Hansestadt | H39: 13075039 | M39: 0 | N39: 0 | O39: 0
B40: 13075040 | C40: 5563 | D40: 13075040 | E40: 5563 | F40: Gribow | G40: Amt Züssow | H40: 13075040 | M40: 0 | N40: 0 | O40: 0
B41: 13075041 | C41: 5563 | D41: 13075041 | E41: 5563 | F41: Groß Kiesow | G41: Amt Züssow | H41: 13075041 | M41: 167000 | N41: 0 | O41: 4000
B42: 13075042 | C42: 5560 | D42: 13075042 | E42: 5560 | F42: Groß Luckow | G42: Amt Uecker-Randow-Tal | H42: 13075042 | M42: 171000 | N42: 174000 | O42: 109000
B43: 13075043 | C43: 5563 | D43: 13075043 | E43: 5563 | F43: Groß Polzin | G43: Amt Züssow | H43: 13075043 | M43: 107000 | N43: 0 | O43: 0
B44: 13075044 | C44: 5563 | D44: 13075044 | E44: 5563 | F44: Gützkow, Stadt | G44: Amt Züssow | H44: 13075044 | M44: 0 | N44: 0 | O44: 0
B45: 13075045 | C45: 5559 | D45: 13075045 | E45: 5559 | F45: Hammer a. d. Uecker | G45: Amt Torgelow-Ferdinandshof | H45: 13075045 | M45: 388000 | N45: 70000 | O45: 0
B46: 13075046 | C46: 5557 | D46: 13075046 | E46: 5557 | F46: Hanshagen | G46: Amt Lubmin | H46: 13075046 | M46: 0 | N46: 0 | O46: 0
B47: 13075048 | C47: 5559 | D47: 13075048 | E47: 5559 | F47: Heinrichswalde | G47: Amt Torgelow-Ferdinandshof | H47: 13075048 | M47: 0 | N47: 0 | O47: 0
B48: 13075049 | C48: 512 | D48: 13075049 | E48: 512 | F48: Heringsdorf | G48: Heringsdorf | H48: 13075049 | M48: 0 | N48: 0 | O48: 0
B49: 13075050 | C49: 5555 | D49: 13075050 | E49: 5555 | F49: Hinrichshagen | G49: Amt Landhagen | H49: 13075050 | M49: 0 | N49: 0 | O49: 0
B50: 13075051 | C50: 5552 | D50: 13075051 | E50: 5552 | F50: Hintersee | G50: Amt Am Stettiner Haff | H50: 13075051 | M50: 26000 | N50: 0 | O50: 0
B51: 13075053 | C51: 5553 | D51: 13075053 | E51: 5553 | F51: Iven | G51: Amt Anklam-Land | H51: 13075053 | M51: 295000 | N51: 359000 | O51: 150000
B52: 13075054 | C52: 5554 | D52: 13075054 | E52: 5554 | F52: Jarmen, Stadt | G52: Amt Jarmen-Tutow | H52: 13075054 | M52: 0 | N52: 0 | O52: 0
B53: 13075055 | C53: 5560 | D53: 13075055 | E53: 5560 | F53: Jatznick | G53: Amt Uecker-Randow-Tal | H53: 13075055 | M53: 0 | N53: 0 | O53: 0
B54: 13075056 | C54: 5562 | D54: 13075056 | E54: 5562 | F54: Kamminke | G54: Amt Usedom-Süd | H54: 13075056 | M54: 0 | N54: 0 | O54: 0
B55: 13075057 | C55: 5563 | D55: 13075057 | E55: 5563 | F55: Karlsburg (bis 2019) | G55: Amt Züssow | H55: 13075057
B56: 13075058 | C56: 5561 | D56: 13075058 | E56: 5561 | F56: Karlshagen | G56: Amt Usedom-Nord | H56: 13075058 | M56: 0 | N56: 803000 | O56: 0
B57: 13075059 | C57: 5557 | D57: 13075059 | E57: 5557 | F57: Katzow | G57: Amt Lubmin | H57: 13075059 | M57: 0 | N57: 0 | O57: 0
B58: 13075060 | C58: 5557 | D58: 13075060 | E58: 5557 | F58: Kemnitz | G58: Amt Lubmin | H58: 13075060 | M58: 0 | N58: 0 | O58: 0
B59: 13075061 | C59: 5563 | D59: 13075061 | E59: 5563 | F59: Klein Bünzow | G59: Amt Züssow | H59: 13075061 | M59: 0 | N59: 0 | O59: 0
B60: 13075063 | C60: 5560 | D60: 13075063 | E60: 5560 | F60: Koblentz | G60: Amt Uecker-Randow-Tal | H60: 13075063 | M60: 0 | N60: 0 | O60: 0
B61: 13075065 | C61: 5562 | D61: 13075065 | E61: 5562 | F61: Korswandt | G61: Amt Usedom-Süd | H61: 13075065 | M61: 0 | N61: 0 | O61: 0
B62: 13075066 | C62: 5562 | D62: 13075066 | E62: 5562 | F62: Koserow | G62: Amt Usedom-Süd | H62: 13075066 | M62: 0 | N62: 0 | O62: 0
B63: 13075067 | C63: 5556 | D63: 13075067 | E63: 5556 | F63: Krackow | G63: Amt Löcknitz-Penkun | H63: 13075067 | M63: 0 | N63: 127000 | O63: 0
B64: 13075068 | C64: 5553 | D64: 13075068 | E64: 5553 | F64: Krien | G64: Amt Anklam-Land | H64: 13075068 | M64: 1322000 | N64: 1436000 | O64: 1266000
B65: 13075069 | C65: 5557 | D65: 13075069 | E65: 5557 | F65: Kröslin | G65: Amt Lubmin | H65: 13075069 | M65: 0 | N65: 0 | O65: 0
B66: 13075070 | C66: 5554 | D66: 13075070 | E66: 5554 | F66: Kruckow | G66: Amt Jarmen-Tutow | H66: 13075070 | M66: 0 | N66: 0 | O66: 0
B67: 13075071 | C67: 5560 | D67: 13075071 | E67: 5560 | F67: Krugsdorf | G67: Amt Uecker-Randow-Tal | H67: 13075071 | M67: 0 | N67: 0 | O67: 0
B68: 13075072 | C68: 5551 | D68: 13075072 | E68: 5551 | F68: Krummin | G68: Amt Am Peenestrom | H68: 13075072 | M68: 0 | N68: 0 | O68: 0
B69: 13075073 | C69: 5553 | D69: 13075073 | E69: 5553 | F69: Krusenfelde | G69: Amt Anklam-Land | H69: 13075073 | M69: 100000 | N69: 100000 | O69: 178000
B70: 13075074 | C70: 5551 | D70: 13075074 | E70: 5551 | F70: Lassan, Stadt | G70: Amt Am Peenestrom | H70: 13075074 | M70: 0 | N70: 0 | O70: 0
B71: 13075075 | C71: 5552 | D71: 13075075 | E71: 5552 | F71: Leopoldshagen | G71: Amt Am Stettiner Haff | H71: 13075075 | M71: 0 | N71: 0 | O71: 0
B72: 13075076 | C72: 5555 | D72: 13075076 | E72: 5555 | F72: Levenhagen | G72: Amt Landhagen | H72: 13075076 | M72: 0 | N72: 0 | O72: 123000
B73: 13075078 | C73: 5552 | D73: 13075078 | E73: 5552 | F73: Liepgarten | G73: Amt Am Stettiner Haff | H73: 13075078 | M73: 264000 | N73: 256000 | O73: 161000
B74: 13075079 | C74: 5556 | D74: 13075079 | E74: 5556 | F74: Löcknitz | G74: Amt Löcknitz-Penkun | H74: 13075079 | M74: 0 | N74: 0 | O74: 0
B75: 13075080 | C75: 5562 | D75: 13075080 | E75: 5562 | F75: Loddin | G75: Amt Usedom-Süd | H75: 13075080 | M75: 0 | N75: 0 | O75: 0
B76: 13075081 | C76: 5557 | D76: 13075081 | E76: 5557 | F76: Loissin | G76: Amt Lubmin | H76: 13075081 | M76: 0 | N76: 0 | O76: 0
B77: 13075082 | C77: 5558 | D77: 13075082 | E77: 5558 | F77: Loitz, Stadt | G77: Amt Peenetal/Loitz | H77: 13075082 | M77: 0 | N77: 0 | O77: 0
B78: 13075083 | C78: 5557 | D78: 13075083 | E78: 5557 | F78: Lubmin | G78: Amt Lubmin | H78: 13075083 | M78: 0 | N78: 0 | O78: 0
B79: 13075084 | C79: 5552 | D79: 13075084 | E79: 5552 | F79: Lübs | G79: Amt Am Stettiner Haff | H79: 13075084 | M79: 323000 | N79: 233000 | O79: 244000
B80: 13075085 | C80: 5552 | D80: 13075085 | E80: 5552 | F80: Luckow | G80: Amt Am Stettiner Haff | H80: 13075085 | M80: 725000 | N80: 399000 | O80: 273000
B81: 13075086 | C81: 5563 | D81: 13075086 | E81: 5563 | F81: Lühmannsdorf (bis 2019) | G81: Amt Züssow | H81: 13075086
B82: 13075087 | C82: 5551 | D82: 13075087 | E82: 5551 | F82: Lütow | G82: Amt Am Peenestrom | H82: 13075087 | M82: 0 | N82: 0 | O82: 0
B83: 13075088 | C83: 5553 | D83: 13075088 | E83: 5553 | F83: Medow | G83: Amt Anklam-Land | H83: 13075088 | M83: 0 | N83: 0 | O83: 280000
B84: 13075089 | C84: 5552 | D84: 13075089 | E84: 5552 | F84: Meiersberg | G84: Amt Am Stettiner Haff | H84: 13075089 | M84: 226000 | N84: 139000 | O84: 72000
B85: 13075090 | C85: 5562 | D85: 13075090 | E85: 5562 | F85: Mellenthin | G85: Amt Usedom-Süd | H85: 13075090 | M85: 0 | N85: 0 | O85: 0
B86: 13075091 | C86: 5555 | D86: 13075091 | E86: 5555 | F86: Mesekenhagen | G86: Amt Landhagen | H86: 13075091 | M86: 0 | N86: 0 | O86: 0
B87: 13075092 | C87: 5561 | D87: 13075092 | E87: 5561 | F87: Mölschow | G87: Amt Usedom-Nord | H87: 13075092 | M87: 0 | N87: 0 | O87: 0
B88: 13075093 | C88: 5552 | D88: 13075093 | E88: 5552 | F88: Mönkebude | G88: Amt Am Stettiner Haff | H88: 13075093 | M88: 0 | N88: 141000 | O88: 283000
B89: 13075094 | C89: 5563 | D89: 13075094 | E89: 5563 | F89: Murchin | G89: Amt Züssow | H89: 13075094 | M89: 0 | N89: 0 | O89: 0
B90: 13075095 | C90: 5556 | D90: 13075095 | E90: 5556 | F90: Nadrensee | G90: Amt Löcknitz-Penkun | H90: 13075095 | M90: 0 | N90: 0 | O90: 0
B91: 13075097 | C91: 5557 | D91: 13075097 | E91: 5557 | F91: Neu Boltenhagen | G91: Amt Lubmin | H91: 13075097 | M91: 0 | N91: 0 | O91: 0
B92: 13075098 | C92: 5553 | D92: 13075098 | E92: 5553 | F92: Neu Kosenow | G92: Amt Anklam-Land | H92: 13075098 | M92: 0 | N92: 0 | O92: 0
B93: 13075101 | C93: 5553 | D93: 13075101 | E93: 5553 | F93: Neuenkirchen | G93: Amt Anklam-Land | H93: 13075101 | M93: 0 | N93: 0 | O93: 0
B94: 13075102 | C94: 5555 | D94: 13075102 | E94: 5555 | F94: Neuenkirchen | G94: Amt Landhagen | H94: 13075102 | M94: 0 | N94: 0 | O94: 0
B95: 13075103 | C95: 5560 | D95: 13075103 | E95: 5560 | F95: Nieden | G95: Amt Uecker-Randow-Tal | H95: 13075103 | M95: 0 | N95: 0 | O95: 0
B96: 13075104 | C96: 5560 | D96: 13075104 | E96: 5560 | F96: Papendorf | G96: Amt Uecker-Randow-Tal | H96: 13075104 | M96: 0 | N96: 0 | O96: 0
B97: 13075105 | C97: 513 | D97: 13075105 | E97: 513 | F97: Pasewalk, Stadt | G97: Pasewalk, Stadt | H97: 13075105 | M97: 3960000 | N97: 1137000 | O97: 0
B98: 13075106 | C98: 5561 | D98: 13075106 | E98: 5561 | F98: Peenemünde | G98: Amt Usedom-Nord | H98: 13075106 | M98: 0 | N98: 0 | O98: 0
B99: 13075107 | C99: 5556 | D99: 13075107 | E99: 5556 | F99: Penkun, Stadt | G99: Amt Löcknitz-Penkun | H99: 13075107 | M99: 2594000 | N99: 1466000 | O99: 758000
B100: 13075108 | C100: 5556 | D100: 13075108 | E100: 5556 | F100: Plöwen | G100: Amt Löcknitz-Penkun | H100: 13075108 | M100: 19000 | N100: 0 | O100: 46000
B101: 13075109 | C101: 5560 | D101: 13075109 | E101: 5560 | F101: Polzow | G101: Amt Uecker-Randow-Tal | H101: 13075109 | M101: 274000 | N101: 232000 | O101: 149000
B102: 13075110 | C102: 5553 | D102: 13075110 | E102: 5553 | F102: Postlow | G102: Amt Anklam-Land | H102: 13075110 | M102: 273000 | N102: 281000 | O102: 266000
B103: 13075111 | C103: 5562 | D103: 13075111 | E103: 5562 | F103: Pudagla | G103: Amt Usedom-Süd | H103: 13075111 | M103: 0 | N103: 0 | O103: 0
B104: 13075113 | C104: 5556 | D104: 13075113 | E104: 5556 | F104: Ramin | G104: Amt Löcknitz-Penkun | H104: 13075113 | M104: 0 | N104: 0 | O104: 0
B105: 13075114 | C105: 5562 | D105: 13075114 | E105: 5562 | F105: Rankwitz | G105: Amt Usedom-Süd | H105: 13075114 | M105: 0 | N105: 0 | O105: 0
B106: 13075115 | C106: 5560 | D106: 13075115 | E106: 5560 | F106: Rollwitz | G106: Amt Uecker-Randow-Tal | H106: 13075115 | M106: 0 | N106: 0 | O106: 0
B107: 13075116 | C107: 5553 | D107: 13075116 | E107: 5553 | F107: Rossin | G107: Amt Anklam-Land | H107: 13075116 | M107: 156000 | N107: 93000 | O107: 40000
B108: 13075117 | C108: 5556 | D108: 13075117 | E108: 5556 | F108: Rossow | G108: Amt Löcknitz-Penkun | H108: 13075117 | M108: 56000 | N108: 0 | O108: 133000
B109: 13075118 | C109: 5559 | D109: 13075118 | E109: 5559 | F109: Rothemühl | G109: Amt Torgelow-Ferdinandshof | H109: 13075118 | M109: 0 | N109: 0 | O109: 0
B110: 13075119 | C110: 5556 | D110: 13075119 | E110: 5556 | F110: Rothenklempenow | G110: Amt Löcknitz-Penkun | H110: 13075119 | M110: 40000 | N110: 189000 | O110: 259000
B111: 13075120 | C111: 5557 | D111: 13075120 | E111: 5557 | F111: Rubenow | G111: Amt Lubmin | H111: 13075120 | M111: 0 | N111: 0 | O111: 0
B112: 13075121 | C112: 5563 | D112: 13075121 | E112: 5563 | F112: Rubkow | G112: Amt Züssow | H112: 13075121 | M112: 173000 | N112: 0 | O112: 0
B113: 13075122 | C113: 5553 | D113: 13075122 | E113: 5553 | F113: Sarnow | G113: Amt Anklam-Land | H113: 13075122 | M113: 469000 | N113: 457000 | O113: 409000
B114: 13075123 | C114: 5558 | D114: 13075123 | E114: 5558 | F114: Sassen-Trantow | G114: Amt Peenetal/Loitz | H114: 13075123 | M114: 0 | N114: 0 | O114: 0
B115: 13075124 | C115: 5551 | D115: 13075124 | E115: 5551 | F115: Sauzin | G115: Amt Am Peenestrom | H115: 13075124 | M115: 0 | N115: 0 | O115: 0
B116: 13075125 | C116: 5563 | D116: 13075125 | E116: 5563 | F116: Schmatzin | G116: Amt Züssow | H116: 13075125 | M116: 99000 | N116: 30000 | O116: 65000
B117: 13075126 | C117: 5560 | D117: 13075126 | E117: 5560 | F117: Schönwalde | G117: Amt Uecker-Randow-Tal | H117: 13075126 | M117: 0 | N117: 0 | O117: 0
B118: 13075127 | C118: 5553 | D118: 13075127 | E118: 5553 | F118: Spantekow | G118: Amt Anklam-Land | H118: 13075127 | M118: 1029000 | N118: 1956000 | O118: 2831000
B119: 13075128 | C119: 5553 | D119: 13075128 | E119: 5553 | F119: Stolpe an der Peene | G119: Amt Anklam-Land | H119: 13075128 | M119: 821000 | N119: 727000 | O119: 495000
B120: 13075129 | C120: 5562 | D120: 13075129 | E120: 5562 | F120: Stolpe auf Usedom | G120: Amt Usedom-Süd | H120: 13075129 | M120: 0 | N120: 0 | O120: 0
B121: 13075130 | C121: 514 | D121: 13075130 | E121: 514 | F121: Strasburg (Uckermark), Stadt | G121: Strasburg (Uckermark), Stadt | H121: 13075130 | M121: 1000000 | N121: 500000 | O121: 0
B122: 13075131 | C122: 5559 | D122: 13075131 | E122: 5559 | F122: Torgelow, Stadt | G122: Amt Torgelow-Ferdinandshof | H122: 13075131 | M122: 3448000 | N122: 0 | O122: 0
B123: 13075133 | C123: 5561 | D123: 13075133 | E123: 5561 | F123: Trassenheide | G123: Amt Usedom-Nord | H123: 13075133 | M123: 0 | N123: 0 | O123: 0
B124: 13075134 | C124: 5554 | D124: 13075134 | E124: 5554 | F124: Tutow | G124: Amt Jarmen-Tutow | H124: 13075134 | M124: 0 | N124: 0 | O124: 0
B125: 13075135 | C125: 5562 | D125: 13075135 | E125: 5562 | F125: Ückeritz | G125: Amt Usedom-Süd | H125: 13075135 | M125: 0 | N125: 0 | O125: 0
B126: 13075136 | C126: 515 | D126: 13075136 | E126: 515 | F126: Ueckermünde, Stadt | G126: Ueckermünde, Stadt | H126: 13075136 | M126: 0 | N126: 0 | O126: 0
B127: 13075137 | C127: 5562 | D127: 13075137 | E127: 5562 | F127: Usedom, Stadt | G127: Amt Usedom-Süd | H127: 13075137 | M127: 0 | N127: 0 | O127: 0
B128: 13075138 | C128: 5560 | D128: 13075138 | E128: 5560 | F128: Viereck | G128: Amt Uecker-Randow-Tal | H128: 13075138 | M128: 0 | N128: 0 | O128: 0
B129: 13075139 | C129: 5552 | D129: 13075139 | E129: 5552 | F129: Vogelsang-Warsin | G129: Amt Am Stettiner Haff | H129: 13075139 | M129: 446000 | N129: 306000 | O129: 252000
B130: 13075140 | C130: 5554 | D130: 13075140 | E130: 5554 | F130: Völschow | G130: Amt Jarmen-Tutow | H130: 13075140 | M130: 0 | N130: 0 | O130: 0
B131: 13075141 | C131: 5555 | D131: 13075141 | E131: 5555 | F131: Wackerow | G131: Amt Landhagen | H131: 13075141 | M131: 861000 | N131: 342000 | O131: 0
B132: 13075142 | C132: 5555 | D132: 13075142 | E132: 5555 | F132: Weitenhagen | G132: Amt Landhagen | H132: 13075142 | M132: 0 | N132: 0 | O132: 0
B133: 13075143 | C133: 5559 | D133: 13075143 | E133: 5559 | F133: Wilhelmsburg | G133: Amt Torgelow-Ferdinandshof | H133: 13075143 | M133: 574000 | N133: 256000 | O133: 0
B134: 13075144 | C134: 5551 | D134: 13075144 | E134: 5551 | F134: Wolgast, Stadt | G134: Amt Am Peenestrom | H134: 13075144 | M134: 6662000 | N134: 648000 | O134: 694000
B135: 13075145 | C135: 5563 | D135: 13075145 | E135: 5563 | F135: Wrangelsburg | G135: Amt Züssow | H135: 13075145 | M135: 26000 | N135: 79000 | O135: 172000
B136: 13075146 | C136: 5557 | D136: 13075146 | E136: 5557 | F136: Wusterhusen | G136: Amt Lubmin | H136: 13075146 | M136: 0 | N136: 0 | O136: 0
B137: 13075147 | C137: 5551 | D137: 13075147 | E137: 5551 | F137: Zemitz | G137: Amt Am Peenestrom | H137: 13075147 | M137: 0 | N137: 0 | O137: 0
B138: 13075148 | C138: 5562 | D138: 13075148 | E138: 5562 | F138: Zempin | G138: Amt Usedom-Süd | H138: 13075148 | M138: 0 | N138: 0 | O138: 0
B139: 13075149 | C139: 5560 | D139: 13075149 | E139: 5560 | F139: Zerrenthin | G139: Amt Uecker-Randow-Tal | H139: 13075149 | M139: 0 | N139: 0 | O139: 0
B140: 13075150 | C140: 5563 | D140: 13075150 | E140: 5563 | F140: Ziethen | G140: Amt Züssow | H140: 13075150 | M140: 0 | N140: 0 | O140: 196000
B141: 13075151 | C141: 5561 | D141: 13075151 | E141: 5561 | F141: Zinnowitz | G141: Amt Usedom-Nord | H141: 13075151 | M141: 0 | N141: 0 | O141: 0
B142: 13075152 | C142: 5562 | D142: 13075152 | E142: 5562 | F142: Zirchow | G142: Amt Usedom-Süd | H142: 13075152 | M142: 0 | N142: 0 | O142: 0
B143: 13075154 | C143: 5563 | D143: 13075154 | E143: 5563 | F143: Züssow | G143: Amt Züssow | H143: 13075154 | M143: 0 | N143: 0 | O143: 0
B144: 13075155 | C144: 5553 | D144: 13075155 | E144: 5553 | F144: Neetzow-Liepen | G144: Amt Anklam-Land | H144: 13075155 | M144: 821000 | N144: 354000 | O144: 707000
B145: 13075156 | C145: 5563 | D145: 13075156 | E145: 5563 | F145: Karlsburg | G145: Amt Züssow | H145: 13075156 | M145: 0 | N145: 0 | O145: 0
B146: 5551 | C146: 5551 | D146: 5551 | E146: 5551 | F146: Gemeinden des Amtes Am Peenestrom | G146: Amt Am Peenestrom | H146: 5551 | M146: =SUMIFS(M$5:M$145,$E$5:$E$145,$E146) -> 6662000 | N146: 648000 | O146: =SUMIFS(O$5:O$145,$E$5:$E$145,$E146) -> 697000
B147: 5552 | C147: 5552 | D147: 5552 | E147: 5552 | F147: Gemeinden des Amtes Am Stettiner Haff | G147: Amt Am Stettiner Haff | H147: 5552 | M147: 38302000 | N147: 24827000 | O147: 23402000
B148: 5553 | C148: 5553 | D148: 5553 | E148: 5553 | F148: Gemeinden des Amtes Anklam-Land | G148: Amt Anklam-Land | H148: 5553 | M148: 8071000 | N148: 7628000 | O148: 7401000
B149: 5554 | C149: 5554 | D149: 5554 | E149: 5554 | F149: Gemeinden des Amtes Jarmen-Tutow | G149: Amt Jarmen-Tutow | H149: 5554 | M149: 0 | N149: 0 | O149: 0
B150: 5555 | C150: 5555 | D150: 5555 | E150: 5555 | F150: Gemeinden des Amtes Landhagen | G150: Amt Landhagen | H150: 5555 | M150: 861000 | N150: 342000 | O150: 124000
B151: 5556 | C151: 5556 | D151: 5556 | E151: 5556 | F151: Gemeinden des Amtes Löcknitz-Penkun | G151: Amt Löcknitz-Penkun | H151: 5556 | M151: 2709000 | N151: 1941000 | O151: 1215000
B152: 5557 | C152: 5557 | D152: 5557 | E152: 5557 | F152: Gemeinden des Amtes Lubmin | G152: Amt Lubmin | H152: 5557 | M152: 0 | N152: 0 | O152: 0
B153: 5558 | C153: 5558 | D153: 5558 | E153: 5558 | F153: Gemeinden des Amtes Peenetal/Loitz | G153: Amt Peenetal/Loitz | H153: 5558 | M153: 0 | N153: 0 | O153: 0
B154: 5559 | C154: 5559 | D154: 5559 | E154: 5559 | F154: Gemeinden des Amtes Torgelow-Ferdinandshof | G154: Amt Torgelow-Ferdinandshof | H154: 5559 | M154: 4688000 | N154: 479000 | O154: 0
B155: 5560 | C155: 5560 | D155: 5560 | E155: 5560 | F155: Gemeinden des Amtes Uecker-Randow-Tal | G155: Amt Uecker-Randow-Tal | H155: 5560 | M155: 445000 | N155: 406000 | O155: 258000
B156: 5561 | C156: 5561 | D156: 5561 | E156: 5561 | F156: Gemeinden des Amtes Usedom-Nord | G156: Amt Usedom-Nord | H156: 5561 | M156: 0 | N156: 803000 | O156: 0
B157: 5562 | C157: 5562 | D157: 5562 | E157: 5562 | F157: Gemeinden des Amtes Usedom-Süd | G157: Amt Usedom-Süd | H157: 5562 | M157: 0 | N157: 0 | O157: 0
B158: 5563 | C158: 5563 | D158: 5563 | E158: 5563 | F158: Gemeinden des Amtes Züssow | G158: Amt Züssow | H158: 5563 | M158: 935000 | N158: 109000 | O158: 909000
B159: 6667 | C159: 667 | D159: 6667 | E159: 667 | F159: Vorpommern-Greifswald (Durchschnitt) | G159: Vorpommern-Greifswald (Durchschnitt) | H159: 6667 | K159: =AVERAGE(K5:K145) ->  | M159: 490094.2029 | N159: 281304.3478 | O159: =AVERAGE(O5:O145) -> 246420.2899

Sheet Tabelle1
E2: Haushaltsausgleich erreicht | Q2: 2018 | T2: Auswahlfelder Grafikinhalt UND Jahr aus Liste auswählen | AB2: Haushaltsausgleich erreicht
F3: Grafikinhalt | Q3: Jahr | AB3: Haushaltsausgleich erreicht (unterjährig)
E4: =VLOOKUP($Y$5,$Z$6:$AA$100,2,0) -> 6 | AB4: Kategorie I Saldo der laufenden Ein- und Auszahlungen zum 31.12. je Einwohner
Y5: =CONCATENATE(E2,Q2) -> Haushaltsausgleich erreicht2018 | AB5: Kategorie II Jahresbezogener Saldo der laufenden Ein- und Auszahlungen zum 31.12. je Einwohner
W6: Haushaltsausgleich erreicht | Y6: 2018 | Z6: =CONCATENATE(W6,Y6) -> Haushaltsausgleich erreicht2018 | AA6: 6 | AB6: Kassenkredite
W7: Haushaltsausgleich erreicht | Y7: =Y6+1 -> 2019 | Z7: =CONCATENATE(W7,Y7) -> Haushaltsausgleich erreicht2019 | AA7: =AA6+1 -> 7
W8: Haushaltsausgleich erreicht | Y8: =Y7+1 -> 2020 | Z8: =CONCATENATE(W8,Y8) -> Haushaltsausgleich erreicht2020 | AA8: =AA7+1 -> 8
W9: Haushaltsausgleich erreicht | Y9: 2021 | Z9: Haushaltsausgleich erreicht2021 | AA9: 9
W10: Haushaltsausgleich erreicht | Y10: 2022 | Z10: Haushaltsausgleich erreicht2022 | AA10: 10
W11: Kategorie I Saldo der laufenden Ein- und Auszahlungen zum 31.12. je Einwohner | Y11: 2018 | Z11: Kategorie I Saldo der laufenden Ein- und Auszahlungen zum 31.12. je Einwohner2018 | AA11: 11
W12: Kategorie I Saldo der laufenden Ein- und Auszahlungen zum 31.12. je Einwohner | Y12: =Y11+1 -> 2019 | Z12: Kategorie I Saldo der laufenden Ein- und Auszahlungen zum 31.12. je Einwohner2019 | AA12: 12
W13: Kategorie I Saldo der laufenden Ein- und Auszahlungen zum 31.12. je Einwohner | Y13: =Y12+1 -> 2020 | Z13: Kategorie I Saldo der laufenden Ein- und Auszahlungen zum 31.12. je Einwohner2020 | AA13: 13
W14: Kategorie I Saldo der laufenden Ein- und Auszahlungen zum 31.12. je Einwohner | Y14: =Y13+1 -> 2021 | Z14: Kategorie I Saldo der laufenden Ein- und Auszahlungen zum 31.12. je Einwohner2021 | AA14: 14
W15: Kategorie I Saldo der laufenden Ein- und Auszahlungen zum 31.12. je Einwohner | Y15: =Y14+1 -> 2022 | Z15: Kategorie I Saldo der laufenden Ein- und Auszahlungen zum 31.12. je Einwohner2022 | AA15: 15
W16: Kategorie II Jahresbezogener Saldo der laufenden Ein- und Auszahlungen zum 31.12. je Einwohner | Y16: 2018 | Z16: Kategorie II Jahresbezogener Saldo der laufenden Ein- und Auszahlungen zum 31.12. je Einwohner2018 | AA16: 16
W17: Kategorie II Jahresbezogener Saldo der laufenden Ein- und Auszahlungen zum 31.12. je Einwohner | Y17: =Y16+1 -> 2019 | Z17: Kategorie II Jahresbezogener Saldo der laufenden Ein- und Auszahlungen zum 31.12. je Einwohner2019 | AA17: 17
W18: Kategorie II Jahresbezogener Saldo der laufenden Ein- und Auszahlungen zum 31.12. je Einwohner | Y18: 2020 | Z18: Kategorie II Jahresbezogener Saldo der laufenden Ein- und Auszahlungen zum 31.12. je Einwohner2020 | AA18: 18
W19: Kategorie II Jahresbezogener Saldo der laufenden Ein- und Auszahlungen zum 31.12. je Einwohner | Y19: 2021 | Z19: Kategorie II Jahresbezogener Saldo der laufenden Ein- und Auszahlungen zum 31.12. je Einwohner2021 | AA19: 19
W20: Kategorie II Jahresbezogener Saldo der laufenden Ein- und Auszahlungen zum 31.12. je Einwohner | Y20: 2022 | Z20: Kategorie II Jahresbezogener Saldo der laufenden Ein- und Auszahlungen zum 31.12. je Einwohner2022 | AA20: 20
W21: Kassenkredite | Y21: 2018 | Z21: Kassenkredite2018 | AA21: 21
W22: Kassenkredite | Y22: 2019 | Z22: Kassenkredite2019 | AA22: 22
W23: Kassenkredite | Y23: 2020 | Z23: Kassenkredite2020 | AA23: 23
W24: Kassenkredite | Y24: 2021 | Z24: Kassenkredite2021 | AA24: 24
W25: Kassenkredite | Y25: 2022 | Z25: Kassenkredite2022 | AA25: 25
W26: Haushaltsausgleich erreicht (unterjährig) | Y26: 2018 | Z26: Haushaltsausgleich erreicht (unterjährig)2018 | AA26: 26
W27: Haushaltsausgleich erreicht (unterjährig) | Y27: 2019 | Z27: Haushaltsausgleich erreicht (unterjährig)2019 | AA27: 27
W28: Haushaltsausgleich erreicht (unterjährig) | Y28: 2020 | Z28: Haushaltsausgleich erreicht (unterjährig)2020 | AA28: 28
W29: Haushaltsausgleich erreicht (unterjährig) | Y29: 2021 | Z29: Haushaltsausgleich erreicht (unterjährig)2021 | AA29: 29
W30: Haushaltsausgleich erreicht (unterjährig) | Y30: 2022 | Z30: Haushaltsausgleich erreicht (unterjährig)2022 | AA30: 30

Sheet FAG (hidden)
B1: 1 | C1: 2 | D1: 3 | E1: 4 | F1: 5 | G1: 6 | H1: 7 | I1: 8 | J1: 9 | K1: 10 | L1: 11 | M1: 12 | N1: 13 | O1: 14 | P1: 15 | Q1: 16 | R1: 17 | S1: 18 | T1: 19 | U1: 20 | V1: 21 | W1: 22 | X1: 23 | Y1: 24 | Z1: 25 | AA1: 26 | AB1: 27 | AC1: 28 | AD1: 29 | AE1: 30 | AF1: 31 | AG1: 32 | AH1: 33 | AI1: 34 | AJ1: 35 | AK1: 36 | AL1: 37 | AM1: 38 | AN1: 39 | AO1: 40 | AP1: 41 | AQ1: 42 | AR1: 43 | AS1: 44 | AT1: 45 | AU1: 46 | AV1: 47 | AW1: 48 | AX1: 49 | AY1: 50 | AZ1: 51 | BA1: 52 | BB1: 53 | BC1: 54 | BD1: 55 | BE1: 56 | BF1: 57 | BG1: 58 | BH1: 59 | BI1: 60 | BJ1: 61 | BK1: 62 | BL1: 63 | BM1: 64 | BN1: 65 | BO1: 66 | BP1: 67 | BQ1: 68 | BR1: 69 | BS1: 70 | BT1: 71 | BU1: 72 | BV1: 73 | BW1: 74 | BX1: 75 | BY1: 76 | BZ1: 77 | CA1: 78 | CB1: 79 | CC1: 80 | CD1: 81 | CE1: 82 | CF1: 83 | CG1: 84 | CH1: 85 | CI1: 86 | CJ1: 87 | CK1: 88 | CL1: 89 | CM1: 90 | CN1: 91 | CO1: 92 | CP1: 93 | CQ1: 94 | CR1: 95 | CS1: 96 | CT1: 97 | CU1: 98 | CV1: 99 | CW1: 100 | CX1: 101 | CY1: 102 | CZ1: 103 | DA1: 104 | DB1: 105 | DC1: 106 | DD1: 107 | DE1: 108 | DF1: 109 | DG1: 110 | DH1: 111 | DI1: 112 | DJ1: 113 | DK1: 114 | DL1: 115 | DM1: 116 | DN1: 117 | DO1: 118 | DP1: 119 | DQ1: 120 | DR1: 121 | DS1: 122 | DT1: 123 | DU1: 124 | DV1: 125 | DW1: 126 | DX1: 127 | DY1: 128 | DZ1: 129 | EA1: 130 | EB1: 131 | EC1: 132 | ED1: 133 | EE1: 134 | EF1: 135 | EG1: 136 | EH1: 137 | EI1: 138 | EJ1: 139 | EK1: 140 | EL1: 141 | EM1: 142 | EN1: 143 | EO1: 144 | EP1: 145 | EQ1: 146 | ER1: 147 | ES1: 148 | ET1: 149 | EU1: 150 | EV1: 151 | EW1: 152 | EX1: 153 | EY1: 154 | EZ1: 155 | FA1: 156 | FB1: 157 | FC1: 158 | FD1: 159 | FE1: 160 | FF1: 161 | FG1: 162 | FH1: 163 | FI1: 164 | FJ1: 165 | FK1: 166 | FL1: 167 | FM1: 168 | FN1: 169 | FO1: 170 | FP1: 171 | FQ1: 172 | FR1: 173 | FS1: 174 | FT1: 175 | FU1: 176 | FV1: 177 | FW1: 178 | FX1: 179 | FY1: 180 | FZ1: 181 | GA1: 182 | GB1: 183 | GC1: 184 | GD1: 185 | GE1: 186 | GF1: 187 | GG1: 188 | GH1: 189 | GI1: 190 | GJ1: 191 | GK1: 192 | GL1: 193 | GM1: 194 | GN1: 195 | GO1: 196 | GP1: 197 | GQ1: 198 | GR1: 199 | GS1: 200 | GT1: 201 | GU1: 202 | GV1: 203 | GW1: 204 | GX1: 205 | GY1: 206
F2: Einwohner | S2: Steuerkraftmesszahl | AF2: Grundlage der Kreisumlage | AS2: Grundlage der Amtsumlage | BF2: Schlüsselzuweisung §16 | BS2: §17 Bedarfsansatz Gemeindeaufgaben | CF2: § 23 Abs. 3 Infrastrukturpauschale Gemeinde | CS2: §22 Abs 2.Satz 1 Nr 1 | DF2: §22 Abs 2.Satz 1 Nr 2 | DS2: § 24 Übergangszuweisung an kreisangehörige zentrale Orte | EF2: § 29 Finanzausgleichsumlage | ET2: §12 | FB2: §15-1 und §15-3 für HGW | FJ2: § 16 | FR2: § 23 | FZ2: Einwohner | GH2: Steuerkraftmesszahl | GR2: Grundlage der Kreisumlage
B3: Gemeindenummer | C3: Amtsnummer | D3: Gemeinde | E3: Amt | F3: 2013 | G3: 2014 | H3: 2015 | I3: 2016 | J3: 2017 | K3: 2018 | L3: 2019 | M3: 2020 | N3: 2021 | O3: 2022 | P3: 2023 | Q3: 2024 | R3: 2025 | S3: 2013 | T3: 2014 | U3: 2015 | V3: 2016 | W3: 2017 | X3: 2018 | Y3: 2019 | Z3: 2020 | AA3: 2021 | AB3: 2022 | AC3: 2023 | AD3: 2024 | AE3: 2025 | AF3: 2013 | AG3: 2014 | AH3: 2015 | AI3: 2016 | AJ3: 2017 | AK3: 2018 | AL3: 2019 | AM3: 2020 | AN3: 2021 | AO3: 2022 | AP3: 2023 | AQ3: 2024 | AR3: 2025 | AS3: 2013 | AT3: 2014 | AU3: 2015 | AV3: 2016 | AW3: 2017 | AX3: 2018 | AY3: 2019 | AZ3: 2020 | BA3: 2021 | BB3: 2022 | BC3: 2023 | BD3: 2024 | BE3: 2025 | BF3: 2013 | BG3: 2014 | BH3: 2015 | BI3: 2016 | BJ3: 2017 | BK3: 2018 | BL3: 2019 | BM3: 2020 | BN3: 2021 | BO3: 2022 | BP3: 2023 | BQ3: 2024 | BR3: 2025 | BS3: 2013 | BT3: 2014 | BU3: 2015 | BV3: 2016 | BW3: 2017 | BX3: 2018 | BY3: 2019 | BZ3: 2020 | CA3: 2021 | CB3: 2022 | CC3: 2023 | CD3: 2024 | CE3: 2025 | CF3: 2013 | CG3: 2014 | CH3: 2015 | CI3: 2016 | CJ3: 2017 | CK3: 2018 | CL3: 2019 | CM3: 2020 | CN3: 2021 | CO3: 2022 | CP3: 2023 | CQ3: 2024 | CR3: 2025 | CS3: 2013 | CT3: 2014 | CU3: 2015 | CV3: 2016 | CW3: 2017 | CX3: 2018 | CY3: 2019 | CZ3: 2020 | DA3: 2021 | DB3: 2022 | DC3: 2023 | DD3: 2024 | DE3: 2025 | DF3: 2013 | DG3: 2014 | DH3: 2015 | DI3: 2016 | DJ3: 2017 | DK3: 2018 | DL3: 2019 | DM3: 2020 | DN3: 2021 | DO3: 2022 | DP3: 2023 | DQ3: 2024 | DR3: 2025 | DS3: 2013 | DT3: 2014 | DU3: 2015 | DV3: 2016 | DW3: 2017 | DX3: 2018 | DY3: 2019 | DZ3: 2020 | EA3: 2021 | EB3: 2022 | EC3: 2023 | ED3: 2024 | EE3: 2025 | EF3: 2013 | EG3: 2014 | EH3: 2015 | EI3: 2016 | EJ3: 2017 | EK3: 2018 | EL3: 2019 | EM3: 2020 | EN3: 2021 | EO3: 2022 | EP3: 2023 | EQ3: 2024 | ER3: 2025 | ET3: 2013 | EU3: 2014 | EV3: 2015 | EW3: 2016 | EX3: 2017 | EY3: 2018 | EZ3: 2019 | FA3: 2020 | FB3: 2013 | FC3: 2014 | FD3: 2015 | FE3: 2016 | FF3: 2017 | FG3: 2018 | FH3: 2019 | FI3: 2020 | FJ3: 2013 | FK3: 2014 | FL3: 2015 | FM3: 2016 | FN3: 2017 | FO3: 2018 | FP3: 2019 | FQ3: 2020 | FR3: 2013 | FS3: 2014 | FT3: 2015 | FU3: 2016 | FV3: 2017 | FW3: 2018 | FX3: 2019 | FY3: 2020 | FZ3: 2013 | GA3: 2014 | GB3: 2015 | GC3: 2016 | GD3: 2017 | GE3: 2018 | GF3: 2019 | GG3: 2020 | GH3: 2011 | GI3: 2012 | GJ3: 2013 | GK3: 2014 | GL3: 2015 | GM3: 2016 | GN3: 2017 | GO3: 2018 | GP3: 2019 | GQ3: 2020 | GR3: 2013 | GS3: 2014 | GT3: 2015 | GU3: 2016 | GV3: 2017 | GW3: 2018 | GX3: 2019 | GY3: 2020
B4: 6666 | C4: 666 | D4: Vorpommern-Greifswald (gesamt) | E4: Vorpommern-Greifswald (gesamt) | F4: 240137 | G4: 239645 | H4: 240290 | I4: 239259 | J4: 238918 | K4: 236697 | L4: 235623 | M4: 235773 | N4: 235451 | O4: 0 | P4: 0 | Q4: 0 | R4: 0 | S4: 121727810.4 | T4: 125487000.7 | U4: 140011147.2 | V4: 142481853.9 | W4: 154430866.4 | X4: 164588052.1 | Y4: 175277911.5 | Z4: 188262401.1 | AA4: 188978546.9 | AB4: 0 | AC4: 0 | AD4: 0 | AE4: 0 | AF4: 158603401.8 | AG4: 176279589.9 | AH4: 178983381.1 | AI4: 187149411.9 | AJ4: 203965303.8 | AK4: 206853155.1 | AL4: 221345727.3 | AM4: 237558081.6 | AN4: 255028504 | AO4: 276989189.8 | AP4: 295410115.3 | AQ4: 0 | AR4: 0 | AS4: 158603401.8 | AT4: 176279589.9 | AU4: 178983381.1 | AV4: 187149411.9 | AW4: 203965303.8 | AX4: 206853155.1 | AY4: 221345727.3 | AZ4: 213423275.3 | BA4: 145458641.9 | BB4: 152926056.9 | BC4: 295410115.3 | BD4: 0 | BE4: 0 | BF4: 0 | BG4: 0 | BH4: 0 | BI4: 0 | BJ4: 0 | BK4: 0 | BL4: 0 | BM4: 103012901.4 | BN4: 100462857.3 | BO4: 100985177 | BP4: 108702017.2 | BQ4: 0 | BR4: 0 | BS4: 0 | BT4: 0 | BU4: 0 | BV4: 0 | BW4: 0 | BX4: 0 | BY4: 0 | BZ4: 338380 | CA4: 336997 | CB4: 336903 | CC4: 335586 | CD4: 0 | CE4: 0 | CF4: 0 | CG4: 0 | CH4: 0 | CI4: 0 | CJ4: 0 | CK4: 0 | CL4: 0 | CM4: 14792864.83 | CN4: 14568551.74 | CO4: 14526789.94 | CP4: 14686990.23 | CQ4: 0 | CR4: 0 | CS4: 0 | CT4: 0 | CU4: 0 | CV4: 0 | CW4: 0 | CX4: 0 | CY4: 0 | CZ4: 2013786.8 | DA4: 1918411.9 | DB4: 2071191.52 | DC4: 2051204.22 | DD4: 0 | DE4: 0 | DF4: 0 | DG4: 0 | DH4: 0 | DI4: 0 | DJ4: 0 | DK4: 0 | DL4: 0 | DM4: 4214497.05 | DN4: 4047373.7 | DO4: 4604135.16 | DP4: 4615248.9 | DQ4: 0 | DR4: 0 | DS4: 0 | DT4: 0 | DU4: 0 | DV4: 0 | DW4: 0 | DX4: 0 | DY4: 0 | DZ4: 6966770.64 | EA4: 4631744.14 | EB4: 3854499.68 | EC4: 1923972.95 | ED4: 0 | EE4: 0 | EF4: 0 | EG4: 0 | EH4: 0 | EI4: 0 | EJ4: 0 | EK4: 0 | EL4: 0 | EM4: 1236936 | EN4: 1616788.31 | EO4: 2262705.15 | EP4: 2270448.75 | EQ4: 0 | ER4: 0 | ES4: 0 | ET4: 64873103.97 | EU4: 60373413.58 | EV4: 63424849.6 | EW4: 66305676.83 | EX4: 63721964.78 | EY4: 69135392.75 | EZ4: 72974979.21 | FA4: 0 | FB4: 5589221.85 | FC4: 5986097.88 | FD4: 6018461.94 | FE4: 6021783.9 | FF4: 6027744.48 | FG4: 5724480.95 | FH4: 5742328.5 | FI4: 0 | FJ4: 20185514.35 | FK4: 21337857.84 | FL4: 21322793.11 | FM4: 21254484.74 | FN4: 21155050.25 | FO4: 21099906.37 | FP4: 21092016.42 | FQ4: 0 | FR4: 59214098.43 | FS4: 64532685.06 | FT4: 65920864.11 | FU4: 68416492.83 | FV4: 71394627.99 | FW4: 71746528.31 | FX4: 77091081.91 | FY4: 103012901.4 | FZ4: 240137 | GA4: 239645 | GB4: 240290 | GC4: 239259 | GD4: 238918 | GE4: 236697 | GF4: 235623 | GG4: 235773 | GH4: 100465726.6 | GI4: 112051230 | GJ4: 120937349 | GK4: 124654974.3 | GL4: 139062239.8 | GM4: 141583719 | GN4: 153536661.7 | GO4: 0 | GP4: 0 | GQ4: 0 | GR4: 152134314.6 | GS4: 176279589.9 | GT4: 181252279.9 | GU4: 187804895.5 | GV4: 203965303.8 | GW4: 206853155.1 | GX4: 221369079.6 | GY4: 0
B5: 13075001 | C5: 5552 | D5: Ahlbeck | E5: Amt Am Stettiner Haff | F5: 667 | G5: 651 | H5: 639 | I5: 627 | J5: 618 | K5: 620 | L5: 597 | M5: 582 | N5: 586 | O5: 0 | P5: 0 | Q5: 0 | R5: 0 | S5: 201372.21 | T5: 209304.28 | U5: 215436.9 | V5: 216281.68 | W5: 230399.35 | X5: 243502.75 | Y5: 286961.39 | Z5: 239515.72 | AA5: 321903.69 | AB5: 0 | AC5: 0 | AD5: 0 | AE5: 0 | AF5: 387109.2 | AG5: 438608.33 | AH5: 453597.15 | AI5: 456899.6 | AJ5: 467329.68 | AK5: 476895.98 | AL5: 513783.77 | AM5: 553052.78 | AN5: 571860.47 | AO5: 599925.45 | AP5: 652532.82 | AQ5: 0 | AR5: 0 | AS5: 387109.2 | AT5: 438608.33 | AU5: 453597.15 | AV5: 456899.6 | AW5: 467329.68 | AX5: 476895.98 | AY5: 513783.77 | AZ5: 620115.13 | BA5: 614679.01 | BB5: 621574.9 | BC5: 652532.82 | BD5: 0 | BE5: 0 | BF5: 0 | BG5: 0 | BH5: 0 | BI5: 0 | BJ5: 0 | BK5: 0 | BL5: 0 | BM5: 376612.38 | BN5: 327717.62 | BO5: 382059.18 | BP5: 330629.13 | BQ5: 0 | BR5: 0 | BS5: 0 | BT5: 0 | BU5: 0 | BV5: 0 | BW5: 0 | BX5: 0 | BY5: 0 | BZ5: 755 | CA5: 738 | CB5: 706 | CC5: 720 | CD5: 0 | CE5: 0 | CF5: 0 | CG5: 0 | CH5: 0 | CI5: 0 | CJ5: 0 | CK5: 0 | CL5: 0 | CM5: 45666.86 | CN5: 43697.98 | CO5: 42536.14 | CP5: 42711.47 | CQ5: 0 | CR5: 0 | CS5: 0 | CT5: 0 | CU5: 0 | CV5: 0 | CW5: 0 | CX5: 0 | CY5: 0 | CZ5: 0 | DA5: 0 | DB5: 0 | DC5: 0 | DD5: 0 | DE5: 0 | DF5: 0 | DG5: 0 | DH5: 0 | DI5: 0 | DJ5: 0 | DK5: 0 | DL5: 0 | DM5: 0 | DN5: 0 | DO5: 0 | DP5: 0 | DQ5: 0 | DR5: 0 | DS5: 0 | DT5: 0 | DU5: 0 | DV5: 0 | DW5: 0 | DX5: 0 | DY5: 0 | DZ5: 0 | EA5: 0 | EB5: 0 | EC5: 0 | ED5: 0 | EE5: 0 | EF5: 0 | EG5: 0 | EH5: 0 | EI5: 0 | EJ5: 0 | EK5: 0 | EL5: 0 | EM5: 0 | EN5: 0 | EO5: 0 | EP5: 0 | EQ5: 0 | ER5: 0 | ET5: 243764.56 | EU5: 252224.94 | EV5: 247595.32 | EW5: 251892.78 | EX5: 252476.25 | EY5: 268752.36 | EZ5: 283384.42 | FA5: 0 | FB5: 0 | FC5: 0 | FD5: 0 | FE5: 0 | FF5: 0 | FG5: 0 | FH5: 0 | FI5: 0 | FJ5: 0 | FK5: 0 | FL5: 0 | FM5: 0 | FN5: 0 | FO5: 0 | FP5: 0 | FQ5: 0 | FR5: 202753.48 | FS5: 243764.56 | FT5: 252224.94 | FU5: 247595.32 | FV5: 251892.78 | FW5: 260614.3 | FX5: 283384.42 | FY5: 376612.38 | FZ5: 667 | GA5: 651 | GB5: 639 | GC5: 627 | GD5: 618 | GE5: 620 | GF5: 597 | GG5: 582 | GH5: 184355.72 | GI5: 194843.77 | GJ5: 201372.21 | GK5: 209304.28 | GL5: 215436.9 | GM5: 216281.68 | GN5: 230399.35 | GO5: 0 | GP5: 0 | GQ5: 0 | GR5: 387109.2 | GS5: 438608.33 | GT5: 453597.15 | GU5: 456899.6 | GV5: 467329.68 | GW5: 476895.98 | GX5: 513783.77 | GY5: 0
B6: 13075002 | C6: 5554 | D6: Alt Tellin | E6: Amt Jarmen-Tutow | F6: 394 | G6: 385 | H6: 407 | I6: 380 | J6: 379 | K6: 376 | L6: 395 | M6: 407 | N6: 401 | O6: 0 | P6: 0 | Q6: 0 | R6: 0 | S6: 179247.49 | T6: 260228.32 | U6: 314112.22 | V6: 204110.54 | W6: 217816.29 | X6: 442761.78 | Y6: 244425 | Z6: 272826.08 | AA6: 251516.54 | AB6: 0 | AC6: 0 | AD6: 0 | AE6: 0 | AF6: 263996.21 | AG6: 275917.77 | AH6: 311851.59 | AI6: 370306.43 | AJ6: 381213.34 | AK6: 289152.82 | AL6: 338043.34 | AM6: 394879.31 | AN6: 380434.29 | AO6: 423955.52 | AP6: 447554.69 | AQ6: 0 | AR6: 0 | AS6: 263996.21 | AT6: 275917.77 | AU6: 311851.59 | AV6: 370306.43 | AW6: 381213.34 | AX6: 289152.82 | AY6: 338043.34 | AZ6: 442761.78 | BA6: 408919.63 | BB6: 439254.76 | BC6: 447554.69 | BD6: 0 | BE6: 0 | BF6: 0 | BG6: 0 | BH6: 0 | BI6: 0 | BJ6: 0 | BK6: 0 | BL6: 0 | BM6: 0 | BN6: 164494.63 | BO6: 166428.68 | BP6: 196038.15 | BQ6: 0 | BR6: 0 | BS6: 0 | BT6: 0 | BU6: 0 | BV6: 0 | BW6: 0 | BX6: 0 | BY6: 0 | BZ6: 465 | CA6: 489 | CB6: 500 | CC6: 489 | CD6: 0 | CE6: 0 | CF6: 0 | CG6: 0 | CH6: 0 | CI6: 0 | CJ6: 0 | CK6: 0 | CL6: 0 | CM6: 21141.67 | CN6: 28699.15 | CO6: 29333.41 | CP6: 29137.94 | CQ6: 0 | CR6: 0 | CS6: 0 | CT6: 0 | CU6: 0 | CV6: 0 | CW6: 0 | CX6: 0 | CY6: 0 | CZ6: 0 | DA6: 0 | DB6: 0 | DC6: 0 | DD6: 0 | DE6: 0 | DF6: 0 | DG6: 0 | DH6: 0 | DI6: 0 | DJ6: 0 | DK6: 0 | DL6: 0 | DM6: 0 | DN6: 0 | DO6: 0 | DP6: 0 | DQ6: 0 | DR6: 0 | DS6: 0 | DT6: 0 | DU6: 0 | DV6: 0 | DW6: 0 | DX6: 0 | DY6: 0 | DZ6: 0 | EA6: 0 | EB6: 0 | EC6: 0 | ED6: 0 | EE6: 0 | EF6: 0 | EG6: 0 | EH6: 0 | EI6: 0 | EJ6: 0 | EK6: 0 | EL6: 0 | EM6: 0 | EN6: 0 | EO6: 0 | EP6: 0 | EQ6: 0 | ER6: 0 | ET6: 124277.87 | EU6: 132604.1 | EV6: 110078.11 | EW6: 67101.12 | EX6: 54674.33 | EY6: 115410.24 | EZ6: 120227.05 | FA6: 0 | FB6: 0 | FC6: 0 | FD6: 0 | FE6: 0 | FF6: 0 | FG6: 0 | FH6: 0 | FI6: 0 | FJ6: 0 | FK6: 0 | FL6: 0 | FM6: 0 | FN6: 0 | FO6: 0 | FP6: 0 | FQ6: 0 | FR6: 120809.64 | FS6: 124277.87 | FT6: 132604.1 | FU6: 110078.11 | FV6: 67101.12 | FW6: 85042.28 | FX6: 120227.05 | FY6: 0 | FZ6: 394 | GA6: 385 | GB6: 407 | GC6: 380 | GD6: 379 | GE6: 376 | GF6: 395 | GG6: 407 | GH6: 143186.57 | GI6: 151639.9 | GJ6: 179247.49 | GK6: 260228.32 | GL6: 314112.22 | GM6: 204110.54 | GN6: 217816.29 | GO6: 0 | GP6: 0 | GQ6: 0 | GR6: 263996.21 | GS6: 275917.77 | GT6: 311851.59 | GU6: 370306.43 | GV6: 381213.34 | GW6: 289152.82 | GX6: 338043.34 | GY6: 0
B7: 13075003 | C7: 5552 | D7: Altwarp | E7: Amt Am Stettiner Haff | F7: 490 | G7: 482 | H7: 481 | I7: 476 | J7: 469 | K7: 458 | L7: 452 | M7: 452 | N7: 450 | O7: 0 | P7: 0 | Q7: 0 | R7: 0 | S7: 117244.77 | T7: 124043.38 | U7: 154277.29 | V7: 162149.92 | W7: 165888.94 | X7: 153866.08 | Y7: 169819.59 | Z7: 162494.8 | AA7: 173730 | AB7: 0 | AC7: 0 | AD7: 0 | AE7: 0 | AF7: 295139.95 | AG7: 307902.41 | AH7: 308443.4 | AI7: 324348.9 | AJ7: 359333.78 | AK7: 362220.35 | AL7: 387222.02 | AM7: 407040.41 | AN7: 430056.06 | AO7: 464490.09 | AP7: 497373.89 | AQ7: 0 | AR7: 0 | AS7: 295139.95 | AT7: 307902.41 | AU7: 308443.4 | AV7: 324348.9 | AW7: 359333.78 | AX7: 362220.35 | AY7: 387222.02 | AZ7: 456397.53 | BA7: 462256.88 | BB7: 481252.1 | BC7: 497373.89 | BD7: 0 | BE7: 0 | BF7: 0 | BG7: 0 | BH7: 0 | BI7: 0 | BJ7: 0 | BK7: 0 | BL7: 0 | BM7: 302531.44 | BN7: 292437.29 | BO7: 318757.3 | BP7: 323643.89 | BQ7: 0 | BR7: 0 | BS7: 0 | BT7: 0 | BU7: 0 | BV7: 0 | BW7: 0 | BX7: 0 | BY7: 0 | BZ7: 546 | CA7: 537 | CB7: 539 | CC7: 540 | CD7: 0 | CE7: 0 | CF7: 0 | CG7: 0 | CH7: 0 | CI7: 0 | CJ7: 0 | CK7: 0 | CL7: 0 | CM7: 33900.36 | CN7: 33384.73 | CO7: 33168.57 | CP7: 33123.28 | CQ7: 0 | CR7: 0 | CS7: 0 | CT7: 0 | CU7: 0 | CV7: 0 | CW7: 0 | CX7: 0 | CY7: 0 | CZ7: 0 | DA7: 0 | DB7: 0 | DC7: 0 | DD7: 0 | DE7: 0 | DF7: 0 | DG7: 0 | DH7: 0 | DI7: 0 | DJ7: 0 | DK7: 0 | DL7: 0 | DM7: 0 | DN7: 0 | DO7: 0 | DP7: 0 | DQ7: 0 | DR7: 0 | DS7: 0 | DT7: 0 | DU7: 0 | DV7: 0 | DW7: 0 | DX7: 0 | DY7: 0 | DZ7: 0 | EA7: 0 | EB7: 0 | EC7: 0 | ED7: 0 | EE7: 0 | EF7: 0 | EG7: 0 | EH7: 0 | EI7: 0 | EJ7: 0 | EK7: 0 | EL7: 0 | EM7: 0 | EN7: 0 | EO7: 0 | EP7: 0 | EQ7: 0 | ER7: 0 | ET7: 194155.95 | EU7: 191198.63 | EV7: 200305.52 | EW7: 205056.49 | EX7: 194782.86 | EY7: 205358.01 | EZ7: 221333.08 | FA7: 0 | FB7: 0 | FC7: 0 | FD7: 0 | FE7: 0 | FF7: 0 | FG7: 0 | FH7: 0 | FI7: 0 | FJ7: 0 | FK7: 0 | FL7: 0 | FM7: 0 | FN7: 0 | FO7: 0 | FP7: 0 | FQ7: 0 | FR7: 178722.33 | FS7: 194155.95 | FT7: 191198.63 | FU7: 200305.52 | FV7: 205056.49 | FW7: 200070.43 | FX7: 221333.08 | FY7: 302531.44 | FZ7: 490 | GA7: 482 | GB7: 481 | GC7: 476 | GD7: 469 | GE7: 458 | GF7: 452 | GG7: 452 | GH7: 116417.62 | GI7: 113746.46 | GJ7: 117244.77 | GK7: 124043.38 | GL7: 154277.29 | GM7: 162149.92 | GN7: 165888.94 | GO7: 0 | GP7: 0 | GQ7: 0 | GR7: 295139.95 | GS7: 307902.41 | GT7: 308443.4 | GU7: 324348.9 | GV7: 359333.78 | GW7: 362220.35 | GX7: 387222.02 | GY7: 0
B8: 13075004 | C8: 5559 | D8: Altwigshagen | E8: Amt Torgelow-Ferdinandshof | F8: 433 | G8: 413 | H8: 412 | I8: 400 | J8: 389 | K8: 384 | L8: 384 | M8: 388 | N8: 384 | O8: 0 | P8: 0 | Q8: 0 | R8: 0 | S8: 121649.63 | T8: 127516.95 | U8: 155667.71 | V8: 153536.59 | W8: 160809.66 | X8: 177030.31 | Y8: 183435.56 | Z8: 180269.25 | AA8: 172747.39 | AB8: 0 | AC8: 0 | AD8: 0 | AE8: 0 | AF8: 296288.93 | AG8: 272196.06 | AH8: 292090.18 | AI8: 293695.49 | AJ8: 318631.15 | AK8: 310570.74 | AL8: 328136.56 | AM8: 344622.1 | AN8: 368540.19 | AO8: 401776.67 | AP8: 426263.33 | AQ8: 0 | AR8: 0 | AS8: 296288.93 | AT8: 272196.06 | AU8: 292090.18 | AV8: 293695.49 | AW8: 318631.15 | AX8: 310570.74 | AY8: 328136.56 | AZ8: 386410.46 | BA8: 396134.95 | BB8: 416275.55 | BC8: 426263.33 | BD8: 0 | BE8: 0 | BF8: 0 | BG8: 0 | BH8: 0 | BI8: 0 | BJ8: 0 | BK8: 0 | BL8: 0 | BM8: 209380.15 | BN8: 212699.39 | BO8: 236006.3 | BP8: 253515.94 | BQ8: 0 | BR8: 0 | BS8: 0 | BT8: 0 | BU8: 0 | BV8: 0 | BW8: 0 | BX8: 0 | BY8: 0 | BZ8: 491 | CA8: 489 | CB8: 489 | CC8: 475 | CD8: 0 | CE8: 0 | CF8: 0 | CG8: 0 | CH8: 0 | CI8: 0 | CJ8: 0 | CK8: 0 | CL8: 0 | CM8: 28054.15 | CN8: 28033.98 | CO8: 28186.92 | CP8: 28104.87 | CQ8: 0 | CR8: 0 | CS8: 0 | CT8: 0 | CU8: 0 | CV8: 0 | CW8: 0 | CX8: 0 | CY8: 0 | CZ8: 0 | DA8: 0 | DB8: 0 | DC8: 0 | DD8: 0 | DE8: 0 | DF8: 0 | DG8: 0 | DH8: 0 | DI8: 0 | DJ8: 0 | DK8: 0 | DL8: 0 | DM8: 0 | DN8: 0 | DO8: 0 | DP8: 0 | DQ8: 0 | DR8: 0 | DS8: 0 | DT8: 0 | DU8: 0 | DV8: 0 | DW8: 0 | DX8: 0 | DY8: 0 | DZ8: 0 | EA8: 0 | EB8: 0 | EC8: 0 | ED8: 0 | EE8: 0 | EF8: 0 | EG8: 0 | EH8: 0 | EI8: 0 | EJ8: 0 | EK8: 0 | EL8: 0 | EM8: 0 | EN8: 0 | EO8: 0 | EP8: 0 | EQ8: 0 | ER8: 0 | ET8: 162523.69 | EU8: 170440.55 | EV8: 166178.54 | EW8: 162963.44 | EX8: 152728.04 | EY8: 161340.26 | EZ8: 167326.9 | FA8: 0 | FB8: 0 | FC8: 0 | FD8: 0 | FE8: 0 | FF8: 0 | FG8: 0 | FH8: 0 | FI8: 0 | FJ8: 0 | FK8: 0 | FL8: 0 | FM8: 0 | FN8: 0 | FO8: 0 | FP8: 0 | FQ8: 0 | FR8: 174536.65 | FS8: 162523.69 | FT8: 170440.55 | FU8: 166178.54 | FV8: 162963.44 | FW8: 157034.15 | FX8: 167326.9 | FY8: 209380.15 | FZ8: 433 | GA8: 413 | GB8: 412 | GC8: 400 | GD8: 389 | GE8: 384 | GF8: 384 | GG8: 388 | GH8: 121752.28 | GI8: 109672.37 | GJ8: 121649.63 | GK8: 127516.95 | GL8: 155667.71 | GM8: 153536.59 | GN8: 160809.66 | GO8: 0 | GP8: 0 | GQ8: 0 | GR8: 296288.93 | GS8: 272196.06 | GT8: 292090.18 | GU8: 293695.49 | GV8: 318631.15 | GW8: 310570.74 | GX8: 328136.56 | GY8: 0
B9: 13075005 | C9: 511 | D9: Anklam, Stadt | E9: Anklam, Stadt | F9: 12797 | G9: 12718 | H9: 12712 | I9: 12635 | J9: 12521 | K9: 12385 | L9: 12331 | M9: 12288 | N9: 12177 | O9: 0 | P9: 0 | Q9: 0 | R9: 0 | S9: 9212748.43 | T9: 8249220.35 | U9: 6127001.8 | V9: 6554085.57 | W9: 7788463.52 | X9: 9887269.92 | Y9: 9113929.05 | Z9: 8538439.41 | AA9: 10654876.04 | AB9: 0 | AC9: 0 | AD9: 0 | AE9: 0 | AF9: 9803860.27 | AG9: 9874520.91 | AH9: 11491752.54 | AI9: 9790017.16 | AJ9: 8551865.06 | AK9: 10507344.3 | AL9: 11345661.28 | AM9: 12933907.69 | AN9: 13401096.32 | AO9: 13926703.37 | AP9: 15555714.29 | AQ9: 0 | AR9: 0 | AS9: 9803860.27 | AT9: 9874520.91 | AU9: 11491752.54 | AV9: 9790017.16 | AW9: 8551865.06 | AX9: 10507344.3 | AY9: 11345661.28 | AZ9: 0 | BA9: 0 | BB9: 0 | BC9: 15555714.29 | BD9: 0 | BE9: 0 | BF9: 0 | BG9: 0 | BH9: 0 | BI9: 0 | BJ9: 0 | BK9: 0 | BL9: 0 | BM9: 4614984.03 | BN9: 5290585.78 | BO9: 5890835.61 | BP9: 4900838.25 | BQ9: 0 | BR9: 0 | BS9: 0 | BT9: 0 | BU9: 0 | BV9: 0 | BW9: 0 | BX9: 0 | BY9: 0 | BZ9: 19114 | CA9: 19021 | CB9: 18896 | CC9: 18698 | CD9: 0 | CE9: 0 | CF9: 0 | CG9: 0 | CH9: 0 | CI9: 0 | CJ9: 0 | CK9: 0 | CL9: 0 | CM9: 704419.54 | CN9: 738658.66 | CO9: 780426.98 | CP9: 713379.55 | CQ9: 0 | CR9: 0 | CS9: 0 | CT9: 0 | CU9: 0 | CV9: 0 | CW9: 0 | CX9: 0 | CY9: 0 | CZ9: 561008.38 | DA9: 538234.33 | DB9: 582344.9 | DC9: 576408.6 | DD9: 0 | DE9: 0 | DF9: 0 | DG9: 0 | DH9: 0 | DI9: 0 | DJ9: 0 | DK9: 0 | DL9: 0 | DM9: 0 | DN9: 0 | DO9: 0 | DP9: 0 | DQ9: 0 | DR9: 0 | DS9: 0 | DT9: 0 | DU9: 0 | DV9: 0 | DW9: 0 | DX9: 0 | DY9: 0 | DZ9: 718819.73 | EA9: 476830.44 | EB9: 396169.58 | EC9: 197299.34 | ED9: 0 | EE9: 0 | EF9: 0 | EG9: 0 | EH9: 0 | EI9: 0 | EJ9: 0 | EK9: 0 | EL9: 0 | EM9: 0 | EN9: 0 | EO9: 0 | EP9: 0 | EQ9: 0 | ER9: 0 | ET9: 2308893.35 | EU9: 2279004.11 | EV9: 1540796.81 | EW9: 2424863.26 | EX9: 3917943.48 | EY9: 3988573.99 | EZ9: 3557197.76 | FA9: 0 | FB9: 524588.61 | FC9: 488841.93 | FD9: 486056.78 | FE9: 482685.52 | FF9: 480176.46 | FG9: 527031.13 | FH9: 523375.24 | FI9: 0 | FJ9: 1966262.53 | FK9: 1955955.96 | FL9: 1934517.86 | FM9: 1916698.99 | FN9: 1882779.68 | FO9: 1868431.99 | FP9: 1845510.27 | FQ9: 0 | FR9: 2609435.23 | FS9: 2308893.35 | FT9: 2279004.11 | FU9: 1540796.81 | FV9: 2424863.26 | FW9: 3953258.73 | FX9: 3557197.76 | FY9: 4614984.03 | FZ9: 12797 | GA9: 12718 | GB9: 12712 | GC9: 12635 | GD9: 12521 | GE9: 12385 | GF9: 12331 | GG9: 12288 | GH9: 7194425.04 | GI9: 7565627.56 | GJ9: 9212748.43 | GK9: 8249220.35 | GL9: 6127001.8 | GM9: 6554085.57 | GN9: 7788463.52 | GO9: 0 | GP9: 0 | GQ9: 0 | GR9: 9803860.27 | GS9: 9874520.91 | GT9: 11491752.54 | GU9: 9790017.16 | GV9: 8551865.06 | GW9: 10507344.3 | GX9: 11345661.28 | GY9: 0
B10: 13075006 | C10: 5563 | D10: Bandelin | E10: Amt Züssow | F10: 538 | G10: 519 | H10: 528 | I10: 549 | J10: 538 | K10: 534 | L10: 520 | M10: 531 | N10: 519 | O10: 0 | P10: 0 | Q10: 0 | R10: 0 | S10: 821626.2 | T10: 927368.91 | U10: 885812.75 | V10: 1036460.14 | W10: 212091.49 | X10: 461533.27 | Y10: 865046.1 | Z10: 442852.21 | AA10: 533075.06 | AB10: 0 | AC10: 0 | AD10: 0 | AE10: 0 | AF10: 543832 | AG10: 855823.9 | AH10: 746008.37 | AI10: 822196.76 | AJ10: 801439.46 | AK10: 915756.87 | AL10: 450729.73 | AM10: 500777.75 | AN10: 762753.68 | AO10: 557188.99 | AP10: 600399.92 | AQ10: 0 | AR10: 0 | AS10: 543832 | AT10: 855823.9 | AU10: 746008.37 | AV10: 822196.76 | AW10: 801439.46 | AX10: 915756.87 | AY10: 450729.73 | AZ10: 561501.31 | BA10: 819865.51 | BB10: 577296.21 | BC10: 600399.92 | BD10: 0 | BE10: 0 | BF10: 0 | BG10: 0 | BH10: 0 | BI10: 0 | BJ10: 0 | BK10: 0 | BL10: 0 | BM10: 99968.04 | BN10: 0 | BO10: 134444 | BP10: 67324.86 | BQ10: 0 | BR10: 0 | BS10: 0 | BT10: 0 | BU10: 0 | BV10: 0 | BW10: 0 | BX10: 0 | BY10: 0 | BZ10: 683 | CA10: 659 | CB10: 665 | CC10: 641 | CD10: 0 | CE10: 0 | CF10: 0 | CG10: 0 | CH10: 0 | CI10: 0 | CJ10: 0 | CK10: 0 | CL10: 0 | CM10: 36639.92 | CN10: 21018.1 | CO10: 37890.61 | CP10: 35867.29 | CQ10: 0 | CR10: 0 | CS10: 0 | CT10: 0 | CU10: 0 | CV10: 0 | CW10: 0 | CX10: 0 | CY10: 0 | CZ10: 0 | DA10: 0 | DB10: 0 | DC10: 0 | DD10: 0 | DE10: 0 | DF10: 0 | DG10: 0 | DH10: 0 | DI10: 0 | DJ10: 0 | DK10: 0 | DL10: 0 | DM10: 0 | DN10: 0 | DO10: 0 | DP10: 0 | DQ10: 0 | DR10: 0 | DS10: 0 | DT10: 0 | DU10: 0 | DV10: 0 | DW10: 0 | DX10: 0 | DY10: 0 | DZ10: 0 | EA10: 0 | EB10: 0 | EC10: 0 | ED10: 0 | EE10: 0 | EF10: 0 | EG10: 0 | EH10: 0 | EI10: 0 | EJ10: 0 | EK10: 0 | EL10: 0 | EM10: 0 | EN10: 45180.59 | EO10: 0 | EP10: 0 | EQ10: 0 | ER10: 0 | ET10: 0 | EU10: 0 | EV10: 0 | EW10: 0 | EX10: 0 | EY10: 0 | EZ10: 238638.24 | FA10: 0 | FB10: 0 | FC10: 0 | FD10: 0 | FE10: 0 | FF10: 0 | FG10: 0 | FH10: 0 | FI10: 0 | FJ10: 0 | FK10: 0 | FL10: 0 | FM10: 0 | FN10: 0 | FO10: 0 | FP10: 0 | FQ10: 0 | FR10: 0 | FS10: 0 | FT10: 0 | FU10: 0 | FV10: 0 | FW10: 0 | FX10: 238638.24 | FY10: 99968.04 | FZ10: 538 | GA10: 519 | GB10: 528 | GC10: 549 | GD10: 538 | GE10: 534 | GF10: 520 | GG10: 531 | GH10: 547529.06 | GI10: 986964.27 | GJ10: 821626.2 | GK10: 927368.91 | GL10: 885812.75 | GM10: 1036460.14 | GN10: 212091.49 | GO10: 0 | GP10: 0 | GQ10: 0 | GR10: 543832 | GS10: 855823.9 | GT10: 746008.37 | GU10: 822196.76 | GV10: 801439.46 | GW10: 915756.87 | GX10: 450729.73 | GY10: 0
B11: 13075007 | C11: 5553 | D11: Bargischow | E11: Amt Anklam-Land | F11: 335 | G11: 320 | H11: 332 | I11: 317 | J11: 303 | K11: 302 | L11: 291 | M11: 286 | N11: 286 | O11: 0 | P11: 0 | Q11: 0 | R11: 0 | S11: 256051.23 | T11: 250146.34 | U11: 296800.35 | V11: 500782.29 | W11: 238179.86 | X11: 182730.44 | Y11: 436994.18 | Z11: 392979.13 | AA11: 242510.25 | AB11: 0 | AC11: 0 | AD11: 0 | AE11: 0 | AF11: 199571.6 | AG11: 411101.55 | AH11: 256051.23 | AI11: 281553.45 | AJ11: 332261.1 | AK11: 470519.96 | AL11: 289468.82 | AM11: 272230.95 | AN11: 395938.09 | AO11: 379291.67 | AP11: 321742.88 | AQ11: 0 | AR11: 0 | AS11: 199571.6 | AT11: 411101.55 | AU11: 256051.23 | AV11: 281553.45 | AW11: 332261.1 | AX11: 470519.96 | AY11: 289468.82 | AZ11: 305241.26 | BA11: 425584.29 | BB11: 392979.13 | BC11: 321742.88 | BD11: 0 | BE11: 0 | BF11: 0 | BG11: 0 | BH11: 0 | BI11: 0 | BJ11: 0 | BK11: 0 | BL11: 0 | BM11: 122510.82 | BN11: 0 | BO11: 0 | BP11: 79232.63 | BQ11: 0 | BR11: 0 | BS11: 0 | BT11: 0 | BU11: 0 | BV11: 0 | BW11: 0 | BX11: 0 | BY11: 0 | BZ11: 379 | CA11: 368 | CB11: 356 | CC11: 349 | CD11: 0 | CE11: 0 | CF11: 0 | CG11: 0 | CH11: 0 | CI11: 0 | CJ11: 0 | CK11: 0 | CL11: 0 | CM11: 21931.21 | CN11: 11762.05 | CO11: 13015.31 | CP11: 20560.13 | CQ11: 0 | CR11: 0 | CS11: 0 | CT11: 0 | CU11: 0 | CV11: 0 | CW11: 0 | CX11: 0 | CY11: 0 | CZ11: 0 | DA11: 0 | DB11: 0 | DC11: 0 | DD11: 0 | DE11: 0 | DF11: 0 | DG11: 0 | DH11: 0 | DI11: 0 | DJ11: 0 | DK11: 0 | DL11: 0 | DM11: 0 | DN11: 0 | DO11: 0 | DP11: 0 | DQ11: 0 | DR11: 0 | DS11: 0 | DT11: 0 | DU11: 0 | DV11: 0 | DW11: 0 | DX11: 0 | DY11: 0 | DZ11: 0 | EA11: 0 | EB11: 0 | EC11: 0 | ED11: 0 | EE11: 0 | EF11: 0 | EG11: 0 | EH11: 0 | EI11: 0 | EJ11: 0 | EK11: 0 | EL11: 0 | EM11: 0 | EN11: 11409.89 | EO11: 0 | EP11: 0 | EQ11: 0 | ER11: 0 | ET11: 62998.24 | EU11: 0 | EV11: 31407.11 | EW11: 35460.75 | EX11: 20256.48 | EY11: 0 | EZ11: 51288.96 | FA11: 0 | FB11: 0 | FC11: 0 | FD11: 0 | FE11: 0 | FF11: 0 | FG11: 0 | FH11: 0 | FI11: 0 | FJ11: 0 | FK11: 0 | FL11: 0 | FM11: 0 | FN11: 0 | FO11: 0 | FP11: 0 | FQ11: 0 | FR11: 10946.03 | FS11: 62998.24 | FT11: 0 | FU11: 31407.11 | FV11: 35460.75 | FW11: 10128.24 | FX11: 51288.96 | FY11: 122510.82 | FZ11: 335 | GA11: 320 | GB11: 332 | GC11: 317 | GD11: 303 | GE11: 302 | GF11: 291 | GG11: 286 | GH11: 188625.57 | GI11: 350014.62 | GJ11: 256051.23 | GK11: 250146.34 | GL11: 296800.35 | GM11: 500782.29 | GN11: 238179.86 | GO11: 0 | GP11: 0 | GQ11: 0 | GR11: 199571.6 | GS11: 411101.55 | GT11: 256051.23 | GU11: 281553.45 | GV11: 332261.1 | GW11: 470519.96 | GX11: 289468.82 | GY11: 0
B12: 13075008 | C12: 5555 | D12: Behrenhoff | E12: Amt Landhagen | F12: 761 | G12: 765 | H12: 766 | I12: 759 | J12: 784 | K12: 810 | L12: 822 | M12: 833 | N12: 828 | O12: 0 | P12: 0 | Q12: 0 | R12: 0 | S12: 341199.18 | T12: 329258.13 | U12: 376409.38 | V12: 383497.06 | W12: 386333.26 | X12: 405549.87 | Y12: 490234.52 | Z12: 517638.98 | AA12: 517780.24 | AB12: 0 | AC12: 0 | AD12: 0 | AE12: 0 | AF12: 479508.16 | AG12: 521935.49 | AH12: 576656.61 | AI12: 544878.34 | AJ12: 622431.52 | AK12: 622497.44 | AL12: 680004.43 | AM12: 725686.47 | AN12: 790181.48 | AO12: 865941.39 | AP12: 924626.83 | AQ12: 0 | AR12: 0 | AS12: 479508.16 | AT12: 521935.49 | AU12: 576656.61 | AV12: 544878.34 | AW12: 622431.52 | AX12: 622497.44 | AY12: 680004.43 | AZ12: 813682.13 | BA12: 849346.99 | BB12: 897190.54 | BC12: 924626.83 | BD12: 0 | BE12: 0 | BF12: 0 | BG12: 0 | BH12: 0 | BI12: 0 | BJ12: 0 | BK12: 0 | BL12: 0 | BM12: 408132.26 | BN12: 359112.47 | BO12: 379551.56 | BP12: 406846.59 | BQ12: 0 | BR12: 0 | BS12: 0 | BT12: 0 | BU12: 0 | BV12: 0 | BW12: 0 | BX12: 0 | BY12: 0 | BZ12: 987 | CA12: 1002 | CB12: 1020 | CC12: 1019 | CD12: 0 | CE12: 0 | CF12: 0 | CG12: 0 | CH12: 0 | CI12: 0 | CJ12: 0 | CK12: 0 | CL12: 0 | CM12: 59314.52 | CN12: 59878.73 | CO12: 60200.61 | CP12: 60121.58 | CQ12: 0 | CR12: 0 | CS12: 0 | CT12: 0 | CU12: 0 | CV12: 0 | CW12: 0 | CX12: 0 | CY12: 0 | CZ12: 0 | DA12: 0 | DB12: 0 | DC12: 0 | DD12: 0 | DE12: 0 | DF12: 0 | DG12: 0 | DH12: 0 | DI12: 0 | DJ12: 0 | DK12: 0 | DL12: 0 | DM12: 0 | DN12: 0 | DO12: 0 | DP12: 0 | DQ12: 0 | DR12: 0 | DS12: 0 | DT12: 0 | DU12: 0 | DV12: 0 | DW12: 0 | DX12: 0 | DY12: 0 | DZ12: 0 | EA12: 0 | EB12: 0 | EC12: 0 | ED12: 0 | EE12: 0 | EF12: 0 | EG12: 0 | EH12: 0 | EI12: 0 | EJ12: 0 | EK12: 0 | EL12: 0 | EM12: 0 | EN12: 0 | EO12: 0 | EP12: 0 | EQ12: 0 | ER12: 0 | ET12: 238502.89 | EU12: 235457.43 | EV12: 215620.21 | EW12: 246022.14 | EX12: 231762.52 | EY12: 246238.25 | EZ12: 293671.17 | FA12: 0 | FB12: 0 | FC12: 0 | FD12: 0 | FE12: 0 | FF12: 0 | FG12: 0 | FH12: 0 | FI12: 0 | FJ12: 0 | FK12: 0 | FL12: 0 | FM12: 0 | FN12: 0 | FO12: 0 | FP12: 0 | FQ12: 0 | FR12: 227996.94 | FS12: 238502.89 | FT12: 235457.43 | FU12: 215620.21 | FV12: 246022.14 | FW12: 239000.38 | FX12: 293671.17 | FY12: 408132.26 | FZ12: 761 | GA12: 765 | GB12: 766 | GC12: 759 | GD12: 784 | GE12: 810 | GF12: 822 | GG12: 833 | GH12: 251511.22 | GI12: 283432.6 | GJ12: 341199.18 | GK12: 329258.13 | GL12: 376409.38 | GM12: 383497.06 | GN12: 386333.26 | GO12: 0 | GP12: 0 | GQ12: 0 | GR12: 479508.16 | GS12: 521935.49 | GT12: 576656.61 | GU12: 544878.34 | GV12: 622431.52 | GW12: 622497.44 | GX12: 680004.43 | GY12: 0
B13: 13075009 | C13: 5554 | D13: Bentzin | E13: Amt Jarmen-Tutow | F13: 831 | G13: 837 | H13: 830 | I13: 818 | J13: 824 | K13: 834 | L13: 846 | M13: 848 | N13: 843 | O13: 0 | P13: 0 | Q13: 0 | R13: 0 | S13: 338461.17 | T13: 294088.79 | U13: 351114.28 | V13: 489816.77 | W13: 473932.75 | X13: 540013.42 | Y13: 412411.35 | Z13: 489138.38 | AA13: 484033.19 | AB13: 0 | AC13: 0 | AD13: 0 | AE13: 0 | AF13: 571071.79 | AG13: 539502.66 | AH13: 602806.07 | AI13: 550016.43 | AJ13: 659986.45 | AK13: 740227.56 | AL13: 735065.12 | AM13: 753266.95 | AN13: 810968 | AO13: 881685.18 | AP13: 940168.05 | AQ13: 0 | AR13: 0 | AS13: 571071.79 | AT13: 539502.66 | AU13: 602806.07 | AV13: 550016.43 | AW13: 659986.45 | AX13: 740227.56 | AY13: 735065.12 | AZ13: 844606.97 | BA13: 871689.92 | BB13: 913502.47 | BC13: 940168.05 | BD13: 0 | BE13: 0 | BF13: 0 | BG13: 0 | BH13: 0 | BI13: 0 | BJ13: 0 | BK13: 0 | BL13: 0 | BM13: 304593.55 | BN13: 459278.57 | BO13: 424364.09 | BP13: 456134.86 | BQ13: 0 | BR13: 0 | BS13: 0 | BT13: 0 | BU13: 0 | BV13: 0 | BW13: 0 | BX13: 0 | BY13: 0 | BZ13: 1051 | CA13: 1053 | CB13: 1067 | CC13: 1046 | CD13: 0 | CE13: 0 | CF13: 0 | CG13: 0 | CH13: 0 | CI13: 0 | CJ13: 0 | CK13: 0 | CL13: 0 | CM13: 60402.28 | CN13: 61862.62 | CO13: 61270.6 | CP13: 61316.24 | CQ13: 0 | CR13: 0 | CS13: 0 | CT13: 0 | CU13: 0 | CV13: 0 | CW13: 0 | CX13: 0 | CY13: 0 | CZ13: 0 | DA13: 0 | DB13: 0 | DC13: 0 | DD13: 0 | DE13: 0 | DF13: 0 | DG13: 0 | DH13: 0 | DI13: 0 | DJ13: 0 | DK13: 0 | DL13: 0 | DM13: 0 | DN13: 0 | DO13: 0 | DP13: 0 | DQ13: 0 | DR13: 0 | DS13: 0 | DT13: 0 | DU13: 0 | DV13: 0 | DW13: 0 | DX13: 0 | DY13: 0 | DZ13: 0 | EA13: 0 | EB13: 0 | EC13: 0 | ED13: 0 | EE13: 0 | EF13: 0 | EG13: 0 | EH13: 0 | EI13: 0 | EJ13: 0 | EK13: 0 | EL13: 0 | EM13: 0 | EN13: 0 | EO13: 0 | EP13: 0 | EQ13: 0 | ER13: 0 | ET13: 245330.63 | EU13: 264344.9 | EV13: 255927.64 | EW13: 308872.17 | EX13: 285173.15 | EY13: 215648.45 | EZ13: 261132.37 | FA13: 0 | FB13: 0 | FC13: 0 | FD13: 0 | FE13: 0 | FF13: 0 | FG13: 0 | FH13: 0 | FI13: 0 | FJ13: 0 | FK13: 0 | FL13: 0 | FM13: 0 | FN13: 0 | FO13: 0 | FP13: 0 | FQ13: 0 | FR13: 271707.9 | FS13: 245330.63 | FT13: 264344.9 | FU13: 255927.64 | FV13: 308872.17 | FW13: 250410.79 | FX13: 261132.37 | FY13: 304593.55 | FZ13: 831 | GA13: 837 | GB13: 830 | GC13: 818 | GD13: 824 | GE13: 834 | GF13: 846 | GG13: 848 | GH13: 299363.89 | GI13: 294172.03 | GJ13: 338461.17 | GK13: 294088.79 | GL13: 351114.28 | GM13: 489816.77 | GN13: 473932.75 | GO13: 0 | GP13: 0 | GQ13: 0 | GR13: 571071.79 | GS13: 539502.66 | GT13: 602806.07 | GU13: 550016.43 | GV13: 659986.45 | GW13: 740227.56 | GX13: 735065.12 | GY13: 0
B14: 13075010 | C14: 5562 | D14: Benz | E14: Amt Usedom-Süd | F14: 998 | G14: 1003 | H14: 999 | I14: 1003 | J14: 1030 | K14: 1072 | L14: 1072 | M14: 1118 | N14: 1117 | O14: 0 | P14: 0 | Q14: 0 | R14: 0 | S14: 434723.03 | T14: 537404.37 | U14: 769713.57 | V14: 557670.34 | W14: 624937.63 | X14: 653609.03 | Y14: 810311.03 | Z14: 720954.42 | AA14: 723049.09 | AB14: 0 | AC14: 0 | AD14: 0 | AE14: 0 | AF14: 594493.74 | AG14: 644475.09 | AH14: 739800.69 | AI14: 827817.64 | AJ14: 1028849.71 | AK14: 771317.62 | AL14: 928587.9 | AM14: 964325.88 | AN14: 1036459.49 | AO14: 1162943.68 | AP14: 1246482.48 | AQ14: 0 | AR14: 0 | AS14: 594493.74 | AT14: 644475.09 | AU14: 739800.69 | AV14: 827817.64 | AW14: 1028849.71 | AX14: 771317.62 | AY14: 928587.9 | AZ14: 1081258.59 | BA14: 1114065.28 | BB14: 1204910.72 | BC14: 1246482.48 | BD14: 0 | BE14: 0 | BF14: 0 | BG14: 0 | BH14: 0 | BI14: 0 | BJ14: 0 | BK14: 0 | BL14: 0 | BM14: 427649.56 | BN14: 303754.25 | BO14: 483956.3 | BP14: 523433.39 | BQ14: 0 | BR14: 0 | BS14: 0 | BT14: 0 | BU14: 0 | BV14: 0 | BW14: 0 | BX14: 0 | BY14: 0 | BZ14: 1301 | CA14: 1299 | CB14: 1364 | CC14: 1344 | CD14: 0 | CE14: 0 | CF14: 0 | CG14: 0 | CH14: 0 | CI14: 0 | CJ14: 0 | CK14: 0 | CL14: 0 | CM14: 78069.29 | CN14: 77475.82 | CO14: 80729.14 | CP14: 81181.98 | CQ14: 0 | CR14: 0 | CS14: 0 | CT14: 0 | CU14: 0 | CV14: 0 | CW14: 0 | CX14: 0 | CY14: 0 | CZ14: 0 | DA14: 0 | DB14: 0 | DC14: 0 | DD14: 0 | DE14: 0 | DF14: 0 | DG14: 0 | DH14: 0 | DI14: 0 | DJ14: 0 | DK14: 0 | DL14: 0 | DM14: 0 | DN14: 0 | DO14: 0 | DP14: 0 | DQ14: 0 | DR14: 0 | DS14: 0 | DT14: 0 | DU14: 0 | DV14: 0 | DW14: 0 | DX14: 0 | DY14: 0 | DZ14: 0 | EA14: 0 | EB14: 0 | EC14: 0 | ED14: 0 | EE14: 0 | EF14: 0 | EG14: 0 | EH14: 0 | EI14: 0 | EJ14: 0 | EK14: 0 | EL14: 0 | EM14: 0 | EN14: 0 | EO14: 0 | EP14: 0 | EQ14: 0 | ER14: 0 | ET14: 289873.95 | EU14: 305077.66 | EV14: 290413.27 | EW14: 259136.14 | EX14: 134974.13 | EY14: 292320.44 | EZ14: 303650.27 | FA14: 0 | FB14: 0 | FC14: 0 | FD14: 0 | FE14: 0 | FF14: 0 | FG14: 0 | FH14: 0 | FI14: 0 | FJ14: 0 | FK14: 0 | FL14: 0 | FM14: 0 | FN14: 0 | FO14: 0 | FP14: 0 | FQ14: 0 | FR14: 244134.85 | FS14: 289873.95 | FT14: 305077.66 | FU14: 290413.27 | FV14: 259136.14 | FW14: 213647.28 | FX14: 303650.27 | FY14: 427649.56 | FZ14: 998 | GA14: 1003 | GB14: 999 | GC14: 1003 | GD14: 1030 | GE14: 1072 | GF14: 1072 | GG14: 1118 | GH14: 350358.89 | GI14: 354601.14 | GJ14: 434723.03 | GK14: 537404.37 | GL14: 769713.57 | GM14: 557670.34 | GN14: 624937.63 | GO14: 0 | GP14: 0 | GQ14: 0 | GR14: 594493.74 | GS14: 644475.09 | GT14: 739800.69 | GU14: 827817.64 | GV14: 1028849.71 | GW14: 771317.62 | GX14: 928587.9 | GY14: 0
B15: 13075011 | C15: 5556 | D15: Bergholz | E15: Amt Löcknitz-Penkun | F15: 347 | G15: 359 | H15: 342 | I15: 333 | J15: 339 | K15: 333 | L15: 326 | M15: 320 | N15: 315 | O15: 0 | P15: 0 | Q15: 0 | R15: 0 | S15: 82020.92 | T15: 94037.51 | U15: 113449.03 | V15: 109629.21 | W15: 162934.36 | X15: 143669.65 | Y15: 343391.14 | Z15: 233414.04 | AA15: 170853.69 | AB15: 0 | AC15: 0 | AD15: 0 | AE15: 0 | AF15: 211913.75 | AG15: 217666.65 | AH15: 222334.09 | AI15: 236491.03 | AJ15: 265188.81 | AK15: 250819.47 | AL15: 292797.92 | AM15: 298904.72 | AN15: 348279.77 | AO15: 334785.63 | AP15: 351460.25 | AQ15: 0 | AR15: 0 | AS15: 211913.75 | AT15: 217666.65 | AU15: 222334.09 | AV15: 236491.03 | AW15: 265188.81 | AX15: 250819.47 | AY15: 292797.92 | AZ15: 335149.46 | BA15: 374357.52 | BB15: 346867.01 | BC15: 351460.25 | BD15: 0 | BE15: 0 | BF15: 0 | BG15: 0 | BH15: 0 | BI15: 0 | BJ15: 0 | BK15: 0 | BL15: 0 | BM15: 191479.81 | BN15: 30966.38 | BO15: 113452.97 | BP15: 180606.56 | BQ15: 0 | BR15: 0 | BS15: 0 | BT15: 0 | BU15: 0 | BV15: 0 | BW15: 0 | BX15: 0 | BY15: 0 | BZ15: 434 | CA15: 419 | CB15: 406 | CC15: 400 | CD15: 0 | CE15: 0 | CF15: 0 | CG15: 0 | CH15: 0 | CI15: 0 | CJ15: 0 | CK15: 0 | CL15: 0 | CM15: 24322.4 | CN15: 20148.18 | CO15: 22927.33 | CP15: 22898.51 | CQ15: 0 | CR15: 0 | CS15: 0 | CT15: 0 | CU15: 0 | CV15: 0 | CW15: 0 | CX15: 0 | CY15: 0 | CZ15: 0 | DA15: 0 | DB15: 0 | DC15: 0 | DD15: 0 | DE15: 0 | DF15: 0 | DG15: 0 | DH15: 0 | DI15: 0 | DJ15: 0 | DK15: 0 | DL15: 0 | DM15: 0 | DN15: 0 | DO15: 0 | DP15: 0 | DQ15: 0 | DR15: 0 | DS15: 0 | DT15: 0 | DU15: 0 | DV15: 0 | DW15: 0 | DX15: 0 | DY15: 0 | DZ15: 0 | EA15: 0 | EB15: 0 | EC15: 0 | ED15: 0 | EE15: 0 | EF15: 0 | EG15: 0 | EH15: 0 | EI15: 0 | EJ15: 0 | EK15: 0 | EL15: 0 | EM15: 0 | EN15: 0 | EO15: 0 | EP15: 0 | EQ15: 0 | ER15: 0 | ET15: 140397.06 | EU15: 140313.17 | EV15: 142453.52 | EW15: 151739.78 | EX15: 136241.27 | EY15: 146139.27 | EZ15: 129863.56 | FA15: 0 | FB15: 0 | FC15: 0 | FD15: 0 | FE15: 0 | FF15: 0 | FG15: 0 | FH15: 0 | FI15: 0 | FJ15: 0 | FK15: 0 | FL15: 0 | FM15: 0 | FN15: 0 | FO15: 0 | FP15: 0 | FQ15: 0 | FR15: 131131.84 | FS15: 140397.06 | FT15: 140313.17 | FU15: 142453.52 | FV15: 151739.78 | FW15: 141190.26 | FX15: 129863.56 | FY15: 191479.81 | FZ15: 347 | GA15: 359 | GB15: 342 | GC15: 333 | GD15: 339 | GE15: 333 | GF15: 326 | GG15: 320 | GH15: 80781.91 | GI15: 77269.59 | GJ15: 82020.92 | GK15: 94037.51 | GL15: 113449.03 | GM15: 109629.21 | GN15: 162934.36 | GO15: 0 | GP15: 0 | GQ15: 0 | GR15: 211913.75 | GS15: 217666.65 | GT15: 222334.09 | GU15: 236491.03 | GV15: 265188.81 | GW15: 250819.47 | GX15: 292797.92 | GY15: 0
B16: 13075012 | C16: 5556 | D16: Blankensee | E16: Amt Löcknitz-Penkun | F16: 580 | G16: 570 | H16: 572 | I16: 557 | J16: 552 | K16: 548 | L16: 543 | M16: 551 | N16: 550 | O16: 0 | P16: 0 | Q16: 0 | R16: 0 | S16: 114565.55 | T16: 133469.25 | U16: 126009.32 | V16: 106754.83 | W16: 142256.55 | X16: 155944.08 | Y16: 153631.01 | Z16: 155364.95 | AA16: 154732.58 | AB16: 0 | AC16: 0 | AD16: 0 | AE16: 0 | AF16: 291274.38 | AG16: 349597.67 | AH16: 350434.4 | AI16: 385093.96 | AJ16: 376436.14 | AK16: 386931.08 | AL16: 439852.55 | AM16: 486155.27 | AN16: 515283.69 | AO16: 564798.38 | AP16: 606020.07 | AQ16: 0 | AR16: 0 | AS16: 291274.38 | AT16: 349597.67 | AU16: 350434.4 | AV16: 385093.96 | AW16: 376436.14 | AX16: 386931.08 | AY16: 439852.55 | AZ16: 545105.72 | BA16: 553866 | BB16: 585180.2 | BC16: 606020.07 | BD16: 0 | BE16: 0 | BF16: 0 | BG16: 0 | BH16: 0 | BI16: 0 | BJ16: 0 | BK16: 0 | BL16: 0 | BM16: 389161.64 | BN16: 400234.99 | BO16: 429815.25 | BP16: 451287.49 | BQ16: 0 | BR16: 0 | BS16: 0 | BT16: 0 | BU16: 0 | BV16: 0 | BW16: 0 | BX16: 0 | BY16: 0 | BZ16: 656 | CA16: 655 | CB16: 661 | CC16: 667 | CD16: 0 | CE16: 0 | CF16: 0 | CG16: 0 | CH16: 0 | CI16: 0 | CJ16: 0 | CK16: 0 | CL16: 0 | CM16: 40658 | CN16: 40245.68 | CO16: 40566.63 | CP16: 40648.15 | CQ16: 0 | CR16: 0 | CS16: 0 | CT16: 0 | CU16: 0 | CV16: 0 | CW16: 0 | CX16: 0 | CY16: 0 | CZ16: 0 | DA16: 0 | DB16: 0 | DC16: 0 | DD16: 0 | DE16: 0 | DF16: 0 | DG16: 0 | DH16: 0 | DI16: 0 | DJ16: 0 | DK16: 0 | DL16: 0 | DM16: 0 | DN16: 0 | DO16: 0 | DP16: 0 | DQ16: 0 | DR16: 0 | DS16: 0 | DT16: 0 | DU16: 0 | DV16: 0 | DW16: 0 | DX16: 0 | DY16: 0 | DZ16: 0 | EA16: 0 | EB16: 0 | EC16: 0 | ED16: 0 | EE16: 0 | EF16: 0 | EG16: 0 | EH16: 0 | EI16: 0 | EJ16: 0 | EK16: 0 | EL16: 0 | EM16: 0 | EN16: 0 | EO16: 0 | EP16: 0 | EQ16: 0 | ER16: 0 | ET16: 231202.03 | EU16: 235868.85 | EV16: 251624.71 | EW16: 250426.82 | EX16: 266107.02 | EY16: 294245.48 | EZ16: 297596 | FA16: 0 | FB16: 0 | FC16: 0 | FD16: 0 | FE16: 0 | FF16: 0 | FG16: 0 | FH16: 0 | FI16: 0 | FJ16: 0 | FK16: 0 | FL16: 0 | FM16: 0 | FN16: 0 | FO16: 0 | FP16: 0 | FQ16: 0 | FR16: 184983.57 | FS16: 231202.03 | FT16: 235868.85 | FU16: 251624.71 | FV16: 250426.82 | FW16: 280176.25 | FX16: 297596 | FY16: 389161.64 | FZ16: 580 | GA16: 570 | GB16: 572 | GC16: 557 | GD16: 552 | GE16: 548 | GF16: 543 | GG16: 551 | GH16: 106290.81 | GI16: 118395.64 | GJ16: 114565.55 | GK16: 133469.25 | GL16: 126009.32 | GM16: 106754.83 | GN16: 142256.55 | GO16: 0 | GP16: 0 | GQ16: 0 | GR16: 291274.38 | GS16: 349597.67 | GT16: 350434.4 | GU16: 385093.96 | GV16: 376436.14 | GW16: 386931.08 | GX16: 439852.55 | GY16: 0
B17: 13075013 | C17: 5553 | D17: Blesewitz | E17: Amt Anklam-Land | F17: 235 | G17: 235 | H17: 230 | I17: 229 | J17: 225 | K17: 236 | L17: 238 | M17: 242 | N17: 246 | O17: 0 | P17: 0 | Q17: 0 | R17: 0 | S17: 72720.13 | T17: 76788.98 | U17: 87964.93 | V17: 87253.51 | W17: 93094.5 | X17: 87589.57 | Y17: 92340.14 | Z17: 97385.98 | AA17: 85324.11 | AB17: 0 | AC17: 0 | AD17: 0 | AE17: 0 | AF17: 148888 | AG17: 163022.61 | AH17: 163449.23 | AI17: 162959.57 | AJ17: 178153.77 | AK17: 175958.65 | AL17: 189820.57 | AM17: 210414.35 | AN17: 227093.22 | AO17: 249786.9 | AP17: 271862.12 | AQ17: 0 | AR17: 0 | AS17: 148888 | AT17: 163022.61 | AU17: 163449.23 | AV17: 162959.57 | AW17: 178153.77 | AX17: 175958.65 | AY17: 189820.57 | AZ17: 235928.88 | BA17: 244097.02 | BB17: 258800.94 | BC17: 271862.12 | BD17: 0 | BE17: 0 | BF17: 0 | BG17: 0 | BH17: 0 | BI17: 0 | BJ17: 0 | BK17: 0 | BL17: 0 | BM17: 148339.31 | BN17: 151756.88 | BO17: 161414.96 | BP17: 186538.01 | BQ17: 0 | BR17: 0 | BS17: 0 | BT17: 0 | BU17: 0 | BV17: 0 | BW17: 0 | BX17: 0 | BY17: 0 | BZ17: 289 | CA17: 293 | CB17: 301 | CC17: 301 | CD17: 0 | CE17: 0 | CF17: 0 | CG17: 0 | CH17: 0 | CI17: 0 | CJ17: 0 | CK17: 0 | CL17: 0 | CM17: 17394.16 | CN17: 17511.88 | CO17: 17655.73 | CP17: 18110.5 | CQ17: 0 | CR17: 0 | CS17: 0 | CT17: 0 | CU17: 0 | CV17: 0 | CW17: 0 | CX17: 0 | CY17: 0 | CZ17: 0 | DA17: 0 | DB17: 0 | DC17: 0 | DD17: 0 | DE17: 0 | DF17: 0 | DG17: 0 | DH17: 0 | DI17: 0 | DJ17: 0 | DK17: 0 | DL17: 0 | DM17: 0 | DN17: 0 | DO17: 0 | DP17: 0 | DQ17: 0 | DR17: 0 | DS17: 0 | DT17: 0 | DU17: 0 | DV17: 0 | DW17: 0 | DX17: 0 | DY17: 0 | DZ17: 0 | EA17: 0 | EB17: 0 | EC17: 0 | ED17: 0 | EE17: 0 | EF17: 0 | EG17: 0 | EH17: 0 | EI17: 0 | EJ17: 0 | EK17: 0 | EL17: 0 | EM17: 0 | EN17: 0 | EO17: 0 | EP17: 0 | EQ17: 0 | ER17: 0 | ET17: 97153.47 | EU17: 90729.1 | EV17: 86170.59 | EW17: 90188.84 | EX17: 84622.96 | EY17: 92787.32 | EZ17: 96726.07 | FA17: 0 | FB17: 0 | FC17: 0 | FD17: 0 | FE17: 0 | FF17: 0 | FG17: 0 | FH17: 0 | FI17: 0 | FJ17: 0 | FK17: 0 | FL17: 0 | FM17: 0 | FN17: 0 | FO17: 0 | FP17: 0 | FQ17: 0 | FR17: 91651.19 | FS17: 97153.47 | FT17: 90729.1 | FU17: 86170.59 | FV17: 90188.84 | FW17: 88705.14 | FX17: 96726.07 | FY17: 148339.31 | FZ17: 235 | GA17: 235 | GB17: 230 | GC17: 229 | GD17: 225 | GE17: 236 | GF17: 238 | GG17: 242 | GH17: 57236.81 | GI17: 65869.14 | GJ17: 72720.13 | GK17: 76788.98 | GL17: 87964.93 | GM17: 87253.51 | GN17: 93094.5 | GO17: 0 | GP17: 0 | GQ17: 0 | GR17: 148888 | GS17: 163022.61 | GT17: 163449.23 | GU17: 162959.57 | GV17: 178153.77 | GW17: 175958.65 | GX17: 189820.57 | GY17: 0
B18: 13075015 | C18: 5553 | D18: Boldekow | E18: Amt Anklam-Land | F18: 696 | G18: 676 | H18: 668 | I18: 663 | J18: 642 | K18: 649 | L18: 659 | M18: 660 | N18: 647 | O18: 0 | P18: 0 | Q18: 0 | R18: 0 | S18: 223889.91 | T18: 231087.68 | U18: 392397.69 | V18: 330440.05 | W18: 377065.17 | X18: 308198.38 | Y18: 340035 | Z18: 366647.65 | AA18: 306010.16 | AB18: 0 | AC18: 0 | AD18: 0 | AE18: 0 | AF18: 463431.43 | AG18: 415833.4 | AH18: 486261.8 | AI18: 481190.58 | AJ18: 645716.41 | AK18: 521278.2 | AL18: 575052.02 | AM18: 580610.69 | AN18: 630661.02 | AO18: 682724.26 | AP18: 716673.56 | AQ18: 0 | AR18: 0 | AS18: 463431.43 | AT18: 415833.4 | AU18: 486261.8 | AV18: 481190.58 | AW18: 645716.41 | AX18: 521278.2 | AY18: 575052.02 | AZ18: 651014.67 | BA18: 677882.31 | BB18: 707361.66 | BC18: 716673.56 | BD18: 0 | BE18: 0 | BF18: 0 | BG18: 0 | BH18: 0 | BI18: 0 | BJ18: 0 | BK18: 0 | BL18: 0 | BM18: 342816.29 | BN18: 337847.31 | BO18: 340714.01 | BP18: 410663.4 | BQ18: 0 | BR18: 0 | BS18: 0 | BT18: 0 | BU18: 0 | BV18: 0 | BW18: 0 | BX18: 0 | BY18: 0 | BZ18: 786 | CA18: 787 | CB18: 778 | CC18: 765 | CD18: 0 | CE18: 0 | CF18: 0 | CG18: 0 | CH18: 0 | CI18: 0 | CJ18: 0 | CK18: 0 | CL18: 0 | CM18: 47616.77 | CN18: 48296.84 | CO18: 48013.13 | CP18: 47487.77 | CQ18: 0 | CR18: 0 | CS18: 0 | CT18: 0 | CU18: 0 | CV18: 0 | CW18: 0 | CX18: 0 | CY18: 0 | CZ18: 0 | DA18: 0 | DB18: 0 | DC18: 0 | DD18: 0 | DE18: 0 | DF18: 0 | DG18: 0 | DH18: 0 | DI18: 0 | DJ18: 0 | DK18: 0 | DL18: 0 | DM18: 0 | DN18: 0 | DO18: 0 | DP18: 0 | DQ18: 0 | DR18: 0 | DS18: 0 | DT18: 0 | DU18: 0 | DV18: 0 | DW18: 0 | DX18: 0 | DY18: 0 | DZ18: 0 | EA18: 0 | EB18: 0 | EC18: 0 | ED18: 0 | EE18: 0 | EF18: 0 | EG18: 0 | EH18: 0 | EI18: 0 | EJ18: 0 | EK18: 0 | EL18: 0 | EM18: 0 | EN18: 0 | EO18: 0 | EP18: 0 | EQ18: 0 | ER18: 0 | ET18: 227354.61 | EU18: 262371.89 | EV18: 250102.9 | EW18: 253318.72 | EX18: 163624.36 | EY18: 218051.94 | EZ18: 197986.85 | FA18: 0 | FB18: 0 | FC18: 0 | FD18: 0 | FE18: 0 | FF18: 0 | FG18: 0 | FH18: 0 | FI18: 0 | FJ18: 0 | FK18: 0 | FL18: 0 | FM18: 0 | FN18: 0 | FO18: 0 | FP18: 0 | FQ18: 0 | FR18: 246648.75 | FS18: 227354.61 | FT18: 262371.89 | FU18: 250102.9 | FV18: 253318.72 | FW18: 190838.15 | FX18: 197986.85 | FY18: 342816.29 | FZ18: 696 | GA18: 676 | GB18: 668 | GC18: 663 | GD18: 642 | GE18: 649 | GF18: 659 | GG18: 660 | GH18: 216782.68 | GI18: 188478.79 | GJ18: 223889.91 | GK18: 231087.68 | GL18: 392397.69 | GM18: 330440.05 | GN18: 377065.17 | GO18: 0 | GP18: 0 | GQ18: 0 | GR18: 463431.43 | GS18: 415833.4 | GT18: 486261.8 | GU18: 481190.58 | GV18: 645716.41 | GW18: 521278.2 | GX18: 575052.02 | GY18: 0
B19: 13075016 | C19: 5556 | D19: Boock | E19: Amt Löcknitz-Penkun | F19: 577 | G19: 580 | H19: 581 | I19: 555 | J19: 558 | K19: 564 | L19: 563 | M19: 572 | N19: 580 | O19: 0 | P19: 0 | Q19: 0 | R19: 0 | S19: 138608.89 | T19: 146821.56 | U19: 149690.15 | V19: 162635.71 | W19: 161513.46 | X19: 179696.19 | Y19: 203890.26 | Z19: 202082.09 | AA19: 251928.87 | AB19: 0 | AC19: 0 | AD19: 0 | AE19: 0 | AF19: 339243.84 | AG19: 348675.69 | AH19: 372535.4 | AI19: 382363.21 | AJ19: 397903.97 | AK19: 419581.87 | AL19: 449946.75 | AM19: 500780.88 | AN19: 535442.39 | AO19: 587719.66 | AP19: 641576.09 | AQ19: 0 | AR19: 0 | AS19: 339243.84 | AT19: 348675.69 | AU19: 372535.4 | AV19: 382363.21 | AW19: 397903.97 | AX19: 419581.87 | AY19: 449946.75 | AZ19: 561504.82 | BA19: 575534.09 | BB19: 608928.64 | BC19: 641576.09 | BD19: 0 | BE19: 0 | BF19: 0 | BG19: 0 | BH19: 0 | BI19: 0 | BJ19: 0 | BK19: 0 | BL19: 0 | BM19: 381808.63 | BN19: 371643.83 | BO19: 406846.55 | BP19: 389647.22 | BQ19: 0 | BR19: 0 | BS19: 0 | BT19: 0 | BU19: 0 | BV19: 0 | BW19: 0 | BX19: 0 | BY19: 0 | BZ19: 670 | CA19: 670 | CB19: 683 | CC19: 686 | CD19: 0 | CE19: 0 | CF19: 0 | CG19: 0 | CH19: 0 | CI19: 0 | CJ19: 0 | CK19: 0 | CL19: 0 | CM19: 41797.57 | CN19: 41606.37 | CO19: 41982.45 | CP19: 42647.17 | CQ19: 0 | CR19: 0 | CS19: 0 | CT19: 0 | CU19: 0 | CV19: 0 | CW19: 0 | CX19: 0 | CY19: 0 | CZ19: 0 | DA19: 0 | DB19: 0 | DC19: 0 | DD19: 0 | DE19: 0 | DF19: 0 | DG19: 0 | DH19: 0 | DI19: 0 | DJ19: 0 | DK19: 0 | DL19: 0 | DM19: 0 | DN19: 0 | DO19: 0 | DP19: 0 | DQ19: 0 | DR19: 0 | DS19: 0 | DT19: 0 | DU19: 0 | DV19: 0 | DW19: 0 | DX19: 0 | DY19: 0 | DZ19: 0 | EA19: 0 | EB19: 0 | EC19: 0 | ED19: 0 | EE19: 0 | EF19: 0 | EG19: 0 | EH19: 0 | EI19: 0 | EJ19: 0 | EK19: 0 | EL19: 0 | EM19: 0 | EN19: 0 | EO19: 0 | EP19: 0 | EQ19: 0 | ER19: 0 | ET19: 222648.41 | EU19: 233926.51 | EV19: 235541.65 | EW19: 248213.82 | EX19: 257275.12 | EY19: 256617.21 | EZ19: 288433.29 | FA19: 0 | FB19: 0 | FC19: 0 | FD19: 0 | FE19: 0 | FF19: 0 | FG19: 0 | FH19: 0 | FI19: 0 | FJ19: 0 | FK19: 0 | FL19: 0 | FM19: 0 | FN19: 0 | FO19: 0 | FP19: 0 | FQ19: 0 | FR19: 205158.2 | FS19: 222648.41 | FT19: 233926.51 | FU19: 235541.65 | FV19: 248213.82 | FW19: 256946.16 | FX19: 288433.29 | FY19: 381808.63 | FZ19: 577 | GA19: 580 | GB19: 581 | GC19: 555 | GD19: 558 | GE19: 564 | GF19: 563 | GG19: 572 | GH19: 134085.64 | GI19: 126027.28 | GJ19: 138608.89 | GK19: 146821.56 | GL19: 149690.15 | GM19: 162635.71 | GN19: 161513.46 | GO19: 0 | GP19: 0 | GQ19: 0 | GR19: 339243.84 | GS19: 348675.69 | GT19: 372535.4 | GU19: 382363.21 | GV19: 397903.97 | GW19: 419581.87 | GX19: 449946.75 | GY19: 0
B20: 13075017 | C20: 5560 | D20: Brietzig | E20: Amt Uecker-Randow-Tal | F20: 198 | G20: 195 | H20: 198 | I20: 194 | J20: 190 | K20: 184 | L20: 195 | M20: 195 | N20: 192 | O20: 0 | P20: 0 | Q20: 0 | R20: 0 | S20: 253674.58 | T20: 327741.8 | U20: 351027.11 | V20: 70200.99 | W20: 81673.1 | X20: 131089.72 | Y20: 87455.17 | Z20: 111767.78 | AA20: 126362.58 | AB20: 0 | AC20: 0 | AD20: 0 | AE20: 0 | AF20: 155829.1 | AG20: 252029.41 | AH20: 240457.46 | AI20: 327741.8 | AJ20: 623446.66 | AK20: 110711.88 | AL20: 161210.92 | AM20: 165931.85 | AN20: 186025.91 | AO20: 201685.7 | AP20: 214097.01 | AQ20: 0 | AR20: 0 | AS20: 155829.1 | AT20: 252029.41 | AU20: 240457.46 | AV20: 327741.8 | AW20: 623446.66 | AX20: 110711.88 | AY20: 161210.92 | AZ20: 186052.5 | BA20: 199954.76 | BB20: 208963.91 | BC20: 214097.01 | BD20: 0 | BE20: 0 | BF20: 0 | BG20: 0 | BH20: 0 | BI20: 0 | BJ20: 0 | BK20: 0 | BL20: 0 | BM20: 54962.78 | BN20: 112499.59 | BO20: 97196.13 | BP20: 87734.43 | BQ20: 0 | BR20: 0 | BS20: 0 | BT20: 0 | BU20: 0 | BV20: 0 | BW20: 0 | BX20: 0 | BY20: 0 | BZ20: 218 | CA20: 231 | CB20: 227 | CC20: 227 | CD20: 0 | CE20: 0 | CF20: 0 | CG20: 0 | CH20: 0 | CI20: 0 | CJ20: 0 | CK20: 0 | CL20: 0 | CM20: 13354.43 | CN20: 14351.87 | CO20: 14188.34 | CP20: 13968.21 | CQ20: 0 | CR20: 0 | CS20: 0 | CT20: 0 | CU20: 0 | CV20: 0 | CW20: 0 | CX20: 0 | CY20: 0 | CZ20: 0 | DA20: 0 | DB20: 0 | DC20: 0 | DD20: 0 | DE20: 0 | DF20: 0 | DG20: 0 | DH20: 0 | DI20: 0 | DJ20: 0 | DK20: 0 | DL20: 0 | DM20: 0 | DN20: 0 | DO20: 0 | DP20: 0 | DQ20: 0 | DR20: 0 | DS20: 0 | DT20: 0 | DU20: 0 | DV20: 0 | DW20: 0 | DX20: 0 | DY20: 0 | DZ20: 0 | EA20: 0 | EB20: 0 | EC20: 0 | ED20: 0 | EE20: 0 | EF20: 0 | EG20: 0 | EH20: 0 | EI20: 0 | EJ20: 0 | EK20: 0 | EL20: 0 | EM20: 0 | EN20: 0 | EO20: 0 | EP20: 0 | EQ20: 0 | ER20: 0 | ET20: 26382.11 | EU20: 0 | EV20: 0 | EW20: 309713.73 | EX20: 0 | EY20: 81021.79 | EZ20: 79537.82 | FA20: 0 | FB20: 0 | FC20: 0 | FD20: 0 | FE20: 0 | FF20: 0 | FG20: 0 | FH20: 0 | FI20: 0 | FJ20: 0 | FK20: 0 | FL20: 0 | FM20: 0 | FN20: 0 | FO20: 0 | FP20: 0 | FQ20: 0 | FR20: 31410.5 | FS20: 26382.11 | FT20: 0 | FU20: 0 | FV20: 309713.73 | FW20: 40510.89 | FX20: 79537.82 | FY20: 54962.78 | FZ20: 198 | GA20: 195 | GB20: 198 | GC20: 194 | GD20: 190 | GE20: 184 | GF20: 195 | GG20: 195 | GH20: 124418.6 | GI20: 237019.95 | GJ20: 253674.58 | GK20: 327741.8 | GL20: 351027.11 | GM20: 70200.99 | GN20: 81673.1 | GO20: 0 | GP20: 0 | GQ20: 0 | GR20: 155829.1 | GS20: 252029.41 | GT20: 240457.46 | GU20: 327741.8 | GV20: 623446.66 | GW20: 110711.88 | GX20: 161210.92 | GY20: 0
B21: 13075018 | C21: 5557 | D21: Brünzow | E21: Amt Lubmin | F21: 620 | G21: 618 | H21: 621 | I21: 602 | J21: 628 | K21: 620 | L21: 637 | M21: 658 | N21: 658 | O21: 0 | P21: 0 | Q21: 0 | R21: 0 | S21: 410105.46 | T21: 430332.35 | U21: 656168.51 | V21: 344640.01 | W21: 668725.26 | X21: 534076.89 | Y21: 617267.12 | Z21: 714371.7 | AA21: 720892.14 | AB21: 0 | AC21: 0 | AD21: 0 | AE21: 0 | AF21: 385801.04 | AG21: 611489.12 | AH21: 440123.18 | AI21: 526727.19 | AJ21: 756309.75 | AK21: 429139.14 | AL21: 668725.26 | AM21: 573902.25 | AN21: 644905.05 | AO21: 738226.96 | AP21: 782436.38 | AQ21: 0 | AR21: 0 | AS21: 385801.04 | AT21: 611489.12 | AU21: 440123.18 | AV21: 526727.19 | AW21: 756309.75 | AX21: 429139.14 | AY21: 668725.26 | AZ21: 643492.77 | BA21: 693192.86 | BB21: 764867.29 | BC21: 782436.38 | BD21: 0 | BE21: 0 | BF21: 0 | BG21: 0 | BH21: 0 | BI21: 0 | BJ21: 0 | BK21: 0 | BL21: 0 | BM21: 109415.88 | BN21: 75925.74 | BO21: 50495.59 | BP21: 61544.24 | BQ21: 0 | BR21: 0 | BS21: 0 | BT21: 0 | BU21: 0 | BV21: 0 | BW21: 0 | BX21: 0 | BY21: 0 | BZ21: 779 | CA21: 789 | CB21: 822 | CC21: 818 | CD21: 0 | CE21: 0 | CF21: 0 | CG21: 0 | CH21: 0 | CI21: 0 | CJ21: 0 | CK21: 0 | CL21: 0 | CM21: 43369.8 | CN21: 43043.99 | CO21: 42492.75 | CP21: 43620.62 | CQ21: 0 | CR21: 0 | CS21: 0 | CT21: 0 | CU21: 0 | CV21: 0 | CW21: 0 | CX21: 0 | CY21: 0 | CZ21: 0 | DA21: 0 | DB21: 0 | DC21: 0 | DD21: 0 | DE21: 0 | DF21: 0 | DG21: 0 | DH21: 0 | DI21: 0 | DJ21: 0 | DK21: 0 | DL21: 0 | DM21: 0 | DN21: 0 | DO21: 0 | DP21: 0 | DQ21: 0 | DR21: 0 | DS21: 0 | DT21: 0 | DU21: 0 | DV21: 0 | DW21: 0 | DX21: 0 | DY21: 0 | DZ21: 0 | EA21: 0 | EB21: 0 | EC21: 0 | ED21: 0 | EE21: 0 | EF21: 0 | EG21: 0 | EH21: 0 | EI21: 0 | EJ21: 0 | EK21: 0 | EL21: 0 | EM21: 0 | EN21: 0 | EO21: 0 | EP21: 0 | EQ21: 0 | ER21: 0 | ET21: 121883.99 | EU21: 30017.72 | EV21: 96394.84 | EW21: 100141.24 | EX21: 0 | EY21: 168998.26 | EZ21: 0 | FA21: 0 | FB21: 0 | FC21: 0 | FD21: 0 | FE21: 0 | FF21: 0 | FG21: 0 | FH21: 0 | FI21: 0 | FJ21: 0 | FK21: 0 | FL21: 0 | FM21: 0 | FN21: 0 | FO21: 0 | FP21: 0 | FQ21: 0 | FR21: 67697.38 | FS21: 121883.99 | FT21: 30017.72 | FU21: 96394.84 | FV21: 100141.24 | FW21: 84499.13 | FX21: 0 | FY21: 109415.88 | FZ21: 620 | GA21: 618 | GB21: 621 | GC21: 602 | GD21: 628 | GE21: 620 | GF21: 637 | GG21: 658 | GH21: 318103.66 | GI21: 489605.13 | GJ21: 410105.46 | GK21: 430332.35 | GL21: 656168.51 | GM21: 344640.01 | GN21: 668725.26 | GO21: 0 | GP21: 0 | GQ21: 0 | GR21: 385801.04 | GS21: 611489.12 | GT21: 440123.18 | GU21: 526727.19 | GV21: 756309.75 | GW21: 429139.14 | GX21: 668725.26 | GY21: 0
B22: 13075020 | C22: 5553 | D22: Bugewitz | E22: Amt Anklam-Land | F22: 285 | G22: 286 | H22: 279 | I22: 273 | J22: 275 | K22: 239 | L22: 239 | M22: 232 | N22: 245 | O22: 0 | P22: 0 | Q22: 0 | R22: 0 | S22: 74969.69 | T22: 79979.79 | U22: 90619.89 | V22: 104224.53 | W22: 116851.21 | X22: 99019.57 | Y22: 107565.23 | Z22: 112528.86 | AA22: 113879.14 | AB22: 0 | AC22: 0 | AD22: 0 | AE22: 0 | AF22: 170128.94 | AG22: 173456.68 | AH22: 185206.93 | AI22: 192418.24 | AJ22: 208466.04 | AK22: 215616.54 | AL22: 232923.64 | AM22: 213374.77 | AN22: 228482.13 | AO22: 239835.95 | AP22: 271564.17 | AQ22: 0 | AR22: 0 | AS22: 170128.94 | AT22: 173456.68 | AU22: 185206.93 | AV22: 192418.24 | AW22: 208466.04 | AX22: 215616.54 | AY22: 232923.64 | AZ22: 239248.28 | BA22: 245589.92 | BB22: 248490.89 | BC22: 271564.17 | BD22: 0 | BE22: 0 | BF22: 0 | BG22: 0 | BH22: 0 | BI22: 0 | BJ22: 0 | BK22: 0 | BL22: 0 | BM22: 140228.71 | BN22: 138024.69 | BO22: 135962.03 | BP22: 157685.03 | BQ22: 0 | BR22: 0 | BS22: 0 | BT22: 0 | BU22: 0 | BV22: 0 | BW22: 0 | BX22: 0 | BY22: 0 | BZ22: 291 | CA22: 292 | CB22: 282 | CC22: 294 | CD22: 0 | CE22: 0 | CF22: 0 | CG22: 0 | CH22: 0 | CI22: 0 | CJ22: 0 | CK22: 0 | CL22: 0 | CM22: 17583.8 | CN22: 17540.62 | CO22: 16891.53 | CP22: 17966.46 | CQ22: 0 | CR22: 0 | CS22: 0 | CT22: 0 | CU22: 0 | CV22: 0 | CW22: 0 | CX22: 0 | CY22: 0 | CZ22: 0 | DA22: 0 | DB22: 0 | DC22: 0 | DD22: 0 | DE22: 0 | DF22: 0 | DG22: 0 | DH22: 0 | DI22: 0 | DJ22: 0 | DK22: 0 | DL22: 0 | DM22: 0 | DN22: 0 | DO22: 0 | DP22: 0 | DQ22: 0 | DR22: 0 | DS22: 0 | DT22: 0 | DU22: 0 | DV22: 0 | DW22: 0 | DX22: 0 | DY22: 0 | DZ22: 0 | EA22: 0 | EB22: 0 | EC22: 0 | ED22: 0 | EE22: 0 | EF22: 0 | EG22: 0 | EH22: 0 | EI22: 0 | EJ22: 0 | EK22: 0 | EL22: 0 | EM22: 0 | EN22: 0 | EO22: 0 | EP22: 0 | EQ22: 0 | ER22: 0 | ET22: 103188 | EU22: 110237.24 | EV22: 112438.45 | EW22: 117846.15 | EX22: 112302.57 | EY22: 110481.46 | EZ22: 116072.43 | FA22: 0 | FB22: 0 | FC22: 0 | FD22: 0 | FE22: 0 | FF22: 0 | FG22: 0 | FH22: 0 | FI22: 0 | FJ22: 0 | FK22: 0 | FL22: 0 | FM22: 0 | FN22: 0 | FO22: 0 | FP22: 0 | FQ22: 0 | FR22: 99256.78 | FS22: 103188 | FT22: 110237.24 | FU22: 112438.45 | FV22: 117846.15 | FW22: 111392.01 | FX22: 116072.43 | FY22: 140228.71 | FZ22: 285 | GA22: 286 | GB22: 279 | GC22: 273 | GD22: 275 | GE22: 239 | GF22: 239 | GG22: 232 | GH22: 70872.16 | GI22: 70268.68 | GJ22: 74969.69 | GK22: 79979.79 | GL22: 90619.89 | GM22: 104224.53 | GN22: 116851.21 | GO22: 0 | GP22: 0 | GQ22: 0 | GR22: 170128.94 | GS22: 173456.68 | GT22: 185206.93 | GU22: 192418.24 | GV22: 208466.04 | GW22: 215616.54 | GX22: 232923.64 | GY22: 0
B23: 13075021 | C23: 5551 | D23: Buggenhagen | E23: Amt Am Peenestrom | F23: 239 | G23: 215 | H23: 211 | I23: 219 | J23: 209 | K23: 206 | L23: 210 | M23: 210 | N23: 221 | O23: 0 | P23: 0 | Q23: 0 | R23: 0 | S23: 165870.14 | T23: 108140.9 | U23: 121855.03 | V23: 63227.72 | W23: 68586.24 | X23: 81277.67 | Y23: 110727.93 | Z23: 88498.04 | AA23: 110627.8 | AB23: 0 | AC23: 0 | AD23: 0 | AE23: 0 | AF23: 156226.99 | AG23: 140864.48 | AH23: 254622.84 | AI23: 140630.9 | AJ23: 181635.93 | AK23: 140634.67 | AL23: 170955.76 | AM23: 184760.93 | AN23: 202173.78 | AO23: 217237.63 | AP23: 245266.05 | AQ23: 0 | AR23: 0 | AS23: 156226.99 | AT23: 140864.48 | AU23: 254622.84 | AV23: 140630.9 | AW23: 181635.93 | AX23: 140634.67 | AY23: 170955.76 | AZ23: 207164.76 | BA23: 217311.72 | BB23: 225077.06 | BC23: 245266.05 | BD23: 0 | BE23: 0 | BF23: 0 | BG23: 0 | BH23: 0 | BI23: 0 | BJ23: 0 | BK23: 0 | BL23: 0 | BM23: 125887.09 | BN23: 106583.79 | BO23: 136579.02 | BP23: 134638.25 | BQ23: 0 | BR23: 0 | BS23: 0 | BT23: 0 | BU23: 0 | BV23: 0 | BW23: 0 | BX23: 0 | BY23: 0 | BZ23: 271 | CA23: 272 | CB23: 267 | CC23: 265 | CD23: 0 | CE23: 0 | CF23: 0 | CG23: 0 | CH23: 0 | CI23: 0 | CJ23: 0 | CK23: 0 | CL23: 0 | CM23: 15062.49 | CN23: 15266.28 | CO23: 15276.23 | CP23: 16179.95 | CQ23: 0 | CR23: 0 | CS23: 0 | CT23: 0 | CU23: 0 | CV23: 0 | CW23: 0 | CX23: 0 | CY23: 0 | CZ23: 0 | DA23: 0 | DB23: 0 | DC23: 0 | DD23: 0 | DE23: 0 | DF23: 0 | DG23: 0 | DH23: 0 | DI23: 0 | DJ23: 0 | DK23: 0 | DL23: 0 | DM23: 0 | DN23: 0 | DO23: 0 | DP23: 0 | DQ23: 0 | DR23: 0 | DS23: 0 | DT23: 0 | DU23: 0 | DV23: 0 | DW23: 0 | DX23: 0 | DY23: 0 | DZ23: 0 | EA23: 0 | EB23: 0 | EC23: 0 | ED23: 0 | EE23: 0 | EF23: 0 | EG23: 0 | EH23: 0 | EI23: 0 | EJ23: 0 | EK23: 0 | EL23: 0 | EM23: 0 | EN23: 0 | EO23: 0 | EP23: 0 | EQ23: 0 | ER23: 0 | ET23: 84005.71 | EU23: 88752.7 | EV23: 32490 | EW23: 59780.9 | EX23: 52938.31 | EY23: 101875.61 | EZ23: 102369.52 | FA23: 0 | FB23: 0 | FC23: 0 | FD23: 0 | FE23: 0 | FF23: 0 | FG23: 0 | FH23: 0 | FI23: 0 | FJ23: 0 | FK23: 0 | FL23: 0 | FM23: 0 | FN23: 0 | FO23: 0 | FP23: 0 | FQ23: 0 | FR23: 96539.26 | FS23: 84005.71 | FT23: 88752.7 | FU23: 32490 | FV23: 59780.9 | FW23: 77406.95 | FX23: 102369.52 | FY23: 125887.09 | FZ23: 239 | GA23: 215 | GB23: 211 | GC23: 219 | GD23: 209 | GE23: 206 | GF23: 210 | GG23: 210 | GH23: 59687.73 | GI23: 56858.77 | GJ23: 165870.14 | GK23: 108140.9 | GL23: 121855.03 | GM23: 63227.72 | GN23: 68586.24 | GO23: 0 | GP23: 0 | GQ23: 0 | GR23: 156226.99 | GS23: 140864.48 | GT23: 254622.84 | GU23: 140630.9 | GV23: 181635.93 | GW23: 140634.67 | GX23: 170955.76 | GY23: 0
B24: 13075022 | C24: 5553 | D24: Butzow | E24: Amt Anklam-Land | F24: 441 | G24: 445 | H24: 444 | I24: 450 | J24: 451 | K24: 437 | L24: 434 | M24: 434 | N24: 431 | O24: 0 | P24: 0 | Q24: 0 | R24: 0 | S24: 192877.05 | T24: 183466.21 | U24: 189544.08 | V24: 219634.5 | W24: 191003.08 | X24: 210224.82 | Y24: 229260.08 | Z24: 221126.72 | AA24: 232273.82 | AB24: 0 | AC24: 0 | AD24: 0 | AE24: 0 | AF24: 276545.95 | AG24: 315728.32 | AH24: 315854.06 | AI24: 311327.12 | AJ24: 337492.82 | AK24: 370903.5 | AL24: 381804.89 | AM24: 390345.67 | AN24: 415098.11 | AO24: 448138.46 | AP24: 478151.13 | AQ24: 0 | AR24: 0 | AS24: 276545.95 | AT24: 315728.32 | AU24: 315854.06 | AV24: 311327.12 | AW24: 337492.82 | AX24: 370903.5 | AY24: 381804.89 | AZ24: 437678.4 | BA24: 446178.94 | BB24: 464310.39 | BC24: 478151.13 | BD24: 0 | BE24: 0 | BF24: 0 | BG24: 0 | BH24: 0 | BI24: 0 | BJ24: 0 | BK24: 0 | BL24: 0 | BM24: 227453.58 | BN24: 216918.86 | BO24: 243183.67 | BP24: 245877.31 | BQ24: 0 | BR24: 0 | BS24: 0 | BT24: 0 | BU24: 0 | BV24: 0 | BW24: 0 | BX24: 0 | BY24: 0 | BZ24: 515 | CA24: 510 | CB24: 511 | CC24: 503 | CD24: 0 | CE24: 0 | CF24: 0 | CG24: 0 | CH24: 0 | CI24: 0 | CJ24: 0 | CK24: 0 | CL24: 0 | CM24: 32129.08 | CN24: 31831.63 | CO24: 31647.37 | CP24: 31569.66 | CQ24: 0 | CR24: 0 | CS24: 0 | CT24: 0 | CU24: 0 | CV24: 0 | CW24: 0 | CX24: 0 | CY24: 0 | CZ24: 0 | DA24: 0 | DB24: 0 | DC24: 0 | DD24: 0 | DE24: 0 | DF24: 0 | DG24: 0 | DH24: 0 | DI24: 0 | DJ24: 0 | DK24: 0 | DL24: 0 | DM24: 0 | DN24: 0 | DO24: 0 | DP24: 0 | DQ24: 0 | DR24: 0 | DS24: 0 | DT24: 0 | DU24: 0 | DV24: 0 | DW24: 0 | DX24: 0 | DY24: 0 | DZ24: 0 | EA24: 0 | EB24: 0 | EC24: 0 | ED24: 0 | EE24: 0 | EF24: 0 | EG24: 0 | EH24: 0 | EI24: 0 | EJ24: 0 | EK24: 0 | EL24: 0 | EM24: 0 | EN24: 0 | EO24: 0 | EP24: 0 | EQ24: 0 | ER24: 0 | ET24: 137496.66 | EU24: 122977.01 | EV24: 127860.91 | EW24: 147948.74 | EX24: 151519 | EY24: 151019 | EZ24: 190801.81 | FA24: 0 | FB24: 0 | FC24: 0 | FD24: 0 | FE24: 0 | FF24: 0 | FG24: 0 | FH24: 0 | FI24: 0 | FJ24: 0 | FK24: 0 | FL24: 0 | FM24: 0 | FN24: 0 | FO24: 0 | FP24: 0 | FQ24: 0 | FR24: 133390.16 | FS24: 137496.66 | FT24: 122977.01 | FU24: 127860.91 | FV24: 147948.74 | FW24: 151269 | FX24: 190801.81 | FY24: 227453.58 | FZ24: 441 | GA24: 445 | GB24: 444 | GC24: 450 | GD24: 451 | GE24: 437 | GF24: 434 | GG24: 434 | GH24: 143155.79 | GI24: 178231.66 | GJ24: 192877.05 | GK24: 183466.21 | GL24: 189544.08 | GM24: 219634.5 | GN24: 191003.08 | GO24: 0 | GP24: 0 | GQ24: 0 | GR24: 276545.95 | GS24: 315728.32 | GT24: 315854.06 | GU24: 311327.12 | GV24: 337492.82 | GW24: 370903.5 | GX24: 381804.89 | GY24: 0
B25: 13075023 | C25: 5554 | D25: Daberkow | E25: Amt Jarmen-Tutow | F25: 344 | G25: 347 | H25: 356 | I25: 348 | J25: 340 | K25: 340 | L25: 340 | M25: 339 | N25: 329 | O25: 0 | P25: 0 | Q25: 0 | R25: 0 | S25: 107398.54 | T25: 111274.72 | U25: 126194.94 | V25: 145694.43 | W25: 133127.82 | X25: 134602.61 | Y25: 135466.05 | Z25: 136291.75 | AA25: 133059.71 | AB25: 0 | AC25: 0 | AD25: 0 | AE25: 0 | AF25: 208850.28 | AG25: 207528.57 | AH25: 237894.34 | AI25: 236844.61 | AJ25: 260634.32 | AK25: 280417.87 | AL25: 284575.48 | AM25: 303815.69 | AN25: 324994.59 | AO25: 349922.87 | AP25: 365218.24 | AQ25: 0 | AR25: 0 | AS25: 208850.28 | AT25: 207528.57 | AU25: 237894.34 | AV25: 236844.61 | AW25: 260634.32 | AX25: 280417.87 | AY25: 284575.48 | AZ25: 340655.92 | BA25: 349328.84 | BB25: 362550.5 | BC25: 365218.24 | BD25: 0 | BE25: 0 | BF25: 0 | BG25: 0 | BH25: 0 | BI25: 0 | BJ25: 0 | BK25: 0 | BL25: 0 | BM25: 206053.31 | BN25: 213862.79 | BO25: 226258.75 | BP25: 232158.53 | BQ25: 0 | BR25: 0 | BS25: 0 | BT25: 0 | BU25: 0 | BV25: 0 | BW25: 0 | BX25: 0 | BY25: 0 | BZ25: 424 | CA25: 427 | CB25: 422 | CC25: 417 | CD25: 0 | CE25: 0 | CF25: 0 | CG25: 0 | CH25: 0 | CI25: 0 | CJ25: 0 | CK25: 0 | CL25: 0 | CM25: 24984.87 | CN25: 24957.59 | CO25: 24731.23 | CP25: 24078.72 | CQ25: 0 | CR25: 0 | CS25: 0 | CT25: 0 | CU25: 0 | CV25: 0 | CW25: 0 | CX25: 0 | CY25: 0 | CZ25: 0 | DA25: 0 | DB25: 0 | DC25: 0 | DD25: 0 | DE25: 0 | DF25: 0 | DG25: 0 | DH25: 0 | DI25: 0 | DJ25: 0 | DK25: 0 | DL25: 0 | DM25: 0 | DN25: 0 | DO25: 0 | DP25: 0 | DQ25: 0 | DR25: 0 | DS25: 0 | DT25: 0 | DU25: 0 | DV25: 0 | DW25: 0 | DX25: 0 | DY25: 0 | DZ25: 0 | EA25: 0 | EB25: 0 | EC25: 0 | ED25: 0 | EE25: 0 | EF25: 0 | EG25: 0 | EH25: 0 | EI25: 0 | EJ25: 0 | EK25: 0 | EL25: 0 | EM25: 0 | EN25: 0 | EO25: 0 | EP25: 0 | EQ25: 0 | ER25: 0 | ET25: 124443.3 | EU25: 130495.8 | EV25: 125569.89 | EW25: 134439.38 | EX25: 136957.31 | EY25: 132489.59 | EZ25: 151447.66 | FA25: 0 | FB25: 0 | FC25: 0 | FD25: 0 | FE25: 0 | FF25: 0 | FG25: 0 | FH25: 0 | FI25: 0 | FJ25: 0 | FK25: 0 | FL25: 0 | FM25: 0 | FN25: 0 | FO25: 0 | FP25: 0 | FQ25: 0 | FR25: 115863.74 | FS25: 124443.3 | FT25: 130495.8 | FU25: 125569.89 | FV25: 134439.38 | FW25: 134723.44 | FX25: 151447.66 | FY25: 206053.31 | FZ25: 344 | GA25: 347 | GB25: 356 | GC25: 348 | GD25: 340 | GE25: 340 | GF25: 340 | GG25: 339 | GH25: 92986.54 | GI25: 83085.27 | GJ25: 107398.54 | GK25: 111274.72 | GL25: 126194.94 | GM25: 145694.43 | GN25: 133127.82 | GO25: 0 | GP25: 0 | GQ25: 0 | GR25: 208850.28 | GS25: 207528.57 | GT25: 237894.34 | GU25: 236844.61 | GV25: 260634.32 | GW25: 280417.87 | GX25: 284575.48 | GY25: 0
B26: 13075025 | C26: 5555 | D26: Dargelin | E26: Amt Landhagen | F26: 357 | G26: 348 | H26: 347 | I26: 344 | J26: 367 | K26: 366 | L26: 358 | M26: 362 | N26: 356 | O26: 0 | P26: 0 | Q26: 0 | R26: 0 | S26: 125942.7 | T26: 142600.59 | U26: 182143.85 | V26: 180920.52 | W26: 163968.34 | X26: 196452.81 | Y26: 229995.71 | Z26: 146453.69 | AA26: 281395.03 | AB26: 0 | AC26: 0 | AD26: 0 | AE26: 0 | AF26: 226018.57 | AG26: 262607.61 | AH26: 234604.64 | AI26: 264224.56 | AJ26: 298367.55 | AK26: 283416.83 | AL26: 313254.7 | AM26: 328374.92 | AN26: 345208.71 | AO26: 373494.99 | AP26: 399586.55 | AQ26: 0 | AR26: 0 | AS26: 226018.57 | AT26: 262607.61 | AU26: 234604.64 | AV26: 264224.56 | AW26: 298367.55 | AX26: 283416.83 | AY26: 313254.7 | AZ26: 368193.17 | BA26: 371056.51 | BB26: 386973.27 | BC26: 399586.55 | BD26: 0 | BE26: 0 | BF26: 0 | BG26: 0 | BH26: 0 | BI26: 0 | BJ26: 0 | BK26: 0 | BL26: 0 | BM26: 171740.36 | BN26: 141060.8 | BO26: 240519.58 | BP26: 118191.52 | BQ26: 0 | BR26: 0 | BS26: 0 | BT26: 0 | BU26: 0 | BV26: 0 | BW26: 0 | BX26: 0 | BY26: 0 | BZ26: 446 | CA26: 445 | CB26: 447 | CC26: 433 | CD26: 0 | CE26: 0 | CF26: 0 | CG26: 0 | CH26: 0 | CI26: 0 | CJ26: 0 | CK26: 0 | CL26: 0 | CM26: 26749.36 | CN26: 25968.58 | CO26: 26424.93 | CP26: 25671.25 | CQ26: 0 | CR26: 0 | CS26: 0 | CT26: 0 | CU26: 0 | CV26: 0 | CW26: 0 | CX26: 0 | CY26: 0 | CZ26: 0 | DA26: 0 | DB26: 0 | DC26: 0 | DD26: 0 | DE26: 0 | DF26: 0 | DG26: 0 | DH26: 0 | DI26: 0 | DJ26: 0 | DK26: 0 | DL26: 0 | DM26: 0 | DN26: 0 | DO26: 0 | DP26: 0 | DQ26: 0 | DR26: 0 | DS26: 0 | DT26: 0 | DU26: 0 | DV26: 0 | DW26: 0 | DX26: 0 | DY26: 0 | DZ26: 0 | EA26: 0 | EB26: 0 | EC26: 0 | ED26: 0 | EE26: 0 | EF26: 0 | EG26: 0 | EH26: 0 | EI26: 0 | EJ26: 0 | EK26: 0 | EL26: 0 | EM26: 0 | EN26: 0 | EO26: 0 | EP26: 0 | EQ26: 0 | ER26: 0 | ET26: 115008.3 | EU26: 108661.94 | EV26: 121623.97 | EW26: 116223.7 | EX26: 98011.38 | EY26: 106981.24 | EZ26: 149286.36 | FA26: 0 | FB26: 0 | FC26: 0 | FD26: 0 | FE26: 0 | FF26: 0 | FG26: 0 | FH26: 0 | FI26: 0 | FJ26: 0 | FK26: 0 | FL26: 0 | FM26: 0 | FN26: 0 | FO26: 0 | FP26: 0 | FQ26: 0 | FR26: 98691.19 | FS26: 115008.3 | FT26: 108661.94 | FU26: 121623.97 | FV26: 116223.7 | FW26: 102496.31 | FX26: 149286.36 | FY26: 171740.36 | FZ26: 357 | GA26: 348 | GB26: 347 | GC26: 344 | GD26: 367 | GE26: 366 | GF26: 358 | GG26: 362 | GH26: 127327.38 | GI26: 147599.31 | GJ26: 125942.7 | GK26: 142600.59 | GL26: 182143.85 | GM26: 180920.52 | GN26: 163968.34 | GO26: 0 | GP26: 0 | GQ26: 0 | GR26: 226018.57 | GS26: 262607.61 | GT26: 234604.64 | GU26: 264224.56 | GV26: 298367.55 | GW26: 283416.83 | GX26: 313254.7 | GY26: 0
B27: 13075026 | C27: 5562 | D27: Dargen | E27: Amt Usedom-Süd | F27: 533 | G27: 551 | H27: 561 | I27: 561 | J27: 581 | K27: 578 | L27: 581 | M27: 576 | N27: 588 | O27: 0 | P27: 0 | Q27: 0 | R27: 0 | S27: 181142.29 | T27: 188902.41 | U27: 198007.78 | V27: 238327.25 | W27: 285335.12 | X27: 267970.33 | Y27: 253818.55 | Z27: 361295.1 | AA27: 298054.7 | AB27: 0 | AC27: 0 | AD27: 0 | AE27: 0 | AF27: 328509.22 | AG27: 333088.44 | AH27: 367223.39 | AI27: 374620.54 | AJ27: 404157.75 | AK27: 452162.92 | AL27: 503642.23 | AM27: 516662.66 | AN27: 554733.46 | AO27: 597934.33 | AP27: 652647.15 | AQ27: 0 | AR27: 0 | AS27: 328509.22 | AT27: 333088.44 | AU27: 367223.39 | AV27: 374620.54 | AW27: 404157.75 | AX27: 452162.92 | AY27: 503642.23 | AZ27: 579312.4 | BA27: 596269.6 | BB27: 619511.93 | BC27: 652647.15 | BD27: 0 | BE27: 0 | BF27: 0 | BG27: 0 | BH27: 0 | BI27: 0 | BJ27: 0 | BK27: 0 | BL27: 0 | BM27: 311342.07 | BN27: 342451.05 | BO27: 258216.83 | BP27: 354592.45 | BQ27: 0 | BR27: 0 | BS27: 0 | BT27: 0 | BU27: 0 | BV27: 0 | BW27: 0 | BX27: 0 | BY27: 0 | BZ27: 696 | CA27: 702 | CB27: 688 | CC27: 704 | CD27: 0 | CE27: 0 | CF27: 0 | CG27: 0 | CH27: 0 | CI27: 0 | CJ27: 0 | CK27: 0 | CL27: 0 | CM27: 42454.89 | CN27: 42712.57 | CO27: 41706.1 | CP27: 43041.57 | CQ27: 0 | CR27: 0 | CS27: 0 | CT27: 0 | CU27: 0 | CV27: 0 | CW27: 0 | CX27: 0 | CY27: 0 | CZ27: 0 | DA27: 0 | DB27: 0 | DC27: 0 | DD27: 0 | DE27: 0 | DF27: 0 | DG27: 0 | DH27: 0 | DI27: 0 | DJ27: 0 | DK27: 0 | DL27: 0 | DM27: 0 | DN27: 0 | DO27: 0 | DP27: 0 | DQ27: 0 | DR27: 0 | DS27: 0 | DT27: 0 | DU27: 0 | DV27: 0 | DW27: 0 | DX27: 0 | DY27: 0 | DZ27: 0 | EA27: 0 | EB27: 0 | EC27: 0 | ED27: 0 | EE27: 0 | EF27: 0 | EG27: 0 | EH27: 0 | EI27: 0 | EJ27: 0 | EK27: 0 | EL27: 0 | EM27: 0 | EN27: 0 | EO27: 0 | EP27: 0 | EQ27: 0 | ER27: 0 | ET27: 168626.34 | EU27: 186081.1 | EV27: 185718.13 | EW27: 206149.97 | EX27: 216336.54 | EY27: 211334.8 | EZ27: 218307.11 | FA27: 0 | FB27: 0 | FC27: 0 | FD27: 0 | FE27: 0 | FF27: 0 | FG27: 0 | FH27: 0 | FI27: 0 | FJ27: 0 | FK27: 0 | FL27: 0 | FM27: 0 | FN27: 0 | FO27: 0 | FP27: 0 | FQ27: 0 | FR27: 159388.15 | FS27: 168626.34 | FT27: 186081.1 | FU27: 185718.13 | FV27: 206149.97 | FW27: 213835.67 | FX27: 218307.11 | FY27: 311342.07 | FZ27: 533 | GA27: 551 | GB27: 561 | GC27: 561 | GD27: 581 | GE27: 578 | GF27: 581 | GG27: 576 | GH27: 169121.07 | GI27: 164462.1 | GJ27: 181142.29 | GK27: 188902.41 | GL27: 198007.78 | GM27: 238327.25 | GN27: 285335.12 | GO27: 0 | GP27: 0 | GQ27: 0 | GR27: 328509.22 | GS27: 333088.44 | GT27: 367223.39 | GU27: 374620.54 | GV27: 404157.75 | GW27: 452162.92 | GX27: 503642.23 | GY27: 0
B28: 13075027 | C28: 5555 | D28: Dersekow | E28: Amt Landhagen | F28: 1065 | G28: 1064 | H28: 1048 | I28: 1066 | J28: 1064 | K28: 1063 | L28: 1068 | M28: 1096 | N28: 1100 | O28: 0 | P28: 0 | Q28: 0 | R28: 0 | S28: 530175.98 | T28: 759258.88 | U28: 774486.21 | V28: 719821.99 | W28: 913123.77 | X28: 942140.6 | Y28: 969239.17 | Z28: 971706.33 | AA28: 894576.83 | AB28: 0 | AC28: 0 | AD28: 0 | AE28: 0 | AF28: 776111.89 | AG28: 627308.5 | AH28: 847556.32 | AI28: 1029407.95 | AJ28: 935879.83 | AK28: 914539.18 | AL28: 1039507.46 | AM28: 992611.64 | AN28: 1067945.75 | AO28: 1161052.24 | AP28: 1239249.86 | AQ28: 0 | AR28: 0 | AS28: 776111.89 | AT28: 627308.5 | AU28: 847556.32 | AV28: 1029407.95 | AW28: 935879.83 | AX28: 914539.18 | AY28: 1039507.46 | AZ28: 1112974.24 | BA28: 1147909.1 | BB28: 1202951.02 | BC28: 1239249.86 | BD28: 0 | BE28: 0 | BF28: 0 | BG28: 0 | BH28: 0 | BI28: 0 | BJ28: 0 | BK28: 0 | BL28: 0 | BM28: 170833.64 | BN28: 178669.93 | BO28: 231244.69 | BP28: 344673.03 | BQ28: 0 | BR28: 0 | BS28: 0 | BT28: 0 | BU28: 0 | BV28: 0 | BW28: 0 | BX28: 0 | BY28: 0 | BZ28: 1334 | CA28: 1344 | CB28: 1397 | CC28: 1397 | CD28: 0 | CE28: 0 | CF28: 0 | CG28: 0 | CH28: 0 | CI28: 0 | CJ28: 0 | CK28: 0 | CL28: 0 | CM28: 73405.55 | CN28: 73540.47 | CO28: 77180.65 | CP28: 78922.35 | CQ28: 0 | CR28: 0 | CS28: 0 | CT28: 0 | CU28: 0 | CV28: 0 | CW28: 0 | CX28: 0 | CY28: 0 | CZ28: 0 | DA28: 0 | DB28: 0 | DC28: 0 | DD28: 0 | DE28: 0 | DF28: 0 | DG28: 0 | DH28: 0 | DI28: 0 | DJ28: 0 | DK28: 0 | DL28: 0 | DM28: 0 | DN28: 0 | DO28: 0 | DP28: 0 | DQ28: 0 | DR28: 0 | DS28: 0 | DT28: 0 | DU28: 0 | DV28: 0 | DW28: 0 | DX28: 0 | DY28: 0 | DZ28: 0 | EA28: 0 | EB28: 0 | EC28: 0 | ED28: 0 | EE28: 0 | EF28: 0 | EG28: 0 | EH28: 0 | EI28: 0 | EJ28: 0 | EK28: 0 | EL28: 0 | EM28: 0 | EN28: 0 | EO28: 0 | EP28: 0 | EQ28: 0 | ER28: 0 | ET28: 232568.85 | EU28: 317380.34 | EV28: 270149.07 | EW28: 161393.62 | EX28: 161383.13 | EY28: 228051.26 | EZ28: 126383.69 | FA28: 0 | FB28: 0 | FC28: 0 | FD28: 0 | FE28: 0 | FF28: 0 | FG28: 0 | FH28: 0 | FI28: 0 | FJ28: 0 | FK28: 0 | FL28: 0 | FM28: 0 | FN28: 0 | FO28: 0 | FP28: 0 | FQ28: 0 | FR28: 264242.88 | FS28: 232568.85 | FT28: 317380.34 | FU28: 270149.07 | FV28: 161393.62 | FW28: 194717.19 | FX28: 126383.69 | FY28: 170833.64 | FZ28: 1065 | GA28: 1064 | GB28: 1048 | GC28: 1066 | GD28: 1064 | GE28: 1063 | GF28: 1068 | GG28: 1096 | GH28: 511869.01 | GI28: 394739.65 | GJ28: 530175.98 | GK28: 759258.88 | GL28: 774486.21 | GM28: 719821.99 | GN28: 913123.77 | GO28: 0 | GP28: 0 | GQ28: 0 | GR28: 776111.89 | GS28: 627308.5 | GT28: 847556.32 | GU28: 1029407.95 | GV28: 935879.83 | GW28: 914539.18 | GX28: 1039507.46 | GY28: 0
B29: 13075028 | C29: 5555 | D29: Diedrichshagen | E29: Amt Landhagen | F29: 508 | G29: 533 | H29: 543 | I29: 534 | J29: 548 | K29: 0 | L29: 0 | M29: 0 | N29: 0 | O29: 0 | P29: 0 | Q29: 0 | R29: 0 | S29: 219744.63 | T29: 229556.66 | U29: 265409.3 | V29: 293666.83 | W29: 302400.5 | X29: 0 | Y29: 0 | Z29: 0 | AA29: 0 | AB29: 0 | AC29: 0 | AD29: 0 | AE29: 0 | AF29: 302757.18 | AG29: 359184.39 | AH29: 356353.92 | AI29: 378304.59 | AJ29: 436729.62 | AK29: 455106.64 | AL29: 485017.65 | AM29: 0 | AN29: 0 | AO29: 0 | AP29: 0 | AQ29: 0 | AR29: 0 | AS29: 302757.18 | AT29: 359184.39 | AU29: 356353.92 | AV29: 378304.59 | AW29: 436729.62 | AX29: 455106.64 | AY29: 485017.65 | AZ29: 0 | BA29: 0 | BB29: 0 | BC29: 0 | BD29: 0 | BE29: 0 | BF29: 0 | BG29: 0 | BH29: 0 | BI29: 0 | BJ29: 0 | BK29: 0 | BL29: 0 | BM29: 0 | BN29: 0 | BO29: 0 | BP29: 0 | BQ29: 0 | BR29: 0 | BS29: 0 | BT29: 0 | BU29: 0 | BV29: 0 | BW29: 0 | BX29: 0 | BY29: 0 | BZ29: 0 | CA29: 0 | CB29: 0 | CC29: 0 | CD29: 0 | CE29: 0 | CF29: 0 | CG29: 0 | CH29: 0 | CI29: 0 | CJ29: 0 | CK29: 0 | CL29: 0 | CM29: 0 | CN29: 0 | CO29: 0 | CP29: 0 | CQ29: 0 | CR29: 0 | CS29: 0 | CT29: 0 | CU29: 0 | CV29: 0 | CW29: 0 | CX29: 0 | CY29: 0 | CZ29: 0 | DA29: 0 | DB29: 0 | DC29: 0 | DD29: 0 | DE29: 0 | DF29: 0 | DG29: 0 | DH29: 0 | DI29: 0 | DJ29: 0 | DK29: 0 | DL29: 0 | DM29: 0 | DN29: 0 | DO29: 0 | DP29: 0 | DQ29: 0 | DR29: 0 | DS29: 0 | DT29: 0 | DU29: 0 | DV29: 0 | DW29: 0 | DX29: 0 | DY29: 0 | DZ29: 0 | EA29: 0 | EB29: 0 | EC29: 0 | ED29: 0 | EE29: 0 | EF29: 0 | EG29: 0 | EH29: 0 | EI29: 0 | EJ29: 0 | EK29: 0 | EL29: 0 | EM29: 0 | EN29: 0 | EO29: 0 | EP29: 0 | EQ29: 0 | ER29: 0 | ET29: 144787.99 | EU29: 136609.29 | EV29: 148747.93 | EW29: 171320.32 | EX29: 165142.44 | EY29: 157737.19 | EZ29: 182617.15 | FA29: 0 | FB29: 0 | FC29: 0 | FD29: 0 | FE29: 0 | FF29: 0 | FG29: 0 | FH29: 0 | FI29: 0 | FJ29: 0 | FK29: 0 | FL29: 0 | FM29: 0 | FN29: 0 | FO29: 0 | FP29: 0 | FQ29: 0 | FR29: 131137.22 | FS29: 144787.99 | FT29: 136609.29 | FU29: 148747.93 | FV29: 171320.32 | FW29: 161439.81 | FX29: 182617.15 | FY29: 0 | FZ29: 508 | GA29: 533 | GB29: 543 | GC29: 534 | GD29: 548 | GE29: 0 | GF29: 0 | GG29: 0 | GH29: 171619.96 | GI29: 214396.4 | GJ29: 219744.63 | GK29: 229556.66 | GL29: 265409.3 | GM29: 293666.83 | GN29: 302400.5 | GO29: 0 | GP29: 0 | GQ29: 0 | GR29: 302757.18 | GS29: 359184.39 | GT29: 356353.92 | GU29: 378304.59 | GV29: 436729.62 | GW29: 455106.64 | GX29: 485017.65 | GY29: 0
B30: 13075029 | C30: 5553 | D30: Ducherow | E30: Amt Anklam-Land | F30: 2656 | G30: 2607 | H30: 2558 | I30: 2519 | J30: 2509 | K30: 2490 | L30: 2461 | M30: 2421 | N30: 2408 | O30: 0 | P30: 0 | Q30: 0 | R30: 0 | S30: 836524.61 | T30: 918415.47 | U30: 915770.05 | V30: 836660.01 | W30: 969313.82 | X30: 1020044.31 | Y30: 1102594.96 | Z30: 1062115.27 | AA30: 1223268.53 | AB30: 0 | AC30: 0 | AD30: 0 | AE30: 0 | AF30: 1599947.09 | AG30: 1874424.43 | AH30: 1695940.53 | AI30: 1883547.06 | AJ30: 1876361.67 | AK30: 1876350.24 | AL30: 2096072.29 | AM30: 2237142.7 | AN30: 2367679.15 | AO30: 2514768.16 | AP30: 2693023.04 | AQ30: 0 | AR30: 0 | AS30: 1599947.09 | AT30: 1874424.43 | AU30: 1695940.53 | AV30: 1883547.06 | AW30: 1876361.67 | AX30: 1876350.24 | AY30: 2096072.29 | AZ30: 2508415.27 | BA30: 2544961.15 | BB30: 2605518.36 | BC30: 2693023.04 | BD30: 0 | BE30: 0 | BF30: 0 | BG30: 0 | BH30: 0 | BI30: 0 | BJ30: 0 | BK30: 0 | BL30: 0 | BM30: 1488370.96 | BN30: 1442366.19 | BO30: 1543403.09 | BP30: 1469754.51 | BQ30: 0 | BR30: 0 | BS30: 0 | BT30: 0 | BU30: 0 | BV30: 0 | BW30: 0 | BX30: 0 | BY30: 0 | BZ30: 3327 | CA30: 3295 | CB30: 3233 | CC30: 3217 | CD30: 0 | CE30: 0 | CF30: 0 | CG30: 0 | CH30: 0 | CI30: 0 | CJ30: 0 | CK30: 0 | CL30: 0 | CM30: 181639.97 | CN30: 179071.75 | CO30: 175148.87 | CP30: 174496.33 | CQ30: 0 | CR30: 0 | CS30: 0 | CT30: 0 | CU30: 0 | CV30: 0 | CW30: 0 | CX30: 0 | CY30: 0 | CZ30: 0 | DA30: 0 | DB30: 0 | DC30: 0 | DD30: 0 | DE30: 0 | DF30: 0 | DG30: 0 | DH30: 0 | DI30: 0 | DJ30: 0 | DK30: 0 | DL30: 0 | DM30: 0 | DN30: 0 | DO30: 0 | DP30: 0 | DQ30: 0 | DR30: 0 | DS30: 0 | DT30: 0 | DU30: 0 | DV30: 0 | DW30: 0 | DX30: 0 | DY30: 0 | DZ30: 108667.69 | EA30: 71533.41 | EB30: 58510.75 | EC30: 29221.06 | ED30: 0 | EE30: 0 | EF30: 0 | EG30: 0 | EH30: 0 | EI30: 0 | EJ30: 0 | EK30: 0 | EL30: 0 | EM30: 0 | EN30: 0 | EO30: 0 | EP30: 0 | EQ30: 0 | ER30: 0 | ET30: 950496.79 | EU30: 859415.92 | EV30: 965131.59 | EW30: 960591.62 | EX30: 978686.32 | EY30: 1100694.14 | EZ30: 1126758.47 | FA30: 0 | FB30: 0 | FC30: 0 | FD30: 0 | FE30: 0 | FF30: 0 | FG30: 0 | FH30: 0 | FI30: 0 | FJ30: 277433.13 | FK30: 276669.21 | FL30: 275282.96 | FM30: 270211.03 | FN30: 266101.8 | FO30: 262448.2 | FP30: 260253.26 | FQ30: 0 | FR30: 902821.25 | FS30: 950496.79 | FT30: 859415.92 | FU30: 965131.59 | FV30: 960591.62 | FW30: 1039690.23 | FX30: 1126758.47 | FY30: 1488370.96 | FZ30: 2656 | GA30: 2607 | GB30: 2558 | GC30: 2519 | GD30: 2509 | GE30: 2490 | GF30: 2461 | GG30: 2421 | GH30: 697125.84 | GI30: 923927.64 | GJ30: 836524.61 | GK30: 918415.47 | GL30: 915770.05 | GM30: 836660.01 | GN30: 969313.82 | GO30: 0 | GP30: 0 | GQ30: 0 | GR30: 1599947.09 | GS30: 1874424.43 | GT30: 1695940.53 | GU30: 1883547.06 | GV30: 1876361.67 | GW30: 1876350.24 | GX30: 2096072.29 | GY30: 0
B31: 13075031 | C31: 5552 | D31: Eggesin, Stadt | E31: Amt Am Stettiner Haff | F31: 4847 | G31: 4813 | H31: 4871 | I31: 4800 | J31: 4745 | K31: 4695 | L31: 4710 | M31: 4711 | N31: 4700 | O31: 0 | P31: 0 | Q31: 0 | R31: 0 | S31: 1889493.97 | T31: 2321047.84 | U31: 2368207.44 | V31: 2221934.1 | W31: 2610311.69 | X31: 2540086.25 | Y31: 2613029.84 | Z31: 2773743.7 | AA31: 2795340.12 | AB31: 0 | AC31: 0 | AD31: 0 | AE31: 0 | AF31: 3302006.32 | AG31: 3473715.29 | AH31: 3225440.72 | AI31: 3864600.59 | AJ31: 3766345 | AK31: 3811144.44 | AL31: 4197220.57 | AM31: 4230376.44 | AN31: 4540102.49 | AO31: 4910964.71 | AP31: 5260120.29 | AQ31: 0 | AR31: 0 | AS31: 3302006.32 | AT31: 3473715.29 | AU31: 3225440.72 | AV31: 3864600.59 | AW31: 3766345 | AX31: 3811144.44 | AY31: 4197220.57 | AZ31: 4743345.54 | BA31: 4880046.54 | BB31: 5088186.24 | BC31: 5260120.29 | BD31: 0 | BE31: 0 | BF31: 0 | BG31: 0 | BH31: 0 | BI31: 0 | BJ31: 0 | BK31: 0 | BL31: 0 | BM31: 2203259.29 | BN31: 2267016.7 | BO31: 2314442.54 | BP31: 2464780.17 | BQ31: 0 | BR31: 0 | BS31: 0 | BT31: 0 | BU31: 0 | BV31: 0 | BW31: 0 | BX31: 0 | BY31: 0 | BZ31: 6073 | CA31: 6116 | CB31: 6117 | CC31: 6072 | CD31: 0 | CE31: 0 | CF31: 0 | CG31: 0 | CH31: 0 | CI31: 0 | CJ31: 0 | CK31: 0 | CL31: 0 | CM31: 341151.26 | CN31: 341819.74 | CO31: 339186.45 | CP31: 340254.76 | CQ31: 0 | CR31: 0 | CS31: 0 | CT31: 0 | CU31: 0 | CV31: 0 | CW31: 0 | CX31: 0 | CY31: 0 | CZ31: 0 | DA31: 0 | DB31: 0 | DC31: 0 | DD31: 0 | DE31: 0 | DF31: 0 | DG31: 0 | DH31: 0 | DI31: 0 | DJ31: 0 | DK31: 0 | DL31: 0 | DM31: 0 | DN31: 0 | DO31: 0 | DP31: 0 | DQ31: 0 | DR31: 0 | DS31: 0 | DT31: 0 | DU31: 0 | DV31: 0 | DW31: 0 | DX31: 0 | DY31: 0 | DZ31: 165768.27 | EA31: 110612.39 | EB31: 91730.6 | EC31: 45849.93 | ED31: 0 | EE31: 0 | EF31: 0 | EG31: 0 | EH31: 0 | EI31: 0 | EJ31: 0 | EK31: 0 | EL31: 0 | EM31: 0 | EN31: 0 | EO31: 0 | EP31: 0 | EQ31: 0 | ER31: 0 | ET31: 1356849.39 | EU31: 1335946.75 | EV31: 1543552.75 | EW31: 1398137.56 | EX31: 1489009.31 | EY31: 1689411.39 | EZ31: 1586908.88 | FA31: 0 | FB31: 0 | FC31: 0 | FD31: 0 | FE31: 0 | FF31: 0 | FG31: 0 | FH31: 0 | FI31: 0 | FJ31: 391741.52 | FK31: 388334.22 | FL31: 381655.56 | FM31: 378334.19 | FN31: 378169.15 | FO31: 373677.03 | FP31: 369989.72 | FQ31: 0 | FR31: 1304624.4 | FS31: 1356849.39 | FT31: 1335946.75 | FU31: 1543552.75 | FV31: 1398137.56 | FW31: 1589210.34 | FX31: 1586908.88 | FY31: 2203259.29 | FZ31: 4847 | GA31: 4813 | GB31: 4871 | GC31: 4800 | GD31: 4745 | GE31: 4695 | GF31: 4710 | GG31: 4711 | GH31: 1997381.92 | GI31: 2116865.9 | GJ31: 1889493.97 | GK31: 2321047.84 | GL31: 2368207.44 | GM31: 2221934.1 | GN31: 2610311.69 | GO31: 0 | GP31: 0 | GQ31: 0 | GR31: 3302006.32 | GS31: 3473715.29 | GT31: 3225440.72 | GU31: 3864600.59 | GV31: 3766345 | GW31: 3811144.44 | GX31: 4197220.57 | GY31: 0
B32: 13075032 | C32: 5560 | D32: Fahrenwalde | E32: Amt Uecker-Randow-Tal | F32: 310 | G32: 302 | H32: 309 | I32: 297 | J32: 292 | K32: 293 | L32: 285 | M32: 270 | N32: 282 | O32: 0 | P32: 0 | Q32: 0 | R32: 0 | S32: 85053.22 | T32: 283548.04 | U32: 77793.06 | V32: 375613.3 | W32: 184646.59 | X32: 268353.38 | Y32: 480054.78 | Z32: 323588.86 | AA32: 310174.61 | AB32: 0 | AC32: 0 | AD32: 0 | AE32: 0 | AF32: 294603.28 | AG32: 228705.67 | AH32: 136109.85 | AI32: 403745.16 | AJ32: 82775.69 | AK32: 434803.53 | AL32: 265494.11 | AM32: 270933.63 | AN32: 419442.03 | AO32: 314512.73 | AP32: 336077.07 | AQ32: 0 | AR32: 0 | AS32: 294603.28 | AT32: 228705.67 | AU32: 136109.85 | AV32: 403745.16 | AW32: 82775.69 | AX32: 434803.53 | AY32: 265494.11 | AZ32: 303786.64 | BA32: 450848.11 | BB32: 325862.52 | BC32: 336077.07 | BD32: 0 | BE32: 0 | BF32: 0 | BG32: 0 | BH32: 0 | BI32: 0 | BJ32: 0 | BK32: 0 | BL32: 0 | BM32: 35433.26 | BN32: 0 | BO32: 2273.66 | BP32: 25902.46 | BQ32: 0 | BR32: 0 | BS32: 0 | BT32: 0 | BU32: 0 | BV32: 0 | BW32: 0 | BX32: 0 | BY32: 0 | BZ32: 356 | CA32: 353 | CB32: 337 | CC32: 351 | CD32: 0 | CE32: 0 | CF32: 0 | CG32: 0 | CH32: 0 | CI32: 0 | CJ32: 0 | CK32: 0 | CL32: 0 | CM32: 20526.74 | CN32: 11519.53 | CO32: 16353.93 | CP32: 18629.36 | CQ32: 0 | CR32: 0 | CS32: 0 | CT32: 0 | CU32: 0 | CV32: 0 | CW32: 0 | CX32: 0 | CY32: 0 | CZ32: 0 | DA32: 0 | DB32: 0 | DC32: 0 | DD32: 0 | DE32: 0 | DF32: 0 | DG32: 0 | DH32: 0 | DI32: 0 | DJ32: 0 | DK32: 0 | DL32: 0 | DM32: 0 | DN32: 0 | DO32: 0 | DP32: 0 | DQ32: 0 | DR32: 0 | DS32: 0 | DT32: 0 | DU32: 0 | DV32: 0 | DW32: 0 | DX32: 0 | DY32: 0 | DZ32: 0 | EA32: 0 | EB32: 0 | EC32: 0 | ED32: 0 | EE32: 0 | EF32: 0 | EG32: 0 | EH32: 0 | EI32: 0 | EJ32: 0 | EK32: 0 | EL32: 0 | EM32: 0 | EN32: 29206.67 | EO32: 0 | EP32: 0 | EQ32: 0 | ER32: 0 | ET32: 37830.53 | EU32: 51056.63 | EV32: 120197.12 | EW32: 4982.63 | EX32: 137920.66 | EY32: 0 | EZ32: 80847.52 | FA32: 0 | FB32: 0 | FC32: 0 | FD32: 0 | FE32: 0 | FF32: 0 | FG32: 0 | FH32: 0 | FI32: 0 | FJ32: 0 | FK32: 0 | FL32: 0 | FM32: 0 | FN32: 0 | FO32: 0 | FP32: 0 | FQ32: 0 | FR32: 76724.14 | FS32: 37830.53 | FT32: 51056.63 | FU32: 120197.12 | FV32: 4982.63 | FW32: 68960.33 | FX32: 80847.52 | FY32: 35433.26 | FZ32: 310 | GA32: 302 | GB32: 309 | GC32: 297 | GD32: 292 | GE32: 293 | GF32: 285 | GG32: 270 | GH32: 217879.14 | GI32: 190875.14 | GJ32: 85053.22 | GK32: 283548.04 | GL32: 77793.06 | GM32: 375613.3 | GN32: 184646.59 | GO32: 0 | GP32: 0 | GQ32: 0 | GR32: 294603.28 | GS32: 228705.67 | GT32: 136109.85 | GU32: 403745.16 | GV32: 82775.69 | GW32: 434803.53 | GX32: 265494.11 | GY32: 0
B33: 13075033 | C33: 5559 | D33: Ferdinandshof | E33: Amt Torgelow-Ferdinandshof | F33: 2658 | G33: 2654 | H33: 2719 | I33: 2721 | J33: 2659 | K33: 2660 | L33: 2652 | M33: 2637 | N33: 2642 | O33: 0 | P33: 0 | Q33: 0 | R33: 0 | S33: 833685.15 | T33: 839573.67 | U33: 928076.89 | V33: 1073493.58 | W33: 1121543.59 | X33: 998825.89 | Y33: 1101775.19 | Z33: 1153629.13 | AA33: 1078762.31 | AB33: 0 | AC33: 0 | AD33: 0 | AE33: 0 | AF33: 1661611.44 | AG33: 1744840.63 | AH33: 1746572.81 | AI33: 1807513.64 | AJ33: 1963226.03 | AK33: 2146549.12 | AL33: 2249669.37 | AM33: 2388008.86 | AN33: 2547235.97 | AO33: 2736733.35 | AP33: 2939980.48 | AQ33: 0 | AR33: 0 | AS33: 1661611.44 | AT33: 1744840.63 | AU33: 1746572.81 | AV33: 1807513.64 | AW33: 1963226.03 | AX33: 2146549.12 | AY33: 2249669.37 | AZ33: 2677575.24 | BA33: 2737962.43 | BB33: 2835493.59 | BC33: 2939980.48 | BD33: 0 | BE33: 0 | BF33: 0 | BG33: 0 | BH33: 0 | BI33: 0 | BJ33: 0 | BK33: 0 | BL33: 0 | BM33: 1678749.35 | BN33: 1636187.24 | BO33: 1681864.46 | BP33: 1861218.17 | BQ33: 0 | BR33: 0 | BS33: 0 | BT33: 0 | BU33: 0 | BV33: 0 | BW33: 0 | BX33: 0 | BY33: 0 | BZ33: 3582 | CA33: 3532 | CB33: 3481 | CC33: 3460 | CD33: 0 | CE33: 0 | CF33: 0 | CG33: 0 | CH33: 0 | CI33: 0 | CJ33: 0 | CK33: 0 | CL33: 0 | CM33: 194247.17 | CN33: 193402.86 | CO33: 190999.67 | CP33: 192739.21 | CQ33: 0 | CR33: 0 | CS33: 0 | CT33: 0 | CU33: 0 | CV33: 0 | CW33: 0 | CX33: 0 | CY33: 0 | CZ33: 0 | DA33: 0 | DB33: 0 | DC33: 0 | DD33: 0 | DE33: 0 | DF33: 0 | DG33: 0 | DH33: 0 | DI33: 0 | DJ33: 0 | DK33: 0 | DL33: 0 | DM33: 0 | DN33: 0 | DO33: 0 | DP33: 0 | DQ33: 0 | DR33: 0 | DS33: 0 | DT33: 0 | DU33: 0 | DV33: 0 | DW33: 0 | DX33: 0 | DY33: 0 | DZ33: 132332.06 | EA33: 87711.48 | EB33: 73109.82 | EC33: 36387.41 | ED33: 0 | EE33: 0 | EF33: 0 | EG33: 0 | EH33: 0 | EI33: 0 | EJ33: 0 | EK33: 0 | EL33: 0 | EM33: 0 | EN33: 0 | EO33: 0 | EP33: 0 | EQ33: 0 | ER33: 0 | ET33: 922336.92 | EU33: 912887.66 | EV33: 967939.97 | EW33: 1035149.14 | EX33: 1067483.56 | EY33: 1078627.53 | EZ33: 1128125.78 | FA33: 0 | FB33: 0 | FC33: 0 | FD33: 0 | FE33: 0 | FF33: 0 | FG33: 0 | FH33: 0 | FI33: 0 | FJ33: 334643.68 | FK33: 328285.28 | FL33: 310627.04 | FM33: 308725.3 | FN33: 310142.31 | FO33: 307828.22 | FP33: 303878 | FQ33: 0 | FR33: 865935.82 | FS33: 922336.92 | FT33: 912887.66 | FU33: 967939.97 | FV33: 1035149.14 | FW33: 1073055.54 | FX33: 1128125.78 | FY33: 1678749.35 | FZ33: 2658 | GA33: 2654 | GB33: 2719 | GC33: 2721 | GD33: 2659 | GE33: 2660 | GF33: 2652 | GG33: 2637 | GH33: 795675.62 | GI33: 822503.71 | GJ33: 833685.15 | GK33: 839573.67 | GL33: 928076.89 | GM33: 1073493.58 | GN33: 1121543.59 | GO33: 0 | GP33: 0 | GQ33: 0 | GR33: 1661611.44 | GS33: 1744840.63 | GT33: 1746572.81 | GU33: 1807513.64 | GV33: 1963226.03 | GW33: 2146549.12 | GX33: 2249669.37 | GY33: 0
B34: 13075034 | C34: 5562 | D34: Garz | E34: Amt Usedom-Süd | F34: 245 | G34: 253 | H34: 252 | I34: 251 | J34: 264 | K34: 259 | L34: 269 | M34: 280 | N34: 281 | O34: 0 | P34: 0 | Q34: 0 | R34: 0 | S34: 61607.72 | T34: 61830.19 | U34: 71970.86 | V34: 69498.03 | W34: 72524.89 | X34: 72440.48 | Y34: 141230.29 | Z34: 161174.42 | AA34: 118973.53 | AB34: 0 | AC34: 0 | AD34: 0 | AE34: 0 | AF34: 119629.67 | AG34: 147257.78 | AH34: 159081.67 | AI34: 160191.75 | AJ34: 181572.07 | AK34: 182524.65 | AL34: 211711 | AM34: 229772.47 | AN34: 257351.66 | AO34: 290135.71 | AP34: 311291.84 | AQ34: 0 | AR34: 0 | AS34: 119629.67 | AT34: 147257.78 | AU34: 159081.67 | AV34: 160191.75 | AW34: 181572.07 | AX34: 182524.65 | AY34: 211711 | AZ34: 257634.33 | BA34: 276621.08 | BB34: 300605.81 | BC34: 311291.84 | BD34: 0 | BE34: 0 | BF34: 0 | BG34: 0 | BH34: 0 | BI34: 0 | BJ34: 0 | BK34: 0 | BL34: 0 | BM34: 185193.85 | BN34: 135390.79 | BO34: 139431.39 | BP34: 192318.31 | BQ34: 0 | BR34: 0 | BS34: 0 | BT34: 0 | BU34: 0 | BV34: 0 | BW34: 0 | BX34: 0 | BY34: 0 | BZ34: 311 | CA34: 318 | CB34: 335 | CC34: 342 | CD34: 0 | CE34: 0 | CF34: 0 | CG34: 0 | CH34: 0 | CI34: 0 | CJ34: 0 | CK34: 0 | CL34: 0 | CM34: 19215.88 | CN34: 19722.8 | CO34: 20322.98 | CP34: 20621.75 | CQ34: 0 | CR34: 0 | CS34: 0 | CT34: 0 | CU34: 0 | CV34: 0 | CW34: 0 | CX34: 0 | CY34: 0 | CZ34: 0 | DA34: 0 | DB34: 0 | DC34: 0 | DD34: 0 | DE34: 0 | DF34: 0 | DG34: 0 | DH34: 0 | DI34: 0 | DJ34: 0 | DK34: 0 | DL34: 0 | DM34: 0 | DN34: 0 | DO34: 0 | DP34: 0 | DQ34: 0 | DR34: 0 | DS34: 0 | DT34: 0 | DU34: 0 | DV34: 0 | DW34: 0 | DX34: 0 | DY34: 0 | DZ34: 0 | EA34: 0 | EB34: 0 | EC34: 0 | ED34: 0 | EE34: 0 | EF34: 0 | EG34: 0 | EH34: 0 | EI34: 0 | EJ34: 0 | EK34: 0 | EL34: 0 | EM34: 0 | EN34: 0 | EO34: 0 | EP34: 0 | EQ34: 0 | ER34: 0 | ET34: 89993.4 | EU34: 97473.95 | EV34: 98361.56 | EW34: 109601.21 | EX34: 107362.2 | EY34: 118691.04 | EZ34: 139186.11 | FA34: 0 | FB34: 0 | FC34: 0 | FD34: 0 | FE34: 0 | FF34: 0 | FG34: 0 | FH34: 0 | FI34: 0 | FJ34: 0 | FK34: 0 | FL34: 0 | FM34: 0 | FN34: 0 | FO34: 0 | FP34: 0 | FQ34: 0 | FR34: 64844.38 | FS34: 89993.4 | FT34: 97473.95 | FU34: 98361.56 | FV34: 109601.21 | FW34: 113026.62 | FX34: 139186.11 | FY34: 185193.85 | FZ34: 245 | GA34: 253 | GB34: 252 | GC34: 251 | GD34: 264 | GE34: 259 | GF34: 269 | GG34: 280 | GH34: 54785.29 | GI34: 57264.38 | GJ34: 61607.72 | GK34: 61830.19 | GL34: 71970.86 | GM34: 69498.03 | GN34: 72524.89 | GO34: 0 | GP34: 0 | GQ34: 0 | GR34: 119629.67 | GS34: 147257.78 | GT34: 159081.67 | GU34: 160191.75 | GV34: 181572.07 | GW34: 182524.65 | GX34: 211711 | GY34: 0
B35: 13075035 | C35: 5556 | D35: Glasow | E35: Amt Löcknitz-Penkun | F35: 160 | G35: 154 | H35: 150 | I35: 152 | J35: 160 | K35: 161 | L35: 152 | M35: 150 | N35: 149 | O35: 0 | P35: 0 | Q35: 0 | R35: 0 | S35: 109228.72 | T35: 66315.24 | U35: 86024.91 | V35: 173869.88 | W35: 82240.63 | X35: 102521.98 | Y35: 75798.39 | Z35: 89078.33 | AA35: 101321.45 | AB35: 0 | AC35: 0 | AD35: 0 | AE35: 0 | AF35: 103036.03 | AG35: 126195.37 | AH35: 152068.92 | AI35: 89154.29 | AJ35: 135531.01 | AK35: 192867.38 | AL35: 139795.55 | AM35: 144817.32 | AN35: 145443.31 | AO35: 155453.05 | AP35: 166570.81 | AQ35: 0 | AR35: 0 | AS35: 103036.03 | AT35: 126195.37 | AU35: 152068.92 | AV35: 89154.29 | AW35: 135531.01 | AX35: 192867.38 | AY35: 139795.55 | AZ35: 162377.65 | BA35: 156333.5 | BB35: 161062.87 | BC35: 166570.81 | BD35: 0 | BE35: 0 | BF35: 0 | BG35: 0 | BH35: 0 | BI35: 0 | BJ35: 0 | BK35: 0 | BL35: 0 | BM35: 59855.67 | BN35: 80535.11 | BO35: 71984.54 | BP35: 65249.36 | BQ35: 0 | BR35: 0 | BS35: 0 | BT35: 0 | BU35: 0 | BV35: 0 | BW35: 0 | BX35: 0 | BY35: 0 | BZ35: 192 | CA35: 183 | CB35: 178 | CC35: 181 | CD35: 0 | CE35: 0 | CF35: 0 | CG35: 0 | CH35: 0 | CI35: 0 | CJ35: 0 | CK35: 0 | CL35: 0 | CM35: 11726.22 | CN35: 11141.87 | CO35: 10885.14 | CP35: 10803.04 | CQ35: 0 | CR35: 0 | CS35: 0 | CT35: 0 | CU35: 0 | CV35: 0 | CW35: 0 | CX35: 0 | CY35: 0 | CZ35: 0 | DA35: 0 | DB35: 0 | DC35: 0 | DD35: 0 | DE35: 0 | DF35: 0 | DG35: 0 | DH35: 0 | DI35: 0 | DJ35: 0 | DK35: 0 | DL35: 0 | DM35: 0 | DN35: 0 | DO35: 0 | DP35: 0 | DQ35: 0 | DR35: 0 | DS35: 0 | DT35: 0 | DU35: 0 | DV35: 0 | DW35: 0 | DX35: 0 | DY35: 0 | DZ35: 0 | EA35: 0 | EB35: 0 | EC35: 0 | ED35: 0 | EE35: 0 | EF35: 0 | EG35: 0 | EH35: 0 | EI35: 0 | EJ35: 0 | EK35: 0 | EL35: 0 | EM35: 0 | EN35: 0 | EO35: 0 | EP35: 0 | EQ35: 0 | ER35: 0 | ET35: 54337.65 | EU35: 42840.2 | EV35: 22839.05 | EW35: 49506.1 | EX35: 37995.01 | EY35: 0 | EZ35: 57554.92 | FA35: 0 | FB35: 0 | FC35: 0 | FD35: 0 | FE35: 0 | FF35: 0 | FG35: 0 | FH35: 0 | FI35: 0 | FJ35: 0 | FK35: 0 | FL35: 0 | FM35: 0 | FN35: 0 | FO35: 0 | FP35: 0 | FQ35: 0 | FR35: 44672.02 | FS35: 54337.65 | FT35: 42840.2 | FU35: 22839.05 | FV35: 49506.1 | FW35: 18997.5 | FX35: 57554.92 | FY35: 59855.67 | FZ35: 160 | GA35: 154 | GB35: 150 | GC35: 152 | GD35: 160 | GE35: 161 | GF35: 152 | GG35: 150 | GH35: 58364.01 | GI35: 71857.72 | GJ35: 109228.72 | GK35: 66315.24 | GL35: 86024.91 | GM35: 173869.88 | GN35: 82240.63 | GO35: 0 | GP35: 0 | GQ35: 0 | GR35: 103036.03 | GS35: 126195.37 | GT35: 152068.92 | GU35: 89154.29 | GV35: 135531.01 | GW35: 192867.38 | GX35: 139795.55 | GY35: 0
B36: 13075036 | C36: 5558 | D36: Görmin | E36: Amt Peenetal/Loitz | F36: 889 | G36: 896 | H36: 889 | I36: 881 | J36: 890 | K36: 870 | L36: 870 | M36: 882 | N36: 891 | O36: 0 | P36: 0 | Q36: 0 | R36: 0 | S36: 581067.73 | T36: 470232.72 | U36: 588444.23 | V36: 344553.98 | W36: 693850.44 | X36: 572920.35 | Y36: 583813.3 | Z36: 569661.64 | AA36: 922690.02 | AB36: 0 | AC36: 0 | AD36: 0 | AE36: 0 | AF36: 599161.34 | AG36: 710650.34 | AH36: 784320.63 | AI36: 612632.82 | AJ36: 825840.56 | AK36: 609164.19 | AL36: 848528.81 | AM36: 786303.23 | AN36: 840713.35 | AO36: 919287.19 | AP36: 1028050.04 | AQ36: 0 | AR36: 0 | AS36: 599161.34 | AT36: 710650.34 | AU36: 784320.63 | AV36: 612632.82 | AW36: 825840.56 | AX36: 609164.19 | AY36: 848528.81 | AZ36: 881649.18 | BA36: 903662.48 | BB36: 952461.42 | BC36: 1028050.04 | BD36: 0 | BE36: 0 | BF36: 0 | BG36: 0 | BH36: 0 | BI36: 0 | BJ36: 0 | BK36: 0 | BL36: 0 | BM36: 308728.83 | BN36: 319849.18 | BO36: 382799.78 | BP36: 105360.02 | BQ36: 0 | BR36: 0 | BS36: 0 | BT36: 0 | BU36: 0 | BV36: 0 | BW36: 0 | BX36: 0 | BY36: 0 | BZ36: 1100 | CA36: 1098 | CB36: 1108 | CC36: 1091 | CD36: 0 | CE36: 0 | CF36: 0 | CG36: 0 | CH36: 0 | CI36: 0 | CJ36: 0 | CK36: 0 | CL36: 0 | CM36: 62952.15 | CN36: 62922.54 | CO36: 63517.01 | CP36: 61810.71 | CQ36: 0 | CR36: 0 | CS36: 0 | CT36: 0 | CU36: 0 | CV36: 0 | CW36: 0 | CX36: 0 | CY36: 0 | CZ36: 0 | DA36: 0 | DB36: 0 | DC36: 0 | DD36: 0 | DE36: 0 | DF36: 0 | DG36: 0 | DH36: 0 | DI36: 0 | DJ36: 0 | DK36: 0 | DL36: 0 | DM36: 0 | DN36: 0 | DO36: 0 | DP36: 0 | DQ36: 0 | DR36: 0 | DS36: 0 | DT36: 0 | DU36: 0 | DV36: 0 | DW36: 0 | DX36: 0 | DY36: 0 | DZ36: 0 | EA36: 0 | EB36: 0 | EC36: 0 | ED36: 0 | EE36: 0 | EF36: 0 | EG36: 0 | EH36: 0 | EI36: 0 | EJ36: 0 | EK36: 0 | EL36: 0 | EM36: 0 | EN36: 0 | EO36: 0 | EP36: 0 | EQ36: 0 | ER36: 0 | ET36: 270714.12 | EU36: 203252.9 | EV36: 142400.1 | EW36: 237396.33 | EX36: 178021.77 | EY36: 351198.66 | EZ36: 154678.37 | FA36: 0 | FB36: 0 | FC36: 0 | FD36: 0 | FE36: 0 | FF36: 0 | FG36: 0 | FH36: 0 | FI36: 0 | FJ36: 0 | FK36: 0 | FL36: 0 | FM36: 0 | FN36: 0 | FO36: 0 | FP36: 0 | FQ36: 0 | FR36: 294717.47 | FS36: 270714.12 | FT36: 203252.9 | FU36: 142400.1 | FV36: 237396.33 | FW36: 264610.21 | FX36: 154678.37 | FY36: 308728.83 | FZ36: 889 | GA36: 896 | GB36: 889 | GC36: 881 | GD36: 890 | GE36: 870 | GF36: 870 | GG36: 882 | GH36: 304443.87 | GI36: 439936.22 | GJ36: 581067.73 | GK36: 470232.72 | GL36: 588444.23 | GM36: 344553.98 | GN36: 693850.44 | GO36: 0 | GP36: 0 | GQ36: 0 | GR36: 599161.34 | GS36: 710650.34 | GT36: 784320.63 | GU36: 612632.82 | GV36: 825840.56 | GW36: 609164.19 | GX36: 848528.81 | GY36: 0
B37: 13075037 | C37: 5552 | D37: Grambin | E37: Amt Am Stettiner Haff | F37: 404 | G37: 414 | H37: 415 | I37: 422 | J37: 415 | K37: 430 | L37: 436 | M37: 424 | N37: 424 | O37: 0 | P37: 0 | Q37: 0 | R37: 0 | S37: 166281.15 | T37: 175400.49 | U37: 195317.56 | V37: 179955.66 | W37: 204899.02 | X37: 189708.66 | Y37: 199559.76 | Z37: 209913.25 | AA37: 218695.72 | AB37: 0 | AC37: 0 | AD37: 0 | AE37: 0 | AF37: 270162.68 | AG37: 327474.76 | AH37: 267630.02 | AI37: 298781.92 | AJ37: 330130.71 | AK37: 324586.08 | AL37: 360070.91 | AM37: 383296.64 | AN37: 415848 | AO37: 437788.8 | AP37: 470667.75 | AQ37: 0 | AR37: 0 | AS37: 270162.68 | AT37: 327474.76 | AU37: 267630.02 | AV37: 298781.92 | AW37: 330130.71 | AX37: 324586.08 | AY37: 360070.91 | AZ37: 429774.61 | BA37: 446984.98 | BB37: 453587.24 | BC37: 470667.75 | BD37: 0 | BE37: 0 | BF37: 0 | BG37: 0 | BH37: 0 | BI37: 0 | BJ37: 0 | BK37: 0 | BL37: 0 | BM37: 240065.95 | BN37: 247425.22 | BO37: 243673.99 | BP37: 251972.03 | BQ37: 0 | BR37: 0 | BS37: 0 | BT37: 0 | BU37: 0 | BV37: 0 | BW37: 0 | BX37: 0 | BY37: 0 | BZ37: 503 | CA37: 512 | CB37: 503 | CC37: 506 | CD37: 0 | CE37: 0 | CF37: 0 | CG37: 0 | CH37: 0 | CI37: 0 | CJ37: 0 | CK37: 0 | CL37: 0 | CM37: 31702.17 | CN37: 32098.27 | CO37: 30920.4 | CP37: 31032.29 | CQ37: 0 | CR37: 0 | CS37: 0 | CT37: 0 | CU37: 0 | CV37: 0 | CW37: 0 | CX37: 0 | CY37: 0 | CZ37: 0 | DA37: 0 | DB37: 0 | DC37: 0 | DD37: 0 | DE37: 0 | DF37: 0 | DG37: 0 | DH37: 0 | DI37: 0 | DJ37: 0 | DK37: 0 | DL37: 0 | DM37: 0 | DN37: 0 | DO37: 0 | DP37: 0 | DQ37: 0 | DR37: 0 | DS37: 0 | DT37: 0 | DU37: 0 | DV37: 0 | DW37: 0 | DX37: 0 | DY37: 0 | DZ37: 0 | EA37: 0 | EB37: 0 | EC37: 0 | ED37: 0 | EE37: 0 | EF37: 0 | EG37: 0 | EH37: 0 | EI37: 0 | EJ37: 0 | EK37: 0 | EL37: 0 | EM37: 0 | EN37: 0 | EO37: 0 | EP37: 0 | EQ37: 0 | ER37: 0 | ET37: 138683.83 | EU37: 101348.87 | EV37: 123381.43 | EW37: 134813.15 | EX37: 130730.33 | EY37: 158530.52 | EZ37: 155171.89 | FA37: 0 | FB37: 0 | FC37: 0 | FD37: 0 | FE37: 0 | FF37: 0 | FG37: 0 | FH37: 0 | FI37: 0 | FJ37: 0 | FK37: 0 | FL37: 0 | FM37: 0 | FN37: 0 | FO37: 0 | FP37: 0 | FQ37: 0 | FR37: 134062.55 | FS37: 138683.83 | FT37: 101348.87 | FU37: 123381.43 | FV37: 134813.15 | FW37: 144630.42 | FX37: 155171.89 | FY37: 240065.95 | FZ37: 404 | GA37: 414 | GB37: 415 | GC37: 422 | GD37: 415 | GE37: 430 | GF37: 436 | GG37: 424 | GH37: 136100.13 | GI37: 188790.93 | GJ37: 166281.15 | GK37: 175400.49 | GL37: 195317.56 | GM37: 179955.66 | GN37: 204899.02 | GO37: 0 | GP37: 0 | GQ37: 0 | GR37: 270162.68 | GS37: 327474.76 | GT37: 267630.02 | GU37: 298781.92 | GV37: 330130.71 | GW37: 324586.08 | GX37: 360070.91 | GY37: 0
B38: 13075038 | C38: 5556 | D38: Grambow | E38: Amt Löcknitz-Penkun | F38: 920 | G38: 905 | H38: 875 | I38: 849 | J38: 854 | K38: 851 | L38: 849 | M38: 853 | N38: 838 | O38: 0 | P38: 0 | Q38: 0 | R38: 0 | S38: 224867.51 | T38: 237119.07 | U38: 286091.24 | V38: 303619.98 | W38: 277567.91 | X38: 272815.47 | Y38: 300369.17 | Z38: 354787.79 | AA38: 291449.4 | AB38: 0 | AC38: 0 | AD38: 0 | AE38: 0 | AF38: 547423.6 | AG38: 538967.2 | AH38: 582283.14 | AI38: 610362.21 | AJ38: 668574.31 | AK38: 657612.28 | AL38: 697741.29 | AM38: 758429.66 | AN38: 809949.59 | AO38: 880612.85 | AP38: 925988.72 | AQ38: 0 | AR38: 0 | AS38: 547423.6 | AT38: 538967.2 | AU38: 582283.14 | AV38: 610362.21 | AW38: 668574.31 | AX38: 657612.28 | AY38: 697741.29 | AZ38: 850395.71 | BA38: 870595.26 | BB38: 912391.44 | BC38: 925988.72 | BD38: 0 | BE38: 0 | BF38: 0 | BG38: 0 | BH38: 0 | BI38: 0 | BJ38: 0 | BK38: 0 | BL38: 0 | BM38: 577580.24 | BN38: 570226.09 | BO38: 557603.65 | BP38: 634539.32 | BQ38: 0 | BR38: 0 | BS38: 0 | BT38: 0 | BU38: 0 | BV38: 0 | BW38: 0 | BX38: 0 | BY38: 0 | BZ38: 1067 | CA38: 1063 | CB38: 1056 | CC38: 1023 | CD38: 0 | CE38: 0 | CF38: 0 | CG38: 0 | CH38: 0 | CI38: 0 | CJ38: 0 | CK38: 0 | CL38: 0 | CM38: 62756.35 | CN38: 62483.63 | CO38: 62217.32 | CP38: 61703.15 | CQ38: 0 | CR38: 0 | CS38: 0 | CT38: 0 | CU38: 0 | CV38: 0 | CW38: 0 | CX38: 0 | CY38: 0 | CZ38: 0 | DA38: 0 | DB38: 0 | DC38: 0 | DD38: 0 | DE38: 0 | DF38: 0 | DG38: 0 | DH38: 0 | DI38: 0 | DJ38: 0 | DK38: 0 | DL38: 0 | DM38: 0 | DN38: 0 | DO38: 0 | DP38: 0 | DQ38: 0 | DR38: 0 | DS38: 0 | DT38: 0 | DU38: 0 | DV38: 0 | DW38: 0 | DX38: 0 | DY38: 0 | DZ38: 0 | EA38: 0 | EB38: 0 | EC38: 0 | ED38: 0 | EE38: 0 | EF38: 0 | EG38: 0 | EH38: 0 | EI38: 0 | EJ38: 0 | EK38: 0 | EL38: 0 | EM38: 0 | EN38: 0 | EO38: 0 | EP38: 0 | EQ38: 0 | ER38: 0 | ET38: 333996.76 | EU38: 357415.63 | EV38: 373243.14 | EW38: 382483.07 | EX38: 351069.97 | EY38: 356914.64 | EZ38: 420173.38 | FA38: 0 | FB38: 0 | FC38: 0 | FD38: 0 | FE38: 0 | FF38: 0 | FG38: 0 | FH38: 0 | FI38: 0 | FJ38: 0 | FK38: 0 | FL38: 0 | FM38: 0 | FN38: 0 | FO38: 0 | FP38: 0 | FQ38: 0 | FR38: 339142.89 | FS38: 333996.76 | FT38: 357415.63 | FU38: 373243.14 | FV38: 382483.07 | FW38: 353992.3 | FX38: 420173.38 | FY38: 577580.24 | FZ38: 920 | GA38: 905 | GB38: 875 | GC38: 849 | GD38: 854 | GE38: 851 | GF38: 849 | GG38: 853 | GH38: 208280.71 | GI38: 204970.44 | GJ38: 224867.51 | GK38: 237119.07 | GL38: 286091.24 | GM38: 303619.98 | GN38: 277567.91 | GO38: 0 | GP38: 0 | GQ38: 0 | GR38: 547423.6 | GS38: 538967.2 | GT38: 582283.14 | GU38: 610362.21 | GV38: 668574.31 | GW38: 657612.28 | GX38: 697741.29 | GY38: 0
B39: 13075039 | C39: 501 | D39: Greifswald, Hansestadt | E39: Greifswald, Hansestadt | F39: 56445 | G39: 56685 | H39: 57286 | I39: 57985 | J39: 58886 | K39: 59382 | L39: 59232 | M39: 59282 | N39: 59332 | O39: 0 | P39: 0 | Q39: 0 | R39: 0 | S39: 31424170.52 | T39: 30592229.63 | U39: 35299546.8 | V39: 36833316.48 | W39: 38809936.13 | X39: 42410874.81 | Y39: 50761571.37 | Z39: 55528468.24 | AA39: 49880455.9 | AB39: 0 | AC39: 0 | AD39: 0 | AE39: 0 | AF39: 39765721.25 | AG39: 45096160.88 | AH39: 44059566.22 | AI39: 45177439.82 | AJ39: 51766372.8 | AK39: 52598055.07 | AL39: 57760116.59 | AM39: 63739570.82 | AN39: 70772031.98 | AO39: 77024547.3 | AP39: 79635538.68 | AQ39: 0 | AR39: 0 | AS39: 39765721.25 | AT39: 45096160.88 | AU39: 44059566.22 | AV39: 45177439.82 | AW39: 51766372.8 | AX39: 52598055.07 | AY39: 57760116.59 | AZ39: 71468535.6 | BA39: 0 | BB39: 0 | BC39: 79635538.68 | BD39: 0 | BE39: 0 | BF39: 0 | BG39: 0 | BH39: 0 | BI39: 0 | BJ39: 0 | BK39: 0 | BL39: 0 | BM39: 29057660.79 | BN39: 25309576.79 | BO39: 24275656.73 | BP39: 29755082.78 | BQ39: 0 | BR39: 0 | BS39: 0 | BT39: 0 | BU39: 0 | BV39: 0 | BW39: 0 | BX39: 0 | BY39: 0 | BZ39: 98773 | CA39: 98591 | CB39: 98809 | CC39: 98812 | CD39: 0 | CE39: 0 | CF39: 0 | CG39: 0 | CH39: 0 | CI39: 0 | CJ39: 0 | CK39: 0 | CL39: 0 | CM39: 3187329.22 | CN39: 2888092.9 | CO39: 2846712.58 | CP39: 3140813.85 | CQ39: 0 | CR39: 0 | CS39: 0 | CT39: 0 | CU39: 0 | CV39: 0 | CW39: 0 | CX39: 0 | CY39: 0 | CZ39: 0 | DA39: 0 | DB39: 0 | DC39: 0 | DD39: 0 | DE39: 0 | DF39: 0 | DG39: 0 | DH39: 0 | DI39: 0 | DJ39: 0 | DK39: 0 | DL39: 0 | DM39: 4214497.05 | DN39: 4047373.7 | DO39: 4604135.16 | DP39: 4615248.9 | DQ39: 0 | DR39: 0 | DS39: 0 | DT39: 0 | DU39: 0 | DV39: 0 | DW39: 0 | DX39: 0 | DY39: 0 | DZ39: 2250410.23 | EA39: 1502299.92 | EB39: 1253199.17 | EC39: 627035.2 | ED39: 0 | EE39: 0 | EF39: 0 | EG39: 0 | EH39: 0 | EI39: 0 | EJ39: 0 | EK39: 0 | EL39: 0 | EM39: 0 | EN39: 0 | EO39: 0 | EP39: 0 | EQ39: 0 | ER39: 0 | ET39: 15369734.92 | EU39: 12635395.7 | EV39: 14585210.19 | EW39: 16466826 | EX39: 14545955.56 | EY39: 16983521.62 | EZ39: 18950180.46 | FA39: 0 | FB39: 3701225.44 | FC39: 4226040.08 | FD39: 4270640.19 | FE39: 4278832.99 | FF39: 4293488.53 | FG39: 3833342.27 | FH39: 3863636.69 | FI39: 0 | FJ39: 7540405.14 | FK39: 8743929.91 | FL39: 8815435.98 | FM39: 8816604.75 | FN39: 8807566.03 | FO39: 8856273.1 | FP39: 8931807.6 | FQ39: 0 | FR39: 13442912.14 | FS39: 15369734.92 | FT39: 12635395.7 | FU39: 14585210.19 | FV39: 16466826 | FW39: 15764738.59 | FX39: 18950180.46 | FY39: 29057660.79 | FZ39: 56445 | GA39: 56685 | GB39: 57286 | GC39: 57985 | GD39: 58886 | GE39: 59382 | GF39: 59232 | GG39: 59282 | GH39: 26322809.11 | GI39: 29726425.96 | GJ39: 31424170.52 | GK39: 30592229.63 | GL39: 35299546.8 | GM39: 36833316.48 | GN39: 38809936.13 | GO39: 0 | GP39: 0 | GQ39: 0 | GR39: 39765721.25 | GS39: 45096160.88 | GT39: 44059566.22 | GU39: 45177439.82 | GV39: 51766372.8 | GW39: 52598055.07 | GX39: 57760116.59 | GY39: 0
B40: 13075040 | C40: 5563 | D40: Gribow | E40: Amt Züssow | F40: 171 | G40: 171 | H40: 158 | I40: 149 | J40: 143 | K40: 144 | L40: 145 | M40: 138 | N40: 137 | O40: 0 | P40: 0 | Q40: 0 | R40: 0 | S40: 41311.95 | T40: 43826.83 | U40: 64256.37 | V40: 87087.56 | W40: 80183.97 | X40: 123920.41 | Y40: 124619.31 | Z40: 104984.85 | AA40: 110629.51 | AB40: 0 | AC40: 0 | AD40: 0 | AE40: 0 | AF40: 101658.07 | AG40: 102501.6 | AH40: 106668.08 | AI40: 113491.82 | AJ40: 137112.78 | AK40: 135338.91 | AL40: 126946.69 | AM40: 132300.1 | AN40: 141097.24 | AO40: 144538.36 | AP40: 153949.7 | AQ40: 0 | AR40: 0 | AS40: 101658.07 | AT40: 102501.6 | AU40: 106668.08 | AV40: 113491.82 | AW40: 137112.78 | AX40: 135338.91 | AY40: 126946.69 | AZ40: 148342.62 | BA40: 151662.02 | BB40: 149754.3 | BC40: 153949.7 | BD40: 0 | BE40: 0 | BF40: 0 | BG40: 0 | BH40: 0 | BI40: 0 | BJ40: 0 | BK40: 0 | BL40: 0 | BM40: 24422.21 | BN40: 27042.71 | BO40: 44769.45 | BP40: 43320.19 | BQ40: 0 | BR40: 0 | BS40: 0 | BT40: 0 | BU40: 0 | BV40: 0 | BW40: 0 | BX40: 0 | BY40: 0 | BZ40: 179 | CA40: 180 | CB40: 175 | CC40: 168 | CD40: 0 | CE40: 0 | CF40: 0 | CG40: 0 | CH40: 0 | CI40: 0 | CJ40: 0 | CK40: 0 | CL40: 0 | CM40: 10182.42 | CN40: 10386.19 | CO40: 9872.28 | CP40: 9863.73 | CQ40: 0 | CR40: 0 | CS40: 0 | CT40: 0 | CU40: 0 | CV40: 0 | CW40: 0 | CX40: 0 | CY40: 0 | CZ40: 0 | DA40: 0 | DB40: 0 | DC40: 0 | DD40: 0 | DE40: 0 | DF40: 0 | DG40: 0 | DH40: 0 | DI40: 0 | DJ40: 0 | DK40: 0 | DL40: 0 | DM40: 0 | DN40: 0 | DO40: 0 | DP40: 0 | DQ40: 0 | DR40: 0 | DS40: 0 | DT40: 0 | DU40: 0 | DV40: 0 | DW40: 0 | DX40: 0 | DY40: 0 | DZ40: 0 | EA40: 0 | EB40: 0 | EC40: 0 | ED40: 0 | EE40: 0 | EF40: 0 | EG40: 0 | EH40: 0 | EI40: 0 | EJ40: 0 | EK40: 0 | EL40: 0 | EM40: 0 | EN40: 0 | EO40: 0 | EP40: 0 | EQ40: 0 | ER40: 0 | ET40: 64654.89 | EU40: 65356.13 | EV40: 69664.99 | EW40: 72856.41 | EX40: 55835.33 | EY40: 40667.38 | EZ40: 46762.72 | FA40: 0 | FB40: 0 | FC40: 0 | FD40: 0 | FE40: 0 | FF40: 0 | FG40: 0 | FH40: 0 | FI40: 0 | FJ40: 0 | FK40: 0 | FL40: 0 | FM40: 0 | FN40: 0 | FO40: 0 | FP40: 0 | FQ40: 0 | FR40: 66412.69 | FS40: 64654.89 | FT40: 65356.13 | FU40: 69664.99 | FV40: 72856.41 | FW40: 48251.35 | FX40: 46762.72 | FY40: 24422.21 | FZ40: 171 | GA40: 171 | GB40: 158 | GC40: 149 | GD40: 143 | GE40: 144 | GF40: 145 | GG40: 138 | GH40: 35245.38 | GI40: 37846.71 | GJ40: 41311.95 | GK40: 43826.83 | GL40: 64256.37 | GM40: 87087.56 | GN40: 80183.97 | GO40: 0 | GP40: 0 | GQ40: 0 | GR40: 101658.07 | GS40: 102501.6 | GT40: 106668.08 | GU40: 113491.82 | GV40: 137112.78 | GW40: 135338.91 | GX40: 126946.69 | GY40: 0
